Workbook

Sheet instruction
A1: यह एक्सेल प्रोग्राम परम पूज्य गुरुदेव स्वामी वासुदेवजी महाराज व इष्ट प्रभु जय बजरंग बली व पाबूजी महाराज के आशीर्वाद का फल है I माता - पिता व गुरुजनों के आशीर्वाद से यह एक्सेल प्रोग्राम शिक्षा विभाग को समर्पित करता हूँ I
A2: यह एक्सेल शीट आप शाला दर्पण के रिजल्ट टैब से डाउनलोड कर सकते है I इसके अलावा www.rajguruji.com , www.rajgyan.co.in , www.rajteachers.com , www.rajsevak.com/excel and Shala sugum से भी डाउनलोड कर सकते है I आप गूगल पर जाकर heeralal jat लिखकर सर्च करेंगे तो भी उपरोक्त वेब लिंक सर्च में सबसे उपर मिल जायेंगे I
A3: :: इस एक्सेल शीट पर कार्य करने हेतु विशेष निर्देश :: | E3: परम पूज्य गुरुदेव स्वामी वासुदेव जी महाराज
A4: यह एक्सेल शीट 200 विद्यार्थियों को ध्यान में रखकर बनाई गयी है I अगर आपकी स्कूल में विद्यार्थी 200 से कम है तो अतिरिक्त कॉलम की हाईड कर लेवे, जिससे प्रिंट निकालने में असुविधा न हो I अगर विद्यार्थी एक सेक्शन में 200 से भी अधिक है तो फिर सेक्शन वार शीट भी तैयार कर सकते है I | E4: https://youtu.be/atAmvhXLU30
A5: इस वर्कबुक की सिक्यूरिटी के लिए Class09 पासवर्ड है I ( जो इंस्ट्रक्शन शीट , मास्टर शीट व मार्कशीट शीट पर काम नहीं करेगा - सिक्यूरिटी के लिए ) | E5: https://youtu.be/6Uilt-YxIxk
A6: कक्षा 09 के प्रत्येक विद्यार्थी के तृतीय भाषा विषय को भरने हेतु प्रत्येक विद्यार्थी के सामने ऑप्शन दे रखे है , इसके लिए आप 1 , 2 , 3, 4, 5 , 6 कोड भर सकते है I इनका सम्बन्ध तृतीय भाषा विषय के स्थान के क्रमानुसार है I | E6: https://youtu.be/YgrB3e6SHv8
A7: इसके अतिरिक्त रिजल्ट वर्कबुक में एंट्री करते समय आनेवाली सामान्य समस्याएं व समाधान | E7: UPDATE ON
A8: सबसे पहले शीट को ओपन करने के बाद स्कूल प्रोफाइल पर जो विद्यालय से सम्बंधित जो सामान्य जानकारी पूर्ण कर लेवें I | E8: 2025-04-21
A9: दुसरे नंबर पर स्टूडेंट डाटा एंट्री शीट पर स्टूडेंट की डिटेल भरे I विद्यार्थी की उपस्थिति भी इसी शीट पर फिल की जाएगी I स्टूडेंट की फोटोयुक्त मार्कशीट प्राप्त करने हेतु आप इसी शीट के अंतिम कॉलम में स्माल साइज़ का फोटो कॉपी पेस्ट कर देवें I
A10: तत्पश्चात आप मार्क एंट्री शीट पर जाये I यहाँ पर बाकि डिटेल तो स्वतः आ जाएगी I आपको विद्यार्थी के सत्रवार अंकों की डिटेल यहाँ फिल करनी है I विद्यार्थियों के अंक सावधानी से भरें I अगर विधार्थी किसी परीक्षा में अनुपस्थित रहा है तो आप AB फिल करे I अगर विधार्थी प्रथम परख में किन्ही कारणों से शामिल नहीं हो पाया अथवा देरी से विद्यालय में प्रवेश लिया है तो उक्त टेस्ट में NA फिल कर सकते है I और यदि विद्यार्थी मेडिकल बेस पर एग्जाम नहीं दे पाया है तो आप अंको की जगह ML फिल कर सकते हैं I यह ध्यान रहे कि मार्क एंट्री के कॉलम में आप अंकों , NA , AB , ML के अलावा कुछ भी फिल नहीं कर पाएंगे I
A11: आगे की शीट केवल रिपोर्ट जनरेट करेगी I वहां एंट्री नहीं होगी I केवल रिपोर्ट जनरेट करने हेतु डाटा इनपुट के लिए केवल एक - दो कॉलम अनलॉक मिलेंगे , जिसके द्वारा आप मनचाही रिपोर्ट प्रिंट कर सकते है I यह सभी शीट्स A4 साइज़ के पेपर पर व्यवस्थित की हुई है I मार्कशीट हेतु दो शीट पर मार्कशीट डिजाईन की गयी है I एक शीट पर आप विद्यार्थी की फोटोयुक्त सिंगल मार्कशीट निकाल सकते है और दूसरी शीट पर आप 20 विद्यार्थियों की मार्कशीट्स एक साथ निकाल सकते है I
A12: PASTE SPECIAL का प्रयोग कहां और कैसे करना है | E12: https://youtu.be/atAmvhXLU30
A13: आप अपनी पुरानी वर्कबुक के Master sheet & Student Data Entry & Marks Entry sheet से data को copy कर नई शीट में paste करना चाहते हो तो paste special option का ही प्रयोग करें I एसा करने पर नई वर्कबुक के formatting और data validation नहीं बिगड़ेंगे I
A14: Paste special आप्शन से जहा paste करना हो वहा right click कर paste special से paste values का option select करें I Cut Paste बिल्कुल न करें I किसी भी Cell को delete नहीं करें I
A15: तारीख का FORMAT किस प्रकार रखना है
A16: अपने कंप्यूटर का date format set करें क्योंकि कंप्यूटर में डेट फॉर्मेट by default mm/dd/yy होता है जबकि हमें इस रिजल्ट शीट हेतु dd/mm/yy की आवश्यकता होती है I
A17: date format को बदलने के लिए control panel में regional language setting में date format mm/dd/yy के स्थान पर dd/mm/yy कर देवे I
A18: Fonts के बारें में जानकारी
A19: रिजल्ट वर्कबुक हिंदी , अंग्रेजी व गूगल हिंदी इनपुट टूल तीनों में उपलब्ध है I आप अपनी आवश्यकतानुसार शीट काम में ले सकते है I लेकिन इतना ध्यान रखे की Font Change न करें I | E19: https://youtu.be/YgrB3e6SHv8
A20: प्रत्येक वर्कबुक में अंग्रेजी हेतु calibri & Cambria English font प्रयोग में लिया गया है I हिंदी हेतु Google Input hindi tool का प्रयोग करके भी शीट तैयार की गयी है ताकि आप मोबाइल में भी काम कर सकते है I यदि उक्त font आपके computer में installed न हो तो website से download कर save करने के पश्चात् नीचे दिए तरीके के अनुसार install कर सकते है I
A21: सबसे पहले आप start menu सेs control pannel खोलें
A22: control pannel में fonts नाम के folder पर right click करें और paste करें I
A23: मार्क्स एंट्री करते समय रखी जाने वाली सावधानियां
A24: यह वर्कबुक कक्षा 09 के सामान्य विषय के अलावा व्यावसायिक शिक्षा के लिए भी समान रूप से उपयोगी है I विषय के सम्बन्ध में डिटेल आप मास्टर शीट पर फिल कर सकते है I आवश्यकता होने पर केवल विषयों के पूर्णाक में बदलाव कर सकते है I
A25: तकनिकी error आने पर statement of marks व मार्कशीट की शीट के cell में #### , frm , Value?, दिखाई देंगे I Formulla के लिंक हट जाने पर #Ref# दिखाई होगा I
A26: #### की समस्या को हल करने हेतु आप कॉलम की साइज़ को बड़ा कर दो I यह समस्या सोल्व हो जाएगी I master sheet , Student Data एंट्री , marks एंट्री की शीट में किसी भी प्रकार Cell को Delete नहीं करना है, और न ही Cut Paste करना है I प्रविष्टियों को delete करने के लिए keyboard के delete का प्रयोग करें I या फिर clear content option का प्रयोग करे I अगर किसी विद्यार्थी का नाम किन्ही कारणों से NSO किया है student data entry में उसके नामांक के स्थान पर NSO लिखें I जिससे विद्यार्थियों की संख्या सही आयेगी I मेडिकल के लिए ML और अनुपस्थित के लिए अंको के स्थान पर AB फिल करना है I
A27: अन्य महत्वपूर्ण जानकारी प्रिंट से सम्बंधित
A28: Master sheet , Student Data Entry & Marks Entry sheet इन तीनों को प्रिंट नहीं करें I यह सिर्फ़ एंट्री करने के लिए है I
A29: Statement of Marks, Teacher and cat. wise result, Result Aggregate and Subject-wise Result को legal size / A4 size papers, landscape में print करें व pages को गोंद से चिपका सकते है I आजकल इसको रोल प्रिंट पर भी छापते है I आपकी सुविधा व बजट allow करे उस हिसाब से प्रिंट करवाए I प्रिंट करने से पहले प्रिंट प्रीव्यू जरुर चेक करें और उसके बाद ही प्रिंट करें I जो अनुपयोगी rows व कॉलम है उनकों hide करें I Hide करने के लिए अनुपयोगी rows ds header को select कर right click करें व hide option पर click करें I
A30: नोट :- वैसे परिणाम तैयार करने में पूरी सावधानी बरती गयी है , फिर भी आप एतिहात के तौर पर जरुर चैक करे I किसी भी त्रुटि के लिए निर्माणकर्ता जिम्मेदार नहीं होगा I
A31: Programmer & Presented By
A32: HEERA LAL JAT
A33: Sr. Teacher at MGGS BAR (PALI)
A34: V./P. - CHANDAWAL NAGAR , SOJAT (PALI)
A35: Whats App No. 09001884272
A36: heeralaljatchandawal@gmail.com
A37: https://youtu.be/6Uilt-YxIxk

Sheet School Profile
D2: https://youtu.be/atAmvhXLU30
C3: UPDATE ON
C4: 2025-04-21
G5: =IF($D$12="Hindi","विषय","Subject") -> विषय | J5: =IF($D$12="Hindi","विषयाध्यापक का नाम","Subject Teacher's Name") -> विषयाध्यापक का नाम
C7: School Recognition (विद्यालय मान्यता क्रमांक) :- | D7: शिक्षा/पाली/1995/2001 | F7: 1 | G7: =IF($D$12="Hindi","हिंदी","Hindi") -> हिंदी | J7: Radheshyam
C8: Name of School (In English) :- | D8: Mahatma Gandhi Government School (English Medium) Bar, Pali | F8: 2 | G8: =IF($D$12="Hindi","अंग्रेजी","English") -> अंग्रेजी | J8: Heeralal Jat
C9: Name of School (In Hindi) :- | D9: महात्मा गाँधी राजकीय विद्यालय (अंग्रेजी माध्यम) बर, पाली | F9: 3 | G9: =IF($D$12="Hindi","तृतीय भाषा","Third Language") -> तृतीय भाषा | H9: 1 | I9: संस्कृत (71) | J9: Suresh kumar Singariya
C10: Exam Nodel & Collection Centre Name :- | D10: G.S.S.S. BAR | H10: 2 | I10: उर्दू (72) | K10: Gurudev Vasudev Ji Maharaj
C11: Date of result declaration :- | D11: 2025-05-16 | H11: 3 | I11: गुजराती (73)
C12: Medium :- | D12: Hindi | H12: 4 | I12: सिंधी (74)
C13: Session :- | D13: 2024-2025 | H13: 5 | I13: पंजाबी (75)
C14: Principal Name :- | D14: USHA PALIYA | H14: 6 | L14: You tube Video Link
C15: Exam Incharge :- | D15: Heeralal Jat | F15: 4 | G15: =IF($D$12="Hindi","गणित","Maths") -> गणित | J15: Yogendra | L15: https://youtu.be/YgrB3e6SHv8
C16: Result Checker :- | D16: Rakesh Kumar | F16: 5 | G16: =IF($D$12="Hindi","विज्ञान","Science") -> विज्ञान | J16: Rakesh kumar Sharma
C17: Result Maker :- | D17: Suresh Kumar | F17: 6 | G17: =IF($D$12="Hindi","सामाजिक विज्ञान","Social Science") -> सामाजिक विज्ञान | J17: Sharad Sharma
C18: Class Teacher 9th :- | D18: Yogesh | F18: 7 | G18: =IF(D12="Hindi","राजस्थान का स्वतंत्रता आन्दोलन व शौर्य परम्परा","Rajasthan Ka Swatantrata Andolan V Shourya Parampra ") -> राजस्थान का स्वतंत्रता आन्दोलन व शौर्य परम्परा | J18: Lalit Kumar
C19: Date of Supplementary result declaration :- | D19: 2025-07-10 | F19: 8 | G19: =IF(D12="Hindi","सूचना प्रोद्योगिकी की अवधारणा - I","F.O.I.T.") -> सूचना प्रोद्योगिकी की अवधारणा - I | J19: Ghanshyam Singh
C20: Vacational Subject :- | D20: No | F20: 9 | G20: =IF(D12="Hindi","स्वा. एवं शा. शिक्षा","Physical & EH. EDU.") -> स्वा. एवं शा. शिक्षा | J20: Lalit Kumar
F21: 10 | G21: =IF(D12="Hindi","समाजोपयोगी उत्पादन कार्य एवं समाज सेवा","S.U.P.W. & C.S.") -> समाजोपयोगी उत्पादन कार्य एवं समाज सेवा | J21: Mukesh Kumar
F22: 11 | G22: =IF(D12="Hindi","कला शिक्षा","ART EDU.") -> कला शिक्षा | J22: Sharda Choudhary
K23: 1
K24: 1
H29: 1 | I29: AUTOMOBILE | L29: तृतीय भाषा | M29: Third Lang.
H30: 2 | I30: BEAUTY AND HEALTH | L30: संस्कृत (71) | M30: Sanskrit (71)
H31: 3 | I31: DRESS DESIGNING AND HOME DECORATION | L31: उर्दू (72) | M31: Urdu (72)
D32: Presented By :- | H32: 4 | I32: ELECTRICALS AND ELECTRONICS | L32: गुजराती (73) | M32: Gujrati (73)
H33: 5 | I33: HEALTH CARE | L33: सिंधी (74) | M33: Sindhi (74)
D34: HEERA LAL JAT | H34: 6 | I34: INFORMATION TECHNOLOGY Ites | L34: पंजाबी (75) | M34: Punjabi (75)
H35: 7 | I35: MICRO IRRIGATION SYSTEM | L35: संस्कृतम (95) | M35: Sanskritam (95)
D36: Sr. Teacher at MGGS Bar (Beawar) | H36: 8 | I36: PERSONAL SECURITY
H37: 9 | I37: RETAIL SALE
D38: V./P. - CHANDAWAL NAGAR , SOJAT (PALI) | H38: 10 | I38: TOURISM AND TRAVEL
H39: 11
D40: Whats App No. 09001884272
D42: heeralaljatchandawal@gmail.com

Sheet Student DATA Entry
B1: =IF('School Profile'!D12="Hindi",'School Profile'!D9,'School Profile'!D8) -> महात्मा गाँधी राजकीय विद्यालय (अंग्रेजी माध्यम) बर, पाली | L1: Sheet Password :- | N1: Class09
A2: S. N. | B2: ROLL NO | C2: Class | D2: Section | E2: SRNO | F2: DOA | G2: Name of student | H2: Father's Name | I2: Mother's Name | J2: Gender | K2: Date of Birth | L2: Category | M2: Total Attendance
A3: क्र. स. | B3: रोल न. | C3: कक्षा | D3: सेक्शन | E3: प्रवेशांक | F3: प्रवेश तिथि | G3: विद्यार्थी का नाम | H3: पिता का नाम | I3: माता का नाम | J3: लिंग | K3: जन्मतिथि | L3: वर्ग | M3: कुल कार्य दिवस | N3: छात्र उपस्थिति
A4: 1 | B4: 901 | C4: 9 | D4: A | E4: 521 | F4: 2016-07-11 | G4: Rahul Jat | H4: HL Jat | I4: Lali | J4: M | K4: 2010-10-10 | L4: OBC | M4: 200 | N4: 192
A5: 2 | B5: 902 | C5: 9 | D5: A | E5: 501 | F5: 2015-07-21 | G5: Ram | H5: Shyam | I5: Sita | J5: M | K5: 2009-09-09 | L5: OBC | M5: 210 | N5: 202
A6: 3 | B6: 903 | C6: 9 | D6: A | G6: Dinesh | J6: M | K6: 2012-10-10 | L6: GEN
A7: 4 | B7: 904 | C7: 9 | D7: A | G7: Ramesh | J7: M | K7: 2011-05-07 | L7: SBC
A8: 5 | B8: 905 | C8: 9 | D8: A | G8: Shyam | J8: M | K8: 2013-09-08 | L8: SC
A9: 6 | B9: 906 | C9: 9 | D9: A | G9: Gita | J9: F | K9: 2012-01-25 | L9: OBC
A10: 7 | B10: 907 | C10: 9 | D10: A | G10: Mita | J10: F | K10: 2013-02-12 | L10: GEN
A11: 8 | B11: 908 | C11: 9 | D11: A | G11: Sita | J11: F | K11: 2010-04-14 | L11: MIN
A12: 9 | B12: 909 | C12: 9 | D12: A | G12: Rita | J12: F | K12: 2009-09-09 | L12: SBC
A13: 10 | B13: 910 | C13: 9 | D13: A | G13: Sonu | J13: F | K13: 2011-07-13 | L13: ST
A14: 11 | B14: 911 | C14: 9 | D14: A | G14: Monu | J14: M | K14: 2014-08-27 | L14: SC
A15: 12 | B15: 912 | C15: 9 | D15: A | G15: jay
A16: 13 | B16: 913 | C16: 9 | D16: A | G16: viru
A17: 14 | B17: 914 | C17: 9 | D17: A | G17: anil
A18: 15 | B18: 915 | C18: 9 | D18: A | G18: rahim
A19: 16 | B19: 916 | C19: 9 | D19: A | G19: karim
A20: 17 | B20: 917 | C20: 9 | D20: A | G20: fatima
A21: 18 | B21: 918 | C21: 9 | D21: A | G21: laxmi
A22: 19 | B22: 919 | C22: 9 | D22: A | G22: raza
A23: 20 | B23: 920 | C23: 9 | D23: A | G23: roza
A24: 21 | B24: 921 | C24: 9 | D24: A | G24: viliam
A25: 22 | B25: 922 | C25: 9 | D25: A | G25: rozer
A26: 23 | B26: 923 | C26: 9 | D26: A | G26: dinesh
A27: 24 | B27: 924 | C27: 9 | D27: A | G27: mahesh
A28: 25 | B28: 925 | C28: 9 | D28: A | G28: rina
A29: 26 | B29: 926 | C29: 9 | D29: A | G29: diza
A30: 27 | B30: 927 | C30: 9 | D30: A | G30: bipasa
A31: 28 | B31: 928 | C31: 9 | D31: A | G31: dimple
A32: 29 | B32: 929 | C32: 9 | D32: A | G32: dipika
A33: 30 | B33: 930 | C33: 9 | D33: A | G33: devendra
A34: 31 | B34: 931 | C34: 9 | D34: A | G34: ravindra
A35: 32
A36: 33
A37: 34
A38: 35
A39: 36
A40: 37
A41: 38
A42: 39
A43: 40
A44: 41
A45: 42
A46: 43
A47: 44
A48: 45
A49: 46
A50: 47
A51: 48
A52: 49
A53: 50
A54: 51
A55: 52
A56: 53
A57: 54
A58: 55
A59: 56
A60: 57
A61: 58
A62: 59
A63: 60
A64: 61
A65: 62
A66: 63
A67: 64
A68: 65
A69: 66
A70: 67
A71: 68
A72: 69
A73: 70
A74: 71
A75: 72
A76: 73
A77: 74
A78: 75
A79: 76
A80: 77
A81: 78
A82: 79
A83: 80
A84: 81
A85: 82
A86: 83
A87: 84
A88: 85
A89: 86
A90: 87
A91: 88
A92: 89
A93: 90
A94: 91
A95: 92
A96: 93
A97: 94
A98: 95
A99: 96
A100: 97
A101: 98
A102: 99
A103: 100
A104: 101
A105: 102
A106: 103
A107: 104
A108: 105
A109: 106
A110: 107
A111: 108
A112: 109
A113: 110
A114: 111
A115: 112
A116: 113
A117: 114
A118: 115
A119: 116
A120: 117
A121: 118
A122: 119
A123: 120
A124: 121
A125: 122
A126: 123
A127: 124
A128: 125
A129: 126
A130: 127
A131: 128
A132: 129
A133: 130
A134: 131
A135: 132
A136: 133
A137: 134
A138: 135
A139: 136
A140: 137
A141: 138
A142: 139
A143: 140
A144: 141
A145: 142
A146: 143
A147: 144
A148: 145
A149: 146
A150: 147
A151: 148
A152: 149
A153: 150
A154: 151
A155: 152
A156: 153
A157: 154
A158: 155
A159: 156
A160: 157
A161: 158
A162: 159
A163: 160
A164: 161
A165: 162
A166: 163
A167: 164
A168: 165
A169: 166
A170: 167
A171: 168
A172: 169
A173: 170
A174: 171
A175: 172
A176: 173
A177: 174
A178: 175
A179: 176
A180: 177
A181: 178
A182: 179
A183: 180
A184: 181
A185: 182
A186: 183
A187: 184
A188: 185
A189: 186
A190: 187
A191: 188
A192: 189
A193: 190
A194: 191
A195: 192
A196: 193
A197: 194
A198: 195
A199: 196
A200: 197
... 3 more rows

Sheet Marks Entry
A1: =IF('School Profile'!D12="Hindi",'School Profile'!D9,'School Profile'!D8) -> महात्मा गाँधी राजकीय विद्यालय (अंग्रेजी माध्यम) बर, पाली | L1: =IF('School Profile'!$D$12="Hindi","मुख्य 6 विषयों के अंकों की प्रविष्टि","Main 6 Subject Mark Entry") -> मुख्य 6 विषयों के अंकों की प्रविष्टि | AQ1: =IF('School Profile'!$D$12="Hindi","व्यावसायिक शिक्षा के विषयाध्यापक के नाम ","Vocational Subject's Teacher Name") -> व्यावसायिक शिक्षा के विषयाध्यापक के नाम | AY1: =IF('School Profile'!D12="Hindi","अतिरिक्त विषयों के परीक्षा परिणाम एंट्री","Additional Subjects Result Entry") -> अतिरिक्त विषयों के परीक्षा परिणाम एंट्री
A2: =IF('School Profile'!D12="Hindi","रिजल्ट वर्कशीट","RESULT WORKSHEET") -> रिजल्ट वर्कशीट | L2: ='School Profile'!G7 -> हिंदी | Q2: ='School Profile'!G8 -> अंग्रेजी | V2: ='School Profile'!G9 -> तृतीय भाषा | AB2: ='School Profile'!G15 -> गणित | AG2: ='School Profile'!G16 -> विज्ञान | AL2: ='School Profile'!G17 -> सामाजिक विज्ञान | AQ2: Pravin kumar | AY2: ='School Profile'!G18 -> राजस्थान का स्वतंत्रता आन्दोलन व शौर्य परम्परा | BD2: ='School Profile'!G19 -> सूचना प्रोद्योगिकी की अवधारणा - I | BK2: ='School Profile'!G20 -> स्वा. एवं शा. शिक्षा | BU2: ='School Profile'!G21 -> समाजोपयोगी उत्पादन कार्य एवं समाज सेवा | BX2: ='School Profile'!G22 -> कला शिक्षा
C3: =IF('School Profile'!$D$12="Hindi","विद्यार्थी की सामान्य जानकारी","General Information of Students") -> विद्यार्थी की सामान्य जानकारी | H3: =IF('School Profile'!D12="Hindi","सत्र :-","Session :-") -> सत्र :- | I3: =IF('School Profile'!D13="","",'School Profile'!D13) -> 2024-2025 | J3: =IF('School Profile'!D12="Hindi","वर्ग ","Category") -> वर्ग | K3: =IF('School Profile'!$D$12="Hindi","लिंग ","Gender") -> लिंग | L3: =IF('School Profile'!J7="","",'School Profile'!J7) -> Radheshyam | Q3: =IF('School Profile'!J8="","",'School Profile'!J8) -> Heeralal Jat | V3: =IF('School Profile'!J9="","",'School Profile'!J9) -> Suresh kumar Singariya | AB3: =IF('School Profile'!J15="","",'School Profile'!J15) -> Yogendra | AG3: =IF('School Profile'!J16="","",'School Profile'!J16) -> Rakesh kumar Sharma | AL3: =IF('School Profile'!J17="","",'School Profile'!J17) -> Sharad Sharma | AQ3: Rahul | AY3: =IF('School Profile'!J18="","",'School Profile'!J18) -> Lalit Kumar | BD3: =IF('School Profile'!J19="","",'School Profile'!J19) -> Ghanshyam Singh | BK3: =IF('School Profile'!J20="","",'School Profile'!J20) -> Lalit Kumar | BU3: =IF('School Profile'!J21="","",'School Profile'!J21) -> Mukesh Kumar | BX3: =IF('School Profile'!J22="","",'School Profile'!J22) -> Sharda Choudhary | CE3: oSdfYid fo"k;ksa dh lwph
A4: =IF('School Profile'!$D$12="Hindi",'Student DATA Entry'!A3,'Student DATA Entry'!A2) -> क्र. स. | B4: =IF('School Profile'!$D$12="Hindi",'Student DATA Entry'!B3,'Student DATA Entry'!B2) -> रोल न. | C4: =IF('School Profile'!$D$12="Hindi",'Student DATA Entry'!C3,'Student DATA Entry'!C2) -> कक्षा | D4: =IF('School Profile'!$D$12="Hindi",'Student DATA Entry'!D3,'Student DATA Entry'!D2) -> सेक्शन | E4: =IF('School Profile'!$D$12="Hindi",'Student DATA Entry'!E3,'Student DATA Entry'!E2) -> प्रवेशांक | F4: =IF('School Profile'!$D$12="Hindi",'Student DATA Entry'!K3,'Student DATA Entry'!K2) -> जन्मतिथि | G4: =IF('School Profile'!$D$12="Hindi",'Student DATA Entry'!G3,'Student DATA Entry'!G2) -> विद्यार्थी का नाम | H4: =IF('School Profile'!$D$12="Hindi",'Student DATA Entry'!H3,'Student DATA Entry'!H2) -> पिता का नाम | I4: =IF('School Profile'!$D$12="Hindi",'Student DATA Entry'!I3,'Student DATA Entry'!I2) -> माता का नाम | L4: =IF('School Profile'!$D$12="Hindi","सामयिक परख","Seasonal Exam") -> सामयिक परख | O4: =IF('School Profile'!$D$12="Hindi","अर्द्धवार्षिक","Half Yearly") -> अर्द्धवार्षिक | P4: =IF('School Profile'!$D$12="Hindi","वार्षिक","Yearly") -> वार्षिक | Q4: =IF('School Profile'!$D$12="Hindi","सामयिक परख","Seasonal Exam") -> सामयिक परख | T4: =IF('School Profile'!$D$12="Hindi","अर्द्धवार्षिक","Half Yearly") -> अर्द्धवार्षिक | U4: =IF('School Profile'!$D$12="Hindi","वार्षिक","Yearly") -> वार्षिक | V4: =IF('School Profile'!$D$12="Hindi","विषय कोड","Subject Code") -> विषय कोड | W4: =IF('School Profile'!$D$12="Hindi","सामयिक परख","Seasonal Exam") -> सामयिक परख | Z4: =IF('School Profile'!$D$12="Hindi","अर्द्धवार्षिक","Half Yearly") -> अर्द्धवार्षिक | AA4: =IF('School Profile'!$D$12="Hindi","वार्षिक","Yearly") -> वार्षिक | AB4: =IF('School Profile'!$D$12="Hindi","सामयिक परख","Seasonal Exam") -> सामयिक परख | AE4: =IF('School Profile'!$D$12="Hindi","अर्द्धवार्षिक","Half Yearly") -> अर्द्धवार्षिक | AF4: =IF('School Profile'!$D$12="Hindi","वार्षिक","Yearly") -> वार्षिक | AG4: =IF('School Profile'!$D$12="Hindi","सामयिक परख","Seasonal Exam") -> सामयिक परख | AJ4: =IF('School Profile'!$D$12="Hindi","अर्द्धवार्षिक","Half Yearly") -> अर्द्धवार्षिक | AK4: =IF('School Profile'!$D$12="Hindi","वार्षिक","Yearly") -> वार्षिक | AL4: =IF('School Profile'!$D$12="Hindi","सामयिक परख","Seasonal Exam") -> सामयिक परख | AO4: =IF('School Profile'!$D$12="Hindi","अर्द्धवार्षिक","Half Yearly") -> अर्द्धवार्षिक | AP4: =IF('School Profile'!$D$12="Hindi","वार्षिक","Yearly") -> वार्षिक | AQ4: =IF('School Profile'!$D$12="Hindi","विषय कोड","Subject Code") -> विषय कोड | AR4: =IF('School Profile'!$D$12="Hindi","सामयिक परख","Seasonal Exam") -> सामयिक परख | AU4: =IF('School Profile'!$D$12="Hindi","अर्द्धवार्षिक","Half Yearly") -> अर्द्धवार्षिक | AW4: =IF('School Profile'!$D$12="Hindi","वार्षिक","Yearly") -> वार्षिक | AY4: =IF('School Profile'!$D$12="Hindi","सामयिक परख","Seasonal Exam") -> सामयिक परख | BB4: =IF('School Profile'!$D$12="Hindi","अर्द्धवार्षिक","Half Yearly") -> अर्द्धवार्षिक | BC4: =IF('School Profile'!$D$12="Hindi","वार्षिक","Yearly") -> वार्षिक | BD4: =IF('School Profile'!$D$12="Hindi","सामयिक परख","Seasonal Exam") -> सामयिक परख | BG4: =IF('School Profile'!$D$12="Hindi","अर्द्धवार्षिक","Half Yearly") -> अर्द्धवार्षिक | BI4: =IF('School Profile'!$D$12="Hindi","वार्षिक","Yearly") -> वार्षिक | BK4: =IF('School Profile'!$D$12="Hindi","प्रथम परख ","First Test") -> प्रथम परख | BM4: =IF('School Profile'!$D$12="Hindi","द्वितीय परख","Second Test") -> द्वितीय परख | BO4: =IF('School Profile'!$D$12="Hindi","तृतीय परख","Third Test") -> तृतीय परख | BQ4: =IF('School Profile'!$D$12="Hindi","अर्द्धवार्षिक","Half Yearly") -> अर्द्धवार्षिक | BS4: =IF('School Profile'!$D$12="Hindi","वार्षिक","Yearly") -> वार्षिक | BU4: =IF('School Profile'!$D$12="Hindi","अनिवार्य प्रवृति","Compulsory Tendency") -> अनिवार्य प्रवृति | BV4: =IF('School Profile'!$D$12="Hindi","वैकल्पिक प्रवृति","Alternative Tendency") -> वैकल्पिक प्रवृति | BW4: =IF('School Profile'!$D$12="Hindi","शिविर","Camp") -> शिविर | BX4: =IF('School Profile'!$D$12="Hindi","सैद्धान्तिक","Theoretical") -> सैद्धान्तिक | BY4: =IF('School Profile'!$D$12="Hindi","प्रायोगिक","Practical") -> प्रायोगिक | BZ4: =IF('School Profile'!$D$12="Hindi","प्रस्तुति कार्य","Presentation Work") -> प्रस्तुति कार्य | CE4: =IF('School Profile'!#REF!="","",'School Profile'!#REF!) -> 
L5: =IF('School Profile'!$D$12="Hindi","प्रथम परख ","First Test") -> प्रथम परख | M5: =IF('School Profile'!$D$12="Hindi","द्वितीय परख","Second Test") -> द्वितीय परख | N5: =IF('School Profile'!$D$12="Hindi","तृतीय परख","Third Test") -> तृतीय परख | Q5: =IF('School Profile'!$D$12="Hindi","प्रथम परख ","First Test") -> प्रथम परख | R5: =IF('School Profile'!$D$12="Hindi","द्वितीय परख","Second Test") -> द्वितीय परख | S5: =IF('School Profile'!$D$12="Hindi","तृतीय परख","Third Test") -> तृतीय परख | W5: =IF('School Profile'!$D$12="Hindi","प्रथम परख ","First Test") -> प्रथम परख | X5: =IF('School Profile'!$D$12="Hindi","द्वितीय परख","Second Test") -> द्वितीय परख | Y5: =IF('School Profile'!$D$12="Hindi","तृतीय परख","Third Test") -> तृतीय परख | AB5: =IF('School Profile'!$D$12="Hindi","प्रथम परख ","First Test") -> प्रथम परख | AC5: =IF('School Profile'!$D$12="Hindi","द्वितीय परख","Second Test") -> द्वितीय परख | AD5: =IF('School Profile'!$D$12="Hindi","तृतीय परख","Third Test") -> तृतीय परख | AG5: =IF('School Profile'!$D$12="Hindi","प्रथम परख ","First Test") -> प्रथम परख | AH5: =IF('School Profile'!$D$12="Hindi","द्वितीय परख","Second Test") -> द्वितीय परख | AI5: =IF('School Profile'!$D$12="Hindi","तृतीय परख","Third Test") -> तृतीय परख | AL5: =IF('School Profile'!$D$12="Hindi","प्रथम परख ","First Test") -> प्रथम परख | AM5: =IF('School Profile'!$D$12="Hindi","द्वितीय परख","Second Test") -> द्वितीय परख | AN5: =IF('School Profile'!$D$12="Hindi","तृतीय परख","Third Test") -> तृतीय परख | AR5: =IF('School Profile'!$D$12="Hindi","प्रथम परख ","First Test") -> प्रथम परख | AS5: =IF('School Profile'!$D$12="Hindi","द्वितीय परख","Second Test") -> द्वितीय परख | AT5: =IF('School Profile'!$D$12="Hindi","तृतीय परख","Third Test") -> तृतीय परख | AU5: =IF('School Profile'!$D$12="Hindi","सैद्धान्तिक","Theoretical") -> सैद्धान्तिक | AV5: =IF('School Profile'!$D$12="Hindi","प्रायोगिक","Practical") -> प्रायोगिक | AW5: =IF('School Profile'!$D$12="Hindi","सैद्धान्तिक","Theoretical") -> सैद्धान्तिक | AX5: =IF('School Profile'!$D$12="Hindi","प्रायोगिक","Practical") -> प्रायोगिक | AY5: =IF('School Profile'!$D$12="Hindi","प्रथम परख ","First Test") -> प्रथम परख | AZ5: =IF('School Profile'!$D$12="Hindi","द्वितीय परख","Second Test") -> द्वितीय परख | BA5: =IF('School Profile'!$D$12="Hindi","तृतीय परख","Third Test") -> तृतीय परख | BD5: =IF('School Profile'!$D$12="Hindi","प्रथम परख ","First Test") -> प्रथम परख | BE5: =IF('School Profile'!$D$12="Hindi","द्वितीय परख","Second Test") -> द्वितीय परख | BF5: =IF('School Profile'!$D$12="Hindi","तृतीय परख","Third Test") -> तृतीय परख | BG5: =IF('School Profile'!$D$12="Hindi","सैद्धान्तिक","Theoretical") -> सैद्धान्तिक | BH5: =IF('School Profile'!$D$12="Hindi","प्रायोगिक","Practical") -> प्रायोगिक | BI5: =IF('School Profile'!$D$12="Hindi","सैद्धान्तिक","Theoretical") -> सैद्धान्तिक | BJ5: =IF('School Profile'!$D$12="Hindi","प्रायोगिक","Practical") -> प्रायोगिक | BK5: =IF('School Profile'!$D$12="Hindi","सैद्धान्तिक","Theoretical") -> सैद्धान्तिक | BL5: =IF('School Profile'!$D$12="Hindi","प्रायोगिक","Practical") -> प्रायोगिक | BM5: =IF('School Profile'!$D$12="Hindi","सैद्धान्तिक","Theoretical") -> सैद्धान्तिक | BN5: =IF('School Profile'!$D$12="Hindi","प्रायोगिक","Practical") -> प्रायोगिक | BO5: =IF('School Profile'!$D$12="Hindi","सैद्धान्तिक","Theoretical") -> सैद्धान्तिक | BP5: =IF('School Profile'!$D$12="Hindi","प्रायोगिक","Practical") -> प्रायोगिक | BQ5: =IF('School Profile'!$D$12="Hindi","सैद्धान्तिक","Theoretical") -> सैद्धान्तिक | BR5: =IF('School Profile'!$D$12="Hindi","प्रायोगिक","Practical") -> प्रायोगिक | BS5: =IF('School Profile'!$D$12="Hindi","सैद्धान्तिक","Theoretical") -> सैद्धान्तिक | BT5: =IF('School Profile'!$D$12="Hindi","प्रायोगिक","Practical") -> प्रायोगिक | CE5: =IF('School Profile'!#REF!="","",'School Profile'!#REF!) -> 
L6: 10 | M6: 10 | N6: 10 | O6: 70 | P6: 100 | Q6: 10 | R6: 10 | S6: 10 | T6: 70 | U6: 100 | W6: 10 | X6: 10 | Y6: 10 | Z6: 70 | AA6: 100 | AB6: 10 | AC6: 10 | AD6: 10 | AE6: 70 | AF6: 100 | AG6: 10 | AH6: 10 | AI6: 10 | AJ6: 70 | AK6: 100 | AL6: 10 | AM6: 10 | AN6: 10 | AO6: 70 | AP6: 100 | AR6: 10 | AS6: 10 | AT6: 10 | AU6: 35 | AV6: 35 | AW6: 50 | AX6: 50 | AY6: 10 | AZ6: 10 | BA6: 10 | BB6: 70 | BC6: 100 | BD6: 10 | BE6: 10 | BF6: 10 | BG6: 50 | BH6: 20 | BI6: 70 | BJ6: 30 | BK6: 10 | BL6: 8 | BM6: 10 | BN6: 7 | BO6: 10 | BP6: 15 | BQ6: 25 | BR6: 15 | BS6: 30 | BT6: 70 | BU6: 25 | BV6: 45 | BW6: 30 | BX6: 25 | BY6: 60 | BZ6: 15 | CE6: =IF('School Profile'!#REF!="","",'School Profile'!#REF!) -> 
A7: =IF('Student DATA Entry'!A4="","",'Student DATA Entry'!A4) -> 1 | B7: =IF('Student DATA Entry'!B4="","",'Student DATA Entry'!B4) -> 901 | C7: =IF('Student DATA Entry'!C4="","",'Student DATA Entry'!C4) -> 9 | D7: =IF('Student DATA Entry'!D4="","",'Student DATA Entry'!D4) -> A | E7: =IF('Student DATA Entry'!E4="","",'Student DATA Entry'!E4) -> 521 | F7: =IF('Student DATA Entry'!K4="","",'Student DATA Entry'!K4) -> 2010-10-10 | G7: =IF('Student DATA Entry'!G4="","",UPPER('Student DATA Entry'!G4)) -> RAHUL JAT | H7: =IF('Student DATA Entry'!H4="","",UPPER('Student DATA Entry'!H4)) -> HL JAT | I7: =IF('Student DATA Entry'!I4="","",UPPER('Student DATA Entry'!I4)) -> LALI | J7: =IF('Student DATA Entry'!L4="","",UPPER('Student DATA Entry'!L4)) -> OBC | K7: =IF('Student DATA Entry'!J4="","",UPPER('Student DATA Entry'!J4)) -> M | L7: 8 | M7: 10 | N7: 8 | O7: 46 | P7: 70 | Q7: 8 | R7: 10 | S7: 10 | T7: 46 | U7: 70 | V7: 1 | W7: 8 | X7: 7 | Y7: 10 | Z7: 46 | AA7: 70 | AB7: 8 | AC7: 10 | AD7: 8 | AE7: 46 | AF7: 70 | AG7: 8 | AH7: 10 | AI7: 9 | AJ7: 46 | AK7: 70 | AL7: 9 | AM7: 9 | AN7: 9 | AO7: 46 | AP7: 70 | AQ7: 1 | AR7: 10 | AS7: 10 | AT7: 10 | AU7: 30 | AV7: 35 | AW7: 45 | AX7: 50 | AY7: 10 | AZ7: 10 | BA7: 10 | BB7: 70 | BC7: 90 | BD7: 10 | BE7: 10 | BF7: 10 | BG7: 45 | BH7: 12 | BI7: 63 | BJ7: 25 | BK7: 10 | BL7: 7 | BM7: 9 | BN7: 7 | BO7: 10 | BP7: 14 | BQ7: 20 | BR7: 14 | BS7: 12 | BT7: 50 | BU7: 21 | BV7: 41 | BW7: 29 | BX7: 14 | BY7: 42 | BZ7: 10 | CE7: =IF('School Profile'!#REF!="","",'School Profile'!#REF!) -> 
A8: =IF('Student DATA Entry'!A5="","",'Student DATA Entry'!A5) -> 2 | B8: =IF('Student DATA Entry'!B5="","",'Student DATA Entry'!B5) -> 902 | C8: =IF('Student DATA Entry'!C5="","",'Student DATA Entry'!C5) -> 9 | D8: =IF('Student DATA Entry'!D5="","",'Student DATA Entry'!D5) -> A | E8: =IF('Student DATA Entry'!E5="","",'Student DATA Entry'!E5) -> 501 | F8: =IF('Student DATA Entry'!K5="","",'Student DATA Entry'!K5) -> 2009-09-09 | G8: =IF('Student DATA Entry'!G5="","",UPPER('Student DATA Entry'!G5)) -> RAM | H8: =IF('Student DATA Entry'!H5="","",UPPER('Student DATA Entry'!H5)) -> SHYAM | I8: =IF('Student DATA Entry'!I5="","",UPPER('Student DATA Entry'!I5)) -> SITA | J8: =IF('Student DATA Entry'!L5="","",UPPER('Student DATA Entry'!L5)) -> OBC | K8: =IF('Student DATA Entry'!J5="","",UPPER('Student DATA Entry'!J5)) -> M | L8: 8 | M8: 9 | N8: 9 | O8: 46 | P8: 65 | Q8: 8 | R8: 9 | S8: 10 | T8: 66 | U8: 95 | V8: 1 | W8: 8 | X8: 9 | Y8: 9 | Z8: 62 | AA8: 92 | AB8: 8 | AC8: 9 | AD8: 8 | AE8: 46 | AF8: 45 | AG8: 8 | AH8: 9 | AI8: 9 | AJ8: 46 | AK8: 45 | AL8: 10 | AM8: 10 | AN8: 10 | AO8: 46 | AP8: 45 | AQ8: 2 | AR8: 9 | AS8: 9 | AT8: 9 | AU8: 31 | AV8: 32 | AW8: 45 | AX8: 46 | AY8: 9 | AZ8: 9 | BA8: 9 | BB8: 65 | BC8: 85 | BD8: 9 | BE8: 9 | BF8: 9 | BG8: 46 | BH8: 13 | BI8: 65 | BJ8: 26 | BK8: 9 | BL8: 7 | BM8: 9 | BN8: 6 | BO8: 9 | BP8: 14 | BQ8: 21 | BR8: 10 | BS8: 11 | BT8: 52 | BU8: 24 | BV8: 42 | BW8: 28 | BX8: 20 | BY8: 45 | BZ8: 10 | CE8: =IF('School Profile'!#REF!="","",'School Profile'!#REF!) -> 
A9: =IF('Student DATA Entry'!A6="","",'Student DATA Entry'!A6) -> 3 | B9: =IF('Student DATA Entry'!B6="","",'Student DATA Entry'!B6) -> 903 | C9: =IF('Student DATA Entry'!C6="","",'Student DATA Entry'!C6) -> 9 | D9: =IF('Student DATA Entry'!D6="","",'Student DATA Entry'!D6) -> A | E9: =IF('Student DATA Entry'!E6="","",'Student DATA Entry'!E6) ->  | F9: =IF('Student DATA Entry'!K6="","",'Student DATA Entry'!K6) -> 2012-10-10 | G9: =IF('Student DATA Entry'!G6="","",UPPER('Student DATA Entry'!G6)) -> DINESH | H9: =IF('Student DATA Entry'!H6="","",UPPER('Student DATA Entry'!H6)) ->  | I9: =IF('Student DATA Entry'!I6="","",UPPER('Student DATA Entry'!I6)) ->  | J9: =IF('Student DATA Entry'!L6="","",UPPER('Student DATA Entry'!L6)) -> GEN | K9: =IF('Student DATA Entry'!J6="","",UPPER('Student DATA Entry'!J6)) -> M | L9: 8 | M9: 9 | N9: 7 | O9: 46 | P9: 13 | Q9: 8 | R9: 9 | S9: 10 | T9: 65 | U9: 95 | V9: 1 | W9: 8 | X9: 9 | Y9: 9 | Z9: 46 | AA9: 45 | AB9: 8 | AC9: 9 | AD9: 8 | AE9: 68 | AF9: 95 | AG9: 8 | AH9: 9 | AI9: 8 | AJ9: 46 | AK9: 45 | AL9: 8 | AM9: 8 | AN9: 8 | AO9: 46 | AP9: 45 | AQ9: 3 | AR9: 5 | AS9: 5 | AT9: 5 | AU9: 20 | AV9: 20 | AW9: 25 | AX9: 25 | AY9: 9 | AZ9: 9 | BA9: 9 | BB9: 66 | BC9: 91 | BD9: 8 | BE9: 8 | BF9: 8 | BG9: 47 | BH9: 16 | BI9: 64 | BJ9: 24 | BK9: 9 | BL9: 7 | BM9: 9 | BN9: 6 | BO9: 9 | BP9: 14 | BQ9: 21 | BR9: 12 | BS9: 20 | BT9: 54 | BU9: 23 | BV9: 40 | BW9: 29 | BX9: 21 | BY9: 48 | BZ9: 10 | CE9: =IF('School Profile'!#REF!="","",'School Profile'!#REF!) -> 
A10: =IF('Student DATA Entry'!A7="","",'Student DATA Entry'!A7) -> 4 | B10: =IF('Student DATA Entry'!B7="","",'Student DATA Entry'!B7) -> 904 | C10: =IF('Student DATA Entry'!C7="","",'Student DATA Entry'!C7) -> 9 | D10: =IF('Student DATA Entry'!D7="","",'Student DATA Entry'!D7) -> A | E10: =IF('Student DATA Entry'!E7="","",'Student DATA Entry'!E7) ->  | F10: =IF('Student DATA Entry'!K7="","",'Student DATA Entry'!K7) -> 2011-05-07 | G10: =IF('Student DATA Entry'!G7="","",UPPER('Student DATA Entry'!G7)) -> RAMESH | H10: =IF('Student DATA Entry'!H7="","",UPPER('Student DATA Entry'!H7)) ->  | I10: =IF('Student DATA Entry'!I7="","",UPPER('Student DATA Entry'!I7)) ->  | J10: =IF('Student DATA Entry'!L7="","",UPPER('Student DATA Entry'!L7)) -> SBC | K10: =IF('Student DATA Entry'!J7="","",UPPER('Student DATA Entry'!J7)) -> M | L10: AB | M10: 9 | N10: 4 | O10: 46 | P10: 65 | Q10: 8 | R10: 9 | S10: 10 | T10: 30 | U10: 95 | V10: 1 | W10: 8 | X10: 9 | Y10: 9 | Z10: 46 | AA10: 45 | AB10: 8 | AC10: 9 | AD10: 8 | AE10: 12 | AF10: 34 | AG10: 8 | AH10: 9 | AI10: 9 | AJ10: 46 | AK10: 45 | AL10: 7 | AM10: 7 | AN10: 7 | AO10: 46 | AP10: 45 | AQ10: 1 | AY10: 9 | AZ10: 9 | BA10: 9 | BB10: 66 | BC10: 91 | BD10: 8 | BE10: 8 | BF10: 8 | BG10: 48 | BH10: 15 | BI10: 62 | BJ10: 27 | BK10: 9 | BL10: 7 | BM10: 9 | BN10: 6 | BO10: 9 | BP10: 14 | BQ10: 21 | BR10: 13 | BS10: 23 | BT10: 56 | BU10: 24 | BV10: 44 | BW10: 28 | BX10: 25 | BY10: 47 | BZ10: 9 | CE10: =IF('School Profile'!#REF!="","",'School Profile'!#REF!) -> 
A11: =IF('Student DATA Entry'!A8="","",'Student DATA Entry'!A8) -> 5 | B11: =IF('Student DATA Entry'!B8="","",'Student DATA Entry'!B8) -> 905 | C11: =IF('Student DATA Entry'!C8="","",'Student DATA Entry'!C8) -> 9 | D11: =IF('Student DATA Entry'!D8="","",'Student DATA Entry'!D8) -> A | E11: =IF('Student DATA Entry'!E8="","",'Student DATA Entry'!E8) ->  | F11: =IF('Student DATA Entry'!K8="","",'Student DATA Entry'!K8) -> 2013-09-08 | G11: =IF('Student DATA Entry'!G8="","",UPPER('Student DATA Entry'!G8)) -> SHYAM | H11: =IF('Student DATA Entry'!H8="","",UPPER('Student DATA Entry'!H8)) ->  | I11: =IF('Student DATA Entry'!I8="","",UPPER('Student DATA Entry'!I8)) ->  | J11: =IF('Student DATA Entry'!L8="","",UPPER('Student DATA Entry'!L8)) -> SC | K11: =IF('Student DATA Entry'!J8="","",UPPER('Student DATA Entry'!J8)) -> M | L11: 8 | M11: 9 | N11: 8 | O11: 46 | P11: 65 | Q11: 8 | R11: 9 | S11: 10 | T11: 61 | U11: 45 | V11: 2 | W11: 8 | X11: 9 | Y11: 8 | Z11: 46 | AA11: 45 | AB11: 8 | AC11: 9 | AD11: 9 | AE11: 46 | AF11: 45 | AG11: 8 | AH11: 9 | AI11: 10 | AJ11: 46 | AK11: 45 | AL11: 6 | AM11: 6 | AN11: 6 | AO11: 46 | AP11: 45 | AY11: 9 | AZ11: 9 | BA11: 9 | BB11: 66 | BC11: 91 | BD11: 8 | BE11: 8 | BF11: 8 | BG11: 49 | BH11: 14 | BI11: 63 | BJ11: 27 | BK11: 9 | BL11: 7 | BM11: 9 | BN11: 6 | BO11: 9 | BP11: 14 | BQ11: 21 | BR11: 14 | BS11: 26 | BT11: 58 | BU11: 21 | BV11: 41 | BW11: 25 | BX11: 24 | BY11: 56 | BZ11: 11 | CE11: =IF('School Profile'!#REF!="","",'School Profile'!#REF!) -> 
A12: =IF('Student DATA Entry'!A9="","",'Student DATA Entry'!A9) -> 6 | B12: =IF('Student DATA Entry'!B9="","",'Student DATA Entry'!B9) -> 906 | C12: =IF('Student DATA Entry'!C9="","",'Student DATA Entry'!C9) -> 9 | D12: =IF('Student DATA Entry'!D9="","",'Student DATA Entry'!D9) -> A | E12: =IF('Student DATA Entry'!E9="","",'Student DATA Entry'!E9) ->  | F12: =IF('Student DATA Entry'!K9="","",'Student DATA Entry'!K9) -> 2012-01-25 | G12: =IF('Student DATA Entry'!G9="","",UPPER('Student DATA Entry'!G9)) -> GITA | H12: =IF('Student DATA Entry'!H9="","",UPPER('Student DATA Entry'!H9)) ->  | I12: =IF('Student DATA Entry'!I9="","",UPPER('Student DATA Entry'!I9)) ->  | J12: =IF('Student DATA Entry'!L9="","",UPPER('Student DATA Entry'!L9)) -> OBC | K12: =IF('Student DATA Entry'!J9="","",UPPER('Student DATA Entry'!J9)) -> F | L12: NA | M12: 9 | N12: 7 | O12: 46 | P12: 65 | Q12: 8 | R12: 9 | S12: 10 | T12: 62 | U12: 95 | V12: 2 | W12: 8 | X12: 9 | Y12: 8 | Z12: 46 | AA12: 45 | AB12: 8 | AC12: 9 | AD12: 9 | AE12: 46 | AF12: 45 | AG12: 8 | AH12: 9 | AI12: 10 | AJ12: 46 | AK12: 45 | AL12: 8 | AM12: 8 | AN12: 8 | AO12: 46 | AP12: 45 | AY12: 9 | AZ12: 9 | BA12: 9 | BB12: 66 | BC12: 91 | BD12: 8 | BE12: 8 | BF12: 8 | BG12: 41 | BH12: 19 | BI12: 61 | BJ12: 27 | BK12: 9 | BL12: 7 | BM12: 9 | BN12: 6 | BO12: 9 | BP12: 14 | BQ12: 21 | BR12: 15 | BS12: 29 | BT12: 59 | BU12: 20 | BV12: 40 | BW12: 20 | BX12: 21 | BY12: 52 | BZ12: 12 | CE12: =IF('School Profile'!#REF!="","",'School Profile'!#REF!) -> 
A13: =IF('Student DATA Entry'!A10="","",'Student DATA Entry'!A10) -> 7 | B13: =IF('Student DATA Entry'!B10="","",'Student DATA Entry'!B10) -> 907 | C13: =IF('Student DATA Entry'!C10="","",'Student DATA Entry'!C10) -> 9 | D13: =IF('Student DATA Entry'!D10="","",'Student DATA Entry'!D10) -> A | E13: =IF('Student DATA Entry'!E10="","",'Student DATA Entry'!E10) ->  | F13: =IF('Student DATA Entry'!K10="","",'Student DATA Entry'!K10) -> 2013-02-12 | G13: =IF('Student DATA Entry'!G10="","",UPPER('Student DATA Entry'!G10)) -> MITA | H13: =IF('Student DATA Entry'!H10="","",UPPER('Student DATA Entry'!H10)) ->  | I13: =IF('Student DATA Entry'!I10="","",UPPER('Student DATA Entry'!I10)) ->  | J13: =IF('Student DATA Entry'!L10="","",UPPER('Student DATA Entry'!L10)) -> GEN | K13: =IF('Student DATA Entry'!J10="","",UPPER('Student DATA Entry'!J10)) -> F | L13: 8 | M13: ML | N13: 8 | O13: 46 | P13: 65 | Q13: 8 | R13: 9 | S13: 9 | T13: 60 | U13: 60 | V13: 3 | W13: 8 | X13: 9 | Y13: 8 | Z13: 46 | AA13: 45 | AB13: 4 | AC13: 4 | AD13: 9 | AE13: 9 | AF13: 34 | AG13: 8 | AH13: 9 | AI13: 10 | AJ13: 46 | AK13: 45 | AL13: 10 | AM13: 10 | AN13: 10 | AO13: 46 | AP13: 45 | AY13: 9 | AZ13: 9 | BA13: 9 | BB13: 66 | BC13: 91 | BD13: 8 | BE13: 8 | BF13: 8 | BG13: 40 | BH13: 17 | BI13: 60 | BJ13: 27 | BK13: 9 | BL13: 7 | BM13: 9 | BN13: 6 | BO13: 9 | BP13: 14 | BQ13: 21 | BR13: 12 | BS13: 27 | BT13: 57 | BU13: 20 | BV13: 40 | BW13: 20 | BX13: 20 | BY13: 54 | BZ13: 14 | CE13: =IF('School Profile'!#REF!="","",'School Profile'!#REF!) -> 
A14: =IF('Student DATA Entry'!A11="","",'Student DATA Entry'!A11) -> 8 | B14: =IF('Student DATA Entry'!B11="","",'Student DATA Entry'!B11) -> 908 | C14: =IF('Student DATA Entry'!C11="","",'Student DATA Entry'!C11) -> 9 | D14: =IF('Student DATA Entry'!D11="","",'Student DATA Entry'!D11) -> A | E14: =IF('Student DATA Entry'!E11="","",'Student DATA Entry'!E11) ->  | F14: =IF('Student DATA Entry'!K11="","",'Student DATA Entry'!K11) -> 2010-04-14 | G14: =IF('Student DATA Entry'!G11="","",UPPER('Student DATA Entry'!G11)) -> SITA | H14: =IF('Student DATA Entry'!H11="","",UPPER('Student DATA Entry'!H11)) ->  | I14: =IF('Student DATA Entry'!I11="","",UPPER('Student DATA Entry'!I11)) ->  | J14: =IF('Student DATA Entry'!L11="","",UPPER('Student DATA Entry'!L11)) -> MIN | K14: =IF('Student DATA Entry'!J11="","",UPPER('Student DATA Entry'!J11)) -> F | L14: 8 | M14: 9 | N14: 9 | O14: 46 | P14: 65 | Q14: 8 | R14: 9 | S14: 9 | T14: 60 | U14: 95 | V14: 3 | W14: 8 | X14: 9 | Y14: 8 | Z14: 58 | AA14: 95 | AB14: 8 | AC14: 9 | AD14: 9 | AE14: 46 | AF14: 45 | AG14: 8 | AH14: 9 | AI14: 10 | AJ14: 46 | AK14: 45 | AL14: 8 | AM14: 8 | AN14: 8 | AO14: 46 | AP14: 45 | AY14: 9 | AZ14: 9 | BA14: 9 | BB14: 66 | BC14: 91 | BD14: 8 | BE14: 8 | BF14: 8 | BG14: 45 | BH14: 18 | BI14: 69 | BJ14: 27 | BK14: 9 | BL14: 7 | BM14: 9 | BN14: 6 | BO14: 9 | BP14: 14 | BQ14: 21 | BR14: 10 | BS14: 28 | BT14: 62 | BU14: 20 | BV14: 40 | BW14: 20 | BX14: 23 | BY14: 58 | BZ14: 15 | CE14: =IF('School Profile'!#REF!="","",'School Profile'!#REF!) -> 
A15: =IF('Student DATA Entry'!A12="","",'Student DATA Entry'!A12) -> 9 | B15: =IF('Student DATA Entry'!B12="","",'Student DATA Entry'!B12) -> 909 | C15: =IF('Student DATA Entry'!C12="","",'Student DATA Entry'!C12) -> 9 | D15: =IF('Student DATA Entry'!D12="","",'Student DATA Entry'!D12) -> A | E15: =IF('Student DATA Entry'!E12="","",'Student DATA Entry'!E12) ->  | F15: =IF('Student DATA Entry'!K12="","",'Student DATA Entry'!K12) -> 2009-09-09 | G15: =IF('Student DATA Entry'!G12="","",UPPER('Student DATA Entry'!G12)) -> RITA | H15: =IF('Student DATA Entry'!H12="","",UPPER('Student DATA Entry'!H12)) ->  | I15: =IF('Student DATA Entry'!I12="","",UPPER('Student DATA Entry'!I12)) ->  | J15: =IF('Student DATA Entry'!L12="","",UPPER('Student DATA Entry'!L12)) -> SBC | K15: =IF('Student DATA Entry'!J12="","",UPPER('Student DATA Entry'!J12)) -> F | N15: 8 | O15: 46 | P15: 65 | Q15: 8 | R15: 9 | S15: 9 | T15: 60 | U15: 85 | V15: 2 | W15: 8 | X15: 9 | Y15: 8 | Z15: 46 | AA15: 45 | AB15: 8 | AC15: 9 | AD15: 9 | AE15: 16 | AF15: 45 | AG15: 8 | AH15: 9 | AI15: 8 | AJ15: 46 | AK15: 45 | AL15: 8 | AM15: 8 | AN15: 8 | AO15: 46 | AP15: 45 | AY15: 9 | AZ15: 9 | BA15: 9 | BB15: 66 | BC15: 91 | BD15: 8 | BE15: 8 | BF15: 8 | BG15: 46 | BH15: 14 | BI15: 68 | BJ15: 27 | BK15: 9 | BL15: 7 | BM15: 9 | BN15: 6 | BO15: 9 | BP15: 14 | BQ15: 21 | BR15: 12 | BS15: 24 | BT15: 63 | BU15: 20 | BV15: 40 | BW15: 20 | BX15: 20 | BY15: 59 | BZ15: 10 | CE15: =IF('School Profile'!#REF!="","",'School Profile'!#REF!) -> 
A16: =IF('Student DATA Entry'!A13="","",'Student DATA Entry'!A13) -> 10 | B16: =IF('Student DATA Entry'!B13="","",'Student DATA Entry'!B13) -> 910 | C16: =IF('Student DATA Entry'!C13="","",'Student DATA Entry'!C13) -> 9 | D16: =IF('Student DATA Entry'!D13="","",'Student DATA Entry'!D13) -> A | E16: =IF('Student DATA Entry'!E13="","",'Student DATA Entry'!E13) ->  | F16: =IF('Student DATA Entry'!K13="","",'Student DATA Entry'!K13) -> 2011-07-13 | G16: =IF('Student DATA Entry'!G13="","",UPPER('Student DATA Entry'!G13)) -> SONU | H16: =IF('Student DATA Entry'!H13="","",UPPER('Student DATA Entry'!H13)) ->  | I16: =IF('Student DATA Entry'!I13="","",UPPER('Student DATA Entry'!I13)) ->  | J16: =IF('Student DATA Entry'!L13="","",UPPER('Student DATA Entry'!L13)) -> ST | K16: =IF('Student DATA Entry'!J13="","",UPPER('Student DATA Entry'!J13)) -> F | L16: 8 | M16: 9 | N16: 7 | O16: 46 | P16: 65 | Q16: 8 | R16: 9 | S16: 9 | T16: 30 | U16: 30 | V16: 1 | W16: 8 | X16: 9 | Y16: 7 | Z16: 46 | AA16: 45 | AB16: 8 | AC16: 9 | AD16: 10 | AE16: 15 | AF16: 25 | AG16: 8 | AH16: 9 | AI16: 7 | AJ16: 46 | AK16: 45 | AL16: 8 | AM16: 8 | AN16: 8 | AO16: 46 | AP16: 45 | AY16: 9 | AZ16: 9 | BA16: 9 | BB16: 66 | BC16: 91 | BD16: 8 | BE16: 8 | BF16: 8 | BG16: 41 | BH16: 15 | BI16: 56 | BJ16: 27 | BK16: 9 | BL16: 7 | BM16: 9 | BN16: 6 | BO16: 9 | BP16: 14 | BQ16: 21 | BR16: 13 | BS16: 25 | BT16: 69 | BU16: 20 | BV16: 40 | BW16: 20 | BX16: 20 | BY16: 45 | BZ16: 15 | CE16: =IF('School Profile'!#REF!="","",'School Profile'!#REF!) -> 
A17: =IF('Student DATA Entry'!A14="","",'Student DATA Entry'!A14) -> 11 | B17: =IF('Student DATA Entry'!B14="","",'Student DATA Entry'!B14) -> 911 | C17: =IF('Student DATA Entry'!C14="","",'Student DATA Entry'!C14) -> 9 | D17: =IF('Student DATA Entry'!D14="","",'Student DATA Entry'!D14) -> A | E17: =IF('Student DATA Entry'!E14="","",'Student DATA Entry'!E14) ->  | F17: =IF('Student DATA Entry'!K14="","",'Student DATA Entry'!K14) -> 2014-08-27 | G17: =IF('Student DATA Entry'!G14="","",UPPER('Student DATA Entry'!G14)) -> MONU | H17: =IF('Student DATA Entry'!H14="","",UPPER('Student DATA Entry'!H14)) ->  | I17: =IF('Student DATA Entry'!I14="","",UPPER('Student DATA Entry'!I14)) ->  | J17: =IF('Student DATA Entry'!L14="","",UPPER('Student DATA Entry'!L14)) -> SC | K17: =IF('Student DATA Entry'!J14="","",UPPER('Student DATA Entry'!J14)) -> M | O17: 46 | P17: 65 | Q17: 8 | R17: 9 | S17: 9 | T17: 60 | U17: 85 | V17: 1 | W17: 8 | X17: 9 | Y17: 7 | Z17: 46 | AA17: 45 | AB17: 8 | AC17: 9 | AD17: 10 | AE17: 46 | AF17: 45 | AG17: 8 | AH17: 9 | AI17: 7 | AJ17: 46 | AK17: 45 | AL17: 8 | AM17: 8 | AN17: 8 | AO17: 46 | AP17: 45 | AY17: 9 | AZ17: 9 | BA17: 9 | BB17: 66 | BC17: 91 | BD17: 8 | BE17: 8 | BF17: 8 | BG17: 42 | BH17: 18 | BI17: 58 | BJ17: 27 | BK17: 9 | BL17: 7 | BM17: 9 | BN17: 6 | BO17: 9 | BP17: 14 | BQ17: 21 | BR17: 12 | BS17: 20 | BT17: 68 | BU17: 20 | BV17: 40 | BW17: 20 | BX17: 20 | BY17: 45 | BZ17: 14 | CE17: =IF('School Profile'!#REF!="","",'School Profile'!#REF!) -> 
A18: =IF('Student DATA Entry'!A15="","",'Student DATA Entry'!A15) -> 12 | B18: =IF('Student DATA Entry'!B15="","",'Student DATA Entry'!B15) -> 912 | C18: =IF('Student DATA Entry'!C15="","",'Student DATA Entry'!C15) -> 9 | D18: =IF('Student DATA Entry'!D15="","",'Student DATA Entry'!D15) -> A | E18: =IF('Student DATA Entry'!E15="","",'Student DATA Entry'!E15) ->  | F18: =IF('Student DATA Entry'!K15="","",'Student DATA Entry'!K15) ->  | G18: =IF('Student DATA Entry'!G15="","",UPPER('Student DATA Entry'!G15)) -> JAY | H18: =IF('Student DATA Entry'!H15="","",UPPER('Student DATA Entry'!H15)) ->  | I18: =IF('Student DATA Entry'!I15="","",UPPER('Student DATA Entry'!I15)) ->  | J18: =IF('Student DATA Entry'!L15="","",UPPER('Student DATA Entry'!L15)) ->  | K18: =IF('Student DATA Entry'!J15="","",UPPER('Student DATA Entry'!J15)) ->  | L18: 7 | M18: 8 | N18: 7 | O18: 47 | P18: 65 | Q18: 8 | R18: 9 | S18: 9 | T18: 60 | U18: 85 | V18: 1 | W18: 8 | X18: 9 | Y18: 7 | Z18: 46 | AA18: 45 | AB18: 8 | AC18: 9 | AD18: 10 | AE18: 20 | AF18: 21 | AG18: 8 | AH18: 9 | AI18: 7 | AJ18: 46 | AK18: 45 | AL18: 8 | AM18: 8 | AN18: 8 | AO18: 46 | AP18: 45 | AY18: 9 | AZ18: 9 | BA18: 9 | BB18: 66 | BC18: 91 | BD18: 8 | BE18: 8 | BF18: 8 | BG18: 20 | BH18: 15 | BI18: 54 | BJ18: 27 | BK18: 9 | BL18: 7 | BM18: 9 | BN18: 6 | BO18: 9 | BP18: 14 | BQ18: 21 | BR18: 14 | BS18: 21 | BT18: 65 | BU18: 20 | BV18: 40 | BW18: 20 | BX18: 20 | BY18: 35 | BZ18: 10 | CE18: =IF('School Profile'!#REF!="","",'School Profile'!#REF!) -> 
A19: =IF('Student DATA Entry'!A16="","",'Student DATA Entry'!A16) -> 13 | B19: =IF('Student DATA Entry'!B16="","",'Student DATA Entry'!B16) -> 913 | C19: =IF('Student DATA Entry'!C16="","",'Student DATA Entry'!C16) -> 9 | D19: =IF('Student DATA Entry'!D16="","",'Student DATA Entry'!D16) -> A | E19: =IF('Student DATA Entry'!E16="","",'Student DATA Entry'!E16) ->  | F19: =IF('Student DATA Entry'!K16="","",'Student DATA Entry'!K16) ->  | G19: =IF('Student DATA Entry'!G16="","",UPPER('Student DATA Entry'!G16)) -> VIRU | H19: =IF('Student DATA Entry'!H16="","",UPPER('Student DATA Entry'!H16)) ->  | I19: =IF('Student DATA Entry'!I16="","",UPPER('Student DATA Entry'!I16)) ->  | J19: =IF('Student DATA Entry'!L16="","",UPPER('Student DATA Entry'!L16)) ->  | K19: =IF('Student DATA Entry'!J16="","",UPPER('Student DATA Entry'!J16)) ->  | L19: 8 | M19: 9 | N19: 5 | P19: 65 | Q19: 8 | R19: 9 | S19: 9 | T19: 60 | U19: 85 | V19: 2 | W19: 8 | X19: 9 | Y19: 7 | Z19: 46 | AA19: 45 | AB19: 8 | AC19: 9 | AD19: 10 | AE19: 46 | AF19: 45 | AG19: 8 | AH19: 9 | AI19: 7 | AJ19: 46 | AK19: 45 | AL19: 8 | AM19: 8 | AN19: 8 | AO19: 46 | AP19: 45 | AY19: 9 | AZ19: 9 | BA19: 9 | BB19: 66 | BC19: 91 | BD19: 8 | BE19: 8 | BF19: 8 | BG19: 26 | BH19: 14 | BI19: 59 | BJ19: 27 | BK19: 9 | BL19: 7 | BM19: 9 | BN19: 6 | BO19: 9 | BP19: 14 | BQ19: 21 | BR19: 15 | BS19: 25 | BT19: 62 | BU19: 20 | BV19: 40 | BW19: 20 | BX19: 20 | BY19: 36 | BZ19: 10 | CE19: =IF('School Profile'!#REF!="","",'School Profile'!#REF!) -> 
A20: =IF('Student DATA Entry'!A17="","",'Student DATA Entry'!A17) -> 14 | B20: =IF('Student DATA Entry'!B17="","",'Student DATA Entry'!B17) -> 914 | C20: =IF('Student DATA Entry'!C17="","",'Student DATA Entry'!C17) -> 9 | D20: =IF('Student DATA Entry'!D17="","",'Student DATA Entry'!D17) -> A | E20: =IF('Student DATA Entry'!E17="","",'Student DATA Entry'!E17) ->  | F20: =IF('Student DATA Entry'!K17="","",'Student DATA Entry'!K17) ->  | G20: =IF('Student DATA Entry'!G17="","",UPPER('Student DATA Entry'!G17)) -> ANIL | H20: =IF('Student DATA Entry'!H17="","",UPPER('Student DATA Entry'!H17)) ->  | I20: =IF('Student DATA Entry'!I17="","",UPPER('Student DATA Entry'!I17)) ->  | J20: =IF('Student DATA Entry'!L17="","",UPPER('Student DATA Entry'!L17)) ->  | K20: =IF('Student DATA Entry'!J17="","",UPPER('Student DATA Entry'!J17)) ->  | L20: 8 | M20: 9 | N20: 7 | O20: 46 | P20: 65 | Q20: 8 | R20: 9 | S20: 8 | T20: 60 | U20: 85 | V20: 4 | W20: 8 | X20: 9 | Y20: 8 | Z20: 46 | AA20: 45 | AB20: 8 | AC20: 9 | AD20: 8 | AE20: 20 | AF20: 26 | AG20: 8 | AH20: 9 | AI20: 7 | AJ20: 20 | AK20: 27 | AL20: 8 | AM20: 8 | AN20: 8 | AO20: 46 | AP20: 45 | AY20: 9 | AZ20: 9 | BA20: 9 | BB20: 66 | BC20: 91 | BD20: 8 | BE20: 8 | BF20: 8 | BG20: 48 | BH20: 16 | BI20: 58 | BJ20: 27 | BK20: 9 | BL20: 7 | BM20: 9 | BN20: 6 | BO20: 9 | BP20: 14 | BQ20: 21 | BR20: 12 | BS20: 26 | BT20: 61 | BU20: 20 | BV20: 40 | BW20: 20 | BX20: 20 | BY20: 39 | BZ20: 10 | CE20: =IF('School Profile'!#REF!="","",'School Profile'!#REF!) -> 
A21: =IF('Student DATA Entry'!A18="","",'Student DATA Entry'!A18) -> 15 | B21: =IF('Student DATA Entry'!B18="","",'Student DATA Entry'!B18) -> 915 | C21: =IF('Student DATA Entry'!C18="","",'Student DATA Entry'!C18) -> 9 | D21: =IF('Student DATA Entry'!D18="","",'Student DATA Entry'!D18) -> A | E21: =IF('Student DATA Entry'!E18="","",'Student DATA Entry'!E18) ->  | F21: =IF('Student DATA Entry'!K18="","",'Student DATA Entry'!K18) ->  | G21: =IF('Student DATA Entry'!G18="","",UPPER('Student DATA Entry'!G18)) -> RAHIM | H21: =IF('Student DATA Entry'!H18="","",UPPER('Student DATA Entry'!H18)) ->  | I21: =IF('Student DATA Entry'!I18="","",UPPER('Student DATA Entry'!I18)) ->  | J21: =IF('Student DATA Entry'!L18="","",UPPER('Student DATA Entry'!L18)) ->  | K21: =IF('Student DATA Entry'!J18="","",UPPER('Student DATA Entry'!J18)) ->  | L21: 8 | M21: 9 | N21: 8 | O21: 46 | P21: 25 | Q21: 8 | R21: 9 | S21: 8 | T21: 60 | U21: 85 | V21: 4 | W21: 8 | X21: 9 | Y21: 8 | Z21: 46 | AA21: 45 | AB21: 8 | AC21: 9 | AD21: 8 | AE21: 20 | AF21: 30 | AG21: 8 | AH21: 9 | AI21: 7 | AJ21: 46 | AK21: 45 | AL21: 8 | AM21: 8 | AN21: 8 | AO21: 46 | AP21: 45 | AY21: 9 | AZ21: 9 | BA21: 9 | BB21: 66 | BC21: 91 | BD21: 8 | BE21: 8 | BF21: 8 | BG21: 36 | BH21: 20 | BI21: 57 | BJ21: 27 | BK21: 9 | BL21: 7 | BM21: 9 | BN21: 6 | BO21: 9 | BP21: 14 | BQ21: 21 | BR21: 10 | BS21: 25 | BT21: 28 | BU21: 20 | BV21: 40 | BW21: 20 | BX21: 20 | BY21: 38 | BZ21: 10 | CE21: =IF('School Profile'!#REF!="","",'School Profile'!#REF!) -> 
A22: =IF('Student DATA Entry'!A19="","",'Student DATA Entry'!A19) -> 16 | B22: =IF('Student DATA Entry'!B19="","",'Student DATA Entry'!B19) -> 916 | C22: =IF('Student DATA Entry'!C19="","",'Student DATA Entry'!C19) -> 9 | D22: =IF('Student DATA Entry'!D19="","",'Student DATA Entry'!D19) -> A | E22: =IF('Student DATA Entry'!E19="","",'Student DATA Entry'!E19) ->  | F22: =IF('Student DATA Entry'!K19="","",'Student DATA Entry'!K19) ->  | G22: =IF('Student DATA Entry'!G19="","",UPPER('Student DATA Entry'!G19)) -> KARIM | H22: =IF('Student DATA Entry'!H19="","",UPPER('Student DATA Entry'!H19)) ->  | I22: =IF('Student DATA Entry'!I19="","",UPPER('Student DATA Entry'!I19)) ->  | J22: =IF('Student DATA Entry'!L19="","",UPPER('Student DATA Entry'!L19)) ->  | K22: =IF('Student DATA Entry'!J19="","",UPPER('Student DATA Entry'!J19)) ->  | L22: 8 | M22: 9 | N22: 8 | O22: 46 | P22: 65 | Q22: 8 | R22: 9 | S22: 8 | T22: 60 | U22: 85 | V22: 5 | W22: 8 | X22: 9 | Y22: 8 | Z22: 46 | AA22: 45 | AB22: 8 | AC22: 9 | AD22: 8 | AE22: 46 | AF22: 45 | AG22: 8 | AH22: 9 | AI22: 7 | AJ22: 46 | AK22: 45 | AL22: 8 | AM22: 8 | AN22: 8 | AO22: 46 | AP22: 45 | CE22: =IF('School Profile'!#REF!="","",'School Profile'!#REF!) -> 
A23: =IF('Student DATA Entry'!A20="","",'Student DATA Entry'!A20) -> 17 | B23: =IF('Student DATA Entry'!B20="","",'Student DATA Entry'!B20) -> 917 | C23: =IF('Student DATA Entry'!C20="","",'Student DATA Entry'!C20) -> 9 | D23: =IF('Student DATA Entry'!D20="","",'Student DATA Entry'!D20) -> A | E23: =IF('Student DATA Entry'!E20="","",'Student DATA Entry'!E20) ->  | F23: =IF('Student DATA Entry'!K20="","",'Student DATA Entry'!K20) ->  | G23: =IF('Student DATA Entry'!G20="","",UPPER('Student DATA Entry'!G20)) -> FATIMA | H23: =IF('Student DATA Entry'!H20="","",UPPER('Student DATA Entry'!H20)) ->  | I23: =IF('Student DATA Entry'!I20="","",UPPER('Student DATA Entry'!I20)) ->  | J23: =IF('Student DATA Entry'!L20="","",UPPER('Student DATA Entry'!L20)) ->  | K23: =IF('Student DATA Entry'!J20="","",UPPER('Student DATA Entry'!J20)) ->  | L23: 8 | M23: 9 | N23: 8 | O23: 46 | P23: 65 | Q23: 8 | R23: 9 | S23: 8 | T23: 60 | U23: 85 | V23: 5 | W23: 8 | X23: 9 | Y23: 9 | Z23: 46 | AA23: 45 | AB23: 8 | AC23: 9 | AD23: 8 | AE23: 46 | AF23: 45 | AG23: 8 | AH23: 9 | AI23: 7 | AJ23: 46 | AK23: 45 | AL23: 8 | AM23: 8 | AN23: 8 | AO23: 46 | AP23: 45 | CE23: =IF('School Profile'!#REF!="","",'School Profile'!#REF!) -> 
A24: =IF('Student DATA Entry'!A21="","",'Student DATA Entry'!A21) -> 18 | B24: =IF('Student DATA Entry'!B21="","",'Student DATA Entry'!B21) -> 918 | C24: =IF('Student DATA Entry'!C21="","",'Student DATA Entry'!C21) -> 9 | D24: =IF('Student DATA Entry'!D21="","",'Student DATA Entry'!D21) -> A | E24: =IF('Student DATA Entry'!E21="","",'Student DATA Entry'!E21) ->  | F24: =IF('Student DATA Entry'!K21="","",'Student DATA Entry'!K21) ->  | G24: =IF('Student DATA Entry'!G21="","",UPPER('Student DATA Entry'!G21)) -> LAXMI | H24: =IF('Student DATA Entry'!H21="","",UPPER('Student DATA Entry'!H21)) ->  | I24: =IF('Student DATA Entry'!I21="","",UPPER('Student DATA Entry'!I21)) ->  | J24: =IF('Student DATA Entry'!L21="","",UPPER('Student DATA Entry'!L21)) ->  | K24: =IF('Student DATA Entry'!J21="","",UPPER('Student DATA Entry'!J21)) ->  | L24: 8 | M24: 9 | N24: 8 | O24: 46 | P24: 65 | Q24: 8 | R24: 9 | S24: 8 | T24: 60 | U24: 85 | V24: 2 | W24: 8 | X24: 9 | Y24: 9 | Z24: 46 | AA24: 45 | AB24: 8 | AC24: 9 | AD24: 7 | AE24: 46 | AF24: 45 | AG24: 8 | AH24: 9 | AI24: 7 | AJ24: 46 | AK24: 45 | AL24: 8 | AM24: 8 | AN24: 8 | AO24: 46 | AP24: 45 | CE24: =IF('School Profile'!#REF!="","",'School Profile'!#REF!) -> 
A25: =IF('Student DATA Entry'!A22="","",'Student DATA Entry'!A22) -> 19 | B25: =IF('Student DATA Entry'!B22="","",'Student DATA Entry'!B22) -> 919 | C25: =IF('Student DATA Entry'!C22="","",'Student DATA Entry'!C22) -> 9 | D25: =IF('Student DATA Entry'!D22="","",'Student DATA Entry'!D22) -> A | E25: =IF('Student DATA Entry'!E22="","",'Student DATA Entry'!E22) ->  | F25: =IF('Student DATA Entry'!K22="","",'Student DATA Entry'!K22) ->  | G25: =IF('Student DATA Entry'!G22="","",UPPER('Student DATA Entry'!G22)) -> RAZA | H25: =IF('Student DATA Entry'!H22="","",UPPER('Student DATA Entry'!H22)) ->  | I25: =IF('Student DATA Entry'!I22="","",UPPER('Student DATA Entry'!I22)) ->  | J25: =IF('Student DATA Entry'!L22="","",UPPER('Student DATA Entry'!L22)) ->  | K25: =IF('Student DATA Entry'!J22="","",UPPER('Student DATA Entry'!J22)) ->  | L25: 8 | M25: 9 | N25: 8 | O25: 46 | P25: 65 | Q25: 8 | R25: 9 | S25: 8 | T25: 60 | U25: 85 | V25: 2 | W25: 8 | X25: 9 | Y25: 9 | Z25: 46 | AA25: 45 | AB25: 8 | AC25: 9 | AD25: 7 | AE25: 46 | AF25: 45 | AG25: 8 | AH25: 9 | AI25: 7 | AJ25: 46 | AK25: 45 | AL25: 8 | AM25: 8 | AN25: 8 | AO25: 46 | AP25: 45 | CE25: =IF('School Profile'!#REF!="","",'School Profile'!#REF!) -> 
A26: =IF('Student DATA Entry'!A23="","",'Student DATA Entry'!A23) -> 20 | B26: =IF('Student DATA Entry'!B23="","",'Student DATA Entry'!B23) -> 920 | C26: =IF('Student DATA Entry'!C23="","",'Student DATA Entry'!C23) -> 9 | D26: =IF('Student DATA Entry'!D23="","",'Student DATA Entry'!D23) -> A | E26: =IF('Student DATA Entry'!E23="","",'Student DATA Entry'!E23) ->  | F26: =IF('Student DATA Entry'!K23="","",'Student DATA Entry'!K23) ->  | G26: =IF('Student DATA Entry'!G23="","",UPPER('Student DATA Entry'!G23)) -> ROZA | H26: =IF('Student DATA Entry'!H23="","",UPPER('Student DATA Entry'!H23)) ->  | I26: =IF('Student DATA Entry'!I23="","",UPPER('Student DATA Entry'!I23)) ->  | J26: =IF('Student DATA Entry'!L23="","",UPPER('Student DATA Entry'!L23)) ->  | K26: =IF('Student DATA Entry'!J23="","",UPPER('Student DATA Entry'!J23)) ->  | L26: 8 | M26: 9 | N26: 8 | O26: 46 | P26: 65 | Q26: 8 | R26: 9 | S26: 8 | T26: 60 | U26: 85 | V26: 4 | W26: 8 | X26: 9 | Y26: 9 | Z26: 46 | AA26: 45 | AB26: 8 | AC26: 9 | AD26: 7 | AE26: 46 | AF26: 45 | AG26: 8 | AH26: 9 | AI26: 7 | AJ26: 46 | AK26: 45 | AL26: 8 | AM26: 8 | AN26: 8 | AO26: 46 | AP26: 45 | CE26: =IF('School Profile'!#REF!="","",'School Profile'!#REF!) -> 
A27: =IF('Student DATA Entry'!A24="","",'Student DATA Entry'!A24) -> 21 | B27: =IF('Student DATA Entry'!B24="","",'Student DATA Entry'!B24) -> 921 | C27: =IF('Student DATA Entry'!C24="","",'Student DATA Entry'!C24) -> 9 | D27: =IF('Student DATA Entry'!D24="","",'Student DATA Entry'!D24) -> A | E27: =IF('Student DATA Entry'!E24="","",'Student DATA Entry'!E24) ->  | F27: =IF('Student DATA Entry'!K24="","",'Student DATA Entry'!K24) ->  | G27: =IF('Student DATA Entry'!G24="","",UPPER('Student DATA Entry'!G24)) -> VILIAM | H27: =IF('Student DATA Entry'!H24="","",UPPER('Student DATA Entry'!H24)) ->  | I27: =IF('Student DATA Entry'!I24="","",UPPER('Student DATA Entry'!I24)) ->  | J27: =IF('Student DATA Entry'!L24="","",UPPER('Student DATA Entry'!L24)) ->  | K27: =IF('Student DATA Entry'!J24="","",UPPER('Student DATA Entry'!J24)) ->  | L27: 8 | M27: 9 | N27: 8 | O27: 46 | P27: 65 | Q27: 8 | R27: 9 | S27: 8 | T27: 60 | U27: 85 | V27: 2 | W27: 8 | X27: 9 | Y27: 9 | Z27: 46 | AA27: 45 | AB27: 8 | AC27: 9 | AD27: 7 | AE27: 46 | AF27: 45 | AG27: 8 | AH27: 9 | AI27: 7 | AJ27: 46 | AK27: 45 | AL27: 8 | AM27: 8 | AN27: 8 | AO27: 46 | AP27: 45 | CE27: =IF('School Profile'!#REF!="","",'School Profile'!#REF!) -> 
A28: =IF('Student DATA Entry'!A25="","",'Student DATA Entry'!A25) -> 22 | B28: =IF('Student DATA Entry'!B25="","",'Student DATA Entry'!B25) -> 922 | C28: =IF('Student DATA Entry'!C25="","",'Student DATA Entry'!C25) -> 9 | D28: =IF('Student DATA Entry'!D25="","",'Student DATA Entry'!D25) -> A | E28: =IF('Student DATA Entry'!E25="","",'Student DATA Entry'!E25) ->  | F28: =IF('Student DATA Entry'!K25="","",'Student DATA Entry'!K25) ->  | G28: =IF('Student DATA Entry'!G25="","",UPPER('Student DATA Entry'!G25)) -> ROZER | H28: =IF('Student DATA Entry'!H25="","",UPPER('Student DATA Entry'!H25)) ->  | I28: =IF('Student DATA Entry'!I25="","",UPPER('Student DATA Entry'!I25)) ->  | J28: =IF('Student DATA Entry'!L25="","",UPPER('Student DATA Entry'!L25)) ->  | K28: =IF('Student DATA Entry'!J25="","",UPPER('Student DATA Entry'!J25)) ->  | L28: 8 | M28: 9 | N28: 8 | O28: 46 | P28: 65 | Q28: 8 | R28: 9 | S28: 8 | T28: 60 | U28: 85 | V28: 2 | W28: 8 | X28: 9 | Y28: 10 | Z28: 46 | AA28: 45 | AB28: 8 | AC28: 9 | AD28: 9 | AE28: 46 | AF28: 45 | AG28: 8 | AH28: 9 | AI28: 7 | AJ28: 46 | AK28: 45 | AL28: 8 | AM28: 8 | AN28: 8 | AO28: 46 | AP28: 45 | CE28: =IF('School Profile'!#REF!="","",'School Profile'!#REF!) -> 
A29: =IF('Student DATA Entry'!A26="","",'Student DATA Entry'!A26) -> 23 | B29: =IF('Student DATA Entry'!B26="","",'Student DATA Entry'!B26) -> 923 | C29: =IF('Student DATA Entry'!C26="","",'Student DATA Entry'!C26) -> 9 | D29: =IF('Student DATA Entry'!D26="","",'Student DATA Entry'!D26) -> A | E29: =IF('Student DATA Entry'!E26="","",'Student DATA Entry'!E26) ->  | F29: =IF('Student DATA Entry'!K26="","",'Student DATA Entry'!K26) ->  | G29: =IF('Student DATA Entry'!G26="","",UPPER('Student DATA Entry'!G26)) -> DINESH | H29: =IF('Student DATA Entry'!H26="","",UPPER('Student DATA Entry'!H26)) ->  | I29: =IF('Student DATA Entry'!I26="","",UPPER('Student DATA Entry'!I26)) ->  | J29: =IF('Student DATA Entry'!L26="","",UPPER('Student DATA Entry'!L26)) ->  | K29: =IF('Student DATA Entry'!J26="","",UPPER('Student DATA Entry'!J26)) ->  | L29: 8 | M29: 9 | N29: 8 | O29: 46 | P29: 65 | Q29: 8 | R29: 9 | S29: 8 | T29: 60 | U29: 85 | V29: 3 | W29: 8 | X29: 9 | Y29: 8 | Z29: 46 | AA29: 45 | AB29: 8 | AC29: 9 | AD29: 9 | AE29: 46 | AF29: 45 | AG29: 8 | AH29: 9 | AI29: 7 | AJ29: 46 | AK29: 45 | AL29: 8 | AM29: 8 | AN29: 8 | AO29: 46 | AP29: 45 | CE29: =IF('School Profile'!#REF!="","",'School Profile'!#REF!) -> 
A30: =IF('Student DATA Entry'!A27="","",'Student DATA Entry'!A27) -> 24 | B30: =IF('Student DATA Entry'!B27="","",'Student DATA Entry'!B27) -> 924 | C30: =IF('Student DATA Entry'!C27="","",'Student DATA Entry'!C27) -> 9 | D30: =IF('Student DATA Entry'!D27="","",'Student DATA Entry'!D27) -> A | E30: =IF('Student DATA Entry'!E27="","",'Student DATA Entry'!E27) ->  | F30: =IF('Student DATA Entry'!K27="","",'Student DATA Entry'!K27) ->  | G30: =IF('Student DATA Entry'!G27="","",UPPER('Student DATA Entry'!G27)) -> MAHESH | H30: =IF('Student DATA Entry'!H27="","",UPPER('Student DATA Entry'!H27)) ->  | I30: =IF('Student DATA Entry'!I27="","",UPPER('Student DATA Entry'!I27)) ->  | J30: =IF('Student DATA Entry'!L27="","",UPPER('Student DATA Entry'!L27)) ->  | K30: =IF('Student DATA Entry'!J27="","",UPPER('Student DATA Entry'!J27)) ->  | L30: 8 | M30: 9 | N30: 8 | O30: 46 | P30: 65 | Q30: 8 | R30: 9 | S30: 7 | T30: 60 | U30: 85 | V30: 1 | W30: 8 | X30: 9 | Y30: 9 | Z30: 46 | AA30: 45 | AB30: 8 | AC30: 9 | AD30: 8 | AE30: 46 | AF30: 45 | AG30: 8 | AH30: 9 | AI30: 7 | AJ30: 46 | AK30: 45 | AL30: 8 | AM30: 8 | AN30: 8 | AO30: 46 | AP30: 45 | CE30: =IF('School Profile'!#REF!="","",'School Profile'!#REF!) -> 
A31: =IF('Student DATA Entry'!A28="","",'Student DATA Entry'!A28) -> 25 | B31: =IF('Student DATA Entry'!B28="","",'Student DATA Entry'!B28) -> 925 | C31: =IF('Student DATA Entry'!C28="","",'Student DATA Entry'!C28) -> 9 | D31: =IF('Student DATA Entry'!D28="","",'Student DATA Entry'!D28) -> A | E31: =IF('Student DATA Entry'!E28="","",'Student DATA Entry'!E28) ->  | F31: =IF('Student DATA Entry'!K28="","",'Student DATA Entry'!K28) ->  | G31: =IF('Student DATA Entry'!G28="","",UPPER('Student DATA Entry'!G28)) -> RINA | H31: =IF('Student DATA Entry'!H28="","",UPPER('Student DATA Entry'!H28)) ->  | I31: =IF('Student DATA Entry'!I28="","",UPPER('Student DATA Entry'!I28)) ->  | J31: =IF('Student DATA Entry'!L28="","",UPPER('Student DATA Entry'!L28)) ->  | K31: =IF('Student DATA Entry'!J28="","",UPPER('Student DATA Entry'!J28)) ->  | L31: 8 | M31: 9 | N31: 8 | O31: 46 | P31: 65 | Q31: 8 | R31: 9 | S31: 7 | T31: 60 | U31: 85 | V31: 3 | W31: 8 | X31: 9 | Y31: 9 | Z31: 46 | AA31: 45 | AB31: 8 | AC31: 9 | AD31: 8 | AE31: 46 | AF31: 45 | AG31: 8 | AH31: 9 | AI31: 7 | AJ31: 46 | AK31: 45 | AL31: 8 | AM31: 8 | AN31: 8 | AO31: 46 | AP31: 45 | CE31: =IF('School Profile'!#REF!="","",'School Profile'!#REF!) -> 
A32: =IF('Student DATA Entry'!A29="","",'Student DATA Entry'!A29) -> 26 | B32: =IF('Student DATA Entry'!B29="","",'Student DATA Entry'!B29) -> 926 | C32: =IF('Student DATA Entry'!C29="","",'Student DATA Entry'!C29) -> 9 | D32: =IF('Student DATA Entry'!D29="","",'Student DATA Entry'!D29) -> A | E32: =IF('Student DATA Entry'!E29="","",'Student DATA Entry'!E29) ->  | F32: =IF('Student DATA Entry'!K29="","",'Student DATA Entry'!K29) ->  | G32: =IF('Student DATA Entry'!G29="","",UPPER('Student DATA Entry'!G29)) -> DIZA | H32: =IF('Student DATA Entry'!H29="","",UPPER('Student DATA Entry'!H29)) ->  | I32: =IF('Student DATA Entry'!I29="","",UPPER('Student DATA Entry'!I29)) ->  | J32: =IF('Student DATA Entry'!L29="","",UPPER('Student DATA Entry'!L29)) ->  | K32: =IF('Student DATA Entry'!J29="","",UPPER('Student DATA Entry'!J29)) ->  | L32: 8 | M32: 9 | N32: 8 | O32: 46 | P32: 65 | Q32: 8 | R32: 9 | S32: 7 | T32: 60 | U32: 85 | V32: 4 | W32: 8 | X32: 9 | Z32: 46 | AA32: 45 | AB32: 8 | AC32: 9 | AD32: 8 | AE32: 46 | AF32: 45 | AG32: 8 | AH32: 9 | AI32: 7 | AJ32: 46 | AK32: 45 | AL32: 8 | AM32: 8 | AN32: 8 | AO32: 46 | AP32: 45 | CE32: =IF('School Profile'!#REF!="","",'School Profile'!#REF!) -> 
A33: =IF('Student DATA Entry'!A30="","",'Student DATA Entry'!A30) -> 27 | B33: =IF('Student DATA Entry'!B30="","",'Student DATA Entry'!B30) -> 927 | C33: =IF('Student DATA Entry'!C30="","",'Student DATA Entry'!C30) -> 9 | D33: =IF('Student DATA Entry'!D30="","",'Student DATA Entry'!D30) -> A | E33: =IF('Student DATA Entry'!E30="","",'Student DATA Entry'!E30) ->  | F33: =IF('Student DATA Entry'!K30="","",'Student DATA Entry'!K30) ->  | G33: =IF('Student DATA Entry'!G30="","",UPPER('Student DATA Entry'!G30)) -> BIPASA | H33: =IF('Student DATA Entry'!H30="","",UPPER('Student DATA Entry'!H30)) ->  | I33: =IF('Student DATA Entry'!I30="","",UPPER('Student DATA Entry'!I30)) ->  | J33: =IF('Student DATA Entry'!L30="","",UPPER('Student DATA Entry'!L30)) ->  | K33: =IF('Student DATA Entry'!J30="","",UPPER('Student DATA Entry'!J30)) ->  | L33: 8 | M33: 9 | N33: 8 | O33: 46 | P33: 45 | Q33: 8 | R33: 9 | S33: 7 | T33: 60 | U33: 85 | V33: 5 | W33: 8 | X33: 9 | Z33: 46 | AA33: 45 | AB33: 8 | AC33: 9 | AD33: 8 | AE33: 46 | AF33: 45 | AG33: 8 | AH33: 9 | AI33: 7 | AJ33: 46 | AK33: 45 | AL33: 8 | AM33: 8 | AN33: 8 | AO33: 46 | AP33: 45 | CE33: =IF('School Profile'!#REF!="","",'School Profile'!#REF!) -> 
A34: =IF('Student DATA Entry'!A31="","",'Student DATA Entry'!A31) -> 28 | B34: =IF('Student DATA Entry'!B31="","",'Student DATA Entry'!B31) -> 928 | C34: =IF('Student DATA Entry'!C31="","",'Student DATA Entry'!C31) -> 9 | D34: =IF('Student DATA Entry'!D31="","",'Student DATA Entry'!D31) -> A | E34: =IF('Student DATA Entry'!E31="","",'Student DATA Entry'!E31) ->  | F34: =IF('Student DATA Entry'!K31="","",'Student DATA Entry'!K31) ->  | G34: =IF('Student DATA Entry'!G31="","",UPPER('Student DATA Entry'!G31)) -> DIMPLE | H34: =IF('Student DATA Entry'!H31="","",UPPER('Student DATA Entry'!H31)) ->  | I34: =IF('Student DATA Entry'!I31="","",UPPER('Student DATA Entry'!I31)) ->  | J34: =IF('Student DATA Entry'!L31="","",UPPER('Student DATA Entry'!L31)) ->  | K34: =IF('Student DATA Entry'!J31="","",UPPER('Student DATA Entry'!J31)) ->  | L34: 8 | M34: 9 | N34: 8 | O34: 46 | P34: 45 | Q34: 8 | R34: 9 | S34: 7 | T34: 60 | U34: 85 | V34: 1 | W34: 8 | X34: 9 | Z34: 46 | AA34: 45 | AB34: 8 | AC34: 9 | AD34: 7 | AE34: 46 | AF34: 45 | AG34: 8 | AH34: 9 | AI34: 7 | AJ34: 46 | AK34: 45 | AL34: 8 | AM34: 8 | AN34: 8 | AO34: 46 | AP34: 45 | CE34: =IF('School Profile'!#REF!="","",'School Profile'!#REF!) -> 
A35: =IF('Student DATA Entry'!A32="","",'Student DATA Entry'!A32) -> 29 | B35: =IF('Student DATA Entry'!B32="","",'Student DATA Entry'!B32) -> 929 | C35: =IF('Student DATA Entry'!C32="","",'Student DATA Entry'!C32) -> 9 | D35: =IF('Student DATA Entry'!D32="","",'Student DATA Entry'!D32) -> A | E35: =IF('Student DATA Entry'!E32="","",'Student DATA Entry'!E32) ->  | F35: =IF('Student DATA Entry'!K32="","",'Student DATA Entry'!K32) ->  | G35: =IF('Student DATA Entry'!G32="","",UPPER('Student DATA Entry'!G32)) -> DIPIKA | H35: =IF('Student DATA Entry'!H32="","",UPPER('Student DATA Entry'!H32)) ->  | I35: =IF('Student DATA Entry'!I32="","",UPPER('Student DATA Entry'!I32)) ->  | J35: =IF('Student DATA Entry'!L32="","",UPPER('Student DATA Entry'!L32)) ->  | K35: =IF('Student DATA Entry'!J32="","",UPPER('Student DATA Entry'!J32)) ->  | L35: 8 | M35: 9 | N35: 8 | O35: 46 | P35: 45 | Q35: 8 | R35: 9 | S35: 7 | T35: 60 | U35: 85 | V35: 2 | W35: 8 | X35: 9 | Z35: 46 | AA35: 45 | AB35: 8 | AC35: 9 | AD35: 7 | AE35: 46 | AF35: 45 | AG35: 8 | AH35: 9 | AI35: 7 | AJ35: 46 | AK35: 45 | AL35: 8 | AM35: 8 | AN35: 8 | AO35: 46 | AP35: 45 | CE35: =IF('School Profile'!#REF!="","",'School Profile'!#REF!) -> 
A36: =IF('Student DATA Entry'!A33="","",'Student DATA Entry'!A33) -> 30 | B36: =IF('Student DATA Entry'!B33="","",'Student DATA Entry'!B33) -> 930 | C36: =IF('Student DATA Entry'!C33="","",'Student DATA Entry'!C33) -> 9 | D36: =IF('Student DATA Entry'!D33="","",'Student DATA Entry'!D33) -> A | E36: =IF('Student DATA Entry'!E33="","",'Student DATA Entry'!E33) ->  | F36: =IF('Student DATA Entry'!K33="","",'Student DATA Entry'!K33) ->  | G36: =IF('Student DATA Entry'!G33="","",UPPER('Student DATA Entry'!G33)) -> DEVENDRA | H36: =IF('Student DATA Entry'!H33="","",UPPER('Student DATA Entry'!H33)) ->  | I36: =IF('Student DATA Entry'!I33="","",UPPER('Student DATA Entry'!I33)) ->  | J36: =IF('Student DATA Entry'!L33="","",UPPER('Student DATA Entry'!L33)) ->  | K36: =IF('Student DATA Entry'!J33="","",UPPER('Student DATA Entry'!J33)) ->  | L36: 8 | M36: 9 | N36: 8 | O36: 46 | P36: 45 | Q36: 8 | R36: 9 | S36: 7 | T36: 60 | U36: 85 | V36: 1 | W36: 8 | X36: 9 | Z36: 46 | AA36: 45 | AB36: 8 | AC36: 9 | AD36: 7 | AE36: 46 | AF36: 45 | AG36: 8 | AH36: 9 | AI36: 7 | AJ36: 46 | AK36: 45 | AL36: 8 | AM36: 8 | AN36: 8 | AO36: 46 | AP36: 45 | CE36: =IF('School Profile'!#REF!="","",'School Profile'!#REF!) -> 
A37: =IF('Student DATA Entry'!A34="","",'Student DATA Entry'!A34) -> 31 | B37: =IF('Student DATA Entry'!B34="","",'Student DATA Entry'!B34) -> 931 | C37: =IF('Student DATA Entry'!C34="","",'Student DATA Entry'!C34) -> 9 | D37: =IF('Student DATA Entry'!D34="","",'Student DATA Entry'!D34) -> A | E37: =IF('Student DATA Entry'!E34="","",'Student DATA Entry'!E34) ->  | F37: =IF('Student DATA Entry'!K34="","",'Student DATA Entry'!K34) ->  | G37: =IF('Student DATA Entry'!G34="","",UPPER('Student DATA Entry'!G34)) -> RAVINDRA | H37: =IF('Student DATA Entry'!H34="","",UPPER('Student DATA Entry'!H34)) ->  | I37: =IF('Student DATA Entry'!I34="","",UPPER('Student DATA Entry'!I34)) ->  | J37: =IF('Student DATA Entry'!L34="","",UPPER('Student DATA Entry'!L34)) ->  | K37: =IF('Student DATA Entry'!J34="","",UPPER('Student DATA Entry'!J34)) ->  | L37: 8 | M37: 9 | N37: 8 | O37: 46 | P37: 45 | Q37: 8 | R37: 9 | S37: 7 | T37: 60 | U37: 85 | V37: 1 | W37: 8 | X37: 9 | Z37: 46 | AA37: 45 | AB37: 8 | AC37: 9 | AD37: 8 | AE37: 46 | AF37: 45 | AG37: 8 | AH37: 9 | AI37: 7 | AJ37: 46 | AK37: 45 | AL37: 8 | AM37: 8 | AN37: 8 | AO37: 46 | AP37: 45 | CE37: =IF('School Profile'!#REF!="","",'School Profile'!#REF!) -> 
A38: =IF('Student DATA Entry'!A35="","",'Student DATA Entry'!A35) -> 32 | B38: =IF('Student DATA Entry'!B35="","",'Student DATA Entry'!B35) ->  | C38: =IF('Student DATA Entry'!C35="","",'Student DATA Entry'!C35) ->  | D38: =IF('Student DATA Entry'!D35="","",'Student DATA Entry'!D35) ->  | E38: =IF('Student DATA Entry'!E35="","",'Student DATA Entry'!E35) ->  | F38: =IF('Student DATA Entry'!K35="","",'Student DATA Entry'!K35) ->  | G38: =IF('Student DATA Entry'!G35="","",UPPER('Student DATA Entry'!G35)) ->  | H38: =IF('Student DATA Entry'!H35="","",UPPER('Student DATA Entry'!H35)) ->  | I38: =IF('Student DATA Entry'!I35="","",UPPER('Student DATA Entry'!I35)) ->  | J38: =IF('Student DATA Entry'!L35="","",UPPER('Student DATA Entry'!L35)) ->  | K38: =IF('Student DATA Entry'!J35="","",UPPER('Student DATA Entry'!J35)) ->  | CE38: =IF('School Profile'!#REF!="","",'School Profile'!#REF!) -> 
A39: =IF('Student DATA Entry'!A36="","",'Student DATA Entry'!A36) -> 33 | B39: =IF('Student DATA Entry'!B36="","",'Student DATA Entry'!B36) ->  | C39: =IF('Student DATA Entry'!C36="","",'Student DATA Entry'!C36) ->  | D39: =IF('Student DATA Entry'!D36="","",'Student DATA Entry'!D36) ->  | E39: =IF('Student DATA Entry'!E36="","",'Student DATA Entry'!E36) ->  | F39: =IF('Student DATA Entry'!K36="","",'Student DATA Entry'!K36) ->  | G39: =IF('Student DATA Entry'!G36="","",UPPER('Student DATA Entry'!G36)) ->  | H39: =IF('Student DATA Entry'!H36="","",UPPER('Student DATA Entry'!H36)) ->  | I39: =IF('Student DATA Entry'!I36="","",UPPER('Student DATA Entry'!I36)) ->  | J39: =IF('Student DATA Entry'!L36="","",UPPER('Student DATA Entry'!L36)) ->  | K39: =IF('Student DATA Entry'!J36="","",UPPER('Student DATA Entry'!J36)) ->  | CE39: =IF('School Profile'!#REF!="","",'School Profile'!#REF!) -> 
A40: =IF('Student DATA Entry'!A37="","",'Student DATA Entry'!A37) -> 34 | B40: =IF('Student DATA Entry'!B37="","",'Student DATA Entry'!B37) ->  | C40: =IF('Student DATA Entry'!C37="","",'Student DATA Entry'!C37) ->  | D40: =IF('Student DATA Entry'!D37="","",'Student DATA Entry'!D37) ->  | E40: =IF('Student DATA Entry'!E37="","",'Student DATA Entry'!E37) ->  | F40: =IF('Student DATA Entry'!K37="","",'Student DATA Entry'!K37) ->  | G40: =IF('Student DATA Entry'!G37="","",UPPER('Student DATA Entry'!G37)) ->  | H40: =IF('Student DATA Entry'!H37="","",UPPER('Student DATA Entry'!H37)) ->  | I40: =IF('Student DATA Entry'!I37="","",UPPER('Student DATA Entry'!I37)) ->  | J40: =IF('Student DATA Entry'!L37="","",UPPER('Student DATA Entry'!L37)) ->  | K40: =IF('Student DATA Entry'!J37="","",UPPER('Student DATA Entry'!J37)) ->  | CE40: =IF('School Profile'!#REF!="","",'School Profile'!#REF!) -> 
A41: =IF('Student DATA Entry'!A38="","",'Student DATA Entry'!A38) -> 35 | B41: =IF('Student DATA Entry'!B38="","",'Student DATA Entry'!B38) ->  | C41: =IF('Student DATA Entry'!C38="","",'Student DATA Entry'!C38) ->  | D41: =IF('Student DATA Entry'!D38="","",'Student DATA Entry'!D38) ->  | E41: =IF('Student DATA Entry'!E38="","",'Student DATA Entry'!E38) ->  | F41: =IF('Student DATA Entry'!K38="","",'Student DATA Entry'!K38) ->  | G41: =IF('Student DATA Entry'!G38="","",UPPER('Student DATA Entry'!G38)) ->  | H41: =IF('Student DATA Entry'!H38="","",UPPER('Student DATA Entry'!H38)) ->  | I41: =IF('Student DATA Entry'!I38="","",UPPER('Student DATA Entry'!I38)) ->  | J41: =IF('Student DATA Entry'!L38="","",UPPER('Student DATA Entry'!L38)) ->  | K41: =IF('Student DATA Entry'!J38="","",UPPER('Student DATA Entry'!J38)) ->  | CE41: =IF('School Profile'!#REF!="","",'School Profile'!#REF!) -> 
A42: =IF('Student DATA Entry'!A39="","",'Student DATA Entry'!A39) -> 36 | B42: =IF('Student DATA Entry'!B39="","",'Student DATA Entry'!B39) ->  | C42: =IF('Student DATA Entry'!C39="","",'Student DATA Entry'!C39) ->  | D42: =IF('Student DATA Entry'!D39="","",'Student DATA Entry'!D39) ->  | E42: =IF('Student DATA Entry'!E39="","",'Student DATA Entry'!E39) ->  | F42: =IF('Student DATA Entry'!K39="","",'Student DATA Entry'!K39) ->  | G42: =IF('Student DATA Entry'!G39="","",UPPER('Student DATA Entry'!G39)) ->  | H42: =IF('Student DATA Entry'!H39="","",UPPER('Student DATA Entry'!H39)) ->  | I42: =IF('Student DATA Entry'!I39="","",UPPER('Student DATA Entry'!I39)) ->  | J42: =IF('Student DATA Entry'!L39="","",UPPER('Student DATA Entry'!L39)) ->  | K42: =IF('Student DATA Entry'!J39="","",UPPER('Student DATA Entry'!J39)) ->  | CE42: =IF('School Profile'!#REF!="","",'School Profile'!#REF!) -> 
A43: =IF('Student DATA Entry'!A40="","",'Student DATA Entry'!A40) -> 37 | B43: =IF('Student DATA Entry'!B40="","",'Student DATA Entry'!B40) ->  | C43: =IF('Student DATA Entry'!C40="","",'Student DATA Entry'!C40) ->  | D43: =IF('Student DATA Entry'!D40="","",'Student DATA Entry'!D40) ->  | E43: =IF('Student DATA Entry'!E40="","",'Student DATA Entry'!E40) ->  | F43: =IF('Student DATA Entry'!K40="","",'Student DATA Entry'!K40) ->  | G43: =IF('Student DATA Entry'!G40="","",UPPER('Student DATA Entry'!G40)) ->  | H43: =IF('Student DATA Entry'!H40="","",UPPER('Student DATA Entry'!H40)) ->  | I43: =IF('Student DATA Entry'!I40="","",UPPER('Student DATA Entry'!I40)) ->  | J43: =IF('Student DATA Entry'!L40="","",UPPER('Student DATA Entry'!L40)) ->  | K43: =IF('Student DATA Entry'!J40="","",UPPER('Student DATA Entry'!J40)) ->  | CE43: =IF('School Profile'!#REF!="","",'School Profile'!#REF!) -> 
A44: =IF('Student DATA Entry'!A41="","",'Student DATA Entry'!A41) -> 38 | B44: =IF('Student DATA Entry'!B41="","",'Student DATA Entry'!B41) ->  | C44: =IF('Student DATA Entry'!C41="","",'Student DATA Entry'!C41) ->  | D44: =IF('Student DATA Entry'!D41="","",'Student DATA Entry'!D41) ->  | E44: =IF('Student DATA Entry'!E41="","",'Student DATA Entry'!E41) ->  | F44: =IF('Student DATA Entry'!K41="","",'Student DATA Entry'!K41) ->  | G44: =IF('Student DATA Entry'!G41="","",UPPER('Student DATA Entry'!G41)) ->  | H44: =IF('Student DATA Entry'!H41="","",UPPER('Student DATA Entry'!H41)) ->  | I44: =IF('Student DATA Entry'!I41="","",UPPER('Student DATA Entry'!I41)) ->  | J44: =IF('Student DATA Entry'!L41="","",UPPER('Student DATA Entry'!L41)) ->  | K44: =IF('Student DATA Entry'!J41="","",UPPER('Student DATA Entry'!J41)) ->  | CE44: =IF('School Profile'!#REF!="","",'School Profile'!#REF!) -> 
A45: =IF('Student DATA Entry'!A42="","",'Student DATA Entry'!A42) -> 39 | B45: =IF('Student DATA Entry'!B42="","",'Student DATA Entry'!B42) ->  | C45: =IF('Student DATA Entry'!C42="","",'Student DATA Entry'!C42) ->  | D45: =IF('Student DATA Entry'!D42="","",'Student DATA Entry'!D42) ->  | E45: =IF('Student DATA Entry'!E42="","",'Student DATA Entry'!E42) ->  | F45: =IF('Student DATA Entry'!K42="","",'Student DATA Entry'!K42) ->  | G45: =IF('Student DATA Entry'!G42="","",UPPER('Student DATA Entry'!G42)) ->  | H45: =IF('Student DATA Entry'!H42="","",UPPER('Student DATA Entry'!H42)) ->  | I45: =IF('Student DATA Entry'!I42="","",UPPER('Student DATA Entry'!I42)) ->  | J45: =IF('Student DATA Entry'!L42="","",UPPER('Student DATA Entry'!L42)) ->  | K45: =IF('Student DATA Entry'!J42="","",UPPER('Student DATA Entry'!J42)) ->  | CE45: =IF('School Profile'!#REF!="","",'School Profile'!#REF!) -> 
A46: =IF('Student DATA Entry'!A43="","",'Student DATA Entry'!A43) -> 40 | B46: =IF('Student DATA Entry'!B43="","",'Student DATA Entry'!B43) ->  | C46: =IF('Student DATA Entry'!C43="","",'Student DATA Entry'!C43) ->  | D46: =IF('Student DATA Entry'!D43="","",'Student DATA Entry'!D43) ->  | E46: =IF('Student DATA Entry'!E43="","",'Student DATA Entry'!E43) ->  | F46: =IF('Student DATA Entry'!K43="","",'Student DATA Entry'!K43) ->  | G46: =IF('Student DATA Entry'!G43="","",UPPER('Student DATA Entry'!G43)) ->  | H46: =IF('Student DATA Entry'!H43="","",UPPER('Student DATA Entry'!H43)) ->  | I46: =IF('Student DATA Entry'!I43="","",UPPER('Student DATA Entry'!I43)) ->  | J46: =IF('Student DATA Entry'!L43="","",UPPER('Student DATA Entry'!L43)) ->  | K46: =IF('Student DATA Entry'!J43="","",UPPER('Student DATA Entry'!J43)) -> 
A47: =IF('Student DATA Entry'!A44="","",'Student DATA Entry'!A44) -> 41 | B47: =IF('Student DATA Entry'!B44="","",'Student DATA Entry'!B44) ->  | C47: =IF('Student DATA Entry'!C44="","",'Student DATA Entry'!C44) ->  | D47: =IF('Student DATA Entry'!D44="","",'Student DATA Entry'!D44) ->  | E47: =IF('Student DATA Entry'!E44="","",'Student DATA Entry'!E44) ->  | F47: =IF('Student DATA Entry'!K44="","",'Student DATA Entry'!K44) ->  | G47: =IF('Student DATA Entry'!G44="","",UPPER('Student DATA Entry'!G44)) ->  | H47: =IF('Student DATA Entry'!H44="","",UPPER('Student DATA Entry'!H44)) ->  | I47: =IF('Student DATA Entry'!I44="","",UPPER('Student DATA Entry'!I44)) ->  | J47: =IF('Student DATA Entry'!L44="","",UPPER('Student DATA Entry'!L44)) ->  | K47: =IF('Student DATA Entry'!J44="","",UPPER('Student DATA Entry'!J44)) -> 
A48: =IF('Student DATA Entry'!A45="","",'Student DATA Entry'!A45) -> 42 | B48: =IF('Student DATA Entry'!B45="","",'Student DATA Entry'!B45) ->  | C48: =IF('Student DATA Entry'!C45="","",'Student DATA Entry'!C45) ->  | D48: =IF('Student DATA Entry'!D45="","",'Student DATA Entry'!D45) ->  | E48: =IF('Student DATA Entry'!E45="","",'Student DATA Entry'!E45) ->  | F48: =IF('Student DATA Entry'!K45="","",'Student DATA Entry'!K45) ->  | G48: =IF('Student DATA Entry'!G45="","",UPPER('Student DATA Entry'!G45)) ->  | H48: =IF('Student DATA Entry'!H45="","",UPPER('Student DATA Entry'!H45)) ->  | I48: =IF('Student DATA Entry'!I45="","",UPPER('Student DATA Entry'!I45)) ->  | J48: =IF('Student DATA Entry'!L45="","",UPPER('Student DATA Entry'!L45)) ->  | K48: =IF('Student DATA Entry'!J45="","",UPPER('Student DATA Entry'!J45)) -> 
A49: =IF('Student DATA Entry'!A46="","",'Student DATA Entry'!A46) -> 43 | B49: =IF('Student DATA Entry'!B46="","",'Student DATA Entry'!B46) ->  | C49: =IF('Student DATA Entry'!C46="","",'Student DATA Entry'!C46) ->  | D49: =IF('Student DATA Entry'!D46="","",'Student DATA Entry'!D46) ->  | E49: =IF('Student DATA Entry'!E46="","",'Student DATA Entry'!E46) ->  | F49: =IF('Student DATA Entry'!K46="","",'Student DATA Entry'!K46) ->  | G49: =IF('Student DATA Entry'!G46="","",UPPER('Student DATA Entry'!G46)) ->  | H49: =IF('Student DATA Entry'!H46="","",UPPER('Student DATA Entry'!H46)) ->  | I49: =IF('Student DATA Entry'!I46="","",UPPER('Student DATA Entry'!I46)) ->  | J49: =IF('Student DATA Entry'!L46="","",UPPER('Student DATA Entry'!L46)) ->  | K49: =IF('Student DATA Entry'!J46="","",UPPER('Student DATA Entry'!J46)) -> 
A50: =IF('Student DATA Entry'!A47="","",'Student DATA Entry'!A47) -> 44 | B50: =IF('Student DATA Entry'!B47="","",'Student DATA Entry'!B47) ->  | C50: =IF('Student DATA Entry'!C47="","",'Student DATA Entry'!C47) ->  | D50: =IF('Student DATA Entry'!D47="","",'Student DATA Entry'!D47) ->  | E50: =IF('Student DATA Entry'!E47="","",'Student DATA Entry'!E47) ->  | F50: =IF('Student DATA Entry'!K47="","",'Student DATA Entry'!K47) ->  | G50: =IF('Student DATA Entry'!G47="","",UPPER('Student DATA Entry'!G47)) ->  | H50: =IF('Student DATA Entry'!H47="","",UPPER('Student DATA Entry'!H47)) ->  | I50: =IF('Student DATA Entry'!I47="","",UPPER('Student DATA Entry'!I47)) ->  | J50: =IF('Student DATA Entry'!L47="","",UPPER('Student DATA Entry'!L47)) ->  | K50: =IF('Student DATA Entry'!J47="","",UPPER('Student DATA Entry'!J47)) -> 
A51: =IF('Student DATA Entry'!A48="","",'Student DATA Entry'!A48) -> 45 | B51: =IF('Student DATA Entry'!B48="","",'Student DATA Entry'!B48) ->  | C51: =IF('Student DATA Entry'!C48="","",'Student DATA Entry'!C48) ->  | D51: =IF('Student DATA Entry'!D48="","",'Student DATA Entry'!D48) ->  | E51: =IF('Student DATA Entry'!E48="","",'Student DATA Entry'!E48) ->  | F51: =IF('Student DATA Entry'!K48="","",'Student DATA Entry'!K48) ->  | G51: =IF('Student DATA Entry'!G48="","",UPPER('Student DATA Entry'!G48)) ->  | H51: =IF('Student DATA Entry'!H48="","",UPPER('Student DATA Entry'!H48)) ->  | I51: =IF('Student DATA Entry'!I48="","",UPPER('Student DATA Entry'!I48)) ->  | J51: =IF('Student DATA Entry'!L48="","",UPPER('Student DATA Entry'!L48)) ->  | K51: =IF('Student DATA Entry'!J48="","",UPPER('Student DATA Entry'!J48)) -> 
A52: =IF('Student DATA Entry'!A49="","",'Student DATA Entry'!A49) -> 46 | B52: =IF('Student DATA Entry'!B49="","",'Student DATA Entry'!B49) ->  | C52: =IF('Student DATA Entry'!C49="","",'Student DATA Entry'!C49) ->  | D52: =IF('Student DATA Entry'!D49="","",'Student DATA Entry'!D49) ->  | E52: =IF('Student DATA Entry'!E49="","",'Student DATA Entry'!E49) ->  | F52: =IF('Student DATA Entry'!K49="","",'Student DATA Entry'!K49) ->  | G52: =IF('Student DATA Entry'!G49="","",UPPER('Student DATA Entry'!G49)) ->  | H52: =IF('Student DATA Entry'!H49="","",UPPER('Student DATA Entry'!H49)) ->  | I52: =IF('Student DATA Entry'!I49="","",UPPER('Student DATA Entry'!I49)) ->  | J52: =IF('Student DATA Entry'!L49="","",UPPER('Student DATA Entry'!L49)) ->  | K52: =IF('Student DATA Entry'!J49="","",UPPER('Student DATA Entry'!J49)) -> 
A53: =IF('Student DATA Entry'!A50="","",'Student DATA Entry'!A50) -> 47 | B53: =IF('Student DATA Entry'!B50="","",'Student DATA Entry'!B50) ->  | C53: =IF('Student DATA Entry'!C50="","",'Student DATA Entry'!C50) ->  | D53: =IF('Student DATA Entry'!D50="","",'Student DATA Entry'!D50) ->  | E53: =IF('Student DATA Entry'!E50="","",'Student DATA Entry'!E50) ->  | F53: =IF('Student DATA Entry'!K50="","",'Student DATA Entry'!K50) ->  | G53: =IF('Student DATA Entry'!G50="","",UPPER('Student DATA Entry'!G50)) ->  | H53: =IF('Student DATA Entry'!H50="","",UPPER('Student DATA Entry'!H50)) ->  | I53: =IF('Student DATA Entry'!I50="","",UPPER('Student DATA Entry'!I50)) ->  | J53: =IF('Student DATA Entry'!L50="","",UPPER('Student DATA Entry'!L50)) ->  | K53: =IF('Student DATA Entry'!J50="","",UPPER('Student DATA Entry'!J50)) -> 
A54: =IF('Student DATA Entry'!A51="","",'Student DATA Entry'!A51) -> 48 | B54: =IF('Student DATA Entry'!B51="","",'Student DATA Entry'!B51) ->  | C54: =IF('Student DATA Entry'!C51="","",'Student DATA Entry'!C51) ->  | D54: =IF('Student DATA Entry'!D51="","",'Student DATA Entry'!D51) ->  | E54: =IF('Student DATA Entry'!E51="","",'Student DATA Entry'!E51) ->  | F54: =IF('Student DATA Entry'!K51="","",'Student DATA Entry'!K51) ->  | G54: =IF('Student DATA Entry'!G51="","",UPPER('Student DATA Entry'!G51)) ->  | H54: =IF('Student DATA Entry'!H51="","",UPPER('Student DATA Entry'!H51)) ->  | I54: =IF('Student DATA Entry'!I51="","",UPPER('Student DATA Entry'!I51)) ->  | J54: =IF('Student DATA Entry'!L51="","",UPPER('Student DATA Entry'!L51)) ->  | K54: =IF('Student DATA Entry'!J51="","",UPPER('Student DATA Entry'!J51)) -> 
A55: =IF('Student DATA Entry'!A52="","",'Student DATA Entry'!A52) -> 49 | B55: =IF('Student DATA Entry'!B52="","",'Student DATA Entry'!B52) ->  | C55: =IF('Student DATA Entry'!C52="","",'Student DATA Entry'!C52) ->  | D55: =IF('Student DATA Entry'!D52="","",'Student DATA Entry'!D52) ->  | E55: =IF('Student DATA Entry'!E52="","",'Student DATA Entry'!E52) ->  | F55: =IF('Student DATA Entry'!K52="","",'Student DATA Entry'!K52) ->  | G55: =IF('Student DATA Entry'!G52="","",UPPER('Student DATA Entry'!G52)) ->  | H55: =IF('Student DATA Entry'!H52="","",UPPER('Student DATA Entry'!H52)) ->  | I55: =IF('Student DATA Entry'!I52="","",UPPER('Student DATA Entry'!I52)) ->  | J55: =IF('Student DATA Entry'!L52="","",UPPER('Student DATA Entry'!L52)) ->  | K55: =IF('Student DATA Entry'!J52="","",UPPER('Student DATA Entry'!J52)) -> 
A56: =IF('Student DATA Entry'!A53="","",'Student DATA Entry'!A53) -> 50 | B56: =IF('Student DATA Entry'!B53="","",'Student DATA Entry'!B53) ->  | C56: =IF('Student DATA Entry'!C53="","",'Student DATA Entry'!C53) ->  | D56: =IF('Student DATA Entry'!D53="","",'Student DATA Entry'!D53) ->  | E56: =IF('Student DATA Entry'!E53="","",'Student DATA Entry'!E53) ->  | F56: =IF('Student DATA Entry'!K53="","",'Student DATA Entry'!K53) ->  | G56: =IF('Student DATA Entry'!G53="","",UPPER('Student DATA Entry'!G53)) ->  | H56: =IF('Student DATA Entry'!H53="","",UPPER('Student DATA Entry'!H53)) ->  | I56: =IF('Student DATA Entry'!I53="","",UPPER('Student DATA Entry'!I53)) ->  | J56: =IF('Student DATA Entry'!L53="","",UPPER('Student DATA Entry'!L53)) ->  | K56: =IF('Student DATA Entry'!J53="","",UPPER('Student DATA Entry'!J53)) -> 
A57: =IF('Student DATA Entry'!A54="","",'Student DATA Entry'!A54) -> 51 | B57: =IF('Student DATA Entry'!B54="","",'Student DATA Entry'!B54) ->  | C57: =IF('Student DATA Entry'!C54="","",'Student DATA Entry'!C54) ->  | D57: =IF('Student DATA Entry'!D54="","",'Student DATA Entry'!D54) ->  | E57: =IF('Student DATA Entry'!E54="","",'Student DATA Entry'!E54) ->  | F57: =IF('Student DATA Entry'!K54="","",'Student DATA Entry'!K54) ->  | G57: =IF('Student DATA Entry'!G54="","",UPPER('Student DATA Entry'!G54)) ->  | H57: =IF('Student DATA Entry'!H54="","",UPPER('Student DATA Entry'!H54)) ->  | I57: =IF('Student DATA Entry'!I54="","",UPPER('Student DATA Entry'!I54)) ->  | J57: =IF('Student DATA Entry'!L54="","",UPPER('Student DATA Entry'!L54)) ->  | K57: =IF('Student DATA Entry'!J54="","",UPPER('Student DATA Entry'!J54)) -> 
A58: =IF('Student DATA Entry'!A55="","",'Student DATA Entry'!A55) -> 52 | B58: =IF('Student DATA Entry'!B55="","",'Student DATA Entry'!B55) ->  | C58: =IF('Student DATA Entry'!C55="","",'Student DATA Entry'!C55) ->  | D58: =IF('Student DATA Entry'!D55="","",'Student DATA Entry'!D55) ->  | E58: =IF('Student DATA Entry'!E55="","",'Student DATA Entry'!E55) ->  | F58: =IF('Student DATA Entry'!K55="","",'Student DATA Entry'!K55) ->  | G58: =IF('Student DATA Entry'!G55="","",UPPER('Student DATA Entry'!G55)) ->  | H58: =IF('Student DATA Entry'!H55="","",UPPER('Student DATA Entry'!H55)) ->  | I58: =IF('Student DATA Entry'!I55="","",UPPER('Student DATA Entry'!I55)) ->  | J58: =IF('Student DATA Entry'!L55="","",UPPER('Student DATA Entry'!L55)) ->  | K58: =IF('Student DATA Entry'!J55="","",UPPER('Student DATA Entry'!J55)) -> 
A59: =IF('Student DATA Entry'!A56="","",'Student DATA Entry'!A56) -> 53 | B59: =IF('Student DATA Entry'!B56="","",'Student DATA Entry'!B56) ->  | C59: =IF('Student DATA Entry'!C56="","",'Student DATA Entry'!C56) ->  | D59: =IF('Student DATA Entry'!D56="","",'Student DATA Entry'!D56) ->  | E59: =IF('Student DATA Entry'!E56="","",'Student DATA Entry'!E56) ->  | F59: =IF('Student DATA Entry'!K56="","",'Student DATA Entry'!K56) ->  | G59: =IF('Student DATA Entry'!G56="","",UPPER('Student DATA Entry'!G56)) ->  | H59: =IF('Student DATA Entry'!H56="","",UPPER('Student DATA Entry'!H56)) ->  | I59: =IF('Student DATA Entry'!I56="","",UPPER('Student DATA Entry'!I56)) ->  | J59: =IF('Student DATA Entry'!L56="","",UPPER('Student DATA Entry'!L56)) ->  | K59: =IF('Student DATA Entry'!J56="","",UPPER('Student DATA Entry'!J56)) -> 
A60: =IF('Student DATA Entry'!A57="","",'Student DATA Entry'!A57) -> 54 | B60: =IF('Student DATA Entry'!B57="","",'Student DATA Entry'!B57) ->  | C60: =IF('Student DATA Entry'!C57="","",'Student DATA Entry'!C57) ->  | D60: =IF('Student DATA Entry'!D57="","",'Student DATA Entry'!D57) ->  | E60: =IF('Student DATA Entry'!E57="","",'Student DATA Entry'!E57) ->  | F60: =IF('Student DATA Entry'!K57="","",'Student DATA Entry'!K57) ->  | G60: =IF('Student DATA Entry'!G57="","",UPPER('Student DATA Entry'!G57)) ->  | H60: =IF('Student DATA Entry'!H57="","",UPPER('Student DATA Entry'!H57)) ->  | I60: =IF('Student DATA Entry'!I57="","",UPPER('Student DATA Entry'!I57)) ->  | J60: =IF('Student DATA Entry'!L57="","",UPPER('Student DATA Entry'!L57)) ->  | K60: =IF('Student DATA Entry'!J57="","",UPPER('Student DATA Entry'!J57)) -> 
A61: =IF('Student DATA Entry'!A58="","",'Student DATA Entry'!A58) -> 55 | B61: =IF('Student DATA Entry'!B58="","",'Student DATA Entry'!B58) ->  | C61: =IF('Student DATA Entry'!C58="","",'Student DATA Entry'!C58) ->  | D61: =IF('Student DATA Entry'!D58="","",'Student DATA Entry'!D58) ->  | E61: =IF('Student DATA Entry'!E58="","",'Student DATA Entry'!E58) ->  | F61: =IF('Student DATA Entry'!K58="","",'Student DATA Entry'!K58) ->  | G61: =IF('Student DATA Entry'!G58="","",UPPER('Student DATA Entry'!G58)) ->  | H61: =IF('Student DATA Entry'!H58="","",UPPER('Student DATA Entry'!H58)) ->  | I61: =IF('Student DATA Entry'!I58="","",UPPER('Student DATA Entry'!I58)) ->  | J61: =IF('Student DATA Entry'!L58="","",UPPER('Student DATA Entry'!L58)) ->  | K61: =IF('Student DATA Entry'!J58="","",UPPER('Student DATA Entry'!J58)) -> 
A62: =IF('Student DATA Entry'!A59="","",'Student DATA Entry'!A59) -> 56 | B62: =IF('Student DATA Entry'!B59="","",'Student DATA Entry'!B59) ->  | C62: =IF('Student DATA Entry'!C59="","",'Student DATA Entry'!C59) ->  | D62: =IF('Student DATA Entry'!D59="","",'Student DATA Entry'!D59) ->  | E62: =IF('Student DATA Entry'!E59="","",'Student DATA Entry'!E59) ->  | F62: =IF('Student DATA Entry'!K59="","",'Student DATA Entry'!K59) ->  | G62: =IF('Student DATA Entry'!G59="","",UPPER('Student DATA Entry'!G59)) ->  | H62: =IF('Student DATA Entry'!H59="","",UPPER('Student DATA Entry'!H59)) ->  | I62: =IF('Student DATA Entry'!I59="","",UPPER('Student DATA Entry'!I59)) ->  | J62: =IF('Student DATA Entry'!L59="","",UPPER('Student DATA Entry'!L59)) ->  | K62: =IF('Student DATA Entry'!J59="","",UPPER('Student DATA Entry'!J59)) -> 
A63: =IF('Student DATA Entry'!A60="","",'Student DATA Entry'!A60) -> 57 | B63: =IF('Student DATA Entry'!B60="","",'Student DATA Entry'!B60) ->  | C63: =IF('Student DATA Entry'!C60="","",'Student DATA Entry'!C60) ->  | D63: =IF('Student DATA Entry'!D60="","",'Student DATA Entry'!D60) ->  | E63: =IF('Student DATA Entry'!E60="","",'Student DATA Entry'!E60) ->  | F63: =IF('Student DATA Entry'!K60="","",'Student DATA Entry'!K60) ->  | G63: =IF('Student DATA Entry'!G60="","",UPPER('Student DATA Entry'!G60)) ->  | H63: =IF('Student DATA Entry'!H60="","",UPPER('Student DATA Entry'!H60)) ->  | I63: =IF('Student DATA Entry'!I60="","",UPPER('Student DATA Entry'!I60)) ->  | J63: =IF('Student DATA Entry'!L60="","",UPPER('Student DATA Entry'!L60)) ->  | K63: =IF('Student DATA Entry'!J60="","",UPPER('Student DATA Entry'!J60)) -> 
A64: =IF('Student DATA Entry'!A61="","",'Student DATA Entry'!A61) -> 58 | B64: =IF('Student DATA Entry'!B61="","",'Student DATA Entry'!B61) ->  | C64: =IF('Student DATA Entry'!C61="","",'Student DATA Entry'!C61) ->  | D64: =IF('Student DATA Entry'!D61="","",'Student DATA Entry'!D61) ->  | E64: =IF('Student DATA Entry'!E61="","",'Student DATA Entry'!E61) ->  | F64: =IF('Student DATA Entry'!K61="","",'Student DATA Entry'!K61) ->  | G64: =IF('Student DATA Entry'!G61="","",UPPER('Student DATA Entry'!G61)) ->  | H64: =IF('Student DATA Entry'!H61="","",UPPER('Student DATA Entry'!H61)) ->  | I64: =IF('Student DATA Entry'!I61="","",UPPER('Student DATA Entry'!I61)) ->  | J64: =IF('Student DATA Entry'!L61="","",UPPER('Student DATA Entry'!L61)) ->  | K64: =IF('Student DATA Entry'!J61="","",UPPER('Student DATA Entry'!J61)) -> 
A65: =IF('Student DATA Entry'!A62="","",'Student DATA Entry'!A62) -> 59 | B65: =IF('Student DATA Entry'!B62="","",'Student DATA Entry'!B62) ->  | C65: =IF('Student DATA Entry'!C62="","",'Student DATA Entry'!C62) ->  | D65: =IF('Student DATA Entry'!D62="","",'Student DATA Entry'!D62) ->  | E65: =IF('Student DATA Entry'!E62="","",'Student DATA Entry'!E62) ->  | F65: =IF('Student DATA Entry'!K62="","",'Student DATA Entry'!K62) ->  | G65: =IF('Student DATA Entry'!G62="","",UPPER('Student DATA Entry'!G62)) ->  | H65: =IF('Student DATA Entry'!H62="","",UPPER('Student DATA Entry'!H62)) ->  | I65: =IF('Student DATA Entry'!I62="","",UPPER('Student DATA Entry'!I62)) ->  | J65: =IF('Student DATA Entry'!L62="","",UPPER('Student DATA Entry'!L62)) ->  | K65: =IF('Student DATA Entry'!J62="","",UPPER('Student DATA Entry'!J62)) -> 
A66: =IF('Student DATA Entry'!A63="","",'Student DATA Entry'!A63) -> 60 | B66: =IF('Student DATA Entry'!B63="","",'Student DATA Entry'!B63) ->  | C66: =IF('Student DATA Entry'!C63="","",'Student DATA Entry'!C63) ->  | D66: =IF('Student DATA Entry'!D63="","",'Student DATA Entry'!D63) ->  | E66: =IF('Student DATA Entry'!E63="","",'Student DATA Entry'!E63) ->  | F66: =IF('Student DATA Entry'!K63="","",'Student DATA Entry'!K63) ->  | G66: =IF('Student DATA Entry'!G63="","",UPPER('Student DATA Entry'!G63)) ->  | H66: =IF('Student DATA Entry'!H63="","",UPPER('Student DATA Entry'!H63)) ->  | I66: =IF('Student DATA Entry'!I63="","",UPPER('Student DATA Entry'!I63)) ->  | J66: =IF('Student DATA Entry'!L63="","",UPPER('Student DATA Entry'!L63)) ->  | K66: =IF('Student DATA Entry'!J63="","",UPPER('Student DATA Entry'!J63)) -> 
A67: =IF('Student DATA Entry'!A64="","",'Student DATA Entry'!A64) -> 61 | B67: =IF('Student DATA Entry'!B64="","",'Student DATA Entry'!B64) ->  | C67: =IF('Student DATA Entry'!C64="","",'Student DATA Entry'!C64) ->  | D67: =IF('Student DATA Entry'!D64="","",'Student DATA Entry'!D64) ->  | E67: =IF('Student DATA Entry'!E64="","",'Student DATA Entry'!E64) ->  | F67: =IF('Student DATA Entry'!K64="","",'Student DATA Entry'!K64) ->  | G67: =IF('Student DATA Entry'!G64="","",UPPER('Student DATA Entry'!G64)) ->  | H67: =IF('Student DATA Entry'!H64="","",UPPER('Student DATA Entry'!H64)) ->  | I67: =IF('Student DATA Entry'!I64="","",UPPER('Student DATA Entry'!I64)) ->  | J67: =IF('Student DATA Entry'!L64="","",UPPER('Student DATA Entry'!L64)) ->  | K67: =IF('Student DATA Entry'!J64="","",UPPER('Student DATA Entry'!J64)) -> 
A68: =IF('Student DATA Entry'!A65="","",'Student DATA Entry'!A65) -> 62 | B68: =IF('Student DATA Entry'!B65="","",'Student DATA Entry'!B65) ->  | C68: =IF('Student DATA Entry'!C65="","",'Student DATA Entry'!C65) ->  | D68: =IF('Student DATA Entry'!D65="","",'Student DATA Entry'!D65) ->  | E68: =IF('Student DATA Entry'!E65="","",'Student DATA Entry'!E65) ->  | F68: =IF('Student DATA Entry'!K65="","",'Student DATA Entry'!K65) ->  | G68: =IF('Student DATA Entry'!G65="","",UPPER('Student DATA Entry'!G65)) ->  | H68: =IF('Student DATA Entry'!H65="","",UPPER('Student DATA Entry'!H65)) ->  | I68: =IF('Student DATA Entry'!I65="","",UPPER('Student DATA Entry'!I65)) ->  | J68: =IF('Student DATA Entry'!L65="","",UPPER('Student DATA Entry'!L65)) ->  | K68: =IF('Student DATA Entry'!J65="","",UPPER('Student DATA Entry'!J65)) -> 
A69: =IF('Student DATA Entry'!A66="","",'Student DATA Entry'!A66) -> 63 | B69: =IF('Student DATA Entry'!B66="","",'Student DATA Entry'!B66) ->  | C69: =IF('Student DATA Entry'!C66="","",'Student DATA Entry'!C66) ->  | D69: =IF('Student DATA Entry'!D66="","",'Student DATA Entry'!D66) ->  | E69: =IF('Student DATA Entry'!E66="","",'Student DATA Entry'!E66) ->  | F69: =IF('Student DATA Entry'!K66="","",'Student DATA Entry'!K66) ->  | G69: =IF('Student DATA Entry'!G66="","",UPPER('Student DATA Entry'!G66)) ->  | H69: =IF('Student DATA Entry'!H66="","",UPPER('Student DATA Entry'!H66)) ->  | I69: =IF('Student DATA Entry'!I66="","",UPPER('Student DATA Entry'!I66)) ->  | J69: =IF('Student DATA Entry'!L66="","",UPPER('Student DATA Entry'!L66)) ->  | K69: =IF('Student DATA Entry'!J66="","",UPPER('Student DATA Entry'!J66)) -> 
A70: =IF('Student DATA Entry'!A67="","",'Student DATA Entry'!A67) -> 64 | B70: =IF('Student DATA Entry'!B67="","",'Student DATA Entry'!B67) ->  | C70: =IF('Student DATA Entry'!C67="","",'Student DATA Entry'!C67) ->  | D70: =IF('Student DATA Entry'!D67="","",'Student DATA Entry'!D67) ->  | E70: =IF('Student DATA Entry'!E67="","",'Student DATA Entry'!E67) ->  | F70: =IF('Student DATA Entry'!K67="","",'Student DATA Entry'!K67) ->  | G70: =IF('Student DATA Entry'!G67="","",UPPER('Student DATA Entry'!G67)) ->  | H70: =IF('Student DATA Entry'!H67="","",UPPER('Student DATA Entry'!H67)) ->  | I70: =IF('Student DATA Entry'!I67="","",UPPER('Student DATA Entry'!I67)) ->  | J70: =IF('Student DATA Entry'!L67="","",UPPER('Student DATA Entry'!L67)) ->  | K70: =IF('Student DATA Entry'!J67="","",UPPER('Student DATA Entry'!J67)) -> 
A71: =IF('Student DATA Entry'!A68="","",'Student DATA Entry'!A68) -> 65 | B71: =IF('Student DATA Entry'!B68="","",'Student DATA Entry'!B68) ->  | C71: =IF('Student DATA Entry'!C68="","",'Student DATA Entry'!C68) ->  | D71: =IF('Student DATA Entry'!D68="","",'Student DATA Entry'!D68) ->  | E71: =IF('Student DATA Entry'!E68="","",'Student DATA Entry'!E68) ->  | F71: =IF('Student DATA Entry'!K68="","",'Student DATA Entry'!K68) ->  | G71: =IF('Student DATA Entry'!G68="","",UPPER('Student DATA Entry'!G68)) ->  | H71: =IF('Student DATA Entry'!H68="","",UPPER('Student DATA Entry'!H68)) ->  | I71: =IF('Student DATA Entry'!I68="","",UPPER('Student DATA Entry'!I68)) ->  | J71: =IF('Student DATA Entry'!L68="","",UPPER('Student DATA Entry'!L68)) ->  | K71: =IF('Student DATA Entry'!J68="","",UPPER('Student DATA Entry'!J68)) -> 
A72: =IF('Student DATA Entry'!A69="","",'Student DATA Entry'!A69) -> 66 | B72: =IF('Student DATA Entry'!B69="","",'Student DATA Entry'!B69) ->  | C72: =IF('Student DATA Entry'!C69="","",'Student DATA Entry'!C69) ->  | D72: =IF('Student DATA Entry'!D69="","",'Student DATA Entry'!D69) ->  | E72: =IF('Student DATA Entry'!E69="","",'Student DATA Entry'!E69) ->  | F72: =IF('Student DATA Entry'!K69="","",'Student DATA Entry'!K69) ->  | G72: =IF('Student DATA Entry'!G69="","",UPPER('Student DATA Entry'!G69)) ->  | H72: =IF('Student DATA Entry'!H69="","",UPPER('Student DATA Entry'!H69)) ->  | I72: =IF('Student DATA Entry'!I69="","",UPPER('Student DATA Entry'!I69)) ->  | J72: =IF('Student DATA Entry'!L69="","",UPPER('Student DATA Entry'!L69)) ->  | K72: =IF('Student DATA Entry'!J69="","",UPPER('Student DATA Entry'!J69)) -> 
A73: =IF('Student DATA Entry'!A70="","",'Student DATA Entry'!A70) -> 67 | B73: =IF('Student DATA Entry'!B70="","",'Student DATA Entry'!B70) ->  | C73: =IF('Student DATA Entry'!C70="","",'Student DATA Entry'!C70) ->  | D73: =IF('Student DATA Entry'!D70="","",'Student DATA Entry'!D70) ->  | E73: =IF('Student DATA Entry'!E70="","",'Student DATA Entry'!E70) ->  | F73: =IF('Student DATA Entry'!K70="","",'Student DATA Entry'!K70) ->  | G73: =IF('Student DATA Entry'!G70="","",UPPER('Student DATA Entry'!G70)) ->  | H73: =IF('Student DATA Entry'!H70="","",UPPER('Student DATA Entry'!H70)) ->  | I73: =IF('Student DATA Entry'!I70="","",UPPER('Student DATA Entry'!I70)) ->  | J73: =IF('Student DATA Entry'!L70="","",UPPER('Student DATA Entry'!L70)) ->  | K73: =IF('Student DATA Entry'!J70="","",UPPER('Student DATA Entry'!J70)) -> 
A74: =IF('Student DATA Entry'!A71="","",'Student DATA Entry'!A71) -> 68 | B74: =IF('Student DATA Entry'!B71="","",'Student DATA Entry'!B71) ->  | C74: =IF('Student DATA Entry'!C71="","",'Student DATA Entry'!C71) ->  | D74: =IF('Student DATA Entry'!D71="","",'Student DATA Entry'!D71) ->  | E74: =IF('Student DATA Entry'!E71="","",'Student DATA Entry'!E71) ->  | F74: =IF('Student DATA Entry'!K71="","",'Student DATA Entry'!K71) ->  | G74: =IF('Student DATA Entry'!G71="","",UPPER('Student DATA Entry'!G71)) ->  | H74: =IF('Student DATA Entry'!H71="","",UPPER('Student DATA Entry'!H71)) ->  | I74: =IF('Student DATA Entry'!I71="","",UPPER('Student DATA Entry'!I71)) ->  | J74: =IF('Student DATA Entry'!L71="","",UPPER('Student DATA Entry'!L71)) ->  | K74: =IF('Student DATA Entry'!J71="","",UPPER('Student DATA Entry'!J71)) -> 
A75: =IF('Student DATA Entry'!A72="","",'Student DATA Entry'!A72) -> 69 | B75: =IF('Student DATA Entry'!B72="","",'Student DATA Entry'!B72) ->  | C75: =IF('Student DATA Entry'!C72="","",'Student DATA Entry'!C72) ->  | D75: =IF('Student DATA Entry'!D72="","",'Student DATA Entry'!D72) ->  | E75: =IF('Student DATA Entry'!E72="","",'Student DATA Entry'!E72) ->  | F75: =IF('Student DATA Entry'!K72="","",'Student DATA Entry'!K72) ->  | G75: =IF('Student DATA Entry'!G72="","",UPPER('Student DATA Entry'!G72)) ->  | H75: =IF('Student DATA Entry'!H72="","",UPPER('Student DATA Entry'!H72)) ->  | I75: =IF('Student DATA Entry'!I72="","",UPPER('Student DATA Entry'!I72)) ->  | J75: =IF('Student DATA Entry'!L72="","",UPPER('Student DATA Entry'!L72)) ->  | K75: =IF('Student DATA Entry'!J72="","",UPPER('Student DATA Entry'!J72)) -> 
A76: =IF('Student DATA Entry'!A73="","",'Student DATA Entry'!A73) -> 70 | B76: =IF('Student DATA Entry'!B73="","",'Student DATA Entry'!B73) ->  | C76: =IF('Student DATA Entry'!C73="","",'Student DATA Entry'!C73) ->  | D76: =IF('Student DATA Entry'!D73="","",'Student DATA Entry'!D73) ->  | E76: =IF('Student DATA Entry'!E73="","",'Student DATA Entry'!E73) ->  | F76: =IF('Student DATA Entry'!K73="","",'Student DATA Entry'!K73) ->  | G76: =IF('Student DATA Entry'!G73="","",UPPER('Student DATA Entry'!G73)) ->  | H76: =IF('Student DATA Entry'!H73="","",UPPER('Student DATA Entry'!H73)) ->  | I76: =IF('Student DATA Entry'!I73="","",UPPER('Student DATA Entry'!I73)) ->  | J76: =IF('Student DATA Entry'!L73="","",UPPER('Student DATA Entry'!L73)) ->  | K76: =IF('Student DATA Entry'!J73="","",UPPER('Student DATA Entry'!J73)) -> 
A77: =IF('Student DATA Entry'!A74="","",'Student DATA Entry'!A74) -> 71 | B77: =IF('Student DATA Entry'!B74="","",'Student DATA Entry'!B74) ->  | C77: =IF('Student DATA Entry'!C74="","",'Student DATA Entry'!C74) ->  | D77: =IF('Student DATA Entry'!D74="","",'Student DATA Entry'!D74) ->  | E77: =IF('Student DATA Entry'!E74="","",'Student DATA Entry'!E74) ->  | F77: =IF('Student DATA Entry'!K74="","",'Student DATA Entry'!K74) ->  | G77: =IF('Student DATA Entry'!G74="","",UPPER('Student DATA Entry'!G74)) ->  | H77: =IF('Student DATA Entry'!H74="","",UPPER('Student DATA Entry'!H74)) ->  | I77: =IF('Student DATA Entry'!I74="","",UPPER('Student DATA Entry'!I74)) ->  | J77: =IF('Student DATA Entry'!L74="","",UPPER('Student DATA Entry'!L74)) ->  | K77: =IF('Student DATA Entry'!J74="","",UPPER('Student DATA Entry'!J74)) -> 
A78: =IF('Student DATA Entry'!A75="","",'Student DATA Entry'!A75) -> 72 | B78: =IF('Student DATA Entry'!B75="","",'Student DATA Entry'!B75) ->  | C78: =IF('Student DATA Entry'!C75="","",'Student DATA Entry'!C75) ->  | D78: =IF('Student DATA Entry'!D75="","",'Student DATA Entry'!D75) ->  | E78: =IF('Student DATA Entry'!E75="","",'Student DATA Entry'!E75) ->  | F78: =IF('Student DATA Entry'!K75="","",'Student DATA Entry'!K75) ->  | G78: =IF('Student DATA Entry'!G75="","",UPPER('Student DATA Entry'!G75)) ->  | H78: =IF('Student DATA Entry'!H75="","",UPPER('Student DATA Entry'!H75)) ->  | I78: =IF('Student DATA Entry'!I75="","",UPPER('Student DATA Entry'!I75)) ->  | J78: =IF('Student DATA Entry'!L75="","",UPPER('Student DATA Entry'!L75)) ->  | K78: =IF('Student DATA Entry'!J75="","",UPPER('Student DATA Entry'!J75)) -> 
A79: =IF('Student DATA Entry'!A76="","",'Student DATA Entry'!A76) -> 73 | B79: =IF('Student DATA Entry'!B76="","",'Student DATA Entry'!B76) ->  | C79: =IF('Student DATA Entry'!C76="","",'Student DATA Entry'!C76) ->  | D79: =IF('Student DATA Entry'!D76="","",'Student DATA Entry'!D76) ->  | E79: =IF('Student DATA Entry'!E76="","",'Student DATA Entry'!E76) ->  | F79: =IF('Student DATA Entry'!K76="","",'Student DATA Entry'!K76) ->  | G79: =IF('Student DATA Entry'!G76="","",UPPER('Student DATA Entry'!G76)) ->  | H79: =IF('Student DATA Entry'!H76="","",UPPER('Student DATA Entry'!H76)) ->  | I79: =IF('Student DATA Entry'!I76="","",UPPER('Student DATA Entry'!I76)) ->  | J79: =IF('Student DATA Entry'!L76="","",UPPER('Student DATA Entry'!L76)) ->  | K79: =IF('Student DATA Entry'!J76="","",UPPER('Student DATA Entry'!J76)) -> 
A80: =IF('Student DATA Entry'!A77="","",'Student DATA Entry'!A77) -> 74 | B80: =IF('Student DATA Entry'!B77="","",'Student DATA Entry'!B77) ->  | C80: =IF('Student DATA Entry'!C77="","",'Student DATA Entry'!C77) ->  | D80: =IF('Student DATA Entry'!D77="","",'Student DATA Entry'!D77) ->  | E80: =IF('Student DATA Entry'!E77="","",'Student DATA Entry'!E77) ->  | F80: =IF('Student DATA Entry'!K77="","",'Student DATA Entry'!K77) ->  | G80: =IF('Student DATA Entry'!G77="","",UPPER('Student DATA Entry'!G77)) ->  | H80: =IF('Student DATA Entry'!H77="","",UPPER('Student DATA Entry'!H77)) ->  | I80: =IF('Student DATA Entry'!I77="","",UPPER('Student DATA Entry'!I77)) ->  | J80: =IF('Student DATA Entry'!L77="","",UPPER('Student DATA Entry'!L77)) ->  | K80: =IF('Student DATA Entry'!J77="","",UPPER('Student DATA Entry'!J77)) -> 
A81: =IF('Student DATA Entry'!A78="","",'Student DATA Entry'!A78) -> 75 | B81: =IF('Student DATA Entry'!B78="","",'Student DATA Entry'!B78) ->  | C81: =IF('Student DATA Entry'!C78="","",'Student DATA Entry'!C78) ->  | D81: =IF('Student DATA Entry'!D78="","",'Student DATA Entry'!D78) ->  | E81: =IF('Student DATA Entry'!E78="","",'Student DATA Entry'!E78) ->  | F81: =IF('Student DATA Entry'!K78="","",'Student DATA Entry'!K78) ->  | G81: =IF('Student DATA Entry'!G78="","",UPPER('Student DATA Entry'!G78)) ->  | H81: =IF('Student DATA Entry'!H78="","",UPPER('Student DATA Entry'!H78)) ->  | I81: =IF('Student DATA Entry'!I78="","",UPPER('Student DATA Entry'!I78)) ->  | J81: =IF('Student DATA Entry'!L78="","",UPPER('Student DATA Entry'!L78)) ->  | K81: =IF('Student DATA Entry'!J78="","",UPPER('Student DATA Entry'!J78)) -> 
A82: =IF('Student DATA Entry'!A79="","",'Student DATA Entry'!A79) -> 76 | B82: =IF('Student DATA Entry'!B79="","",'Student DATA Entry'!B79) ->  | C82: =IF('Student DATA Entry'!C79="","",'Student DATA Entry'!C79) ->  | D82: =IF('Student DATA Entry'!D79="","",'Student DATA Entry'!D79) ->  | E82: =IF('Student DATA Entry'!E79="","",'Student DATA Entry'!E79) ->  | F82: =IF('Student DATA Entry'!K79="","",'Student DATA Entry'!K79) ->  | G82: =IF('Student DATA Entry'!G79="","",UPPER('Student DATA Entry'!G79)) ->  | H82: =IF('Student DATA Entry'!H79="","",UPPER('Student DATA Entry'!H79)) ->  | I82: =IF('Student DATA Entry'!I79="","",UPPER('Student DATA Entry'!I79)) ->  | J82: =IF('Student DATA Entry'!L79="","",UPPER('Student DATA Entry'!L79)) ->  | K82: =IF('Student DATA Entry'!J79="","",UPPER('Student DATA Entry'!J79)) -> 
A83: =IF('Student DATA Entry'!A80="","",'Student DATA Entry'!A80) -> 77 | B83: =IF('Student DATA Entry'!B80="","",'Student DATA Entry'!B80) ->  | C83: =IF('Student DATA Entry'!C80="","",'Student DATA Entry'!C80) ->  | D83: =IF('Student DATA Entry'!D80="","",'Student DATA Entry'!D80) ->  | E83: =IF('Student DATA Entry'!E80="","",'Student DATA Entry'!E80) ->  | F83: =IF('Student DATA Entry'!K80="","",'Student DATA Entry'!K80) ->  | G83: =IF('Student DATA Entry'!G80="","",UPPER('Student DATA Entry'!G80)) ->  | H83: =IF('Student DATA Entry'!H80="","",UPPER('Student DATA Entry'!H80)) ->  | I83: =IF('Student DATA Entry'!I80="","",UPPER('Student DATA Entry'!I80)) ->  | J83: =IF('Student DATA Entry'!L80="","",UPPER('Student DATA Entry'!L80)) ->  | K83: =IF('Student DATA Entry'!J80="","",UPPER('Student DATA Entry'!J80)) -> 
A84: =IF('Student DATA Entry'!A81="","",'Student DATA Entry'!A81) -> 78 | B84: =IF('Student DATA Entry'!B81="","",'Student DATA Entry'!B81) ->  | C84: =IF('Student DATA Entry'!C81="","",'Student DATA Entry'!C81) ->  | D84: =IF('Student DATA Entry'!D81="","",'Student DATA Entry'!D81) ->  | E84: =IF('Student DATA Entry'!E81="","",'Student DATA Entry'!E81) ->  | F84: =IF('Student DATA Entry'!K81="","",'Student DATA Entry'!K81) ->  | G84: =IF('Student DATA Entry'!G81="","",UPPER('Student DATA Entry'!G81)) ->  | H84: =IF('Student DATA Entry'!H81="","",UPPER('Student DATA Entry'!H81)) ->  | I84: =IF('Student DATA Entry'!I81="","",UPPER('Student DATA Entry'!I81)) ->  | J84: =IF('Student DATA Entry'!L81="","",UPPER('Student DATA Entry'!L81)) ->  | K84: =IF('Student DATA Entry'!J81="","",UPPER('Student DATA Entry'!J81)) -> 
A85: =IF('Student DATA Entry'!A82="","",'Student DATA Entry'!A82) -> 79 | B85: =IF('Student DATA Entry'!B82="","",'Student DATA Entry'!B82) ->  | C85: =IF('Student DATA Entry'!C82="","",'Student DATA Entry'!C82) ->  | D85: =IF('Student DATA Entry'!D82="","",'Student DATA Entry'!D82) ->  | E85: =IF('Student DATA Entry'!E82="","",'Student DATA Entry'!E82) ->  | F85: =IF('Student DATA Entry'!K82="","",'Student DATA Entry'!K82) ->  | G85: =IF('Student DATA Entry'!G82="","",UPPER('Student DATA Entry'!G82)) ->  | H85: =IF('Student DATA Entry'!H82="","",UPPER('Student DATA Entry'!H82)) ->  | I85: =IF('Student DATA Entry'!I82="","",UPPER('Student DATA Entry'!I82)) ->  | J85: =IF('Student DATA Entry'!L82="","",UPPER('Student DATA Entry'!L82)) ->  | K85: =IF('Student DATA Entry'!J82="","",UPPER('Student DATA Entry'!J82)) -> 
A86: =IF('Student DATA Entry'!A83="","",'Student DATA Entry'!A83) -> 80 | B86: =IF('Student DATA Entry'!B83="","",'Student DATA Entry'!B83) ->  | C86: =IF('Student DATA Entry'!C83="","",'Student DATA Entry'!C83) ->  | D86: =IF('Student DATA Entry'!D83="","",'Student DATA Entry'!D83) ->  | E86: =IF('Student DATA Entry'!E83="","",'Student DATA Entry'!E83) ->  | F86: =IF('Student DATA Entry'!K83="","",'Student DATA Entry'!K83) ->  | G86: =IF('Student DATA Entry'!G83="","",UPPER('Student DATA Entry'!G83)) ->  | H86: =IF('Student DATA Entry'!H83="","",UPPER('Student DATA Entry'!H83)) ->  | I86: =IF('Student DATA Entry'!I83="","",UPPER('Student DATA Entry'!I83)) ->  | J86: =IF('Student DATA Entry'!L83="","",UPPER('Student DATA Entry'!L83)) ->  | K86: =IF('Student DATA Entry'!J83="","",UPPER('Student DATA Entry'!J83)) -> 
A87: =IF('Student DATA Entry'!A84="","",'Student DATA Entry'!A84) -> 81 | B87: =IF('Student DATA Entry'!B84="","",'Student DATA Entry'!B84) ->  | C87: =IF('Student DATA Entry'!C84="","",'Student DATA Entry'!C84) ->  | D87: =IF('Student DATA Entry'!D84="","",'Student DATA Entry'!D84) ->  | E87: =IF('Student DATA Entry'!E84="","",'Student DATA Entry'!E84) ->  | F87: =IF('Student DATA Entry'!K84="","",'Student DATA Entry'!K84) ->  | G87: =IF('Student DATA Entry'!G84="","",UPPER('Student DATA Entry'!G84)) ->  | H87: =IF('Student DATA Entry'!H84="","",UPPER('Student DATA Entry'!H84)) ->  | I87: =IF('Student DATA Entry'!I84="","",UPPER('Student DATA Entry'!I84)) ->  | J87: =IF('Student DATA Entry'!L84="","",UPPER('Student DATA Entry'!L84)) ->  | K87: =IF('Student DATA Entry'!J84="","",UPPER('Student DATA Entry'!J84)) -> 
A88: =IF('Student DATA Entry'!A85="","",'Student DATA Entry'!A85) -> 82 | B88: =IF('Student DATA Entry'!B85="","",'Student DATA Entry'!B85) ->  | C88: =IF('Student DATA Entry'!C85="","",'Student DATA Entry'!C85) ->  | D88: =IF('Student DATA Entry'!D85="","",'Student DATA Entry'!D85) ->  | E88: =IF('Student DATA Entry'!E85="","",'Student DATA Entry'!E85) ->  | F88: =IF('Student DATA Entry'!K85="","",'Student DATA Entry'!K85) ->  | G88: =IF('Student DATA Entry'!G85="","",UPPER('Student DATA Entry'!G85)) ->  | H88: =IF('Student DATA Entry'!H85="","",UPPER('Student DATA Entry'!H85)) ->  | I88: =IF('Student DATA Entry'!I85="","",UPPER('Student DATA Entry'!I85)) ->  | J88: =IF('Student DATA Entry'!L85="","",UPPER('Student DATA Entry'!L85)) ->  | K88: =IF('Student DATA Entry'!J85="","",UPPER('Student DATA Entry'!J85)) -> 
A89: =IF('Student DATA Entry'!A86="","",'Student DATA Entry'!A86) -> 83 | B89: =IF('Student DATA Entry'!B86="","",'Student DATA Entry'!B86) ->  | C89: =IF('Student DATA Entry'!C86="","",'Student DATA Entry'!C86) ->  | D89: =IF('Student DATA Entry'!D86="","",'Student DATA Entry'!D86) ->  | E89: =IF('Student DATA Entry'!E86="","",'Student DATA Entry'!E86) ->  | F89: =IF('Student DATA Entry'!K86="","",'Student DATA Entry'!K86) ->  | G89: =IF('Student DATA Entry'!G86="","",UPPER('Student DATA Entry'!G86)) ->  | H89: =IF('Student DATA Entry'!H86="","",UPPER('Student DATA Entry'!H86)) ->  | I89: =IF('Student DATA Entry'!I86="","",UPPER('Student DATA Entry'!I86)) ->  | J89: =IF('Student DATA Entry'!L86="","",UPPER('Student DATA Entry'!L86)) ->  | K89: =IF('Student DATA Entry'!J86="","",UPPER('Student DATA Entry'!J86)) -> 
A90: =IF('Student DATA Entry'!A87="","",'Student DATA Entry'!A87) -> 84 | B90: =IF('Student DATA Entry'!B87="","",'Student DATA Entry'!B87) ->  | C90: =IF('Student DATA Entry'!C87="","",'Student DATA Entry'!C87) ->  | D90: =IF('Student DATA Entry'!D87="","",'Student DATA Entry'!D87) ->  | E90: =IF('Student DATA Entry'!E87="","",'Student DATA Entry'!E87) ->  | F90: =IF('Student DATA Entry'!K87="","",'Student DATA Entry'!K87) ->  | G90: =IF('Student DATA Entry'!G87="","",UPPER('Student DATA Entry'!G87)) ->  | H90: =IF('Student DATA Entry'!H87="","",UPPER('Student DATA Entry'!H87)) ->  | I90: =IF('Student DATA Entry'!I87="","",UPPER('Student DATA Entry'!I87)) ->  | J90: =IF('Student DATA Entry'!L87="","",UPPER('Student DATA Entry'!L87)) ->  | K90: =IF('Student DATA Entry'!J87="","",UPPER('Student DATA Entry'!J87)) -> 
A91: =IF('Student DATA Entry'!A88="","",'Student DATA Entry'!A88) -> 85 | B91: =IF('Student DATA Entry'!B88="","",'Student DATA Entry'!B88) ->  | C91: =IF('Student DATA Entry'!C88="","",'Student DATA Entry'!C88) ->  | D91: =IF('Student DATA Entry'!D88="","",'Student DATA Entry'!D88) ->  | E91: =IF('Student DATA Entry'!E88="","",'Student DATA Entry'!E88) ->  | F91: =IF('Student DATA Entry'!K88="","",'Student DATA Entry'!K88) ->  | G91: =IF('Student DATA Entry'!G88="","",UPPER('Student DATA Entry'!G88)) ->  | H91: =IF('Student DATA Entry'!H88="","",UPPER('Student DATA Entry'!H88)) ->  | I91: =IF('Student DATA Entry'!I88="","",UPPER('Student DATA Entry'!I88)) ->  | J91: =IF('Student DATA Entry'!L88="","",UPPER('Student DATA Entry'!L88)) ->  | K91: =IF('Student DATA Entry'!J88="","",UPPER('Student DATA Entry'!J88)) -> 
A92: =IF('Student DATA Entry'!A89="","",'Student DATA Entry'!A89) -> 86 | B92: =IF('Student DATA Entry'!B89="","",'Student DATA Entry'!B89) ->  | C92: =IF('Student DATA Entry'!C89="","",'Student DATA Entry'!C89) ->  | D92: =IF('Student DATA Entry'!D89="","",'Student DATA Entry'!D89) ->  | E92: =IF('Student DATA Entry'!E89="","",'Student DATA Entry'!E89) ->  | F92: =IF('Student DATA Entry'!K89="","",'Student DATA Entry'!K89) ->  | G92: =IF('Student DATA Entry'!G89="","",UPPER('Student DATA Entry'!G89)) ->  | H92: =IF('Student DATA Entry'!H89="","",UPPER('Student DATA Entry'!H89)) ->  | I92: =IF('Student DATA Entry'!I89="","",UPPER('Student DATA Entry'!I89)) ->  | J92: =IF('Student DATA Entry'!L89="","",UPPER('Student DATA Entry'!L89)) ->  | K92: =IF('Student DATA Entry'!J89="","",UPPER('Student DATA Entry'!J89)) -> 
A93: =IF('Student DATA Entry'!A90="","",'Student DATA Entry'!A90) -> 87 | B93: =IF('Student DATA Entry'!B90="","",'Student DATA Entry'!B90) ->  | C93: =IF('Student DATA Entry'!C90="","",'Student DATA Entry'!C90) ->  | D93: =IF('Student DATA Entry'!D90="","",'Student DATA Entry'!D90) ->  | E93: =IF('Student DATA Entry'!E90="","",'Student DATA Entry'!E90) ->  | F93: =IF('Student DATA Entry'!K90="","",'Student DATA Entry'!K90) ->  | G93: =IF('Student DATA Entry'!G90="","",UPPER('Student DATA Entry'!G90)) ->  | H93: =IF('Student DATA Entry'!H90="","",UPPER('Student DATA Entry'!H90)) ->  | I93: =IF('Student DATA Entry'!I90="","",UPPER('Student DATA Entry'!I90)) ->  | J93: =IF('Student DATA Entry'!L90="","",UPPER('Student DATA Entry'!L90)) ->  | K93: =IF('Student DATA Entry'!J90="","",UPPER('Student DATA Entry'!J90)) -> 
A94: =IF('Student DATA Entry'!A91="","",'Student DATA Entry'!A91) -> 88 | B94: =IF('Student DATA Entry'!B91="","",'Student DATA Entry'!B91) ->  | C94: =IF('Student DATA Entry'!C91="","",'Student DATA Entry'!C91) ->  | D94: =IF('Student DATA Entry'!D91="","",'Student DATA Entry'!D91) ->  | E94: =IF('Student DATA Entry'!E91="","",'Student DATA Entry'!E91) ->  | F94: =IF('Student DATA Entry'!K91="","",'Student DATA Entry'!K91) ->  | G94: =IF('Student DATA Entry'!G91="","",UPPER('Student DATA Entry'!G91)) ->  | H94: =IF('Student DATA Entry'!H91="","",UPPER('Student DATA Entry'!H91)) ->  | I94: =IF('Student DATA Entry'!I91="","",UPPER('Student DATA Entry'!I91)) ->  | J94: =IF('Student DATA Entry'!L91="","",UPPER('Student DATA Entry'!L91)) ->  | K94: =IF('Student DATA Entry'!J91="","",UPPER('Student DATA Entry'!J91)) -> 
A95: =IF('Student DATA Entry'!A92="","",'Student DATA Entry'!A92) -> 89 | B95: =IF('Student DATA Entry'!B92="","",'Student DATA Entry'!B92) ->  | C95: =IF('Student DATA Entry'!C92="","",'Student DATA Entry'!C92) ->  | D95: =IF('Student DATA Entry'!D92="","",'Student DATA Entry'!D92) ->  | E95: =IF('Student DATA Entry'!E92="","",'Student DATA Entry'!E92) ->  | F95: =IF('Student DATA Entry'!K92="","",'Student DATA Entry'!K92) ->  | G95: =IF('Student DATA Entry'!G92="","",UPPER('Student DATA Entry'!G92)) ->  | H95: =IF('Student DATA Entry'!H92="","",UPPER('Student DATA Entry'!H92)) ->  | I95: =IF('Student DATA Entry'!I92="","",UPPER('Student DATA Entry'!I92)) ->  | J95: =IF('Student DATA Entry'!L92="","",UPPER('Student DATA Entry'!L92)) ->  | K95: =IF('Student DATA Entry'!J92="","",UPPER('Student DATA Entry'!J92)) -> 
A96: =IF('Student DATA Entry'!A93="","",'Student DATA Entry'!A93) -> 90 | B96: =IF('Student DATA Entry'!B93="","",'Student DATA Entry'!B93) ->  | C96: =IF('Student DATA Entry'!C93="","",'Student DATA Entry'!C93) ->  | D96: =IF('Student DATA Entry'!D93="","",'Student DATA Entry'!D93) ->  | E96: =IF('Student DATA Entry'!E93="","",'Student DATA Entry'!E93) ->  | F96: =IF('Student DATA Entry'!K93="","",'Student DATA Entry'!K93) ->  | G96: =IF('Student DATA Entry'!G93="","",UPPER('Student DATA Entry'!G93)) ->  | H96: =IF('Student DATA Entry'!H93="","",UPPER('Student DATA Entry'!H93)) ->  | I96: =IF('Student DATA Entry'!I93="","",UPPER('Student DATA Entry'!I93)) ->  | J96: =IF('Student DATA Entry'!L93="","",UPPER('Student DATA Entry'!L93)) ->  | K96: =IF('Student DATA Entry'!J93="","",UPPER('Student DATA Entry'!J93)) -> 
A97: =IF('Student DATA Entry'!A94="","",'Student DATA Entry'!A94) -> 91 | B97: =IF('Student DATA Entry'!B94="","",'Student DATA Entry'!B94) ->  | C97: =IF('Student DATA Entry'!C94="","",'Student DATA Entry'!C94) ->  | D97: =IF('Student DATA Entry'!D94="","",'Student DATA Entry'!D94) ->  | E97: =IF('Student DATA Entry'!E94="","",'Student DATA Entry'!E94) ->  | F97: =IF('Student DATA Entry'!K94="","",'Student DATA Entry'!K94) ->  | G97: =IF('Student DATA Entry'!G94="","",UPPER('Student DATA Entry'!G94)) ->  | H97: =IF('Student DATA Entry'!H94="","",UPPER('Student DATA Entry'!H94)) ->  | I97: =IF('Student DATA Entry'!I94="","",UPPER('Student DATA Entry'!I94)) ->  | J97: =IF('Student DATA Entry'!L94="","",UPPER('Student DATA Entry'!L94)) ->  | K97: =IF('Student DATA Entry'!J94="","",UPPER('Student DATA Entry'!J94)) -> 
A98: =IF('Student DATA Entry'!A95="","",'Student DATA Entry'!A95) -> 92 | B98: =IF('Student DATA Entry'!B95="","",'Student DATA Entry'!B95) ->  | C98: =IF('Student DATA Entry'!C95="","",'Student DATA Entry'!C95) ->  | D98: =IF('Student DATA Entry'!D95="","",'Student DATA Entry'!D95) ->  | E98: =IF('Student DATA Entry'!E95="","",'Student DATA Entry'!E95) ->  | F98: =IF('Student DATA Entry'!K95="","",'Student DATA Entry'!K95) ->  | G98: =IF('Student DATA Entry'!G95="","",UPPER('Student DATA Entry'!G95)) ->  | H98: =IF('Student DATA Entry'!H95="","",UPPER('Student DATA Entry'!H95)) ->  | I98: =IF('Student DATA Entry'!I95="","",UPPER('Student DATA Entry'!I95)) ->  | J98: =IF('Student DATA Entry'!L95="","",UPPER('Student DATA Entry'!L95)) ->  | K98: =IF('Student DATA Entry'!J95="","",UPPER('Student DATA Entry'!J95)) -> 
A99: =IF('Student DATA Entry'!A96="","",'Student DATA Entry'!A96) -> 93 | B99: =IF('Student DATA Entry'!B96="","",'Student DATA Entry'!B96) ->  | C99: =IF('Student DATA Entry'!C96="","",'Student DATA Entry'!C96) ->  | D99: =IF('Student DATA Entry'!D96="","",'Student DATA Entry'!D96) ->  | E99: =IF('Student DATA Entry'!E96="","",'Student DATA Entry'!E96) ->  | F99: =IF('Student DATA Entry'!K96="","",'Student DATA Entry'!K96) ->  | G99: =IF('Student DATA Entry'!G96="","",UPPER('Student DATA Entry'!G96)) ->  | H99: =IF('Student DATA Entry'!H96="","",UPPER('Student DATA Entry'!H96)) ->  | I99: =IF('Student DATA Entry'!I96="","",UPPER('Student DATA Entry'!I96)) ->  | J99: =IF('Student DATA Entry'!L96="","",UPPER('Student DATA Entry'!L96)) ->  | K99: =IF('Student DATA Entry'!J96="","",UPPER('Student DATA Entry'!J96)) -> 
A100: =IF('Student DATA Entry'!A97="","",'Student DATA Entry'!A97) -> 94 | B100: =IF('Student DATA Entry'!B97="","",'Student DATA Entry'!B97) ->  | C100: =IF('Student DATA Entry'!C97="","",'Student DATA Entry'!C97) ->  | D100: =IF('Student DATA Entry'!D97="","",'Student DATA Entry'!D97) ->  | E100: =IF('Student DATA Entry'!E97="","",'Student DATA Entry'!E97) ->  | F100: =IF('Student DATA Entry'!K97="","",'Student DATA Entry'!K97) ->  | G100: =IF('Student DATA Entry'!G97="","",UPPER('Student DATA Entry'!G97)) ->  | H100: =IF('Student DATA Entry'!H97="","",UPPER('Student DATA Entry'!H97)) ->  | I100: =IF('Student DATA Entry'!I97="","",UPPER('Student DATA Entry'!I97)) ->  | J100: =IF('Student DATA Entry'!L97="","",UPPER('Student DATA Entry'!L97)) ->  | K100: =IF('Student DATA Entry'!J97="","",UPPER('Student DATA Entry'!J97)) -> 
A101: =IF('Student DATA Entry'!A98="","",'Student DATA Entry'!A98) -> 95 | B101: =IF('Student DATA Entry'!B98="","",'Student DATA Entry'!B98) ->  | C101: =IF('Student DATA Entry'!C98="","",'Student DATA Entry'!C98) ->  | D101: =IF('Student DATA Entry'!D98="","",'Student DATA Entry'!D98) ->  | E101: =IF('Student DATA Entry'!E98="","",'Student DATA Entry'!E98) ->  | F101: =IF('Student DATA Entry'!K98="","",'Student DATA Entry'!K98) ->  | G101: =IF('Student DATA Entry'!G98="","",UPPER('Student DATA Entry'!G98)) ->  | H101: =IF('Student DATA Entry'!H98="","",UPPER('Student DATA Entry'!H98)) ->  | I101: =IF('Student DATA Entry'!I98="","",UPPER('Student DATA Entry'!I98)) ->  | J101: =IF('Student DATA Entry'!L98="","",UPPER('Student DATA Entry'!L98)) ->  | K101: =IF('Student DATA Entry'!J98="","",UPPER('Student DATA Entry'!J98)) -> 
A102: =IF('Student DATA Entry'!A99="","",'Student DATA Entry'!A99) -> 96 | B102: =IF('Student DATA Entry'!B99="","",'Student DATA Entry'!B99) ->  | C102: =IF('Student DATA Entry'!C99="","",'Student DATA Entry'!C99) ->  | D102: =IF('Student DATA Entry'!D99="","",'Student DATA Entry'!D99) ->  | E102: =IF('Student DATA Entry'!E99="","",'Student DATA Entry'!E99) ->  | F102: =IF('Student DATA Entry'!K99="","",'Student DATA Entry'!K99) ->  | G102: =IF('Student DATA Entry'!G99="","",UPPER('Student DATA Entry'!G99)) ->  | H102: =IF('Student DATA Entry'!H99="","",UPPER('Student DATA Entry'!H99)) ->  | I102: =IF('Student DATA Entry'!I99="","",UPPER('Student DATA Entry'!I99)) ->  | J102: =IF('Student DATA Entry'!L99="","",UPPER('Student DATA Entry'!L99)) ->  | K102: =IF('Student DATA Entry'!J99="","",UPPER('Student DATA Entry'!J99)) -> 
A103: =IF('Student DATA Entry'!A100="","",'Student DATA Entry'!A100) -> 97 | B103: =IF('Student DATA Entry'!B100="","",'Student DATA Entry'!B100) ->  | C103: =IF('Student DATA Entry'!C100="","",'Student DATA Entry'!C100) ->  | D103: =IF('Student DATA Entry'!D100="","",'Student DATA Entry'!D100) ->  | E103: =IF('Student DATA Entry'!E100="","",'Student DATA Entry'!E100) ->  | F103: =IF('Student DATA Entry'!K100="","",'Student DATA Entry'!K100) ->  | G103: =IF('Student DATA Entry'!G100="","",UPPER('Student DATA Entry'!G100)) ->  | H103: =IF('Student DATA Entry'!H100="","",UPPER('Student DATA Entry'!H100)) ->  | I103: =IF('Student DATA Entry'!I100="","",UPPER('Student DATA Entry'!I100)) ->  | J103: =IF('Student DATA Entry'!L100="","",UPPER('Student DATA Entry'!L100)) ->  | K103: =IF('Student DATA Entry'!J100="","",UPPER('Student DATA Entry'!J100)) -> 
A104: =IF('Student DATA Entry'!A101="","",'Student DATA Entry'!A101) -> 98 | B104: =IF('Student DATA Entry'!B101="","",'Student DATA Entry'!B101) ->  | C104: =IF('Student DATA Entry'!C101="","",'Student DATA Entry'!C101) ->  | D104: =IF('Student DATA Entry'!D101="","",'Student DATA Entry'!D101) ->  | E104: =IF('Student DATA Entry'!E101="","",'Student DATA Entry'!E101) ->  | F104: =IF('Student DATA Entry'!K101="","",'Student DATA Entry'!K101) ->  | G104: =IF('Student DATA Entry'!G101="","",UPPER('Student DATA Entry'!G101)) ->  | H104: =IF('Student DATA Entry'!H101="","",UPPER('Student DATA Entry'!H101)) ->  | I104: =IF('Student DATA Entry'!I101="","",UPPER('Student DATA Entry'!I101)) ->  | J104: =IF('Student DATA Entry'!L101="","",UPPER('Student DATA Entry'!L101)) ->  | K104: =IF('Student DATA Entry'!J101="","",UPPER('Student DATA Entry'!J101)) -> 
A105: =IF('Student DATA Entry'!A102="","",'Student DATA Entry'!A102) -> 99 | B105: =IF('Student DATA Entry'!B102="","",'Student DATA Entry'!B102) ->  | C105: =IF('Student DATA Entry'!C102="","",'Student DATA Entry'!C102) ->  | D105: =IF('Student DATA Entry'!D102="","",'Student DATA Entry'!D102) ->  | E105: =IF('Student DATA Entry'!E102="","",'Student DATA Entry'!E102) ->  | F105: =IF('Student DATA Entry'!K102="","",'Student DATA Entry'!K102) ->  | G105: =IF('Student DATA Entry'!G102="","",UPPER('Student DATA Entry'!G102)) ->  | H105: =IF('Student DATA Entry'!H102="","",UPPER('Student DATA Entry'!H102)) ->  | I105: =IF('Student DATA Entry'!I102="","",UPPER('Student DATA Entry'!I102)) ->  | J105: =IF('Student DATA Entry'!L102="","",UPPER('Student DATA Entry'!L102)) ->  | K105: =IF('Student DATA Entry'!J102="","",UPPER('Student DATA Entry'!J102)) -> 
A106: =IF('Student DATA Entry'!A103="","",'Student DATA Entry'!A103) -> 100 | B106: =IF('Student DATA Entry'!B103="","",'Student DATA Entry'!B103) ->  | C106: =IF('Student DATA Entry'!C103="","",'Student DATA Entry'!C103) ->  | D106: =IF('Student DATA Entry'!D103="","",'Student DATA Entry'!D103) ->  | E106: =IF('Student DATA Entry'!E103="","",'Student DATA Entry'!E103) ->  | F106: =IF('Student DATA Entry'!K103="","",'Student DATA Entry'!K103) ->  | G106: =IF('Student DATA Entry'!G103="","",UPPER('Student DATA Entry'!G103)) ->  | H106: =IF('Student DATA Entry'!H103="","",UPPER('Student DATA Entry'!H103)) ->  | I106: =IF('Student DATA Entry'!I103="","",UPPER('Student DATA Entry'!I103)) ->  | J106: =IF('Student DATA Entry'!L103="","",UPPER('Student DATA Entry'!L103)) ->  | K106: =IF('Student DATA Entry'!J103="","",UPPER('Student DATA Entry'!J103)) -> 
A107: =IF('Student DATA Entry'!A104="","",'Student DATA Entry'!A104) -> 101 | B107: =IF('Student DATA Entry'!B104="","",'Student DATA Entry'!B104) ->  | C107: =IF('Student DATA Entry'!C104="","",'Student DATA Entry'!C104) ->  | D107: =IF('Student DATA Entry'!D104="","",'Student DATA Entry'!D104) ->  | E107: =IF('Student DATA Entry'!E104="","",'Student DATA Entry'!E104) ->  | F107: =IF('Student DATA Entry'!K104="","",'Student DATA Entry'!K104) ->  | G107: =IF('Student DATA Entry'!G104="","",UPPER('Student DATA Entry'!G104)) ->  | H107: =IF('Student DATA Entry'!H104="","",UPPER('Student DATA Entry'!H104)) ->  | I107: =IF('Student DATA Entry'!I104="","",UPPER('Student DATA Entry'!I104)) ->  | J107: =IF('Student DATA Entry'!L104="","",UPPER('Student DATA Entry'!L104)) ->  | K107: =IF('Student DATA Entry'!J104="","",UPPER('Student DATA Entry'!J104)) -> 
A108: =IF('Student DATA Entry'!A105="","",'Student DATA Entry'!A105) -> 102 | B108: =IF('Student DATA Entry'!B105="","",'Student DATA Entry'!B105) ->  | C108: =IF('Student DATA Entry'!C105="","",'Student DATA Entry'!C105) ->  | D108: =IF('Student DATA Entry'!D105="","",'Student DATA Entry'!D105) ->  | E108: =IF('Student DATA Entry'!E105="","",'Student DATA Entry'!E105) ->  | F108: =IF('Student DATA Entry'!K105="","",'Student DATA Entry'!K105) ->  | G108: =IF('Student DATA Entry'!G105="","",UPPER('Student DATA Entry'!G105)) ->  | H108: =IF('Student DATA Entry'!H105="","",UPPER('Student DATA Entry'!H105)) ->  | I108: =IF('Student DATA Entry'!I105="","",UPPER('Student DATA Entry'!I105)) ->  | J108: =IF('Student DATA Entry'!L105="","",UPPER('Student DATA Entry'!L105)) ->  | K108: =IF('Student DATA Entry'!J105="","",UPPER('Student DATA Entry'!J105)) -> 
A109: =IF('Student DATA Entry'!A106="","",'Student DATA Entry'!A106) -> 103 | B109: =IF('Student DATA Entry'!B106="","",'Student DATA Entry'!B106) ->  | C109: =IF('Student DATA Entry'!C106="","",'Student DATA Entry'!C106) ->  | D109: =IF('Student DATA Entry'!D106="","",'Student DATA Entry'!D106) ->  | E109: =IF('Student DATA Entry'!E106="","",'Student DATA Entry'!E106) ->  | F109: =IF('Student DATA Entry'!K106="","",'Student DATA Entry'!K106) ->  | G109: =IF('Student DATA Entry'!G106="","",UPPER('Student DATA Entry'!G106)) ->  | H109: =IF('Student DATA Entry'!H106="","",UPPER('Student DATA Entry'!H106)) ->  | I109: =IF('Student DATA Entry'!I106="","",UPPER('Student DATA Entry'!I106)) ->  | J109: =IF('Student DATA Entry'!L106="","",UPPER('Student DATA Entry'!L106)) ->  | K109: =IF('Student DATA Entry'!J106="","",UPPER('Student DATA Entry'!J106)) -> 
A110: =IF('Student DATA Entry'!A107="","",'Student DATA Entry'!A107) -> 104 | B110: =IF('Student DATA Entry'!B107="","",'Student DATA Entry'!B107) ->  | C110: =IF('Student DATA Entry'!C107="","",'Student DATA Entry'!C107) ->  | D110: =IF('Student DATA Entry'!D107="","",'Student DATA Entry'!D107) ->  | E110: =IF('Student DATA Entry'!E107="","",'Student DATA Entry'!E107) ->  | F110: =IF('Student DATA Entry'!K107="","",'Student DATA Entry'!K107) ->  | G110: =IF('Student DATA Entry'!G107="","",UPPER('Student DATA Entry'!G107)) ->  | H110: =IF('Student DATA Entry'!H107="","",UPPER('Student DATA Entry'!H107)) ->  | I110: =IF('Student DATA Entry'!I107="","",UPPER('Student DATA Entry'!I107)) ->  | J110: =IF('Student DATA Entry'!L107="","",UPPER('Student DATA Entry'!L107)) ->  | K110: =IF('Student DATA Entry'!J107="","",UPPER('Student DATA Entry'!J107)) -> 
A111: =IF('Student DATA Entry'!A108="","",'Student DATA Entry'!A108) -> 105 | B111: =IF('Student DATA Entry'!B108="","",'Student DATA Entry'!B108) ->  | C111: =IF('Student DATA Entry'!C108="","",'Student DATA Entry'!C108) ->  | D111: =IF('Student DATA Entry'!D108="","",'Student DATA Entry'!D108) ->  | E111: =IF('Student DATA Entry'!E108="","",'Student DATA Entry'!E108) ->  | F111: =IF('Student DATA Entry'!K108="","",'Student DATA Entry'!K108) ->  | G111: =IF('Student DATA Entry'!G108="","",UPPER('Student DATA Entry'!G108)) ->  | H111: =IF('Student DATA Entry'!H108="","",UPPER('Student DATA Entry'!H108)) ->  | I111: =IF('Student DATA Entry'!I108="","",UPPER('Student DATA Entry'!I108)) ->  | J111: =IF('Student DATA Entry'!L108="","",UPPER('Student DATA Entry'!L108)) ->  | K111: =IF('Student DATA Entry'!J108="","",UPPER('Student DATA Entry'!J108)) -> 
A112: =IF('Student DATA Entry'!A109="","",'Student DATA Entry'!A109) -> 106 | B112: =IF('Student DATA Entry'!B109="","",'Student DATA Entry'!B109) ->  | C112: =IF('Student DATA Entry'!C109="","",'Student DATA Entry'!C109) ->  | D112: =IF('Student DATA Entry'!D109="","",'Student DATA Entry'!D109) ->  | E112: =IF('Student DATA Entry'!E109="","",'Student DATA Entry'!E109) ->  | F112: =IF('Student DATA Entry'!K109="","",'Student DATA Entry'!K109) ->  | G112: =IF('Student DATA Entry'!G109="","",UPPER('Student DATA Entry'!G109)) ->  | H112: =IF('Student DATA Entry'!H109="","",UPPER('Student DATA Entry'!H109)) ->  | I112: =IF('Student DATA Entry'!I109="","",UPPER('Student DATA Entry'!I109)) ->  | J112: =IF('Student DATA Entry'!L109="","",UPPER('Student DATA Entry'!L109)) ->  | K112: =IF('Student DATA Entry'!J109="","",UPPER('Student DATA Entry'!J109)) -> 
A113: =IF('Student DATA Entry'!A110="","",'Student DATA Entry'!A110) -> 107 | B113: =IF('Student DATA Entry'!B110="","",'Student DATA Entry'!B110) ->  | C113: =IF('Student DATA Entry'!C110="","",'Student DATA Entry'!C110) ->  | D113: =IF('Student DATA Entry'!D110="","",'Student DATA Entry'!D110) ->  | E113: =IF('Student DATA Entry'!E110="","",'Student DATA Entry'!E110) ->  | F113: =IF('Student DATA Entry'!K110="","",'Student DATA Entry'!K110) ->  | G113: =IF('Student DATA Entry'!G110="","",UPPER('Student DATA Entry'!G110)) ->  | H113: =IF('Student DATA Entry'!H110="","",UPPER('Student DATA Entry'!H110)) ->  | I113: =IF('Student DATA Entry'!I110="","",UPPER('Student DATA Entry'!I110)) ->  | J113: =IF('Student DATA Entry'!L110="","",UPPER('Student DATA Entry'!L110)) ->  | K113: =IF('Student DATA Entry'!J110="","",UPPER('Student DATA Entry'!J110)) -> 
A114: =IF('Student DATA Entry'!A111="","",'Student DATA Entry'!A111) -> 108 | B114: =IF('Student DATA Entry'!B111="","",'Student DATA Entry'!B111) ->  | C114: =IF('Student DATA Entry'!C111="","",'Student DATA Entry'!C111) ->  | D114: =IF('Student DATA Entry'!D111="","",'Student DATA Entry'!D111) ->  | E114: =IF('Student DATA Entry'!E111="","",'Student DATA Entry'!E111) ->  | F114: =IF('Student DATA Entry'!K111="","",'Student DATA Entry'!K111) ->  | G114: =IF('Student DATA Entry'!G111="","",UPPER('Student DATA Entry'!G111)) ->  | H114: =IF('Student DATA Entry'!H111="","",UPPER('Student DATA Entry'!H111)) ->  | I114: =IF('Student DATA Entry'!I111="","",UPPER('Student DATA Entry'!I111)) ->  | J114: =IF('Student DATA Entry'!L111="","",UPPER('Student DATA Entry'!L111)) ->  | K114: =IF('Student DATA Entry'!J111="","",UPPER('Student DATA Entry'!J111)) -> 
A115: =IF('Student DATA Entry'!A112="","",'Student DATA Entry'!A112) -> 109 | B115: =IF('Student DATA Entry'!B112="","",'Student DATA Entry'!B112) ->  | C115: =IF('Student DATA Entry'!C112="","",'Student DATA Entry'!C112) ->  | D115: =IF('Student DATA Entry'!D112="","",'Student DATA Entry'!D112) ->  | E115: =IF('Student DATA Entry'!E112="","",'Student DATA Entry'!E112) ->  | F115: =IF('Student DATA Entry'!K112="","",'Student DATA Entry'!K112) ->  | G115: =IF('Student DATA Entry'!G112="","",UPPER('Student DATA Entry'!G112)) ->  | H115: =IF('Student DATA Entry'!H112="","",UPPER('Student DATA Entry'!H112)) ->  | I115: =IF('Student DATA Entry'!I112="","",UPPER('Student DATA Entry'!I112)) ->  | J115: =IF('Student DATA Entry'!L112="","",UPPER('Student DATA Entry'!L112)) ->  | K115: =IF('Student DATA Entry'!J112="","",UPPER('Student DATA Entry'!J112)) -> 
A116: =IF('Student DATA Entry'!A113="","",'Student DATA Entry'!A113) -> 110 | B116: =IF('Student DATA Entry'!B113="","",'Student DATA Entry'!B113) ->  | C116: =IF('Student DATA Entry'!C113="","",'Student DATA Entry'!C113) ->  | D116: =IF('Student DATA Entry'!D113="","",'Student DATA Entry'!D113) ->  | E116: =IF('Student DATA Entry'!E113="","",'Student DATA Entry'!E113) ->  | F116: =IF('Student DATA Entry'!K113="","",'Student DATA Entry'!K113) ->  | G116: =IF('Student DATA Entry'!G113="","",UPPER('Student DATA Entry'!G113)) ->  | H116: =IF('Student DATA Entry'!H113="","",UPPER('Student DATA Entry'!H113)) ->  | I116: =IF('Student DATA Entry'!I113="","",UPPER('Student DATA Entry'!I113)) ->  | J116: =IF('Student DATA Entry'!L113="","",UPPER('Student DATA Entry'!L113)) ->  | K116: =IF('Student DATA Entry'!J113="","",UPPER('Student DATA Entry'!J113)) -> 
A117: =IF('Student DATA Entry'!A114="","",'Student DATA Entry'!A114) -> 111 | B117: =IF('Student DATA Entry'!B114="","",'Student DATA Entry'!B114) ->  | C117: =IF('Student DATA Entry'!C114="","",'Student DATA Entry'!C114) ->  | D117: =IF('Student DATA Entry'!D114="","",'Student DATA Entry'!D114) ->  | E117: =IF('Student DATA Entry'!E114="","",'Student DATA Entry'!E114) ->  | F117: =IF('Student DATA Entry'!K114="","",'Student DATA Entry'!K114) ->  | G117: =IF('Student DATA Entry'!G114="","",UPPER('Student DATA Entry'!G114)) ->  | H117: =IF('Student DATA Entry'!H114="","",UPPER('Student DATA Entry'!H114)) ->  | I117: =IF('Student DATA Entry'!I114="","",UPPER('Student DATA Entry'!I114)) ->  | J117: =IF('Student DATA Entry'!L114="","",UPPER('Student DATA Entry'!L114)) ->  | K117: =IF('Student DATA Entry'!J114="","",UPPER('Student DATA Entry'!J114)) -> 
A118: =IF('Student DATA Entry'!A115="","",'Student DATA Entry'!A115) -> 112 | B118: =IF('Student DATA Entry'!B115="","",'Student DATA Entry'!B115) ->  | C118: =IF('Student DATA Entry'!C115="","",'Student DATA Entry'!C115) ->  | D118: =IF('Student DATA Entry'!D115="","",'Student DATA Entry'!D115) ->  | E118: =IF('Student DATA Entry'!E115="","",'Student DATA Entry'!E115) ->  | F118: =IF('Student DATA Entry'!K115="","",'Student DATA Entry'!K115) ->  | G118: =IF('Student DATA Entry'!G115="","",UPPER('Student DATA Entry'!G115)) ->  | H118: =IF('Student DATA Entry'!H115="","",UPPER('Student DATA Entry'!H115)) ->  | I118: =IF('Student DATA Entry'!I115="","",UPPER('Student DATA Entry'!I115)) ->  | J118: =IF('Student DATA Entry'!L115="","",UPPER('Student DATA Entry'!L115)) ->  | K118: =IF('Student DATA Entry'!J115="","",UPPER('Student DATA Entry'!J115)) -> 
A119: =IF('Student DATA Entry'!A116="","",'Student DATA Entry'!A116) -> 113 | B119: =IF('Student DATA Entry'!B116="","",'Student DATA Entry'!B116) ->  | C119: =IF('Student DATA Entry'!C116="","",'Student DATA Entry'!C116) ->  | D119: =IF('Student DATA Entry'!D116="","",'Student DATA Entry'!D116) ->  | E119: =IF('Student DATA Entry'!E116="","",'Student DATA Entry'!E116) ->  | F119: =IF('Student DATA Entry'!K116="","",'Student DATA Entry'!K116) ->  | G119: =IF('Student DATA Entry'!G116="","",UPPER('Student DATA Entry'!G116)) ->  | H119: =IF('Student DATA Entry'!H116="","",UPPER('Student DATA Entry'!H116)) ->  | I119: =IF('Student DATA Entry'!I116="","",UPPER('Student DATA Entry'!I116)) ->  | J119: =IF('Student DATA Entry'!L116="","",UPPER('Student DATA Entry'!L116)) ->  | K119: =IF('Student DATA Entry'!J116="","",UPPER('Student DATA Entry'!J116)) -> 
A120: =IF('Student DATA Entry'!A117="","",'Student DATA Entry'!A117) -> 114 | B120: =IF('Student DATA Entry'!B117="","",'Student DATA Entry'!B117) ->  | C120: =IF('Student DATA Entry'!C117="","",'Student DATA Entry'!C117) ->  | D120: =IF('Student DATA Entry'!D117="","",'Student DATA Entry'!D117) ->  | E120: =IF('Student DATA Entry'!E117="","",'Student DATA Entry'!E117) ->  | F120: =IF('Student DATA Entry'!K117="","",'Student DATA Entry'!K117) ->  | G120: =IF('Student DATA Entry'!G117="","",UPPER('Student DATA Entry'!G117)) ->  | H120: =IF('Student DATA Entry'!H117="","",UPPER('Student DATA Entry'!H117)) ->  | I120: =IF('Student DATA Entry'!I117="","",UPPER('Student DATA Entry'!I117)) ->  | J120: =IF('Student DATA Entry'!L117="","",UPPER('Student DATA Entry'!L117)) ->  | K120: =IF('Student DATA Entry'!J117="","",UPPER('Student DATA Entry'!J117)) -> 
A121: =IF('Student DATA Entry'!A118="","",'Student DATA Entry'!A118) -> 115 | B121: =IF('Student DATA Entry'!B118="","",'Student DATA Entry'!B118) ->  | C121: =IF('Student DATA Entry'!C118="","",'Student DATA Entry'!C118) ->  | D121: =IF('Student DATA Entry'!D118="","",'Student DATA Entry'!D118) ->  | E121: =IF('Student DATA Entry'!E118="","",'Student DATA Entry'!E118) ->  | F121: =IF('Student DATA Entry'!K118="","",'Student DATA Entry'!K118) ->  | G121: =IF('Student DATA Entry'!G118="","",UPPER('Student DATA Entry'!G118)) ->  | H121: =IF('Student DATA Entry'!H118="","",UPPER('Student DATA Entry'!H118)) ->  | I121: =IF('Student DATA Entry'!I118="","",UPPER('Student DATA Entry'!I118)) ->  | J121: =IF('Student DATA Entry'!L118="","",UPPER('Student DATA Entry'!L118)) ->  | K121: =IF('Student DATA Entry'!J118="","",UPPER('Student DATA Entry'!J118)) -> 
A122: =IF('Student DATA Entry'!A119="","",'Student DATA Entry'!A119) -> 116 | B122: =IF('Student DATA Entry'!B119="","",'Student DATA Entry'!B119) ->  | C122: =IF('Student DATA Entry'!C119="","",'Student DATA Entry'!C119) ->  | D122: =IF('Student DATA Entry'!D119="","",'Student DATA Entry'!D119) ->  | E122: =IF('Student DATA Entry'!E119="","",'Student DATA Entry'!E119) ->  | F122: =IF('Student DATA Entry'!K119="","",'Student DATA Entry'!K119) ->  | G122: =IF('Student DATA Entry'!G119="","",UPPER('Student DATA Entry'!G119)) ->  | H122: =IF('Student DATA Entry'!H119="","",UPPER('Student DATA Entry'!H119)) ->  | I122: =IF('Student DATA Entry'!I119="","",UPPER('Student DATA Entry'!I119)) ->  | J122: =IF('Student DATA Entry'!L119="","",UPPER('Student DATA Entry'!L119)) ->  | K122: =IF('Student DATA Entry'!J119="","",UPPER('Student DATA Entry'!J119)) -> 
A123: =IF('Student DATA Entry'!A120="","",'Student DATA Entry'!A120) -> 117 | B123: =IF('Student DATA Entry'!B120="","",'Student DATA Entry'!B120) ->  | C123: =IF('Student DATA Entry'!C120="","",'Student DATA Entry'!C120) ->  | D123: =IF('Student DATA Entry'!D120="","",'Student DATA Entry'!D120) ->  | E123: =IF('Student DATA Entry'!E120="","",'Student DATA Entry'!E120) ->  | F123: =IF('Student DATA Entry'!K120="","",'Student DATA Entry'!K120) ->  | G123: =IF('Student DATA Entry'!G120="","",UPPER('Student DATA Entry'!G120)) ->  | H123: =IF('Student DATA Entry'!H120="","",UPPER('Student DATA Entry'!H120)) ->  | I123: =IF('Student DATA Entry'!I120="","",UPPER('Student DATA Entry'!I120)) ->  | J123: =IF('Student DATA Entry'!L120="","",UPPER('Student DATA Entry'!L120)) ->  | K123: =IF('Student DATA Entry'!J120="","",UPPER('Student DATA Entry'!J120)) -> 
A124: =IF('Student DATA Entry'!A121="","",'Student DATA Entry'!A121) -> 118 | B124: =IF('Student DATA Entry'!B121="","",'Student DATA Entry'!B121) ->  | C124: =IF('Student DATA Entry'!C121="","",'Student DATA Entry'!C121) ->  | D124: =IF('Student DATA Entry'!D121="","",'Student DATA Entry'!D121) ->  | E124: =IF('Student DATA Entry'!E121="","",'Student DATA Entry'!E121) ->  | F124: =IF('Student DATA Entry'!K121="","",'Student DATA Entry'!K121) ->  | G124: =IF('Student DATA Entry'!G121="","",UPPER('Student DATA Entry'!G121)) ->  | H124: =IF('Student DATA Entry'!H121="","",UPPER('Student DATA Entry'!H121)) ->  | I124: =IF('Student DATA Entry'!I121="","",UPPER('Student DATA Entry'!I121)) ->  | J124: =IF('Student DATA Entry'!L121="","",UPPER('Student DATA Entry'!L121)) ->  | K124: =IF('Student DATA Entry'!J121="","",UPPER('Student DATA Entry'!J121)) -> 
A125: =IF('Student DATA Entry'!A122="","",'Student DATA Entry'!A122) -> 119 | B125: =IF('Student DATA Entry'!B122="","",'Student DATA Entry'!B122) ->  | C125: =IF('Student DATA Entry'!C122="","",'Student DATA Entry'!C122) ->  | D125: =IF('Student DATA Entry'!D122="","",'Student DATA Entry'!D122) ->  | E125: =IF('Student DATA Entry'!E122="","",'Student DATA Entry'!E122) ->  | F125: =IF('Student DATA Entry'!K122="","",'Student DATA Entry'!K122) ->  | G125: =IF('Student DATA Entry'!G122="","",UPPER('Student DATA Entry'!G122)) ->  | H125: =IF('Student DATA Entry'!H122="","",UPPER('Student DATA Entry'!H122)) ->  | I125: =IF('Student DATA Entry'!I122="","",UPPER('Student DATA Entry'!I122)) ->  | J125: =IF('Student DATA Entry'!L122="","",UPPER('Student DATA Entry'!L122)) ->  | K125: =IF('Student DATA Entry'!J122="","",UPPER('Student DATA Entry'!J122)) -> 
A126: =IF('Student DATA Entry'!A123="","",'Student DATA Entry'!A123) -> 120 | B126: =IF('Student DATA Entry'!B123="","",'Student DATA Entry'!B123) ->  | C126: =IF('Student DATA Entry'!C123="","",'Student DATA Entry'!C123) ->  | D126: =IF('Student DATA Entry'!D123="","",'Student DATA Entry'!D123) ->  | E126: =IF('Student DATA Entry'!E123="","",'Student DATA Entry'!E123) ->  | F126: =IF('Student DATA Entry'!K123="","",'Student DATA Entry'!K123) ->  | G126: =IF('Student DATA Entry'!G123="","",UPPER('Student DATA Entry'!G123)) ->  | H126: =IF('Student DATA Entry'!H123="","",UPPER('Student DATA Entry'!H123)) ->  | I126: =IF('Student DATA Entry'!I123="","",UPPER('Student DATA Entry'!I123)) ->  | J126: =IF('Student DATA Entry'!L123="","",UPPER('Student DATA Entry'!L123)) ->  | K126: =IF('Student DATA Entry'!J123="","",UPPER('Student DATA Entry'!J123)) -> 
A127: =IF('Student DATA Entry'!A124="","",'Student DATA Entry'!A124) -> 121 | B127: =IF('Student DATA Entry'!B124="","",'Student DATA Entry'!B124) ->  | C127: =IF('Student DATA Entry'!C124="","",'Student DATA Entry'!C124) ->  | D127: =IF('Student DATA Entry'!D124="","",'Student DATA Entry'!D124) ->  | E127: =IF('Student DATA Entry'!E124="","",'Student DATA Entry'!E124) ->  | F127: =IF('Student DATA Entry'!K124="","",'Student DATA Entry'!K124) ->  | G127: =IF('Student DATA Entry'!G124="","",UPPER('Student DATA Entry'!G124)) ->  | H127: =IF('Student DATA Entry'!H124="","",UPPER('Student DATA Entry'!H124)) ->  | I127: =IF('Student DATA Entry'!I124="","",UPPER('Student DATA Entry'!I124)) ->  | J127: =IF('Student DATA Entry'!L124="","",UPPER('Student DATA Entry'!L124)) ->  | K127: =IF('Student DATA Entry'!J124="","",UPPER('Student DATA Entry'!J124)) -> 
A128: =IF('Student DATA Entry'!A125="","",'Student DATA Entry'!A125) -> 122 | B128: =IF('Student DATA Entry'!B125="","",'Student DATA Entry'!B125) ->  | C128: =IF('Student DATA Entry'!C125="","",'Student DATA Entry'!C125) ->  | D128: =IF('Student DATA Entry'!D125="","",'Student DATA Entry'!D125) ->  | E128: =IF('Student DATA Entry'!E125="","",'Student DATA Entry'!E125) ->  | F128: =IF('Student DATA Entry'!K125="","",'Student DATA Entry'!K125) ->  | G128: =IF('Student DATA Entry'!G125="","",UPPER('Student DATA Entry'!G125)) ->  | H128: =IF('Student DATA Entry'!H125="","",UPPER('Student DATA Entry'!H125)) ->  | I128: =IF('Student DATA Entry'!I125="","",UPPER('Student DATA Entry'!I125)) ->  | J128: =IF('Student DATA Entry'!L125="","",UPPER('Student DATA Entry'!L125)) ->  | K128: =IF('Student DATA Entry'!J125="","",UPPER('Student DATA Entry'!J125)) -> 
A129: =IF('Student DATA Entry'!A126="","",'Student DATA Entry'!A126) -> 123 | B129: =IF('Student DATA Entry'!B126="","",'Student DATA Entry'!B126) ->  | C129: =IF('Student DATA Entry'!C126="","",'Student DATA Entry'!C126) ->  | D129: =IF('Student DATA Entry'!D126="","",'Student DATA Entry'!D126) ->  | E129: =IF('Student DATA Entry'!E126="","",'Student DATA Entry'!E126) ->  | F129: =IF('Student DATA Entry'!K126="","",'Student DATA Entry'!K126) ->  | G129: =IF('Student DATA Entry'!G126="","",UPPER('Student DATA Entry'!G126)) ->  | H129: =IF('Student DATA Entry'!H126="","",UPPER('Student DATA Entry'!H126)) ->  | I129: =IF('Student DATA Entry'!I126="","",UPPER('Student DATA Entry'!I126)) ->  | J129: =IF('Student DATA Entry'!L126="","",UPPER('Student DATA Entry'!L126)) ->  | K129: =IF('Student DATA Entry'!J126="","",UPPER('Student DATA Entry'!J126)) -> 
A130: =IF('Student DATA Entry'!A127="","",'Student DATA Entry'!A127) -> 124 | B130: =IF('Student DATA Entry'!B127="","",'Student DATA Entry'!B127) ->  | C130: =IF('Student DATA Entry'!C127="","",'Student DATA Entry'!C127) ->  | D130: =IF('Student DATA Entry'!D127="","",'Student DATA Entry'!D127) ->  | E130: =IF('Student DATA Entry'!E127="","",'Student DATA Entry'!E127) ->  | F130: =IF('Student DATA Entry'!K127="","",'Student DATA Entry'!K127) ->  | G130: =IF('Student DATA Entry'!G127="","",UPPER('Student DATA Entry'!G127)) ->  | H130: =IF('Student DATA Entry'!H127="","",UPPER('Student DATA Entry'!H127)) ->  | I130: =IF('Student DATA Entry'!I127="","",UPPER('Student DATA Entry'!I127)) ->  | J130: =IF('Student DATA Entry'!L127="","",UPPER('Student DATA Entry'!L127)) ->  | K130: =IF('Student DATA Entry'!J127="","",UPPER('Student DATA Entry'!J127)) -> 
A131: =IF('Student DATA Entry'!A128="","",'Student DATA Entry'!A128) -> 125 | B131: =IF('Student DATA Entry'!B128="","",'Student DATA Entry'!B128) ->  | C131: =IF('Student DATA Entry'!C128="","",'Student DATA Entry'!C128) ->  | D131: =IF('Student DATA Entry'!D128="","",'Student DATA Entry'!D128) ->  | E131: =IF('Student DATA Entry'!E128="","",'Student DATA Entry'!E128) ->  | F131: =IF('Student DATA Entry'!K128="","",'Student DATA Entry'!K128) ->  | G131: =IF('Student DATA Entry'!G128="","",UPPER('Student DATA Entry'!G128)) ->  | H131: =IF('Student DATA Entry'!H128="","",UPPER('Student DATA Entry'!H128)) ->  | I131: =IF('Student DATA Entry'!I128="","",UPPER('Student DATA Entry'!I128)) ->  | J131: =IF('Student DATA Entry'!L128="","",UPPER('Student DATA Entry'!L128)) ->  | K131: =IF('Student DATA Entry'!J128="","",UPPER('Student DATA Entry'!J128)) -> 
A132: =IF('Student DATA Entry'!A129="","",'Student DATA Entry'!A129) -> 126 | B132: =IF('Student DATA Entry'!B129="","",'Student DATA Entry'!B129) ->  | C132: =IF('Student DATA Entry'!C129="","",'Student DATA Entry'!C129) ->  | D132: =IF('Student DATA Entry'!D129="","",'Student DATA Entry'!D129) ->  | E132: =IF('Student DATA Entry'!E129="","",'Student DATA Entry'!E129) ->  | F132: =IF('Student DATA Entry'!K129="","",'Student DATA Entry'!K129) ->  | G132: =IF('Student DATA Entry'!G129="","",UPPER('Student DATA Entry'!G129)) ->  | H132: =IF('Student DATA Entry'!H129="","",UPPER('Student DATA Entry'!H129)) ->  | I132: =IF('Student DATA Entry'!I129="","",UPPER('Student DATA Entry'!I129)) ->  | J132: =IF('Student DATA Entry'!L129="","",UPPER('Student DATA Entry'!L129)) ->  | K132: =IF('Student DATA Entry'!J129="","",UPPER('Student DATA Entry'!J129)) -> 
A133: =IF('Student DATA Entry'!A130="","",'Student DATA Entry'!A130) -> 127 | B133: =IF('Student DATA Entry'!B130="","",'Student DATA Entry'!B130) ->  | C133: =IF('Student DATA Entry'!C130="","",'Student DATA Entry'!C130) ->  | D133: =IF('Student DATA Entry'!D130="","",'Student DATA Entry'!D130) ->  | E133: =IF('Student DATA Entry'!E130="","",'Student DATA Entry'!E130) ->  | F133: =IF('Student DATA Entry'!K130="","",'Student DATA Entry'!K130) ->  | G133: =IF('Student DATA Entry'!G130="","",UPPER('Student DATA Entry'!G130)) ->  | H133: =IF('Student DATA Entry'!H130="","",UPPER('Student DATA Entry'!H130)) ->  | I133: =IF('Student DATA Entry'!I130="","",UPPER('Student DATA Entry'!I130)) ->  | J133: =IF('Student DATA Entry'!L130="","",UPPER('Student DATA Entry'!L130)) ->  | K133: =IF('Student DATA Entry'!J130="","",UPPER('Student DATA Entry'!J130)) -> 
A134: =IF('Student DATA Entry'!A131="","",'Student DATA Entry'!A131) -> 128 | B134: =IF('Student DATA Entry'!B131="","",'Student DATA Entry'!B131) ->  | C134: =IF('Student DATA Entry'!C131="","",'Student DATA Entry'!C131) ->  | D134: =IF('Student DATA Entry'!D131="","",'Student DATA Entry'!D131) ->  | E134: =IF('Student DATA Entry'!E131="","",'Student DATA Entry'!E131) ->  | F134: =IF('Student DATA Entry'!K131="","",'Student DATA Entry'!K131) ->  | G134: =IF('Student DATA Entry'!G131="","",UPPER('Student DATA Entry'!G131)) ->  | H134: =IF('Student DATA Entry'!H131="","",UPPER('Student DATA Entry'!H131)) ->  | I134: =IF('Student DATA Entry'!I131="","",UPPER('Student DATA Entry'!I131)) ->  | J134: =IF('Student DATA Entry'!L131="","",UPPER('Student DATA Entry'!L131)) ->  | K134: =IF('Student DATA Entry'!J131="","",UPPER('Student DATA Entry'!J131)) -> 
A135: =IF('Student DATA Entry'!A132="","",'Student DATA Entry'!A132) -> 129 | B135: =IF('Student DATA Entry'!B132="","",'Student DATA Entry'!B132) ->  | C135: =IF('Student DATA Entry'!C132="","",'Student DATA Entry'!C132) ->  | D135: =IF('Student DATA Entry'!D132="","",'Student DATA Entry'!D132) ->  | E135: =IF('Student DATA Entry'!E132="","",'Student DATA Entry'!E132) ->  | F135: =IF('Student DATA Entry'!K132="","",'Student DATA Entry'!K132) ->  | G135: =IF('Student DATA Entry'!G132="","",UPPER('Student DATA Entry'!G132)) ->  | H135: =IF('Student DATA Entry'!H132="","",UPPER('Student DATA Entry'!H132)) ->  | I135: =IF('Student DATA Entry'!I132="","",UPPER('Student DATA Entry'!I132)) ->  | J135: =IF('Student DATA Entry'!L132="","",UPPER('Student DATA Entry'!L132)) ->  | K135: =IF('Student DATA Entry'!J132="","",UPPER('Student DATA Entry'!J132)) -> 
A136: =IF('Student DATA Entry'!A133="","",'Student DATA Entry'!A133) -> 130 | B136: =IF('Student DATA Entry'!B133="","",'Student DATA Entry'!B133) ->  | C136: =IF('Student DATA Entry'!C133="","",'Student DATA Entry'!C133) ->  | D136: =IF('Student DATA Entry'!D133="","",'Student DATA Entry'!D133) ->  | E136: =IF('Student DATA Entry'!E133="","",'Student DATA Entry'!E133) ->  | F136: =IF('Student DATA Entry'!K133="","",'Student DATA Entry'!K133) ->  | G136: =IF('Student DATA Entry'!G133="","",UPPER('Student DATA Entry'!G133)) ->  | H136: =IF('Student DATA Entry'!H133="","",UPPER('Student DATA Entry'!H133)) ->  | I136: =IF('Student DATA Entry'!I133="","",UPPER('Student DATA Entry'!I133)) ->  | J136: =IF('Student DATA Entry'!L133="","",UPPER('Student DATA Entry'!L133)) ->  | K136: =IF('Student DATA Entry'!J133="","",UPPER('Student DATA Entry'!J133)) -> 
A137: =IF('Student DATA Entry'!A134="","",'Student DATA Entry'!A134) -> 131 | B137: =IF('Student DATA Entry'!B134="","",'Student DATA Entry'!B134) ->  | C137: =IF('Student DATA Entry'!C134="","",'Student DATA Entry'!C134) ->  | D137: =IF('Student DATA Entry'!D134="","",'Student DATA Entry'!D134) ->  | E137: =IF('Student DATA Entry'!E134="","",'Student DATA Entry'!E134) ->  | F137: =IF('Student DATA Entry'!K134="","",'Student DATA Entry'!K134) ->  | G137: =IF('Student DATA Entry'!G134="","",UPPER('Student DATA Entry'!G134)) ->  | H137: =IF('Student DATA Entry'!H134="","",UPPER('Student DATA Entry'!H134)) ->  | I137: =IF('Student DATA Entry'!I134="","",UPPER('Student DATA Entry'!I134)) ->  | J137: =IF('Student DATA Entry'!L134="","",UPPER('Student DATA Entry'!L134)) ->  | K137: =IF('Student DATA Entry'!J134="","",UPPER('Student DATA Entry'!J134)) -> 
A138: =IF('Student DATA Entry'!A135="","",'Student DATA Entry'!A135) -> 132 | B138: =IF('Student DATA Entry'!B135="","",'Student DATA Entry'!B135) ->  | C138: =IF('Student DATA Entry'!C135="","",'Student DATA Entry'!C135) ->  | D138: =IF('Student DATA Entry'!D135="","",'Student DATA Entry'!D135) ->  | E138: =IF('Student DATA Entry'!E135="","",'Student DATA Entry'!E135) ->  | F138: =IF('Student DATA Entry'!K135="","",'Student DATA Entry'!K135) ->  | G138: =IF('Student DATA Entry'!G135="","",UPPER('Student DATA Entry'!G135)) ->  | H138: =IF('Student DATA Entry'!H135="","",UPPER('Student DATA Entry'!H135)) ->  | I138: =IF('Student DATA Entry'!I135="","",UPPER('Student DATA Entry'!I135)) ->  | J138: =IF('Student DATA Entry'!L135="","",UPPER('Student DATA Entry'!L135)) ->  | K138: =IF('Student DATA Entry'!J135="","",UPPER('Student DATA Entry'!J135)) -> 
A139: =IF('Student DATA Entry'!A136="","",'Student DATA Entry'!A136) -> 133 | B139: =IF('Student DATA Entry'!B136="","",'Student DATA Entry'!B136) ->  | C139: =IF('Student DATA Entry'!C136="","",'Student DATA Entry'!C136) ->  | D139: =IF('Student DATA Entry'!D136="","",'Student DATA Entry'!D136) ->  | E139: =IF('Student DATA Entry'!E136="","",'Student DATA Entry'!E136) ->  | F139: =IF('Student DATA Entry'!K136="","",'Student DATA Entry'!K136) ->  | G139: =IF('Student DATA Entry'!G136="","",UPPER('Student DATA Entry'!G136)) ->  | H139: =IF('Student DATA Entry'!H136="","",UPPER('Student DATA Entry'!H136)) ->  | I139: =IF('Student DATA Entry'!I136="","",UPPER('Student DATA Entry'!I136)) ->  | J139: =IF('Student DATA Entry'!L136="","",UPPER('Student DATA Entry'!L136)) ->  | K139: =IF('Student DATA Entry'!J136="","",UPPER('Student DATA Entry'!J136)) -> 
A140: =IF('Student DATA Entry'!A137="","",'Student DATA Entry'!A137) -> 134 | B140: =IF('Student DATA Entry'!B137="","",'Student DATA Entry'!B137) ->  | C140: =IF('Student DATA Entry'!C137="","",'Student DATA Entry'!C137) ->  | D140: =IF('Student DATA Entry'!D137="","",'Student DATA Entry'!D137) ->  | E140: =IF('Student DATA Entry'!E137="","",'Student DATA Entry'!E137) ->  | F140: =IF('Student DATA Entry'!K137="","",'Student DATA Entry'!K137) ->  | G140: =IF('Student DATA Entry'!G137="","",UPPER('Student DATA Entry'!G137)) ->  | H140: =IF('Student DATA Entry'!H137="","",UPPER('Student DATA Entry'!H137)) ->  | I140: =IF('Student DATA Entry'!I137="","",UPPER('Student DATA Entry'!I137)) ->  | J140: =IF('Student DATA Entry'!L137="","",UPPER('Student DATA Entry'!L137)) ->  | K140: =IF('Student DATA Entry'!J137="","",UPPER('Student DATA Entry'!J137)) -> 
A141: =IF('Student DATA Entry'!A138="","",'Student DATA Entry'!A138) -> 135 | B141: =IF('Student DATA Entry'!B138="","",'Student DATA Entry'!B138) ->  | C141: =IF('Student DATA Entry'!C138="","",'Student DATA Entry'!C138) ->  | D141: =IF('Student DATA Entry'!D138="","",'Student DATA Entry'!D138) ->  | E141: =IF('Student DATA Entry'!E138="","",'Student DATA Entry'!E138) ->  | F141: =IF('Student DATA Entry'!K138="","",'Student DATA Entry'!K138) ->  | G141: =IF('Student DATA Entry'!G138="","",UPPER('Student DATA Entry'!G138)) ->  | H141: =IF('Student DATA Entry'!H138="","",UPPER('Student DATA Entry'!H138)) ->  | I141: =IF('Student DATA Entry'!I138="","",UPPER('Student DATA Entry'!I138)) ->  | J141: =IF('Student DATA Entry'!L138="","",UPPER('Student DATA Entry'!L138)) ->  | K141: =IF('Student DATA Entry'!J138="","",UPPER('Student DATA Entry'!J138)) -> 
A142: =IF('Student DATA Entry'!A139="","",'Student DATA Entry'!A139) -> 136 | B142: =IF('Student DATA Entry'!B139="","",'Student DATA Entry'!B139) ->  | C142: =IF('Student DATA Entry'!C139="","",'Student DATA Entry'!C139) ->  | D142: =IF('Student DATA Entry'!D139="","",'Student DATA Entry'!D139) ->  | E142: =IF('Student DATA Entry'!E139="","",'Student DATA Entry'!E139) ->  | F142: =IF('Student DATA Entry'!K139="","",'Student DATA Entry'!K139) ->  | G142: =IF('Student DATA Entry'!G139="","",UPPER('Student DATA Entry'!G139)) ->  | H142: =IF('Student DATA Entry'!H139="","",UPPER('Student DATA Entry'!H139)) ->  | I142: =IF('Student DATA Entry'!I139="","",UPPER('Student DATA Entry'!I139)) ->  | J142: =IF('Student DATA Entry'!L139="","",UPPER('Student DATA Entry'!L139)) ->  | K142: =IF('Student DATA Entry'!J139="","",UPPER('Student DATA Entry'!J139)) -> 
A143: =IF('Student DATA Entry'!A140="","",'Student DATA Entry'!A140) -> 137 | B143: =IF('Student DATA Entry'!B140="","",'Student DATA Entry'!B140) ->  | C143: =IF('Student DATA Entry'!C140="","",'Student DATA Entry'!C140) ->  | D143: =IF('Student DATA Entry'!D140="","",'Student DATA Entry'!D140) ->  | E143: =IF('Student DATA Entry'!E140="","",'Student DATA Entry'!E140) ->  | F143: =IF('Student DATA Entry'!K140="","",'Student DATA Entry'!K140) ->  | G143: =IF('Student DATA Entry'!G140="","",UPPER('Student DATA Entry'!G140)) ->  | H143: =IF('Student DATA Entry'!H140="","",UPPER('Student DATA Entry'!H140)) ->  | I143: =IF('Student DATA Entry'!I140="","",UPPER('Student DATA Entry'!I140)) ->  | J143: =IF('Student DATA Entry'!L140="","",UPPER('Student DATA Entry'!L140)) ->  | K143: =IF('Student DATA Entry'!J140="","",UPPER('Student DATA Entry'!J140)) -> 
A144: =IF('Student DATA Entry'!A141="","",'Student DATA Entry'!A141) -> 138 | B144: =IF('Student DATA Entry'!B141="","",'Student DATA Entry'!B141) ->  | C144: =IF('Student DATA Entry'!C141="","",'Student DATA Entry'!C141) ->  | D144: =IF('Student DATA Entry'!D141="","",'Student DATA Entry'!D141) ->  | E144: =IF('Student DATA Entry'!E141="","",'Student DATA Entry'!E141) ->  | F144: =IF('Student DATA Entry'!K141="","",'Student DATA Entry'!K141) ->  | G144: =IF('Student DATA Entry'!G141="","",UPPER('Student DATA Entry'!G141)) ->  | H144: =IF('Student DATA Entry'!H141="","",UPPER('Student DATA Entry'!H141)) ->  | I144: =IF('Student DATA Entry'!I141="","",UPPER('Student DATA Entry'!I141)) ->  | J144: =IF('Student DATA Entry'!L141="","",UPPER('Student DATA Entry'!L141)) ->  | K144: =IF('Student DATA Entry'!J141="","",UPPER('Student DATA Entry'!J141)) -> 
A145: =IF('Student DATA Entry'!A142="","",'Student DATA Entry'!A142) -> 139 | B145: =IF('Student DATA Entry'!B142="","",'Student DATA Entry'!B142) ->  | C145: =IF('Student DATA Entry'!C142="","",'Student DATA Entry'!C142) ->  | D145: =IF('Student DATA Entry'!D142="","",'Student DATA Entry'!D142) ->  | E145: =IF('Student DATA Entry'!E142="","",'Student DATA Entry'!E142) ->  | F145: =IF('Student DATA Entry'!K142="","",'Student DATA Entry'!K142) ->  | G145: =IF('Student DATA Entry'!G142="","",UPPER('Student DATA Entry'!G142)) ->  | H145: =IF('Student DATA Entry'!H142="","",UPPER('Student DATA Entry'!H142)) ->  | I145: =IF('Student DATA Entry'!I142="","",UPPER('Student DATA Entry'!I142)) ->  | J145: =IF('Student DATA Entry'!L142="","",UPPER('Student DATA Entry'!L142)) ->  | K145: =IF('Student DATA Entry'!J142="","",UPPER('Student DATA Entry'!J142)) -> 
A146: =IF('Student DATA Entry'!A143="","",'Student DATA Entry'!A143) -> 140 | B146: =IF('Student DATA Entry'!B143="","",'Student DATA Entry'!B143) ->  | C146: =IF('Student DATA Entry'!C143="","",'Student DATA Entry'!C143) ->  | D146: =IF('Student DATA Entry'!D143="","",'Student DATA Entry'!D143) ->  | E146: =IF('Student DATA Entry'!E143="","",'Student DATA Entry'!E143) ->  | F146: =IF('Student DATA Entry'!K143="","",'Student DATA Entry'!K143) ->  | G146: =IF('Student DATA Entry'!G143="","",UPPER('Student DATA Entry'!G143)) ->  | H146: =IF('Student DATA Entry'!H143="","",UPPER('Student DATA Entry'!H143)) ->  | I146: =IF('Student DATA Entry'!I143="","",UPPER('Student DATA Entry'!I143)) ->  | J146: =IF('Student DATA Entry'!L143="","",UPPER('Student DATA Entry'!L143)) ->  | K146: =IF('Student DATA Entry'!J143="","",UPPER('Student DATA Entry'!J143)) -> 
A147: =IF('Student DATA Entry'!A144="","",'Student DATA Entry'!A144) -> 141 | B147: =IF('Student DATA Entry'!B144="","",'Student DATA Entry'!B144) ->  | C147: =IF('Student DATA Entry'!C144="","",'Student DATA Entry'!C144) ->  | D147: =IF('Student DATA Entry'!D144="","",'Student DATA Entry'!D144) ->  | E147: =IF('Student DATA Entry'!E144="","",'Student DATA Entry'!E144) ->  | F147: =IF('Student DATA Entry'!K144="","",'Student DATA Entry'!K144) ->  | G147: =IF('Student DATA Entry'!G144="","",UPPER('Student DATA Entry'!G144)) ->  | H147: =IF('Student DATA Entry'!H144="","",UPPER('Student DATA Entry'!H144)) ->  | I147: =IF('Student DATA Entry'!I144="","",UPPER('Student DATA Entry'!I144)) ->  | J147: =IF('Student DATA Entry'!L144="","",UPPER('Student DATA Entry'!L144)) ->  | K147: =IF('Student DATA Entry'!J144="","",UPPER('Student DATA Entry'!J144)) -> 
A148: =IF('Student DATA Entry'!A145="","",'Student DATA Entry'!A145) -> 142 | B148: =IF('Student DATA Entry'!B145="","",'Student DATA Entry'!B145) ->  | C148: =IF('Student DATA Entry'!C145="","",'Student DATA Entry'!C145) ->  | D148: =IF('Student DATA Entry'!D145="","",'Student DATA Entry'!D145) ->  | E148: =IF('Student DATA Entry'!E145="","",'Student DATA Entry'!E145) ->  | F148: =IF('Student DATA Entry'!K145="","",'Student DATA Entry'!K145) ->  | G148: =IF('Student DATA Entry'!G145="","",UPPER('Student DATA Entry'!G145)) ->  | H148: =IF('Student DATA Entry'!H145="","",UPPER('Student DATA Entry'!H145)) ->  | I148: =IF('Student DATA Entry'!I145="","",UPPER('Student DATA Entry'!I145)) ->  | J148: =IF('Student DATA Entry'!L145="","",UPPER('Student DATA Entry'!L145)) ->  | K148: =IF('Student DATA Entry'!J145="","",UPPER('Student DATA Entry'!J145)) -> 
A149: =IF('Student DATA Entry'!A146="","",'Student DATA Entry'!A146) -> 143 | B149: =IF('Student DATA Entry'!B146="","",'Student DATA Entry'!B146) ->  | C149: =IF('Student DATA Entry'!C146="","",'Student DATA Entry'!C146) ->  | D149: =IF('Student DATA Entry'!D146="","",'Student DATA Entry'!D146) ->  | E149: =IF('Student DATA Entry'!E146="","",'Student DATA Entry'!E146) ->  | F149: =IF('Student DATA Entry'!K146="","",'Student DATA Entry'!K146) ->  | G149: =IF('Student DATA Entry'!G146="","",UPPER('Student DATA Entry'!G146)) ->  | H149: =IF('Student DATA Entry'!H146="","",UPPER('Student DATA Entry'!H146)) ->  | I149: =IF('Student DATA Entry'!I146="","",UPPER('Student DATA Entry'!I146)) ->  | J149: =IF('Student DATA Entry'!L146="","",UPPER('Student DATA Entry'!L146)) ->  | K149: =IF('Student DATA Entry'!J146="","",UPPER('Student DATA Entry'!J146)) -> 
A150: =IF('Student DATA Entry'!A147="","",'Student DATA Entry'!A147) -> 144 | B150: =IF('Student DATA Entry'!B147="","",'Student DATA Entry'!B147) ->  | C150: =IF('Student DATA Entry'!C147="","",'Student DATA Entry'!C147) ->  | D150: =IF('Student DATA Entry'!D147="","",'Student DATA Entry'!D147) ->  | E150: =IF('Student DATA Entry'!E147="","",'Student DATA Entry'!E147) ->  | F150: =IF('Student DATA Entry'!K147="","",'Student DATA Entry'!K147) ->  | G150: =IF('Student DATA Entry'!G147="","",UPPER('Student DATA Entry'!G147)) ->  | H150: =IF('Student DATA Entry'!H147="","",UPPER('Student DATA Entry'!H147)) ->  | I150: =IF('Student DATA Entry'!I147="","",UPPER('Student DATA Entry'!I147)) ->  | J150: =IF('Student DATA Entry'!L147="","",UPPER('Student DATA Entry'!L147)) ->  | K150: =IF('Student DATA Entry'!J147="","",UPPER('Student DATA Entry'!J147)) -> 
A151: =IF('Student DATA Entry'!A148="","",'Student DATA Entry'!A148) -> 145 | B151: =IF('Student DATA Entry'!B148="","",'Student DATA Entry'!B148) ->  | C151: =IF('Student DATA Entry'!C148="","",'Student DATA Entry'!C148) ->  | D151: =IF('Student DATA Entry'!D148="","",'Student DATA Entry'!D148) ->  | E151: =IF('Student DATA Entry'!E148="","",'Student DATA Entry'!E148) ->  | F151: =IF('Student DATA Entry'!K148="","",'Student DATA Entry'!K148) ->  | G151: =IF('Student DATA Entry'!G148="","",UPPER('Student DATA Entry'!G148)) ->  | H151: =IF('Student DATA Entry'!H148="","",UPPER('Student DATA Entry'!H148)) ->  | I151: =IF('Student DATA Entry'!I148="","",UPPER('Student DATA Entry'!I148)) ->  | J151: =IF('Student DATA Entry'!L148="","",UPPER('Student DATA Entry'!L148)) ->  | K151: =IF('Student DATA Entry'!J148="","",UPPER('Student DATA Entry'!J148)) -> 
A152: =IF('Student DATA Entry'!A149="","",'Student DATA Entry'!A149) -> 146 | B152: =IF('Student DATA Entry'!B149="","",'Student DATA Entry'!B149) ->  | C152: =IF('Student DATA Entry'!C149="","",'Student DATA Entry'!C149) ->  | D152: =IF('Student DATA Entry'!D149="","",'Student DATA Entry'!D149) ->  | E152: =IF('Student DATA Entry'!E149="","",'Student DATA Entry'!E149) ->  | F152: =IF('Student DATA Entry'!K149="","",'Student DATA Entry'!K149) ->  | G152: =IF('Student DATA Entry'!G149="","",UPPER('Student DATA Entry'!G149)) ->  | H152: =IF('Student DATA Entry'!H149="","",UPPER('Student DATA Entry'!H149)) ->  | I152: =IF('Student DATA Entry'!I149="","",UPPER('Student DATA Entry'!I149)) ->  | J152: =IF('Student DATA Entry'!L149="","",UPPER('Student DATA Entry'!L149)) ->  | K152: =IF('Student DATA Entry'!J149="","",UPPER('Student DATA Entry'!J149)) -> 
A153: =IF('Student DATA Entry'!A150="","",'Student DATA Entry'!A150) -> 147 | B153: =IF('Student DATA Entry'!B150="","",'Student DATA Entry'!B150) ->  | C153: =IF('Student DATA Entry'!C150="","",'Student DATA Entry'!C150) ->  | D153: =IF('Student DATA Entry'!D150="","",'Student DATA Entry'!D150) ->  | E153: =IF('Student DATA Entry'!E150="","",'Student DATA Entry'!E150) ->  | F153: =IF('Student DATA Entry'!K150="","",'Student DATA Entry'!K150) ->  | G153: =IF('Student DATA Entry'!G150="","",UPPER('Student DATA Entry'!G150)) ->  | H153: =IF('Student DATA Entry'!H150="","",UPPER('Student DATA Entry'!H150)) ->  | I153: =IF('Student DATA Entry'!I150="","",UPPER('Student DATA Entry'!I150)) ->  | J153: =IF('Student DATA Entry'!L150="","",UPPER('Student DATA Entry'!L150)) ->  | K153: =IF('Student DATA Entry'!J150="","",UPPER('Student DATA Entry'!J150)) -> 
A154: =IF('Student DATA Entry'!A151="","",'Student DATA Entry'!A151) -> 148 | B154: =IF('Student DATA Entry'!B151="","",'Student DATA Entry'!B151) ->  | C154: =IF('Student DATA Entry'!C151="","",'Student DATA Entry'!C151) ->  | D154: =IF('Student DATA Entry'!D151="","",'Student DATA Entry'!D151) ->  | E154: =IF('Student DATA Entry'!E151="","",'Student DATA Entry'!E151) ->  | F154: =IF('Student DATA Entry'!K151="","",'Student DATA Entry'!K151) ->  | G154: =IF('Student DATA Entry'!G151="","",UPPER('Student DATA Entry'!G151)) ->  | H154: =IF('Student DATA Entry'!H151="","",UPPER('Student DATA Entry'!H151)) ->  | I154: =IF('Student DATA Entry'!I151="","",UPPER('Student DATA Entry'!I151)) ->  | J154: =IF('Student DATA Entry'!L151="","",UPPER('Student DATA Entry'!L151)) ->  | K154: =IF('Student DATA Entry'!J151="","",UPPER('Student DATA Entry'!J151)) -> 
A155: =IF('Student DATA Entry'!A152="","",'Student DATA Entry'!A152) -> 149 | B155: =IF('Student DATA Entry'!B152="","",'Student DATA Entry'!B152) ->  | C155: =IF('Student DATA Entry'!C152="","",'Student DATA Entry'!C152) ->  | D155: =IF('Student DATA Entry'!D152="","",'Student DATA Entry'!D152) ->  | E155: =IF('Student DATA Entry'!E152="","",'Student DATA Entry'!E152) ->  | F155: =IF('Student DATA Entry'!K152="","",'Student DATA Entry'!K152) ->  | G155: =IF('Student DATA Entry'!G152="","",UPPER('Student DATA Entry'!G152)) ->  | H155: =IF('Student DATA Entry'!H152="","",UPPER('Student DATA Entry'!H152)) ->  | I155: =IF('Student DATA Entry'!I152="","",UPPER('Student DATA Entry'!I152)) ->  | J155: =IF('Student DATA Entry'!L152="","",UPPER('Student DATA Entry'!L152)) ->  | K155: =IF('Student DATA Entry'!J152="","",UPPER('Student DATA Entry'!J152)) -> 
A156: =IF('Student DATA Entry'!A153="","",'Student DATA Entry'!A153) -> 150 | B156: =IF('Student DATA Entry'!B153="","",'Student DATA Entry'!B153) ->  | C156: =IF('Student DATA Entry'!C153="","",'Student DATA Entry'!C153) ->  | D156: =IF('Student DATA Entry'!D153="","",'Student DATA Entry'!D153) ->  | E156: =IF('Student DATA Entry'!E153="","",'Student DATA Entry'!E153) ->  | F156: =IF('Student DATA Entry'!K153="","",'Student DATA Entry'!K153) ->  | G156: =IF('Student DATA Entry'!G153="","",UPPER('Student DATA Entry'!G153)) ->  | H156: =IF('Student DATA Entry'!H153="","",UPPER('Student DATA Entry'!H153)) ->  | I156: =IF('Student DATA Entry'!I153="","",UPPER('Student DATA Entry'!I153)) ->  | J156: =IF('Student DATA Entry'!L153="","",UPPER('Student DATA Entry'!L153)) ->  | K156: =IF('Student DATA Entry'!J153="","",UPPER('Student DATA Entry'!J153)) -> 
A157: =IF('Student DATA Entry'!A154="","",'Student DATA Entry'!A154) -> 151 | B157: =IF('Student DATA Entry'!B154="","",'Student DATA Entry'!B154) ->  | C157: =IF('Student DATA Entry'!C154="","",'Student DATA Entry'!C154) ->  | D157: =IF('Student DATA Entry'!D154="","",'Student DATA Entry'!D154) ->  | E157: =IF('Student DATA Entry'!E154="","",'Student DATA Entry'!E154) ->  | F157: =IF('Student DATA Entry'!K154="","",'Student DATA Entry'!K154) ->  | G157: =IF('Student DATA Entry'!G154="","",UPPER('Student DATA Entry'!G154)) ->  | H157: =IF('Student DATA Entry'!H154="","",UPPER('Student DATA Entry'!H154)) ->  | I157: =IF('Student DATA Entry'!I154="","",UPPER('Student DATA Entry'!I154)) ->  | J157: =IF('Student DATA Entry'!L154="","",UPPER('Student DATA Entry'!L154)) ->  | K157: =IF('Student DATA Entry'!J154="","",UPPER('Student DATA Entry'!J154)) -> 
A158: =IF('Student DATA Entry'!A155="","",'Student DATA Entry'!A155) -> 152 | B158: =IF('Student DATA Entry'!B155="","",'Student DATA Entry'!B155) ->  | C158: =IF('Student DATA Entry'!C155="","",'Student DATA Entry'!C155) ->  | D158: =IF('Student DATA Entry'!D155="","",'Student DATA Entry'!D155) ->  | E158: =IF('Student DATA Entry'!E155="","",'Student DATA Entry'!E155) ->  | F158: =IF('Student DATA Entry'!K155="","",'Student DATA Entry'!K155) ->  | G158: =IF('Student DATA Entry'!G155="","",UPPER('Student DATA Entry'!G155)) ->  | H158: =IF('Student DATA Entry'!H155="","",UPPER('Student DATA Entry'!H155)) ->  | I158: =IF('Student DATA Entry'!I155="","",UPPER('Student DATA Entry'!I155)) ->  | J158: =IF('Student DATA Entry'!L155="","",UPPER('Student DATA Entry'!L155)) ->  | K158: =IF('Student DATA Entry'!J155="","",UPPER('Student DATA Entry'!J155)) -> 
A159: =IF('Student DATA Entry'!A156="","",'Student DATA Entry'!A156) -> 153 | B159: =IF('Student DATA Entry'!B156="","",'Student DATA Entry'!B156) ->  | C159: =IF('Student DATA Entry'!C156="","",'Student DATA Entry'!C156) ->  | D159: =IF('Student DATA Entry'!D156="","",'Student DATA Entry'!D156) ->  | E159: =IF('Student DATA Entry'!E156="","",'Student DATA Entry'!E156) ->  | F159: =IF('Student DATA Entry'!K156="","",'Student DATA Entry'!K156) ->  | G159: =IF('Student DATA Entry'!G156="","",UPPER('Student DATA Entry'!G156)) ->  | H159: =IF('Student DATA Entry'!H156="","",UPPER('Student DATA Entry'!H156)) ->  | I159: =IF('Student DATA Entry'!I156="","",UPPER('Student DATA Entry'!I156)) ->  | J159: =IF('Student DATA Entry'!L156="","",UPPER('Student DATA Entry'!L156)) ->  | K159: =IF('Student DATA Entry'!J156="","",UPPER('Student DATA Entry'!J156)) -> 
A160: =IF('Student DATA Entry'!A157="","",'Student DATA Entry'!A157) -> 154 | B160: =IF('Student DATA Entry'!B157="","",'Student DATA Entry'!B157) ->  | C160: =IF('Student DATA Entry'!C157="","",'Student DATA Entry'!C157) ->  | D160: =IF('Student DATA Entry'!D157="","",'Student DATA Entry'!D157) ->  | E160: =IF('Student DATA Entry'!E157="","",'Student DATA Entry'!E157) ->  | F160: =IF('Student DATA Entry'!K157="","",'Student DATA Entry'!K157) ->  | G160: =IF('Student DATA Entry'!G157="","",UPPER('Student DATA Entry'!G157)) ->  | H160: =IF('Student DATA Entry'!H157="","",UPPER('Student DATA Entry'!H157)) ->  | I160: =IF('Student DATA Entry'!I157="","",UPPER('Student DATA Entry'!I157)) ->  | J160: =IF('Student DATA Entry'!L157="","",UPPER('Student DATA Entry'!L157)) ->  | K160: =IF('Student DATA Entry'!J157="","",UPPER('Student DATA Entry'!J157)) -> 
A161: =IF('Student DATA Entry'!A158="","",'Student DATA Entry'!A158) -> 155 | B161: =IF('Student DATA Entry'!B158="","",'Student DATA Entry'!B158) ->  | C161: =IF('Student DATA Entry'!C158="","",'Student DATA Entry'!C158) ->  | D161: =IF('Student DATA Entry'!D158="","",'Student DATA Entry'!D158) ->  | E161: =IF('Student DATA Entry'!E158="","",'Student DATA Entry'!E158) ->  | F161: =IF('Student DATA Entry'!K158="","",'Student DATA Entry'!K158) ->  | G161: =IF('Student DATA Entry'!G158="","",UPPER('Student DATA Entry'!G158)) ->  | H161: =IF('Student DATA Entry'!H158="","",UPPER('Student DATA Entry'!H158)) ->  | I161: =IF('Student DATA Entry'!I158="","",UPPER('Student DATA Entry'!I158)) ->  | J161: =IF('Student DATA Entry'!L158="","",UPPER('Student DATA Entry'!L158)) ->  | K161: =IF('Student DATA Entry'!J158="","",UPPER('Student DATA Entry'!J158)) -> 
A162: =IF('Student DATA Entry'!A159="","",'Student DATA Entry'!A159) -> 156 | B162: =IF('Student DATA Entry'!B159="","",'Student DATA Entry'!B159) ->  | C162: =IF('Student DATA Entry'!C159="","",'Student DATA Entry'!C159) ->  | D162: =IF('Student DATA Entry'!D159="","",'Student DATA Entry'!D159) ->  | E162: =IF('Student DATA Entry'!E159="","",'Student DATA Entry'!E159) ->  | F162: =IF('Student DATA Entry'!K159="","",'Student DATA Entry'!K159) ->  | G162: =IF('Student DATA Entry'!G159="","",UPPER('Student DATA Entry'!G159)) ->  | H162: =IF('Student DATA Entry'!H159="","",UPPER('Student DATA Entry'!H159)) ->  | I162: =IF('Student DATA Entry'!I159="","",UPPER('Student DATA Entry'!I159)) ->  | J162: =IF('Student DATA Entry'!L159="","",UPPER('Student DATA Entry'!L159)) ->  | K162: =IF('Student DATA Entry'!J159="","",UPPER('Student DATA Entry'!J159)) -> 
A163: =IF('Student DATA Entry'!A160="","",'Student DATA Entry'!A160) -> 157 | B163: =IF('Student DATA Entry'!B160="","",'Student DATA Entry'!B160) ->  | C163: =IF('Student DATA Entry'!C160="","",'Student DATA Entry'!C160) ->  | D163: =IF('Student DATA Entry'!D160="","",'Student DATA Entry'!D160) ->  | E163: =IF('Student DATA Entry'!E160="","",'Student DATA Entry'!E160) ->  | F163: =IF('Student DATA Entry'!K160="","",'Student DATA Entry'!K160) ->  | G163: =IF('Student DATA Entry'!G160="","",UPPER('Student DATA Entry'!G160)) ->  | H163: =IF('Student DATA Entry'!H160="","",UPPER('Student DATA Entry'!H160)) ->  | I163: =IF('Student DATA Entry'!I160="","",UPPER('Student DATA Entry'!I160)) ->  | J163: =IF('Student DATA Entry'!L160="","",UPPER('Student DATA Entry'!L160)) ->  | K163: =IF('Student DATA Entry'!J160="","",UPPER('Student DATA Entry'!J160)) -> 
A164: =IF('Student DATA Entry'!A161="","",'Student DATA Entry'!A161) -> 158 | B164: =IF('Student DATA Entry'!B161="","",'Student DATA Entry'!B161) ->  | C164: =IF('Student DATA Entry'!C161="","",'Student DATA Entry'!C161) ->  | D164: =IF('Student DATA Entry'!D161="","",'Student DATA Entry'!D161) ->  | E164: =IF('Student DATA Entry'!E161="","",'Student DATA Entry'!E161) ->  | F164: =IF('Student DATA Entry'!K161="","",'Student DATA Entry'!K161) ->  | G164: =IF('Student DATA Entry'!G161="","",UPPER('Student DATA Entry'!G161)) ->  | H164: =IF('Student DATA Entry'!H161="","",UPPER('Student DATA Entry'!H161)) ->  | I164: =IF('Student DATA Entry'!I161="","",UPPER('Student DATA Entry'!I161)) ->  | J164: =IF('Student DATA Entry'!L161="","",UPPER('Student DATA Entry'!L161)) ->  | K164: =IF('Student DATA Entry'!J161="","",UPPER('Student DATA Entry'!J161)) -> 
A165: =IF('Student DATA Entry'!A162="","",'Student DATA Entry'!A162) -> 159 | B165: =IF('Student DATA Entry'!B162="","",'Student DATA Entry'!B162) ->  | C165: =IF('Student DATA Entry'!C162="","",'Student DATA Entry'!C162) ->  | D165: =IF('Student DATA Entry'!D162="","",'Student DATA Entry'!D162) ->  | E165: =IF('Student DATA Entry'!E162="","",'Student DATA Entry'!E162) ->  | F165: =IF('Student DATA Entry'!K162="","",'Student DATA Entry'!K162) ->  | G165: =IF('Student DATA Entry'!G162="","",UPPER('Student DATA Entry'!G162)) ->  | H165: =IF('Student DATA Entry'!H162="","",UPPER('Student DATA Entry'!H162)) ->  | I165: =IF('Student DATA Entry'!I162="","",UPPER('Student DATA Entry'!I162)) ->  | J165: =IF('Student DATA Entry'!L162="","",UPPER('Student DATA Entry'!L162)) ->  | K165: =IF('Student DATA Entry'!J162="","",UPPER('Student DATA Entry'!J162)) -> 
A166: =IF('Student DATA Entry'!A163="","",'Student DATA Entry'!A163) -> 160 | B166: =IF('Student DATA Entry'!B163="","",'Student DATA Entry'!B163) ->  | C166: =IF('Student DATA Entry'!C163="","",'Student DATA Entry'!C163) ->  | D166: =IF('Student DATA Entry'!D163="","",'Student DATA Entry'!D163) ->  | E166: =IF('Student DATA Entry'!E163="","",'Student DATA Entry'!E163) ->  | F166: =IF('Student DATA Entry'!K163="","",'Student DATA Entry'!K163) ->  | G166: =IF('Student DATA Entry'!G163="","",UPPER('Student DATA Entry'!G163)) ->  | H166: =IF('Student DATA Entry'!H163="","",UPPER('Student DATA Entry'!H163)) ->  | I166: =IF('Student DATA Entry'!I163="","",UPPER('Student DATA Entry'!I163)) ->  | J166: =IF('Student DATA Entry'!L163="","",UPPER('Student DATA Entry'!L163)) ->  | K166: =IF('Student DATA Entry'!J163="","",UPPER('Student DATA Entry'!J163)) -> 
A167: =IF('Student DATA Entry'!A164="","",'Student DATA Entry'!A164) -> 161 | B167: =IF('Student DATA Entry'!B164="","",'Student DATA Entry'!B164) ->  | C167: =IF('Student DATA Entry'!C164="","",'Student DATA Entry'!C164) ->  | D167: =IF('Student DATA Entry'!D164="","",'Student DATA Entry'!D164) ->  | E167: =IF('Student DATA Entry'!E164="","",'Student DATA Entry'!E164) ->  | F167: =IF('Student DATA Entry'!K164="","",'Student DATA Entry'!K164) ->  | G167: =IF('Student DATA Entry'!G164="","",UPPER('Student DATA Entry'!G164)) ->  | H167: =IF('Student DATA Entry'!H164="","",UPPER('Student DATA Entry'!H164)) ->  | I167: =IF('Student DATA Entry'!I164="","",UPPER('Student DATA Entry'!I164)) ->  | J167: =IF('Student DATA Entry'!L164="","",UPPER('Student DATA Entry'!L164)) ->  | K167: =IF('Student DATA Entry'!J164="","",UPPER('Student DATA Entry'!J164)) -> 
A168: =IF('Student DATA Entry'!A165="","",'Student DATA Entry'!A165) -> 162 | B168: =IF('Student DATA Entry'!B165="","",'Student DATA Entry'!B165) ->  | C168: =IF('Student DATA Entry'!C165="","",'Student DATA Entry'!C165) ->  | D168: =IF('Student DATA Entry'!D165="","",'Student DATA Entry'!D165) ->  | E168: =IF('Student DATA Entry'!E165="","",'Student DATA Entry'!E165) ->  | F168: =IF('Student DATA Entry'!K165="","",'Student DATA Entry'!K165) ->  | G168: =IF('Student DATA Entry'!G165="","",UPPER('Student DATA Entry'!G165)) ->  | H168: =IF('Student DATA Entry'!H165="","",UPPER('Student DATA Entry'!H165)) ->  | I168: =IF('Student DATA Entry'!I165="","",UPPER('Student DATA Entry'!I165)) ->  | J168: =IF('Student DATA Entry'!L165="","",UPPER('Student DATA Entry'!L165)) ->  | K168: =IF('Student DATA Entry'!J165="","",UPPER('Student DATA Entry'!J165)) -> 
A169: =IF('Student DATA Entry'!A166="","",'Student DATA Entry'!A166) -> 163 | B169: =IF('Student DATA Entry'!B166="","",'Student DATA Entry'!B166) ->  | C169: =IF('Student DATA Entry'!C166="","",'Student DATA Entry'!C166) ->  | D169: =IF('Student DATA Entry'!D166="","",'Student DATA Entry'!D166) ->  | E169: =IF('Student DATA Entry'!E166="","",'Student DATA Entry'!E166) ->  | F169: =IF('Student DATA Entry'!K166="","",'Student DATA Entry'!K166) ->  | G169: =IF('Student DATA Entry'!G166="","",UPPER('Student DATA Entry'!G166)) ->  | H169: =IF('Student DATA Entry'!H166="","",UPPER('Student DATA Entry'!H166)) ->  | I169: =IF('Student DATA Entry'!I166="","",UPPER('Student DATA Entry'!I166)) ->  | J169: =IF('Student DATA Entry'!L166="","",UPPER('Student DATA Entry'!L166)) ->  | K169: =IF('Student DATA Entry'!J166="","",UPPER('Student DATA Entry'!J166)) -> 
A170: =IF('Student DATA Entry'!A167="","",'Student DATA Entry'!A167) -> 164 | B170: =IF('Student DATA Entry'!B167="","",'Student DATA Entry'!B167) ->  | C170: =IF('Student DATA Entry'!C167="","",'Student DATA Entry'!C167) ->  | D170: =IF('Student DATA Entry'!D167="","",'Student DATA Entry'!D167) ->  | E170: =IF('Student DATA Entry'!E167="","",'Student DATA Entry'!E167) ->  | F170: =IF('Student DATA Entry'!K167="","",'Student DATA Entry'!K167) ->  | G170: =IF('Student DATA Entry'!G167="","",UPPER('Student DATA Entry'!G167)) ->  | H170: =IF('Student DATA Entry'!H167="","",UPPER('Student DATA Entry'!H167)) ->  | I170: =IF('Student DATA Entry'!I167="","",UPPER('Student DATA Entry'!I167)) ->  | J170: =IF('Student DATA Entry'!L167="","",UPPER('Student DATA Entry'!L167)) ->  | K170: =IF('Student DATA Entry'!J167="","",UPPER('Student DATA Entry'!J167)) -> 
A171: =IF('Student DATA Entry'!A168="","",'Student DATA Entry'!A168) -> 165 | B171: =IF('Student DATA Entry'!B168="","",'Student DATA Entry'!B168) ->  | C171: =IF('Student DATA Entry'!C168="","",'Student DATA Entry'!C168) ->  | D171: =IF('Student DATA Entry'!D168="","",'Student DATA Entry'!D168) ->  | E171: =IF('Student DATA Entry'!E168="","",'Student DATA Entry'!E168) ->  | F171: =IF('Student DATA Entry'!K168="","",'Student DATA Entry'!K168) ->  | G171: =IF('Student DATA Entry'!G168="","",UPPER('Student DATA Entry'!G168)) ->  | H171: =IF('Student DATA Entry'!H168="","",UPPER('Student DATA Entry'!H168)) ->  | I171: =IF('Student DATA Entry'!I168="","",UPPER('Student DATA Entry'!I168)) ->  | J171: =IF('Student DATA Entry'!L168="","",UPPER('Student DATA Entry'!L168)) ->  | K171: =IF('Student DATA Entry'!J168="","",UPPER('Student DATA Entry'!J168)) -> 
A172: =IF('Student DATA Entry'!A169="","",'Student DATA Entry'!A169) -> 166 | B172: =IF('Student DATA Entry'!B169="","",'Student DATA Entry'!B169) ->  | C172: =IF('Student DATA Entry'!C169="","",'Student DATA Entry'!C169) ->  | D172: =IF('Student DATA Entry'!D169="","",'Student DATA Entry'!D169) ->  | E172: =IF('Student DATA Entry'!E169="","",'Student DATA Entry'!E169) ->  | F172: =IF('Student DATA Entry'!K169="","",'Student DATA Entry'!K169) ->  | G172: =IF('Student DATA Entry'!G169="","",UPPER('Student DATA Entry'!G169)) ->  | H172: =IF('Student DATA Entry'!H169="","",UPPER('Student DATA Entry'!H169)) ->  | I172: =IF('Student DATA Entry'!I169="","",UPPER('Student DATA Entry'!I169)) ->  | J172: =IF('Student DATA Entry'!L169="","",UPPER('Student DATA Entry'!L169)) ->  | K172: =IF('Student DATA Entry'!J169="","",UPPER('Student DATA Entry'!J169)) -> 
A173: =IF('Student DATA Entry'!A170="","",'Student DATA Entry'!A170) -> 167 | B173: =IF('Student DATA Entry'!B170="","",'Student DATA Entry'!B170) ->  | C173: =IF('Student DATA Entry'!C170="","",'Student DATA Entry'!C170) ->  | D173: =IF('Student DATA Entry'!D170="","",'Student DATA Entry'!D170) ->  | E173: =IF('Student DATA Entry'!E170="","",'Student DATA Entry'!E170) ->  | F173: =IF('Student DATA Entry'!K170="","",'Student DATA Entry'!K170) ->  | G173: =IF('Student DATA Entry'!G170="","",UPPER('Student DATA Entry'!G170)) ->  | H173: =IF('Student DATA Entry'!H170="","",UPPER('Student DATA Entry'!H170)) ->  | I173: =IF('Student DATA Entry'!I170="","",UPPER('Student DATA Entry'!I170)) ->  | J173: =IF('Student DATA Entry'!L170="","",UPPER('Student DATA Entry'!L170)) ->  | K173: =IF('Student DATA Entry'!J170="","",UPPER('Student DATA Entry'!J170)) -> 
A174: =IF('Student DATA Entry'!A171="","",'Student DATA Entry'!A171) -> 168 | B174: =IF('Student DATA Entry'!B171="","",'Student DATA Entry'!B171) ->  | C174: =IF('Student DATA Entry'!C171="","",'Student DATA Entry'!C171) ->  | D174: =IF('Student DATA Entry'!D171="","",'Student DATA Entry'!D171) ->  | E174: =IF('Student DATA Entry'!E171="","",'Student DATA Entry'!E171) ->  | F174: =IF('Student DATA Entry'!K171="","",'Student DATA Entry'!K171) ->  | G174: =IF('Student DATA Entry'!G171="","",UPPER('Student DATA Entry'!G171)) ->  | H174: =IF('Student DATA Entry'!H171="","",UPPER('Student DATA Entry'!H171)) ->  | I174: =IF('Student DATA Entry'!I171="","",UPPER('Student DATA Entry'!I171)) ->  | J174: =IF('Student DATA Entry'!L171="","",UPPER('Student DATA Entry'!L171)) ->  | K174: =IF('Student DATA Entry'!J171="","",UPPER('Student DATA Entry'!J171)) -> 
A175: =IF('Student DATA Entry'!A172="","",'Student DATA Entry'!A172) -> 169 | B175: =IF('Student DATA Entry'!B172="","",'Student DATA Entry'!B172) ->  | C175: =IF('Student DATA Entry'!C172="","",'Student DATA Entry'!C172) ->  | D175: =IF('Student DATA Entry'!D172="","",'Student DATA Entry'!D172) ->  | E175: =IF('Student DATA Entry'!E172="","",'Student DATA Entry'!E172) ->  | F175: =IF('Student DATA Entry'!K172="","",'Student DATA Entry'!K172) ->  | G175: =IF('Student DATA Entry'!G172="","",UPPER('Student DATA Entry'!G172)) ->  | H175: =IF('Student DATA Entry'!H172="","",UPPER('Student DATA Entry'!H172)) ->  | I175: =IF('Student DATA Entry'!I172="","",UPPER('Student DATA Entry'!I172)) ->  | J175: =IF('Student DATA Entry'!L172="","",UPPER('Student DATA Entry'!L172)) ->  | K175: =IF('Student DATA Entry'!J172="","",UPPER('Student DATA Entry'!J172)) -> 
A176: =IF('Student DATA Entry'!A173="","",'Student DATA Entry'!A173) -> 170 | B176: =IF('Student DATA Entry'!B173="","",'Student DATA Entry'!B173) ->  | C176: =IF('Student DATA Entry'!C173="","",'Student DATA Entry'!C173) ->  | D176: =IF('Student DATA Entry'!D173="","",'Student DATA Entry'!D173) ->  | E176: =IF('Student DATA Entry'!E173="","",'Student DATA Entry'!E173) ->  | F176: =IF('Student DATA Entry'!K173="","",'Student DATA Entry'!K173) ->  | G176: =IF('Student DATA Entry'!G173="","",UPPER('Student DATA Entry'!G173)) ->  | H176: =IF('Student DATA Entry'!H173="","",UPPER('Student DATA Entry'!H173)) ->  | I176: =IF('Student DATA Entry'!I173="","",UPPER('Student DATA Entry'!I173)) ->  | J176: =IF('Student DATA Entry'!L173="","",UPPER('Student DATA Entry'!L173)) ->  | K176: =IF('Student DATA Entry'!J173="","",UPPER('Student DATA Entry'!J173)) -> 
A177: =IF('Student DATA Entry'!A174="","",'Student DATA Entry'!A174) -> 171 | B177: =IF('Student DATA Entry'!B174="","",'Student DATA Entry'!B174) ->  | C177: =IF('Student DATA Entry'!C174="","",'Student DATA Entry'!C174) ->  | D177: =IF('Student DATA Entry'!D174="","",'Student DATA Entry'!D174) ->  | E177: =IF('Student DATA Entry'!E174="","",'Student DATA Entry'!E174) ->  | F177: =IF('Student DATA Entry'!K174="","",'Student DATA Entry'!K174) ->  | G177: =IF('Student DATA Entry'!G174="","",UPPER('Student DATA Entry'!G174)) ->  | H177: =IF('Student DATA Entry'!H174="","",UPPER('Student DATA Entry'!H174)) ->  | I177: =IF('Student DATA Entry'!I174="","",UPPER('Student DATA Entry'!I174)) ->  | J177: =IF('Student DATA Entry'!L174="","",UPPER('Student DATA Entry'!L174)) ->  | K177: =IF('Student DATA Entry'!J174="","",UPPER('Student DATA Entry'!J174)) -> 
A178: =IF('Student DATA Entry'!A175="","",'Student DATA Entry'!A175) -> 172 | B178: =IF('Student DATA Entry'!B175="","",'Student DATA Entry'!B175) ->  | C178: =IF('Student DATA Entry'!C175="","",'Student DATA Entry'!C175) ->  | D178: =IF('Student DATA Entry'!D175="","",'Student DATA Entry'!D175) ->  | E178: =IF('Student DATA Entry'!E175="","",'Student DATA Entry'!E175) ->  | F178: =IF('Student DATA Entry'!K175="","",'Student DATA Entry'!K175) ->  | G178: =IF('Student DATA Entry'!G175="","",UPPER('Student DATA Entry'!G175)) ->  | H178: =IF('Student DATA Entry'!H175="","",UPPER('Student DATA Entry'!H175)) ->  | I178: =IF('Student DATA Entry'!I175="","",UPPER('Student DATA Entry'!I175)) ->  | J178: =IF('Student DATA Entry'!L175="","",UPPER('Student DATA Entry'!L175)) ->  | K178: =IF('Student DATA Entry'!J175="","",UPPER('Student DATA Entry'!J175)) -> 
A179: =IF('Student DATA Entry'!A176="","",'Student DATA Entry'!A176) -> 173 | B179: =IF('Student DATA Entry'!B176="","",'Student DATA Entry'!B176) ->  | C179: =IF('Student DATA Entry'!C176="","",'Student DATA Entry'!C176) ->  | D179: =IF('Student DATA Entry'!D176="","",'Student DATA Entry'!D176) ->  | E179: =IF('Student DATA Entry'!E176="","",'Student DATA Entry'!E176) ->  | F179: =IF('Student DATA Entry'!K176="","",'Student DATA Entry'!K176) ->  | G179: =IF('Student DATA Entry'!G176="","",UPPER('Student DATA Entry'!G176)) ->  | H179: =IF('Student DATA Entry'!H176="","",UPPER('Student DATA Entry'!H176)) ->  | I179: =IF('Student DATA Entry'!I176="","",UPPER('Student DATA Entry'!I176)) ->  | J179: =IF('Student DATA Entry'!L176="","",UPPER('Student DATA Entry'!L176)) ->  | K179: =IF('Student DATA Entry'!J176="","",UPPER('Student DATA Entry'!J176)) -> 
A180: =IF('Student DATA Entry'!A177="","",'Student DATA Entry'!A177) -> 174 | B180: =IF('Student DATA Entry'!B177="","",'Student DATA Entry'!B177) ->  | C180: =IF('Student DATA Entry'!C177="","",'Student DATA Entry'!C177) ->  | D180: =IF('Student DATA Entry'!D177="","",'Student DATA Entry'!D177) ->  | E180: =IF('Student DATA Entry'!E177="","",'Student DATA Entry'!E177) ->  | F180: =IF('Student DATA Entry'!K177="","",'Student DATA Entry'!K177) ->  | G180: =IF('Student DATA Entry'!G177="","",UPPER('Student DATA Entry'!G177)) ->  | H180: =IF('Student DATA Entry'!H177="","",UPPER('Student DATA Entry'!H177)) ->  | I180: =IF('Student DATA Entry'!I177="","",UPPER('Student DATA Entry'!I177)) ->  | J180: =IF('Student DATA Entry'!L177="","",UPPER('Student DATA Entry'!L177)) ->  | K180: =IF('Student DATA Entry'!J177="","",UPPER('Student DATA Entry'!J177)) -> 
A181: =IF('Student DATA Entry'!A178="","",'Student DATA Entry'!A178) -> 175 | B181: =IF('Student DATA Entry'!B178="","",'Student DATA Entry'!B178) ->  | C181: =IF('Student DATA Entry'!C178="","",'Student DATA Entry'!C178) ->  | D181: =IF('Student DATA Entry'!D178="","",'Student DATA Entry'!D178) ->  | E181: =IF('Student DATA Entry'!E178="","",'Student DATA Entry'!E178) ->  | F181: =IF('Student DATA Entry'!K178="","",'Student DATA Entry'!K178) ->  | G181: =IF('Student DATA Entry'!G178="","",UPPER('Student DATA Entry'!G178)) ->  | H181: =IF('Student DATA Entry'!H178="","",UPPER('Student DATA Entry'!H178)) ->  | I181: =IF('Student DATA Entry'!I178="","",UPPER('Student DATA Entry'!I178)) ->  | J181: =IF('Student DATA Entry'!L178="","",UPPER('Student DATA Entry'!L178)) ->  | K181: =IF('Student DATA Entry'!J178="","",UPPER('Student DATA Entry'!J178)) -> 
A182: =IF('Student DATA Entry'!A179="","",'Student DATA Entry'!A179) -> 176 | B182: =IF('Student DATA Entry'!B179="","",'Student DATA Entry'!B179) ->  | C182: =IF('Student DATA Entry'!C179="","",'Student DATA Entry'!C179) ->  | D182: =IF('Student DATA Entry'!D179="","",'Student DATA Entry'!D179) ->  | E182: =IF('Student DATA Entry'!E179="","",'Student DATA Entry'!E179) ->  | F182: =IF('Student DATA Entry'!K179="","",'Student DATA Entry'!K179) ->  | G182: =IF('Student DATA Entry'!G179="","",UPPER('Student DATA Entry'!G179)) ->  | H182: =IF('Student DATA Entry'!H179="","",UPPER('Student DATA Entry'!H179)) ->  | I182: =IF('Student DATA Entry'!I179="","",UPPER('Student DATA Entry'!I179)) ->  | J182: =IF('Student DATA Entry'!L179="","",UPPER('Student DATA Entry'!L179)) ->  | K182: =IF('Student DATA Entry'!J179="","",UPPER('Student DATA Entry'!J179)) -> 
A183: =IF('Student DATA Entry'!A180="","",'Student DATA Entry'!A180) -> 177 | B183: =IF('Student DATA Entry'!B180="","",'Student DATA Entry'!B180) ->  | C183: =IF('Student DATA Entry'!C180="","",'Student DATA Entry'!C180) ->  | D183: =IF('Student DATA Entry'!D180="","",'Student DATA Entry'!D180) ->  | E183: =IF('Student DATA Entry'!E180="","",'Student DATA Entry'!E180) ->  | F183: =IF('Student DATA Entry'!K180="","",'Student DATA Entry'!K180) ->  | G183: =IF('Student DATA Entry'!G180="","",UPPER('Student DATA Entry'!G180)) ->  | H183: =IF('Student DATA Entry'!H180="","",UPPER('Student DATA Entry'!H180)) ->  | I183: =IF('Student DATA Entry'!I180="","",UPPER('Student DATA Entry'!I180)) ->  | J183: =IF('Student DATA Entry'!L180="","",UPPER('Student DATA Entry'!L180)) ->  | K183: =IF('Student DATA Entry'!J180="","",UPPER('Student DATA Entry'!J180)) -> 
A184: =IF('Student DATA Entry'!A181="","",'Student DATA Entry'!A181) -> 178 | B184: =IF('Student DATA Entry'!B181="","",'Student DATA Entry'!B181) ->  | C184: =IF('Student DATA Entry'!C181="","",'Student DATA Entry'!C181) ->  | D184: =IF('Student DATA Entry'!D181="","",'Student DATA Entry'!D181) ->  | E184: =IF('Student DATA Entry'!E181="","",'Student DATA Entry'!E181) ->  | F184: =IF('Student DATA Entry'!K181="","",'Student DATA Entry'!K181) ->  | G184: =IF('Student DATA Entry'!G181="","",UPPER('Student DATA Entry'!G181)) ->  | H184: =IF('Student DATA Entry'!H181="","",UPPER('Student DATA Entry'!H181)) ->  | I184: =IF('Student DATA Entry'!I181="","",UPPER('Student DATA Entry'!I181)) ->  | J184: =IF('Student DATA Entry'!L181="","",UPPER('Student DATA Entry'!L181)) ->  | K184: =IF('Student DATA Entry'!J181="","",UPPER('Student DATA Entry'!J181)) -> 
A185: =IF('Student DATA Entry'!A182="","",'Student DATA Entry'!A182) -> 179 | B185: =IF('Student DATA Entry'!B182="","",'Student DATA Entry'!B182) ->  | C185: =IF('Student DATA Entry'!C182="","",'Student DATA Entry'!C182) ->  | D185: =IF('Student DATA Entry'!D182="","",'Student DATA Entry'!D182) ->  | E185: =IF('Student DATA Entry'!E182="","",'Student DATA Entry'!E182) ->  | F185: =IF('Student DATA Entry'!K182="","",'Student DATA Entry'!K182) ->  | G185: =IF('Student DATA Entry'!G182="","",UPPER('Student DATA Entry'!G182)) ->  | H185: =IF('Student DATA Entry'!H182="","",UPPER('Student DATA Entry'!H182)) ->  | I185: =IF('Student DATA Entry'!I182="","",UPPER('Student DATA Entry'!I182)) ->  | J185: =IF('Student DATA Entry'!L182="","",UPPER('Student DATA Entry'!L182)) ->  | K185: =IF('Student DATA Entry'!J182="","",UPPER('Student DATA Entry'!J182)) -> 
A186: =IF('Student DATA Entry'!A183="","",'Student DATA Entry'!A183) -> 180 | B186: =IF('Student DATA Entry'!B183="","",'Student DATA Entry'!B183) ->  | C186: =IF('Student DATA Entry'!C183="","",'Student DATA Entry'!C183) ->  | D186: =IF('Student DATA Entry'!D183="","",'Student DATA Entry'!D183) ->  | E186: =IF('Student DATA Entry'!E183="","",'Student DATA Entry'!E183) ->  | F186: =IF('Student DATA Entry'!K183="","",'Student DATA Entry'!K183) ->  | G186: =IF('Student DATA Entry'!G183="","",UPPER('Student DATA Entry'!G183)) ->  | H186: =IF('Student DATA Entry'!H183="","",UPPER('Student DATA Entry'!H183)) ->  | I186: =IF('Student DATA Entry'!I183="","",UPPER('Student DATA Entry'!I183)) ->  | J186: =IF('Student DATA Entry'!L183="","",UPPER('Student DATA Entry'!L183)) ->  | K186: =IF('Student DATA Entry'!J183="","",UPPER('Student DATA Entry'!J183)) -> 
A187: =IF('Student DATA Entry'!A184="","",'Student DATA Entry'!A184) -> 181 | B187: =IF('Student DATA Entry'!B184="","",'Student DATA Entry'!B184) ->  | C187: =IF('Student DATA Entry'!C184="","",'Student DATA Entry'!C184) ->  | D187: =IF('Student DATA Entry'!D184="","",'Student DATA Entry'!D184) ->  | E187: =IF('Student DATA Entry'!E184="","",'Student DATA Entry'!E184) ->  | F187: =IF('Student DATA Entry'!K184="","",'Student DATA Entry'!K184) ->  | G187: =IF('Student DATA Entry'!G184="","",UPPER('Student DATA Entry'!G184)) ->  | H187: =IF('Student DATA Entry'!H184="","",UPPER('Student DATA Entry'!H184)) ->  | I187: =IF('Student DATA Entry'!I184="","",UPPER('Student DATA Entry'!I184)) ->  | J187: =IF('Student DATA Entry'!L184="","",UPPER('Student DATA Entry'!L184)) ->  | K187: =IF('Student DATA Entry'!J184="","",UPPER('Student DATA Entry'!J184)) -> 
A188: =IF('Student DATA Entry'!A185="","",'Student DATA Entry'!A185) -> 182 | B188: =IF('Student DATA Entry'!B185="","",'Student DATA Entry'!B185) ->  | C188: =IF('Student DATA Entry'!C185="","",'Student DATA Entry'!C185) ->  | D188: =IF('Student DATA Entry'!D185="","",'Student DATA Entry'!D185) ->  | E188: =IF('Student DATA Entry'!E185="","",'Student DATA Entry'!E185) ->  | F188: =IF('Student DATA Entry'!K185="","",'Student DATA Entry'!K185) ->  | G188: =IF('Student DATA Entry'!G185="","",UPPER('Student DATA Entry'!G185)) ->  | H188: =IF('Student DATA Entry'!H185="","",UPPER('Student DATA Entry'!H185)) ->  | I188: =IF('Student DATA Entry'!I185="","",UPPER('Student DATA Entry'!I185)) ->  | J188: =IF('Student DATA Entry'!L185="","",UPPER('Student DATA Entry'!L185)) ->  | K188: =IF('Student DATA Entry'!J185="","",UPPER('Student DATA Entry'!J185)) -> 
A189: =IF('Student DATA Entry'!A186="","",'Student DATA Entry'!A186) -> 183 | B189: =IF('Student DATA Entry'!B186="","",'Student DATA Entry'!B186) ->  | C189: =IF('Student DATA Entry'!C186="","",'Student DATA Entry'!C186) ->  | D189: =IF('Student DATA Entry'!D186="","",'Student DATA Entry'!D186) ->  | E189: =IF('Student DATA Entry'!E186="","",'Student DATA Entry'!E186) ->  | F189: =IF('Student DATA Entry'!K186="","",'Student DATA Entry'!K186) ->  | G189: =IF('Student DATA Entry'!G186="","",UPPER('Student DATA Entry'!G186)) ->  | H189: =IF('Student DATA Entry'!H186="","",UPPER('Student DATA Entry'!H186)) ->  | I189: =IF('Student DATA Entry'!I186="","",UPPER('Student DATA Entry'!I186)) ->  | J189: =IF('Student DATA Entry'!L186="","",UPPER('Student DATA Entry'!L186)) ->  | K189: =IF('Student DATA Entry'!J186="","",UPPER('Student DATA Entry'!J186)) -> 
A190: =IF('Student DATA Entry'!A187="","",'Student DATA Entry'!A187) -> 184 | B190: =IF('Student DATA Entry'!B187="","",'Student DATA Entry'!B187) ->  | C190: =IF('Student DATA Entry'!C187="","",'Student DATA Entry'!C187) ->  | D190: =IF('Student DATA Entry'!D187="","",'Student DATA Entry'!D187) ->  | E190: =IF('Student DATA Entry'!E187="","",'Student DATA Entry'!E187) ->  | F190: =IF('Student DATA Entry'!K187="","",'Student DATA Entry'!K187) ->  | G190: =IF('Student DATA Entry'!G187="","",UPPER('Student DATA Entry'!G187)) ->  | H190: =IF('Student DATA Entry'!H187="","",UPPER('Student DATA Entry'!H187)) ->  | I190: =IF('Student DATA Entry'!I187="","",UPPER('Student DATA Entry'!I187)) ->  | J190: =IF('Student DATA Entry'!L187="","",UPPER('Student DATA Entry'!L187)) ->  | K190: =IF('Student DATA Entry'!J187="","",UPPER('Student DATA Entry'!J187)) -> 
A191: =IF('Student DATA Entry'!A188="","",'Student DATA Entry'!A188) -> 185 | B191: =IF('Student DATA Entry'!B188="","",'Student DATA Entry'!B188) ->  | C191: =IF('Student DATA Entry'!C188="","",'Student DATA Entry'!C188) ->  | D191: =IF('Student DATA Entry'!D188="","",'Student DATA Entry'!D188) ->  | E191: =IF('Student DATA Entry'!E188="","",'Student DATA Entry'!E188) ->  | F191: =IF('Student DATA Entry'!K188="","",'Student DATA Entry'!K188) ->  | G191: =IF('Student DATA Entry'!G188="","",UPPER('Student DATA Entry'!G188)) ->  | H191: =IF('Student DATA Entry'!H188="","",UPPER('Student DATA Entry'!H188)) ->  | I191: =IF('Student DATA Entry'!I188="","",UPPER('Student DATA Entry'!I188)) ->  | J191: =IF('Student DATA Entry'!L188="","",UPPER('Student DATA Entry'!L188)) ->  | K191: =IF('Student DATA Entry'!J188="","",UPPER('Student DATA Entry'!J188)) -> 
A192: =IF('Student DATA Entry'!A189="","",'Student DATA Entry'!A189) -> 186 | B192: =IF('Student DATA Entry'!B189="","",'Student DATA Entry'!B189) ->  | C192: =IF('Student DATA Entry'!C189="","",'Student DATA Entry'!C189) ->  | D192: =IF('Student DATA Entry'!D189="","",'Student DATA Entry'!D189) ->  | E192: =IF('Student DATA Entry'!E189="","",'Student DATA Entry'!E189) ->  | F192: =IF('Student DATA Entry'!K189="","",'Student DATA Entry'!K189) ->  | G192: =IF('Student DATA Entry'!G189="","",UPPER('Student DATA Entry'!G189)) ->  | H192: =IF('Student DATA Entry'!H189="","",UPPER('Student DATA Entry'!H189)) ->  | I192: =IF('Student DATA Entry'!I189="","",UPPER('Student DATA Entry'!I189)) ->  | J192: =IF('Student DATA Entry'!L189="","",UPPER('Student DATA Entry'!L189)) ->  | K192: =IF('Student DATA Entry'!J189="","",UPPER('Student DATA Entry'!J189)) -> 
A193: =IF('Student DATA Entry'!A190="","",'Student DATA Entry'!A190) -> 187 | B193: =IF('Student DATA Entry'!B190="","",'Student DATA Entry'!B190) ->  | C193: =IF('Student DATA Entry'!C190="","",'Student DATA Entry'!C190) ->  | D193: =IF('Student DATA Entry'!D190="","",'Student DATA Entry'!D190) ->  | E193: =IF('Student DATA Entry'!E190="","",'Student DATA Entry'!E190) ->  | F193: =IF('Student DATA Entry'!K190="","",'Student DATA Entry'!K190) ->  | G193: =IF('Student DATA Entry'!G190="","",UPPER('Student DATA Entry'!G190)) ->  | H193: =IF('Student DATA Entry'!H190="","",UPPER('Student DATA Entry'!H190)) ->  | I193: =IF('Student DATA Entry'!I190="","",UPPER('Student DATA Entry'!I190)) ->  | J193: =IF('Student DATA Entry'!L190="","",UPPER('Student DATA Entry'!L190)) ->  | K193: =IF('Student DATA Entry'!J190="","",UPPER('Student DATA Entry'!J190)) -> 
A194: =IF('Student DATA Entry'!A191="","",'Student DATA Entry'!A191) -> 188 | B194: =IF('Student DATA Entry'!B191="","",'Student DATA Entry'!B191) ->  | C194: =IF('Student DATA Entry'!C191="","",'Student DATA Entry'!C191) ->  | D194: =IF('Student DATA Entry'!D191="","",'Student DATA Entry'!D191) ->  | E194: =IF('Student DATA Entry'!E191="","",'Student DATA Entry'!E191) ->  | F194: =IF('Student DATA Entry'!K191="","",'Student DATA Entry'!K191) ->  | G194: =IF('Student DATA Entry'!G191="","",UPPER('Student DATA Entry'!G191)) ->  | H194: =IF('Student DATA Entry'!H191="","",UPPER('Student DATA Entry'!H191)) ->  | I194: =IF('Student DATA Entry'!I191="","",UPPER('Student DATA Entry'!I191)) ->  | J194: =IF('Student DATA Entry'!L191="","",UPPER('Student DATA Entry'!L191)) ->  | K194: =IF('Student DATA Entry'!J191="","",UPPER('Student DATA Entry'!J191)) -> 
A195: =IF('Student DATA Entry'!A192="","",'Student DATA Entry'!A192) -> 189 | B195: =IF('Student DATA Entry'!B192="","",'Student DATA Entry'!B192) ->  | C195: =IF('Student DATA Entry'!C192="","",'Student DATA Entry'!C192) ->  | D195: =IF('Student DATA Entry'!D192="","",'Student DATA Entry'!D192) ->  | E195: =IF('Student DATA Entry'!E192="","",'Student DATA Entry'!E192) ->  | F195: =IF('Student DATA Entry'!K192="","",'Student DATA Entry'!K192) ->  | G195: =IF('Student DATA Entry'!G192="","",UPPER('Student DATA Entry'!G192)) ->  | H195: =IF('Student DATA Entry'!H192="","",UPPER('Student DATA Entry'!H192)) ->  | I195: =IF('Student DATA Entry'!I192="","",UPPER('Student DATA Entry'!I192)) ->  | J195: =IF('Student DATA Entry'!L192="","",UPPER('Student DATA Entry'!L192)) ->  | K195: =IF('Student DATA Entry'!J192="","",UPPER('Student DATA Entry'!J192)) -> 
A196: =IF('Student DATA Entry'!A193="","",'Student DATA Entry'!A193) -> 190 | B196: =IF('Student DATA Entry'!B193="","",'Student DATA Entry'!B193) ->  | C196: =IF('Student DATA Entry'!C193="","",'Student DATA Entry'!C193) ->  | D196: =IF('Student DATA Entry'!D193="","",'Student DATA Entry'!D193) ->  | E196: =IF('Student DATA Entry'!E193="","",'Student DATA Entry'!E193) ->  | F196: =IF('Student DATA Entry'!K193="","",'Student DATA Entry'!K193) ->  | G196: =IF('Student DATA Entry'!G193="","",UPPER('Student DATA Entry'!G193)) ->  | H196: =IF('Student DATA Entry'!H193="","",UPPER('Student DATA Entry'!H193)) ->  | I196: =IF('Student DATA Entry'!I193="","",UPPER('Student DATA Entry'!I193)) ->  | J196: =IF('Student DATA Entry'!L193="","",UPPER('Student DATA Entry'!L193)) ->  | K196: =IF('Student DATA Entry'!J193="","",UPPER('Student DATA Entry'!J193)) -> 
A197: =IF('Student DATA Entry'!A194="","",'Student DATA Entry'!A194) -> 191 | B197: =IF('Student DATA Entry'!B194="","",'Student DATA Entry'!B194) ->  | C197: =IF('Student DATA Entry'!C194="","",'Student DATA Entry'!C194) ->  | D197: =IF('Student DATA Entry'!D194="","",'Student DATA Entry'!D194) ->  | E197: =IF('Student DATA Entry'!E194="","",'Student DATA Entry'!E194) ->  | F197: =IF('Student DATA Entry'!K194="","",'Student DATA Entry'!K194) ->  | G197: =IF('Student DATA Entry'!G194="","",UPPER('Student DATA Entry'!G194)) ->  | H197: =IF('Student DATA Entry'!H194="","",UPPER('Student DATA Entry'!H194)) ->  | I197: =IF('Student DATA Entry'!I194="","",UPPER('Student DATA Entry'!I194)) ->  | J197: =IF('Student DATA Entry'!L194="","",UPPER('Student DATA Entry'!L194)) ->  | K197: =IF('Student DATA Entry'!J194="","",UPPER('Student DATA Entry'!J194)) -> 
A198: =IF('Student DATA Entry'!A195="","",'Student DATA Entry'!A195) -> 192 | B198: =IF('Student DATA Entry'!B195="","",'Student DATA Entry'!B195) ->  | C198: =IF('Student DATA Entry'!C195="","",'Student DATA Entry'!C195) ->  | D198: =IF('Student DATA Entry'!D195="","",'Student DATA Entry'!D195) ->  | E198: =IF('Student DATA Entry'!E195="","",'Student DATA Entry'!E195) ->  | F198: =IF('Student DATA Entry'!K195="","",'Student DATA Entry'!K195) ->  | G198: =IF('Student DATA Entry'!G195="","",UPPER('Student DATA Entry'!G195)) ->  | H198: =IF('Student DATA Entry'!H195="","",UPPER('Student DATA Entry'!H195)) ->  | I198: =IF('Student DATA Entry'!I195="","",UPPER('Student DATA Entry'!I195)) ->  | J198: =IF('Student DATA Entry'!L195="","",UPPER('Student DATA Entry'!L195)) ->  | K198: =IF('Student DATA Entry'!J195="","",UPPER('Student DATA Entry'!J195)) -> 
A199: =IF('Student DATA Entry'!A196="","",'Student DATA Entry'!A196) -> 193 | B199: =IF('Student DATA Entry'!B196="","",'Student DATA Entry'!B196) ->  | C199: =IF('Student DATA Entry'!C196="","",'Student DATA Entry'!C196) ->  | D199: =IF('Student DATA Entry'!D196="","",'Student DATA Entry'!D196) ->  | E199: =IF('Student DATA Entry'!E196="","",'Student DATA Entry'!E196) ->  | F199: =IF('Student DATA Entry'!K196="","",'Student DATA Entry'!K196) ->  | G199: =IF('Student DATA Entry'!G196="","",UPPER('Student DATA Entry'!G196)) ->  | H199: =IF('Student DATA Entry'!H196="","",UPPER('Student DATA Entry'!H196)) ->  | I199: =IF('Student DATA Entry'!I196="","",UPPER('Student DATA Entry'!I196)) ->  | J199: =IF('Student DATA Entry'!L196="","",UPPER('Student DATA Entry'!L196)) ->  | K199: =IF('Student DATA Entry'!J196="","",UPPER('Student DATA Entry'!J196)) -> 
A200: =IF('Student DATA Entry'!A197="","",'Student DATA Entry'!A197) -> 194 | B200: =IF('Student DATA Entry'!B197="","",'Student DATA Entry'!B197) ->  | C200: =IF('Student DATA Entry'!C197="","",'Student DATA Entry'!C197) ->  | D200: =IF('Student DATA Entry'!D197="","",'Student DATA Entry'!D197) ->  | E200: =IF('Student DATA Entry'!E197="","",'Student DATA Entry'!E197) ->  | F200: =IF('Student DATA Entry'!K197="","",'Student DATA Entry'!K197) ->  | G200: =IF('Student DATA Entry'!G197="","",UPPER('Student DATA Entry'!G197)) ->  | H200: =IF('Student DATA Entry'!H197="","",UPPER('Student DATA Entry'!H197)) ->  | I200: =IF('Student DATA Entry'!I197="","",UPPER('Student DATA Entry'!I197)) ->  | J200: =IF('Student DATA Entry'!L197="","",UPPER('Student DATA Entry'!L197)) ->  | K200: =IF('Student DATA Entry'!J197="","",UPPER('Student DATA Entry'!J197)) -> 
... 6 more rows

Sheet Statement of Marks
A2: =IF('School Profile'!D12="Hindi","विद्यालय का नाम :-","Name of School :-") -> विद्यालय का नाम :- | F2: =IF('School Profile'!D12="Hindi",'School Profile'!D9,'School Profile'!D8) -> महात्मा गाँधी राजकीय विद्यालय (अंग्रेजी माध्यम) बर, पाली | GK2: ='Student DATA Entry'!M2 -> Total Attendance | GN2: =IF('School Profile'!$D$12="Hindi","विषयवार परिणाम","Subject-wise Result") -> विषयवार परिणाम | HN2: =IF('School Profile'!$D$12="Hindi","विशेष विवरण","Specifications") -> विशेष विवरण | HS2: =IF('School Profile'!$D$12="Hindi","मुख्य परीक्षा परिणाम ","Main Exam Result") -> मुख्य परीक्षा परिणाम | HY2: =IF('School Profile'!$D$12="Hindi","पूरक परीक्षा उतीर्ण होने के पश्चात् अंतिम परिणाम","Final Result after Passing the Supplementary Exam") -> पूरक परीक्षा उतीर्ण होने के पश्चात् अंतिम परिणाम
A3: =IF('School Profile'!D12="Hindi","कक्षा :-","CLASS :-") -> कक्षा :- | E3: 9th | G3: =IF('School Profile'!D12="Hindi","सत्र :-","Session :-") -> सत्र :- | H3: =IF('Marks Entry'!I3="","",'Marks Entry'!I3) -> 2024-2025 | K3: =IF('Marks Entry'!L2="","",'Marks Entry'!L2) -> हिंदी | Y3: =IF('Marks Entry'!Q2="","",'Marks Entry'!Q2) -> अंग्रेजी | AM3: =IF('School Profile'!I9="","",'School Profile'!I9) -> संस्कृत (71) | AN3: =IF('School Profile'!I10="","",'School Profile'!I10) -> उर्दू (72) | AQ3: =IF('School Profile'!I11="","",'School Profile'!I11) -> गुजराती (73) | AS3: =IF('School Profile'!I12="","",'School Profile'!I12) -> सिंधी (74) | AV3: =IF('School Profile'!I13="","",'School Profile'!I13) -> पंजाबी (75) | BB3: =IF('Marks Entry'!AB2="","",'Marks Entry'!AB2) -> गणित | BP3: =IF('Marks Entry'!AG2="","",'Marks Entry'!AG2) -> विज्ञान | CE3: =IF('Marks Entry'!AL2="","",'Marks Entry'!AL2) -> सामाजिक विज्ञान | CS3: =IF('School Profile'!$D$12="Hindi","व्यावसायिक शिक्षा विषय","Vocational Education Subject") -> व्यावसायिक शिक्षा विषय | DL3: fo"k; okj ifj.kke | DS3: vuqRrkh.kZ ;ksX; fo"k; | DT3: iwjd ;ksX; fo"k; | DU3: 1 d`ikad ;ksX; fo"k; | DV3: 2 d`ikad ;ksX; fo"k; | DW3: iqu% ijh{kk ;ksX; fo"k; | DX3: vfrfjDr fo"k; | DZ3: =IF('Marks Entry'!AY2="","",'Marks Entry'!AY2) -> राजस्थान का स्वतंत्रता आन्दोलन व शौर्य परम्परा | EL3: =IF('Marks Entry'!BD2="","",'Marks Entry'!BD2) -> सूचना प्रोद्योगिकी की अवधारणा - I | FB3: =IF('Marks Entry'!BK2="","",'Marks Entry'!BK2) -> स्वा. एवं शा. शिक्षा | FU3: =IF('Marks Entry'!BU2="","",'Marks Entry'!BU2) -> समाजोपयोगी उत्पादन कार्य एवं समाज सेवा | GC3: =IF('Marks Entry'!BX2="","",'Marks Entry'!BX2) -> कला शिक्षा
A4: =IF('Marks Entry'!A4="","",'Marks Entry'!A4) -> क्र. स. | B4: =IF('Marks Entry'!B4="","",'Marks Entry'!B4) -> रोल न. | C4: =IF('Marks Entry'!D4="","",'Marks Entry'!D4) -> सेक्शन | D4: =IF('Marks Entry'!E4="","",'Marks Entry'!E4) -> प्रवेशांक | E4: ='Marks Entry'!F4 -> जन्मतिथि | F4: =IF('Marks Entry'!G4="","",'Marks Entry'!G4) -> विद्यार्थी का नाम | G4: =IF('Marks Entry'!H4="","",'Marks Entry'!H4) -> पिता का नाम | H4: =IF('Marks Entry'!I4="","",'Marks Entry'!I4) -> माता का नाम | I4: ='Marks Entry'!J3 -> वर्ग | J4: ='Marks Entry'!K3 -> लिंग | K4: =IF('School Profile'!$D$12="Hindi","सामयिक परख","Seasonal Exam") -> सामयिक परख | O4: =IF('School Profile'!$D$12="Hindi","अर्द्धवार्षिक","Half Yearly") -> अर्द्धवार्षिक | P4: =IF('School Profile'!$D$12="Hindi","अर्द्ध वा. तक योग","Total Till H.Y.") -> अर्द्ध वा. तक योग | Q4: =IF('School Profile'!$D$12="Hindi","वार्षिक","Yearly") -> वार्षिक | R4: =IF('School Profile'!$D$12="Hindi","विषय कुल योग ","Subject Total") -> विषय कुल योग | S4: EXEMPTION | T4: EXEMPTION | U4: fo"k; iw.kkZad lS- | V4: 2T+E OR 2E+T | W4: fo"k; ifj.kke | X4: fo"k; Js.kh | Y4: =IF('School Profile'!$D$12="Hindi","सामयिक परख","Seasonal Exam") -> सामयिक परख | AC4: =IF('School Profile'!$D$12="Hindi","अर्द्धवार्षिक","Half Yearly") -> अर्द्धवार्षिक | AD4: =IF('School Profile'!$D$12="Hindi","अर्द्ध वा. तक योग","Total Till H.Y.") -> अर्द्ध वा. तक योग | AE4: =IF('School Profile'!$D$12="Hindi","वार्षिक","Yearly") -> वार्षिक | AF4: =IF('School Profile'!$D$12="Hindi","विषय कुल योग ","Subject Total") -> विषय कुल योग | AG4: EXEMPTION | AH4: EXEMPTION | AI4: fo"k; iw.kkZad lS- | AJ4: 2T+E OR 2E+T | AK4: fo"k; ifj.kke | AL4: fo"k; Js.kh | AM4: =IF('School Profile'!$D$12="Hindi","तृतीय भाषा के विषय","Third Language Subject") -> तृतीय भाषा के विषय | AN4: =IF('School Profile'!$D$12="Hindi","सामयिक परख","Seasonal Exam") -> सामयिक परख | AR4: =IF('School Profile'!$D$12="Hindi","अर्द्धवार्षिक","Half Yearly") -> अर्द्धवार्षिक | AS4: =IF('School Profile'!$D$12="Hindi","अर्द्ध वा. तक योग","Total Till H.Y.") -> अर्द्ध वा. तक योग | AT4: =IF('School Profile'!$D$12="Hindi","वार्षिक","Yearly") -> वार्षिक | AU4: =IF('School Profile'!$D$12="Hindi","विषय कुल योग ","Subject Total") -> विषय कुल योग | AV4: EXEMPTION | AW4: EXEMPTION | AX4: fo"k; iw.kkZad lS- | AY4: 2T+E OR 2E+T | AZ4: fo"k; ifj.kke | BA4: fo"k; Js.kh | BB4: =IF('School Profile'!$D$12="Hindi","सामयिक परख","Seasonal Exam") -> सामयिक परख | BF4: =IF('School Profile'!$D$12="Hindi","अर्द्धवार्षिक","Half Yearly") -> अर्द्धवार्षिक | BG4: =IF('School Profile'!$D$12="Hindi","अर्द्ध वा. तक योग","Total Till H.Y.") -> अर्द्ध वा. तक योग | BH4: =IF('School Profile'!$D$12="Hindi","वार्षिक","Yearly") -> वार्षिक | BI4: =IF('School Profile'!$D$12="Hindi","विषय कुल योग ","Subject Total") -> विषय कुल योग | BJ4: EXEMPTION | BK4: EXEMPTION | BL4: fo"k; iw.kkZad lS- | BM4: 2T+E OR 2E+T | BN4: fo"k; ifj.kke | BO4: fo"k; Js.kh | BP4: =IF('School Profile'!$D$12="Hindi","सामयिक परख","Seasonal Exam") -> सामयिक परख | BT4: =IF('School Profile'!$D$12="Hindi","अर्द्धवार्षिक","Half Yearly") -> अर्द्धवार्षिक | BU4: =IF('School Profile'!$D$12="Hindi","अर्द्ध वा. तक योग","Total Till H.Y.") -> अर्द्ध वा. तक योग | BV4: =IF('School Profile'!$D$12="Hindi","वार्षिक","Yearly") -> वार्षिक | BW4: =IF('School Profile'!$D$12="Hindi","विषय कुल योग ","Subject Total") -> विषय कुल योग | BX4: EXEMPTION | BY4: EXEMPTION | BZ4: fo"k; iw.kkZad lS- | CA4: 2T+E OR 2E+T | CB4: fo"k; ifj.kke | CC4: fo"k; Js.kh | CD4: TOTAL EXEMPTION | CE4: =IF('School Profile'!$D$12="Hindi","सामयिक परख","Seasonal Exam") -> सामयिक परख | CI4: =IF('School Profile'!$D$12="Hindi","अर्द्धवार्षिक","Half Yearly") -> अर्द्धवार्षिक | CJ4: =IF('School Profile'!$D$12="Hindi","अर्द्ध वा. तक योग","Total Till H.Y.") -> अर्द्ध वा. तक योग | CK4: =IF('School Profile'!$D$12="Hindi","वार्षिक","Yearly") -> वार्षिक | CL4: =IF('School Profile'!$D$12="Hindi","विषय कुल योग ","Subject Total") -> विषय कुल योग | CM4: EXEMPTION | CN4: EXEMPTION | CO4: fo"k; iw.kkZad lS- | CP4: 2T+E OR 2E+T | CQ4: fo"k; ifj.kke | CR4: fo"k; Js.kh | CS4: =IF('School Profile'!$D$12="Hindi","व्यावसायिक शिक्षा के विषय","Vocational Education Subject") -> व्यावसायिक शिक्षा के विषय | CT4: =IF('School Profile'!$D$12="Hindi","सामयिक परख","Seasonal Exam") -> सामयिक परख | CX4: =IF('School Profile'!$D$12="Hindi","अर्द्धवार्षिक","Half Yearly") -> अर्द्धवार्षिक | DA4: =IF('School Profile'!$D$12="Hindi","अर्द्ध वा. तक योग","Total Till H.Y.") -> अर्द्ध वा. तक योग | DB4: =IF('School Profile'!$D$12="Hindi","वार्षिक","Yearly") -> वार्षिक | DE4: =IF('School Profile'!$D$12="Hindi","विषय कुल योग ","Subject Total") -> विषय कुल योग | DF4: EXEMPTION | DG4: EXEMPTION | DH4: fo"k; iw.kkZad lS- | DI4: 2T+E OR 2E+T | DJ4: fo"k; ifj.kke | DK4: fo"k; Js.kh | DY4: mRrh.kZ@ lkuqxzg mRrh.kZ@ vuqRrh.kZ@ iwjd@ vuqifLFkr | DZ4: =IF('School Profile'!$D$12="Hindi","सामयिक परख","Seasonal Exam") -> सामयिक परख | ED4: =IF('School Profile'!$D$12="Hindi","अर्द्धवार्षिक","Half Yearly") -> अर्द्धवार्षिक | EE4: =IF('School Profile'!$D$12="Hindi","अर्द्ध वा. तक योग","Total Till H.Y.") -> अर्द्ध वा. तक योग | EF4: =IF('School Profile'!$D$12="Hindi","वार्षिक","Yearly") -> वार्षिक | EG4: =IF('School Profile'!$D$12="Hindi","विषय कुल योग ","Subject Total") -> विषय कुल योग | EH4: =IF('School Profile'!$D$12="Hindi","विषय ग्रेड","Subject Grade") -> विषय ग्रेड | EI4: EXEMPTION | EJ4: EXEMPTION | EK4: fo"k; iw.kkZad lS- | EL4: =IF('School Profile'!$D$12="Hindi","सामयिक परख","Seasonal Exam") -> सामयिक परख | EP4: =IF('School Profile'!$D$12="Hindi","अर्द्धवार्षिक","Half Yearly") -> अर्द्धवार्षिक | ES4: =IF('School Profile'!$D$12="Hindi","अर्द्ध वा. तक योग","Total Till H.Y.") -> अर्द्ध वा. तक योग | ET4: =IF('School Profile'!$D$12="Hindi","वार्षिक","Yearly") -> वार्षिक | EW4: =IF('School Profile'!$D$12="Hindi","विषय कुल योग ","Subject Total") -> विषय कुल योग | EX4: =IF('School Profile'!$D$12="Hindi","विषय ग्रेड","Subject Grade") -> विषय ग्रेड | EY4: EXEMPTION | EZ4: EXEMPTION | FA4: fo"k; iw.kkZad lS- | FB4: =IF('School Profile'!$D$12="Hindi","प्रथम परख ","First Test") -> प्रथम परख | FD4: =IF('School Profile'!$D$12="Hindi","द्वितीय परख","Second Test") -> द्वितीय परख | FF4: =IF('School Profile'!$D$12="Hindi","तृतीय परख","Third Test") -> तृतीय परख | FH4: =IF('School Profile'!$D$12="Hindi","सा. परख योग","Test Total") -> सा. परख योग | FI4: =IF('School Profile'!$D$12="Hindi","अर्द्धवार्षिक","Half Yearly") -> अर्द्धवार्षिक | FL4: =IF('School Profile'!$D$12="Hindi","अर्द्ध वा. तक योग","Total Till H.Y.") -> अर्द्ध वा. तक योग | FM4: =IF('School Profile'!$D$12="Hindi","वार्षिक","Yearly") -> वार्षिक | FP4: =IF('School Profile'!$D$12="Hindi","विषय कुल योग ","Subject Total") -> विषय कुल योग | FQ4: =IF('School Profile'!$D$12="Hindi","विषय ग्रेड","Subject Grade") -> विषय ग्रेड | FR4: EXEMPTION | FS4: EXEMPTION | FT4: fo"k; iw.kkZad lS- | FU4: =IF('School Profile'!$D$12="Hindi","अनिवार्य प्रवृति","Compulsory Tendency") -> अनिवार्य प्रवृति | FV4: =IF('School Profile'!$D$12="Hindi","वैकल्पिक प्रवृति","Alternative Tendency") -> वैकल्पिक प्रवृति | FW4: =IF('School Profile'!$D$12="Hindi","शिविर","Camp") -> शिविर | FX4: =IF('School Profile'!$D$12="Hindi","विषय कुल योग ","Subject Total") -> विषय कुल योग | FY4: =IF('School Profile'!$D$12="Hindi","विषय ग्रेड","Subject Grade") -> विषय ग्रेड | FZ4: EXEMPTION | GA4: EXEMPTION | GB4: fo"k; iw.kkZad lS- | GC4: =IF('School Profile'!$D$12="Hindi","अनिवार्य प्रवृति","Compulsory Tendency") -> अनिवार्य प्रवृति | GD4: =IF('School Profile'!$D$12="Hindi","वैकल्पिक प्रवृति","Alternative Tendency") -> वैकल्पिक प्रवृति | GE4: =IF('School Profile'!$D$12="Hindi","शिविर","Camp") -> शिविर | GF4: =IF('School Profile'!$D$12="Hindi","विषय कुल योग ","Subject Total") -> विषय कुल योग | GG4: =IF('School Profile'!$D$12="Hindi","विषय ग्रेड","Subject Grade") -> विषय ग्रेड | GH4: EXEMPTION | GI4: EXEMPTION | GJ4: fo"k; iw.kkZad lS- | GK4: =IF('School Profile'!$D$12="Hindi","कुल कार्य दिवस","Total Working Days") -> कुल कार्य दिवस | GL4: =IF('School Profile'!$D$12="Hindi","कुल उपस्थिति","Student's Attendance") -> कुल उपस्थिति | GM4: =IF('School Profile'!$D$12="Hindi","उपस्थिति प्रतिशत","Attendance Percentage") -> उपस्थिति प्रतिशत | GN4: =K3 -> हिंदी | GQ4: =Y3 -> अंग्रेजी | GU4: ='School Profile'!G9 -> तृतीय भाषा | HB4: =BB3 -> गणित | HE4: =BP3 -> विज्ञान | HH4: =CE3 -> सामाजिक विज्ञान | HK4: =CS3 -> व्यावसायिक शिक्षा विषय | HN4: =IF('School Profile'!$D$12="Hindi","अनुतीर्ण विषय","Failed Subject") -> अनुतीर्ण विषय | HO4: =IF('School Profile'!$D$12="Hindi","पूरक विषय","Supplementary Subject") -> पूरक विषय | HP4: =IF('School Profile'!$D$12="Hindi","सानुग्रह उतीर्ण विषय","Subject Of Grace") -> सानुग्रह उतीर्ण विषय | HQ4: =IF('School Profile'!$D$12="Hindi","पुनः परीक्षा के विषय","Subject of Re-Exam") -> पुनः परीक्षा के विषय | HR4: =IF('School Profile'!$D$12="Hindi","विशेष योग्यता प्राप्त विषय","Subjects Of Dictation Marks") -> विशेष योग्यता प्राप्त विषय | HS4: =IF('School Profile'!$D$12="Hindi","परिणाम :- उतीर्ण/ सा.उतीर्ण/ पूरक/ पुनः परीक्षा/ अनुतीर्ण","Result :- PASS/ BY GRACE PASS/ SUPPLEMENTARY/ RE-EXAM/ FAIL") -> परिणाम :- उतीर्ण/ सा.उतीर्ण/ पूरक/ पुनः परीक्षा/ अनुतीर्ण | HT4: =IF('School Profile'!$D$12="Hindi","सर्व योग प्राप्तांक","Grand Total") -> सर्व योग प्राप्तांक | HU4: izfr'kr | HV4: =IF('School Profile'!$D$12="Hindi","श्रेणी","Division") -> श्रेणी | HW4: =IF('School Profile'!D12="Hindi","प्रतिशत","Percentage") -> प्रतिशत | HX4: =IF('School Profile'!D12="Hindi","कक्षा में स्थान","Position in the Class") -> कक्षा में स्थान | HY4: =IF('School Profile'!$D$12="Hindi","पूरक परीक्षा का परिणाम","Result of Supplementary Exam") -> पूरक परीक्षा का परिणाम | HZ4: =IF('School Profile'!$D$12="Hindi","पूरक परीक्षा उतीर्ण के बाद प्रतिशत","Percentage after Passing the Supplementary Exam") -> पूरक परीक्षा उतीर्ण के बाद प्रतिशत | IA4: =IF('School Profile'!$D$12="Hindi","श्रेणी","Division") -> श्रेणी | IB4: =IF('School Profile'!$D$12="Hindi","पूरक परीक्षा उतीर्ण के पश्चात् परिणाम","Final Result after Passing the Supplementary Exam") -> पूरक परीक्षा उतीर्ण के पश्चात् परिणाम | IC4: =IF('School Profile'!$D$12="Hindi","विशेष विवरण","Specifications") -> विशेष विवरण | IS4: iwjd@ iqu% ijh{kk iw.kkZad | IZ4: iwjd@iqu% ijh{kk izkIrkad | JG4: fo"k; ifj.kke | JQ4: dqy vad | JX4: ;ksx | JY4: izfr'kr | JZ4: iw.kkZd
K5: =IF('School Profile'!$D$12="Hindi","प्रथम परख ","First Test") -> प्रथम परख | L5: =IF('School Profile'!$D$12="Hindi","द्वितीय परख","Second Test") -> द्वितीय परख | M5: =IF('School Profile'!$D$12="Hindi","तृतीय परख","Third Test") -> तृतीय परख | N5: =IF('School Profile'!$D$12="Hindi","सा. परख योग","Test Total") -> सा. परख योग | Y5: =IF('School Profile'!$D$12="Hindi","प्रथम परख ","First Test") -> प्रथम परख | Z5: =IF('School Profile'!$D$12="Hindi","द्वितीय परख","Second Test") -> द्वितीय परख | AA5: =IF('School Profile'!$D$12="Hindi","तृतीय परख","Third Test") -> तृतीय परख | AB5: =IF('School Profile'!$D$12="Hindi","सा. परख योग","Test Total") -> सा. परख योग | AN5: =IF('School Profile'!$D$12="Hindi","प्रथम परख ","First Test") -> प्रथम परख | AO5: =IF('School Profile'!$D$12="Hindi","द्वितीय परख","Second Test") -> द्वितीय परख | AP5: =IF('School Profile'!$D$12="Hindi","तृतीय परख","Third Test") -> तृतीय परख | AQ5: =IF('School Profile'!$D$12="Hindi","सा. परख योग","Test Total") -> सा. परख योग | BB5: =IF('School Profile'!$D$12="Hindi","प्रथम परख ","First Test") -> प्रथम परख | BC5: =IF('School Profile'!$D$12="Hindi","द्वितीय परख","Second Test") -> द्वितीय परख | BD5: =IF('School Profile'!$D$12="Hindi","तृतीय परख","Third Test") -> तृतीय परख | BE5: =IF('School Profile'!$D$12="Hindi","सा. परख योग","Test Total") -> सा. परख योग | BP5: =IF('School Profile'!$D$12="Hindi","प्रथम परख ","First Test") -> प्रथम परख | BQ5: =IF('School Profile'!$D$12="Hindi","द्वितीय परख","Second Test") -> द्वितीय परख | BR5: =IF('School Profile'!$D$12="Hindi","तृतीय परख","Third Test") -> तृतीय परख | BS5: =IF('School Profile'!$D$12="Hindi","सा. परख योग","Test Total") -> सा. परख योग | CE5: =IF('School Profile'!$D$12="Hindi","प्रथम परख ","First Test") -> प्रथम परख | CF5: =IF('School Profile'!$D$12="Hindi","द्वितीय परख","Second Test") -> द्वितीय परख | CG5: =IF('School Profile'!$D$12="Hindi","तृतीय परख","Third Test") -> तृतीय परख | CH5: =IF('School Profile'!$D$12="Hindi","सा. परख योग","Test Total") -> सा. परख योग | CT5: =IF('School Profile'!$D$12="Hindi","प्रथम परख ","First Test") -> प्रथम परख | CU5: =IF('School Profile'!$D$12="Hindi","द्वितीय परख","Second Test") -> द्वितीय परख | CV5: =IF('School Profile'!$D$12="Hindi","तृतीय परख","Third Test") -> तृतीय परख | CW5: =IF('School Profile'!$D$12="Hindi","सा. परख योग","Test Total") -> सा. परख योग | CX5: =IF('School Profile'!$D$12="Hindi","सैद्धान्तिक","Theoretical") -> सैद्धान्तिक | CY5: =IF('School Profile'!$D$12="Hindi","प्रायोगिक","Practical") -> प्रायोगिक | CZ5: =IF('School Profile'!$D$12="Hindi","अर्द्धवार्षिक योग","H.Y. Total") -> अर्द्धवार्षिक योग | DB5: =IF('School Profile'!$D$12="Hindi","सैद्धान्तिक","Theoretical") -> सैद्धान्तिक | DC5: =IF('School Profile'!$D$12="Hindi","प्रायोगिक","Practical") -> प्रायोगिक | DD5: =IF('School Profile'!$D$12="Hindi","वार्षिक योग","Yearly Total") -> वार्षिक योग | DZ5: =IF('School Profile'!$D$12="Hindi","प्रथम परख ","First Test") -> प्रथम परख | EA5: =IF('School Profile'!$D$12="Hindi","द्वितीय परख","Second Test") -> द्वितीय परख | EB5: =IF('School Profile'!$D$12="Hindi","तृतीय परख","Third Test") -> तृतीय परख | EC5: =IF('School Profile'!$D$12="Hindi","सा. परख योग","Test Total") -> सा. परख योग | EL5: =IF('School Profile'!$D$12="Hindi","प्रथम परख ","First Test") -> प्रथम परख | EM5: =IF('School Profile'!$D$12="Hindi","द्वितीय परख","Second Test") -> द्वितीय परख | EN5: =IF('School Profile'!$D$12="Hindi","तृतीय परख","Third Test") -> तृतीय परख | EO5: =IF('School Profile'!$D$12="Hindi","सा. परख योग","Test Total") -> सा. परख योग | EP5: =IF('School Profile'!$D$12="Hindi","सैद्धान्तिक","Theoretical") -> सैद्धान्तिक | EQ5: =IF('School Profile'!$D$12="Hindi","प्रायोगिक","Practical") -> प्रायोगिक | ER5: =IF('School Profile'!$D$12="Hindi","अर्द्धवार्षिक योग","H.Y. Total") -> अर्द्धवार्षिक योग | ET5: =IF('School Profile'!$D$12="Hindi","सैद्धान्तिक","Theoretical") -> सैद्धान्तिक | EU5: =IF('School Profile'!$D$12="Hindi","प्रायोगिक","Practical") -> प्रायोगिक | EV5: =IF('School Profile'!$D$12="Hindi","वार्षिक योग","Yearly Total") -> वार्षिक योग | FB5: =IF('School Profile'!$D$12="Hindi","सैद्धान्तिक","Theoretical") -> सैद्धान्तिक | FC5: =IF('School Profile'!$D$12="Hindi","प्रायोगिक","Practical") -> प्रायोगिक | FD5: =IF('School Profile'!$D$12="Hindi","सैद्धान्तिक","Theoretical") -> सैद्धान्तिक | FE5: =IF('School Profile'!$D$12="Hindi","प्रायोगिक","Practical") -> प्रायोगिक | FF5: =IF('School Profile'!$D$12="Hindi","सैद्धान्तिक","Theoretical") -> सैद्धान्तिक | FG5: =IF('School Profile'!$D$12="Hindi","प्रायोगिक","Practical") -> प्रायोगिक | FI5: =IF('School Profile'!$D$12="Hindi","सैद्धान्तिक","Theoretical") -> सैद्धान्तिक | FJ5: =IF('School Profile'!$D$12="Hindi","प्रायोगिक","Practical") -> प्रायोगिक | FK5: =IF('School Profile'!$D$12="Hindi","अर्द्धवार्षिक योग","H.Y. Total") -> अर्द्धवार्षिक योग | FM5: =IF('School Profile'!$D$12="Hindi","सैद्धान्तिक","Theoretical") -> सैद्धान्तिक | FN5: =IF('School Profile'!$D$12="Hindi","प्रायोगिक","Practical") -> प्रायोगिक | FO5: =IF('School Profile'!$D$12="Hindi","वार्षिक योग","Yearly Total") -> वार्षिक योग | GN5: =GN4 -> हिंदी | GP5: Grace Marks | GQ5: =GQ4 -> अंग्रेजी | GS5: Grace Marks | GT5: =AM2 -> 0 | GU5: =AM3 -> संस्कृत (71) | GV5: =AN3 -> उर्दू (72) | GW5: =AQ3 -> गुजराती (73) | GX5: =AS3 -> सिंधी (74) | GY5: =AV3 -> पंजाबी (75) | HA5: Grace Marks | HB5: =HB4 -> गणित | HD5: Grace Marks | HE5: =HE4 -> विज्ञान | HG5: Grace Marks | HH5: =HH4 -> सामाजिक विज्ञान | HJ5: Grace Marks | HK5: व्यावसायिक शिक्षा | HM5: Grace Marks
K6: =IF('Marks Entry'!L6="","",'Marks Entry'!L6) -> 10 | L6: =IF('Marks Entry'!M6="","",'Marks Entry'!M6) -> 10 | M6: =IF('Marks Entry'!N6="","",'Marks Entry'!N6) -> 10 | N6: =IF(AND(K6="",L6="",M6=""),"",SUM(K6:M6)) -> 30 | O6: =IF('Marks Entry'!O6="","",'Marks Entry'!O6) -> 70 | P6: =IF(AND(N6="",O6=""),"",SUM(N6,O6)) -> 100 | Q6: =IF('Marks Entry'!P6="","",'Marks Entry'!P6) -> 100 | R6: =IF(AND(Q6="",P6=""),"",SUM(P6,Q6)) -> 200 | S6: =COUNTIF(K6:M6,"NA")*10 -> 0 | T6: =(COUNTIF(K6:M6,"ML")*10)+(COUNTIF(O6,"ML")*70)+(COUNTIF(Q6,"ML")*100) -> 0 | U6: =IF(AND(K6="",L6="",M6="",O6="",Q6=""),"",IF(AND(L6="",K6="",M6=""),170-S6-T6,IF(AND(O6=""),130-S6-T6,IF(Q6="",100-S6-T6,200-S6-T6)))) -> 200 | V6: =IF(OR($B6="NSO",$B6="",Q6=""),"",IF(AND(OR(K6="ab",K6="ml"),OR(L6="ab",L6="ml"),OR(M6="ab",M6="ml")),"AB",IF(AND(OR(K6="NA",K6=""),OR(L6="NA",L6=""),OR(M6="NA",M6="")),"AB",IF(AND(OR(K6="ab",K6="ml"),OR(L6="ab",L6="ml"),OR(O6="ab",O6="ml")),"AB",IF(AND(OR(O6="ab",O6="ml"),OR(Q6="ab",Q6="ml"),OR(O6="ab",Q6="ml")),"AB",IF(AND(OR(Q6="ab",Q6="ml"),OR(K6="ab",K6="ml"),OR(L6="ab",L6="ml")),"AB","")))))) ->  | W6: =IF(OR($B6="NSO",$B6="",Q6=""),"",IF(OR(V6="AB",Q6="ab"),"AB",IF(Q6="ML","RE",IF(Q6<20%*$Q$6,"F",IF(AND(R6>=36%*U6,Q6>=20),"P",IF(AND(R6>=34%*U6,T6=0,Q6>=20),"G2",IF(AND(R6>=31%*U6,T6=0,Q6>=20),"G1",IF(R6>=25%*U6,"S","F")))))))) ->  | X6: =IF(OR(W6="",W6=0,W6="S",W6="RE",W6="F",W6="AB"),W6,IF(R6>=75%*U6,"D",IF(R6>=60%*U6,"I",IF(R6>=48%*U6,"II",IF(R6>=36%*U6,"III",W6))))) ->  | Y6: =IF('Marks Entry'!Q6="","",'Marks Entry'!Q6) -> 10 | Z6: =IF('Marks Entry'!R6="","",'Marks Entry'!R6) -> 10 | AA6: =IF('Marks Entry'!S6="","",'Marks Entry'!S6) -> 10 | AB6: =IF(AND(Y6="",Z6="",AA6=""),"",SUM(Y6:AA6)) -> 30 | AC6: =IF('Marks Entry'!T6="","",'Marks Entry'!T6) -> 70 | AD6: =IF(AND(AB6="",AC6=""),"",SUM(AB6,AC6)) -> 100 | AE6: =IF('Marks Entry'!U6="","",'Marks Entry'!U6) -> 100 | AF6: =IF(AND(AE6="",AD6=""),"",SUM(AD6,AE6)) -> 200 | AG6: =COUNTIF(Y6:AA6,"NA")*10 -> 0 | AH6: =(COUNTIF(Y6:AA6,"ML")*10)+(COUNTIF(AC6,"ML")*70)+(COUNTIF(AE6,"ML")*100) -> 0 | AI6: =IF(AND(Y6="",Z6="",AA6="",AC6="",AE6=""),"",IF(AND(Z6="",Y6="",AA6=""),170-AG6-AH6,IF(AND(AC6=""),130-AG6-AH6,IF(AE6="",100-AG6-AH6,200-AG6-AH6)))) -> 200 | AJ6: =IF(OR($B6="NSO",$B6="",AE6=""),"",IF(AND(OR(Y6="ab",Y6="ml"),OR(Z6="ab",Z6="ml"),OR(AA6="ab",AA6="ml")),"AB",IF(AND(OR(Y6="NA",Y6=""),OR(Z6="NA",Z6=""),OR(AA6="NA",AA6="")),"AB",IF(AND(OR(Y6="ab",Y6="ml"),OR(Z6="ab",Z6="ml"),OR(AC6="ab",AC6="ml")),"AB",IF(AND(OR(AC6="ab",AC6="ml"),OR(AE6="ab",AE6="ml"),OR(AC6="ab",AE6="ml")),"AB",IF(AND(OR(AE6="ab",AE6="ml"),OR(Y6="ab",Y6="ml"),OR(Z6="ab",Z6="ml")),"AB","")))))) ->  | AK6: =IF(OR($B6="NSO",$B6="",AE6=""),"",IF(OR(AJ6="AB",AE6="ab"),"AB",IF(AE6="ML","RE",IF(AE6<20%*$AE$6,"F",IF(AND(AF6>=36%*AI6,AE6>=20),"P",IF(AND(AF6>=34%*AI6,AH6=0,AE6>=20),"G2",IF(AND(AF6>=31%*AI6,AH6=0,AE6>=20),"G1",IF(AF6>=25%*AI6,"S","F")))))))) ->  | AL6: =IF(OR(AK6="",AK6=0,AK6="S",AK6="RE",AK6="F",AK6="AB"),AK6,IF(AF6>=75%*AI6,"D",IF(AF6>=60%*AI6,"I",IF(AF6>=48%*AI6,"II",IF(AF6>=36%*AI6,"III",AK6))))) ->  | AN6: =IF('Marks Entry'!W6="","",'Marks Entry'!W6) -> 10 | AO6: =IF('Marks Entry'!X6="","",'Marks Entry'!X6) -> 10 | AP6: =IF('Marks Entry'!Y6="","",'Marks Entry'!Y6) -> 10 | AQ6: =IF(AND(AN6="",AO6="",AP6=""),"",SUM(AN6:AP6)) -> 30 | AR6: =IF('Marks Entry'!Z6="","",'Marks Entry'!Z6) -> 70 | AS6: =IF(AND(AQ6="",AR6=""),"",SUM(AQ6,AR6)) -> 100 | AT6: =IF('Marks Entry'!AA6="","",'Marks Entry'!AA6) -> 100 | AU6: =IF(AND(AT6="",AS6=""),"",SUM(AS6,AT6)) -> 200 | AV6: =COUNTIF(AN6:AP6,"NA")*10 -> 0 | AW6: =(COUNTIF(AN6:AP6,"ML")*10)+(COUNTIF(AR6,"ML")*70)+(COUNTIF(AT6,"ML")*100) -> 0 | AX6: =IF(AND(AN6="",AO6="",AP6="",AR6="",AT6=""),"",IF(AND(AO6="",AN6="",AP6=""),170-AV6-AW6,IF(AND(AR6=""),130-AV6-AW6,IF(AT6="",100-AV6-AW6,200-AV6-AW6)))) -> 200 | AY6: =IF(OR($B6="NSO",$B6="",AT6=""),"",IF(AND(OR(AN6="ab",AN6="ml"),OR(AO6="ab",AO6="ml"),OR(AP6="ab",AP6="ml")),"AB",IF(AND(OR(AN6="NA",AN6=""),OR(AO6="NA",AO6=""),OR(AP6="NA",AP6="")),"AB",IF(AND(OR(AN6="ab",AN6="ml"),OR(AO6="ab",AO6="ml"),OR(AR6="ab",AR6="ml")),"AB",IF(AND(OR(AR6="ab",AR6="ml"),OR(AT6="ab",AT6="ml"),OR(AR6="ab",AT6="ml")),"AB",IF(AND(OR(AT6="ab",AT6="ml"),OR(AN6="ab",AN6="ml"),OR(AO6="ab",AO6="ml")),"AB","")))))) ->  | AZ6: =IF(OR($B6="NSO",$B6="",AT6=""),"",IF(OR(AY6="AB",AT6="ab"),"AB",IF(AT6="ML","RE",IF(AT6<20%*$AT$6,"F",IF(AND(AU6>=36%*AX6,AT6>=20),"P",IF(AND(AU6>=34%*AX6,AW6=0,AT6>=20),"G2",IF(AND(AU6>=31%*AX6,AW6=0,AT6>=20),"G1",IF(AU6>=25%*AX6,"S","F")))))))) ->  | BA6: =IF(OR(AZ6="",AZ6=0,AZ6="S",AZ6="RE",AZ6="F",AZ6="AB"),AZ6,IF(AU6>=75%*AX6,"D",IF(AU6>=60%*AX6,"I",IF(AU6>=48%*AX6,"II",IF(AU6>=36%*AX6,"III",AZ6))))) ->  | BB6: =IF('Marks Entry'!AB6="","",'Marks Entry'!AB6) -> 10 | BC6: =IF('Marks Entry'!AC6="","",'Marks Entry'!AC6) -> 10 | BD6: =IF('Marks Entry'!AD6="","",'Marks Entry'!AD6) -> 10 | BE6: =IF(AND(BB6="",BC6="",BD6=""),"",SUM(BB6:BD6)) -> 30 | BF6: =IF('Marks Entry'!AE6="","",'Marks Entry'!AE6) -> 70 | BG6: =IF(AND(BE6="",BF6=""),"",SUM(BE6,BF6)) -> 100 | BH6: =IF('Marks Entry'!AF6="","",'Marks Entry'!AF6) -> 100 | BI6: =IF(AND(BH6="",BG6=""),"",SUM(BG6,BH6)) -> 200 | BJ6: =COUNTIF(BB6:BD6,"NA")*10 -> 0 | BK6: =(COUNTIF(BB6:BD6,"ML")*10)+(COUNTIF(BF6,"ML")*70)+(COUNTIF(BH6,"ML")*100) -> 0 | BL6: =IF(AND(BB6="",BC6="",BD6="",BF6="",BH6=""),"",IF(AND(BC6="",BB6="",BD6=""),170-BJ6-BK6,IF(AND(BF6=""),130-BJ6-BK6,IF(BH6="",100-BJ6-BK6,200-BJ6-BK6)))) -> 200 | BM6: =IF(OR($B6="NSO",$B6="",BH6=""),"",IF(AND(OR(BB6="ab",BB6="ml"),OR(BC6="ab",BC6="ml"),OR(BD6="ab",BD6="ml")),"AB",IF(AND(OR(BB6="NA",BB6=""),OR(BC6="NA",BC6=""),OR(BD6="NA",BD6="")),"AB",IF(AND(OR(BB6="ab",BB6="ml"),OR(BC6="ab",BC6="ml"),OR(BF6="ab",BF6="ml")),"AB",IF(AND(OR(BF6="ab",BF6="ml"),OR(BH6="ab",BH6="ml"),OR(BF6="ab",BH6="ml")),"AB",IF(AND(OR(BH6="ab",BH6="ml"),OR(BB6="ab",BB6="ml"),OR(BC6="ab",BC6="ml")),"AB","")))))) ->  | BN6: =IF(OR($B6="NSO",$B6="",BH6=""),"",IF(OR(BM6="AB",BH6="ab"),"AB",IF(BH6="ML","RE",IF(BH6<20%*$BH$6,"F",IF(AND(BI6>=36%*BL6,BH6>=20),"P",IF(AND(BI6>=34%*BL6,BK6=0,BH6>=20),"G2",IF(AND(BI6>=31%*BL6,BK6=0,BH6>=20),"G1",IF(BI6>=25%*BL6,"S","F")))))))) ->  | BO6: =IF(OR(BN6="",BN6=0,BN6="S",BN6="RE",BN6="F",BN6="AB"),BN6,IF(BI6>=75%*BL6,"D",IF(BI6>=60%*BL6,"I",IF(BI6>=48%*BL6,"II",IF(BI6>=36%*BL6,"III",BN6))))) ->  | BP6: =IF('Marks Entry'!AG6="","",'Marks Entry'!AG6) -> 10 | BQ6: =IF('Marks Entry'!AH6="","",'Marks Entry'!AH6) -> 10 | BR6: =IF('Marks Entry'!AI6="","",'Marks Entry'!AI6) -> 10 | BS6: =IF(AND(BP6="",BQ6="",BR6=""),"",SUM(BP6:BR6)) -> 30 | BT6: =IF('Marks Entry'!AJ6="","",'Marks Entry'!AJ6) -> 70 | BU6: =IF(AND(BS6="",BT6=""),"",SUM(BS6,BT6)) -> 100 | BV6: =IF('Marks Entry'!AK6="","",'Marks Entry'!AK6) -> 100 | BW6: =IF(AND(BV6="",BU6=""),"",SUM(BU6,BV6)) -> 200 | BX6: =COUNTIF(BP6:BR6,"NA")*10 -> 0 | BY6: =(COUNTIF(BP6:BR6,"ML")*10)+(COUNTIF(BT6,"ML")*70)+(COUNTIF(BV6,"ML")*100) -> 0 | BZ6: =IF(AND(BP6="",BQ6="",BR6="",BT6="",BV6=""),"",IF(AND(BQ6="",BP6="",BR6=""),170-BX6-BY6,IF(AND(BT6=""),130-BX6-BY6,IF(BV6="",100-BX6-BY6,200-BX6-BY6)))) -> 200 | CA6: =IF(OR($B6="NSO",$B6="",BV6=""),"",IF(AND(OR(BP6="ab",BP6="ml"),OR(BQ6="ab",BQ6="ml"),OR(BR6="ab",BR6="ml")),"AB",IF(AND(OR(BP6="NA",BP6=""),OR(BQ6="NA",BQ6=""),OR(BR6="NA",BR6="")),"AB",IF(AND(OR(BP6="ab",BP6="ml"),OR(BQ6="ab",BQ6="ml"),OR(BT6="ab",BT6="ml")),"AB",IF(AND(OR(BT6="ab",BT6="ml"),OR(BV6="ab",BV6="ml"),OR(BT6="ab",BV6="ml")),"AB",IF(AND(OR(BV6="ab",BV6="ml"),OR(BP6="ab",BP6="ml"),OR(BQ6="ab",BQ6="ml")),"AB","")))))) ->  | CB6: =IF(OR($B6="NSO",$B6="",BV6=""),"",IF(OR(CA6="AB",BV6="ab"),"AB",IF(BV6="ML","RE",IF(BV6<20%*$BV$6,"F",IF(AND(BW6>=36%*BZ6,BV6>=20),"P",IF(AND(BW6>=34%*BZ6,BY6=0,BV6>=20),"G2",IF(AND(BW6>=31%*BZ6,BY6=0,BV6>=20),"G1",IF(BW6>=25%*BZ6,"S","F")))))))) ->  | CC6: =IF(OR(CB6="",CB6=0,CB6="S",CB6="RE",CB6="F",CB6="AB"),CB6,IF(BW6>=75%*BZ6,"D",IF(BW6>=60%*BZ6,"I",IF(BW6>=48%*BZ6,"II",IF(BW6>=36%*BZ6,"III",CB6))))) ->  | CE6: =IF('Marks Entry'!AL6="","",'Marks Entry'!AL6) -> 10 | CF6: =IF('Marks Entry'!AM6="","",'Marks Entry'!AM6) -> 10 | CG6: =IF('Marks Entry'!AN6="","",'Marks Entry'!AN6) -> 10 | CH6: =IF(AND(CE6="",CF6="",CG6=""),"",SUM(CE6:CG6)) -> 30 | CI6: =IF('Marks Entry'!AO6="","",'Marks Entry'!AO6) -> 70 | CJ6: =IF(AND(CH6="",CI6=""),"",SUM(CH6,CI6)) -> 100 | CK6: =IF('Marks Entry'!AP6="","",'Marks Entry'!AP6) -> 100 | CL6: =IF(AND(CK6="",CJ6=""),"",SUM(CJ6,CK6)) -> 200 | CM6: =COUNTIF(CE6:CG6,"NA")*10 -> 0 | CN6: =(COUNTIF(CE6:CG6,"ML")*10)+(COUNTIF(CI6,"ML")*70)+(COUNTIF(CK6,"ML")*100) -> 0 | CO6: =IF(AND(CE6="",CF6="",CG6="",CI6="",CK6=""),"",IF(AND(CF6="",CE6="",CG6=""),170-CM6-CN6,IF(AND(CI6=""),130-CM6-CN6,IF(CK6="",100-CM6-CN6,200-CM6-CN6)))) -> 200 | CP6: =IF(OR($B6="NSO",$B6="",CK6=""),"",IF(AND(OR(CE6="ab",CE6="ml"),OR(CF6="ab",CF6="ml"),OR(CG6="ab",CG6="ml")),"AB",IF(AND(OR(CE6="NA",CE6=""),OR(CF6="NA",CF6=""),OR(CG6="NA",CG6="")),"AB",IF(AND(OR(CE6="ab",CE6="ml"),OR(CF6="ab",CF6="ml"),OR(CI6="ab",CI6="ml")),"AB",IF(AND(OR(CI6="ab",CI6="ml"),OR(CK6="ab",CK6="ml"),OR(CI6="ab",CK6="ml")),"AB",IF(AND(OR(CK6="ab",CK6="ml"),OR(CE6="ab",CE6="ml"),OR(CF6="ab",CF6="ml")),"AB","")))))) ->  | CQ6: =IF(OR($B6="NSO",$B6="",CK6=""),"",IF(OR(CP6="AB",CK6="ab"),"AB",IF(CK6="ML","RE",IF(CK6<20%*$CK$6,"F",IF(AND(CL6>=36%*CO6,CK6>=20),"P",IF(AND(CL6>=34%*CO6,CN6=0,CK6>=20),"G2",IF(AND(CL6>=31%*CO6,CN6=0,CK6>=20),"G1",IF(CL6>=25%*CO6,"S","F")))))))) ->  | CR6: =IF(OR(CQ6="",CQ6=0,CQ6="S",CQ6="RE",CQ6="F",CQ6="AB"),CQ6,IF(CL6>=75%*CO6,"D",IF(CL6>=60%*CO6,"I",IF(CL6>=48%*CO6,"II",IF(CL6>=36%*CO6,"III",CQ6))))) ->  | CT6: =IF('Marks Entry'!AR6="","",'Marks Entry'!AR6) -> 10 | CU6: =IF('Marks Entry'!AS6="","",'Marks Entry'!AS6) -> 10 | CV6: =IF('Marks Entry'!AT6="","",'Marks Entry'!AT6) -> 10 | CW6: =IF(AND(CT6="",CU6="",CV6=""),"",SUM(CT6:CV6)) -> 30 | CX6: =IF('Marks Entry'!AU6="","",'Marks Entry'!AU6) -> 35 | CY6: =IF('Marks Entry'!AV6="","",'Marks Entry'!AV6) -> 35 | CZ6: =IF(AND(CX6="",CY6=""),"",SUM(CX6,CY6)) -> 70 | DA6: =IF(AND(CW6="",CZ6=""),"",SUM(CW6+CZ6)) -> 100 | DB6: =IF('Marks Entry'!AW6="","",'Marks Entry'!AW6) -> 50 | DC6: =IF('Marks Entry'!AX6="","",'Marks Entry'!AX6) -> 50 | DD6: =IF(AND(DB6="",DC6=""),"",SUM(DB6,DC6)) -> 100 | DE6: =IF(AND(DA6="",DD6=""),"",SUM(DA6,DD6)) -> 200 | DF6: =COUNTIF(CX6:CZ6,"NA")*10 -> 0 | DG6: =(COUNTIF(CX6:CZ6,"ML")*10)+(COUNTIF(DB6,"ML")*70)+(COUNTIF(DD6,"ML")*100) -> 0 | DH6: =IF(AND(CX6="",CY6="",CZ6="",DB6="",DD6=""),"",IF(AND(CY6="",CX6="",CZ6=""),170-DF6-DG6,IF(AND(DB6=""),130-DF6-DG6,IF(DD6="",100-DF6-DG6,200-DF6-DG6)))) -> 200 | DI6: =IF(OR($B6="NSO",$B6="",DD6=""),"",IF(AND(OR(CX6="ab",CX6="ml"),OR(CY6="ab",CY6="ml"),OR(CZ6="ab",CZ6="ml")),"AB",IF(AND(OR(CX6="NA",CX6=""),OR(CY6="NA",CY6=""),OR(CZ6="NA",CZ6="")),"AB",IF(AND(OR(CX6="ab",CX6="ml"),OR(CY6="ab",CY6="ml"),OR(DB6="ab",DB6="ml")),"AB",IF(AND(OR(DB6="ab",DB6="ml"),OR(DD6="ab",DD6="ml"),OR(DB6="ab",DD6="ml")),"AB",IF(AND(OR(DD6="ab",DD6="ml"),OR(CX6="ab",CX6="ml"),OR(CY6="ab",CY6="ml")),"AB","")))))) ->  | DJ6: =IF(OR($B6="NSO",$B6="",DD6=""),"",IF(OR(DI6="AB",DD6="ab"),"AB",IF(DD6="ML","RE",IF(DD6<20%*$DD$6,"F",IF(AND(DE6>=36%*DH6,DD6>=20),"P",IF(AND(DE6>=34%*DH6,DG6=0,DD6>=20),"G2",IF(AND(DE6>=31%*DH6,DG6=0,DD6>=20),"G1",IF(DE6>=25%*DH6,"S","F")))))))) ->  | DK6: =IF(OR(DJ6="",DJ6=0,DJ6="S",DJ6="RE",DJ6="F",DJ6="AB"),DJ6,IF(DE6>=75%*DH6,"D",IF(DE6>=60%*DH6,"I",IF(DE6>=48%*DH6,"II",IF(DE6>=36%*DH6,"III",DJ6))))) ->  | DL6: H | DM6: E | DN6: S | DO6: G | DP6: S | DQ6: SS | DR6: VO | DS6: F | DT6: S | DU6: G1 | DV6: G2 | DW6: RE | DX6: RE/F | DZ6: =IF('Marks Entry'!AY6="","",'Marks Entry'!AY6) -> 10 | EA6: =IF('Marks Entry'!AZ6="","",'Marks Entry'!AZ6) -> 10 | EB6: =IF('Marks Entry'!BA6="","",'Marks Entry'!BA6) -> 10 | EC6: =IF(AND(DZ6="",EA6="",EB6=""),"",SUM(DZ6:EB6)) -> 30 | ED6: =IF('Marks Entry'!BB6="","",'Marks Entry'!BB6) -> 70 | EE6: =IF(AND(EC6="",ED6=""),"",SUM(EC6,ED6)) -> 100 | EF6: =IF('Marks Entry'!BC6="","",'Marks Entry'!BC6) -> 100 | EG6: =IF(AND(EF6="",EE6=""),"",SUM(EE6,EF6)) -> 200 | EK6: =IF(OR($B6="NSO",$B6=0),"",IF(AND(#REF!="",DW6="",DX6=""),"",IF(AND(DW6="",DX6=""),30-EI6-EJ6,IF(DX6="",60-EI6-EJ6,100-EI6-EJ6)))) ->  | EL6: =IF('Marks Entry'!BD6="","",'Marks Entry'!BD6) -> 10 | EM6: =IF('Marks Entry'!BE6="","",'Marks Entry'!BE6) -> 10 | EN6: =IF('Marks Entry'!BF6="","",'Marks Entry'!BF6) -> 10 | EO6: =IF(AND(EL6="",EM6="",EN6=""),"",SUM(EL6:EN6)) -> 30 | EP6: =IF('Marks Entry'!BG6="","",'Marks Entry'!BG6) -> 50 | EQ6: =IF('Marks Entry'!BH6="","",'Marks Entry'!BH6) -> 20 | ER6: =IF(AND(EP6="",EQ6=""),"",SUM(EP6,EQ6)) -> 70 | ES6: =IF(AND(EO6="",ER6=""),"",SUM(EO6+ER6)) -> 100 | ET6: =IF('Marks Entry'!BI6="","",'Marks Entry'!BI6) -> 70 | EU6: =IF('Marks Entry'!BJ6="","",'Marks Entry'!BJ6) -> 30 | EV6: =IF(AND(ET6="",EU6=""),"",SUM(ET6,EU6)) -> 100 | EW6: =IF(AND(ES6="",EV6=""),"",SUM(ES6,EV6)) -> 200 | FA6: =IF(OR($B6="NSO",$B6=0),"",IF(AND(#REF!="",EI6="",EJ6=""),"",IF(AND(EI6="",EJ6=""),30-EY6-EZ6,IF(EJ6="",60-EY6-EZ6,100-EY6-EZ6)))) ->  | FB6: =IF('Marks Entry'!BK6="","",'Marks Entry'!BK6) -> 10 | FC6: =IF('Marks Entry'!BL6="","",'Marks Entry'!BL6) -> 8 | FD6: =IF('Marks Entry'!BM6="","",'Marks Entry'!BM6) -> 10 | FE6: =IF('Marks Entry'!BN6="","",'Marks Entry'!BN6) -> 7 | FF6: =IF('Marks Entry'!BO6="","",'Marks Entry'!BO6) -> 10 | FG6: =IF('Marks Entry'!BP6="","",'Marks Entry'!BP6) -> 15 | FH6: =IF(AND(FB6="",FC6="",FE6="",FF6="",FG6=""),"",SUM(FB6:FG6)) -> 60 | FI6: =IF('Marks Entry'!BQ6="","",'Marks Entry'!BQ6) -> 25 | FJ6: =IF('Marks Entry'!BR6="","",'Marks Entry'!BR6) -> 15 | FK6: =IF(AND(FI6="",FJ6=""),"",SUM(FI6,FJ6)) -> 40 | FL6: =IF(AND(FH6="",FK6=""),"",SUM(FH6+FK6)) -> 100 | FM6: =IF('Marks Entry'!BS6="","",'Marks Entry'!BS6) -> 30 | FN6: =IF('Marks Entry'!BT6="","",'Marks Entry'!BT6) -> 70 | FO6: =IF(AND(FM6="",FN6=""),"",SUM(FM6,FN6)) -> 100 | FP6: =IF(AND(FL6="",FO6=""),"",SUM(FL6,FO6)) -> 200 | FT6: =IF(OR($B6="NSO",$B6=0),"",IF(AND(#REF!="",EY6="",EZ6=""),"",IF(AND(EY6="",EZ6=""),30-FR6-FS6,IF(EZ6="",60-FR6-FS6,100-FR6-FS6)))) ->  | FU6: =IF('Marks Entry'!BU6="","",'Marks Entry'!BU6) -> 25 | FV6: =IF('Marks Entry'!BV6="","",'Marks Entry'!BV6) -> 45 | FW6: =IF('Marks Entry'!BW6="","",'Marks Entry'!BW6) -> 30 | FX6: =IF(AND(FU6="",FV6="",FW6=""),"",SUM(FU6,FV6,FW6)) -> 100 | GB6: =IF(OR($B6="NSO",$B6=0),"",IF(AND(#REF!="",FR6="",FS6=""),"",IF(AND(FR6="",FS6=""),30-FZ6-GA6,IF(FS6="",60-FZ6-GA6,100-FZ6-GA6)))) ->  | GC6: =IF('Marks Entry'!BX6="","",'Marks Entry'!BX6) -> 25 | GD6: =IF('Marks Entry'!BY6="","",'Marks Entry'!BY6) -> 60 | GE6: =IF('Marks Entry'!BZ6="","",'Marks Entry'!BZ6) -> 15 | GF6: =IF(AND(GC6="",GD6="",GE6=""),"",SUM(GC6,GD6,GE6)) -> 100 | GJ6: =IF(OR($B6="NSO",$B6=0),"",IF(AND(#REF!="",FZ6="",GA6=""),"",IF(AND(FZ6="",GA6=""),30-GH6-GI6,IF(GA6="",60-GH6-GI6,100-GH6-GI6)))) ->  | HT6: =IF(OR(CS6="",DE6=""),SUM(R6,AF6,AU6,BI6,BW6,CL6),IF((CL6/CO6*100)>=(DE6/DH6*100),SUM(R6,AF6,AU6,BI6,BW6,CL6),SUM(R6,AF6,AU6,BI6,BW6,DE6))) -> 1200 | HU6: =HT6*100/(HT6-CD6) -> 100 | IS6: fgUnh | IT6: vaxzsth | IU6: =GU4 -> तृतीय भाषा | IV6: =HB4 -> गणित | IW6: =HE4 -> विज्ञान | IX6: =HH4 -> सामाजिक विज्ञान | IY6: =HK5 -> व्यावसायिक शिक्षा | IZ6: =IS6 -> fgUnh | JA6: vaxzsth | JB6: तृतीय भाषा | JC6: गणित | JD6: विज्ञान | JE6: सामाजिक विज्ञान | JF6: व्यावसायिक शिक्षा | JG6: =IS6 -> fgUnh | JH6: =IT6 -> vaxzsth | JI6: =JB6 -> तृतीय भाषा | JJ6: =JC6 -> गणित | JK6: विज्ञान | JL6: सामाजिक विज्ञान | JM6: व्यावसायिक शिक्षा | JN6: iqjd | JP6: fjtYV
A7: 1 | B7: =IF('Marks Entry'!B7="","",'Marks Entry'!B7) -> 901 | C7: =IF('Marks Entry'!D7="","",'Marks Entry'!D7) -> A | D7: =IF('Marks Entry'!E7="","",'Marks Entry'!E7) -> 521 | E7: =IF('Marks Entry'!F7="","",'Marks Entry'!F7) -> 2010-10-10 | F7: =IF('Marks Entry'!G7="","",'Marks Entry'!G7) -> RAHUL JAT | G7: =IF('Marks Entry'!H7="","",'Marks Entry'!H7) -> HL JAT | H7: =IF('Marks Entry'!I7="","",'Marks Entry'!I7) -> LALI | I7: =IF('Marks Entry'!J7="","",'Marks Entry'!J7) -> OBC | J7: =IF('Marks Entry'!K7="","",'Marks Entry'!K7) -> M | K7: =IF('Marks Entry'!L7="","",'Marks Entry'!L7) -> 8 | L7: =IF('Marks Entry'!M7="","",'Marks Entry'!M7) -> 10 | M7: =IF('Marks Entry'!N7="","",'Marks Entry'!N7) -> 8 | N7: =IF(AND(K7="",L7="",M7=""),"",IF(AND(K7="AB",L7="AB",M7="AB"),"AB",IF(AND(K7="ML",L7="ML",M7="ML"),"ML",SUM(K7:M7)))) -> 26 | O7: =IF('Marks Entry'!O7="","",'Marks Entry'!O7) -> 46 | P7: =IF(AND(N7="",O7=""),"",SUM(N7,O7)) -> 72 | Q7: =IF('Marks Entry'!P7="","",'Marks Entry'!P7) -> 70 | R7: =IF(AND(P7="",Q7=""),"",SUM(Q7,P7)) -> 142 | S7: =COUNTIF(K7:M7,"NA")*$K$6 -> 0 | T7: =(COUNTIF(K7:M7,"ML")*$K$6)+(COUNTIF(O7,"ML")*$O$6)+(COUNTIF(Q7,"ML")*$Q$6) -> 0 | U7: =IF(AND(K7="",L7="",M7="",O7="",Q7=""),"",IF(AND(L7="",K7="",M7=""),170-S7-T7,IF(AND(O7=""),130-S7-T7,IF(Q7="",100-S7-T7,200-S7-T7)))) -> 200 | V7: =IF(OR($B7="NSO",$B7="",Q7=""),"",IF(AND(OR(K7="ab",K7="ml"),OR(L7="ab",L7="ml"),OR(M7="ab",M7="ml")),"AB",IF(AND(OR(K7="NA",K7=""),OR(L7="NA",L7=""),OR(M7="NA",M7="")),"AB",IF(AND(OR(K7="ab",K7="ml"),OR(L7="ab",L7="ml"),OR(O7="ab",O7="ml")),"AB",IF(AND(OR(O7="ab",O7="ml"),OR(Q7="ab",Q7="ml"),OR(O7="ab",Q7="ml")),"AB",IF(AND(OR(Q7="ab",Q7="ml"),OR(K7="ab",K7="ml"),OR(L7="ab",L7="ml")),"AB","")))))) ->  | W7: =IF(OR($B7="NSO",$B7="",Q7=""),"",IF(OR(V7="AB",Q7="ab"),"AB",IF(Q7="ML","RE",IF(Q7<20%*$Q$6,"F",IF(AND(R7>=36%*U7,Q7>=20%*$Q$6),"P",IF(AND(R7>=34%*U7,T7=0,Q7>=20%*$Q$6),"G2",IF(AND(R7>=31%*U7,T7=0,Q7>=20%*$Q$6),"G1",IF(R7>=25%*U7,"S","F")))))))) -> P | X7: =IF(OR(W7="",W7=0,W7="S",W7="RE",W7="F",W7="AB"),W7,IF(R7>=75%*U7,"D",IF(R7>=60%*U7,"I",IF(R7>=48%*U7,"II",IF(R7>=36%*U7,"III",W7))))) -> I | Y7: =IF('Marks Entry'!Q7="","",'Marks Entry'!Q7) -> 8 | Z7: =IF('Marks Entry'!R7="","",'Marks Entry'!R7) -> 10 | AA7: =IF('Marks Entry'!S7="","",'Marks Entry'!S7) -> 10 | AB7: =IF(AND(Y7="",Z7="",AA7=""),"",SUM(Y7:AA7)) -> 28 | AC7: =IF('Marks Entry'!T7="","",'Marks Entry'!T7) -> 46 | AD7: =IF(AND(AB7="",AC7=""),"",SUM(AB7,AC7)) -> 74 | AE7: =IF('Marks Entry'!U7="","",'Marks Entry'!U7) -> 70 | AF7: =IF(AND(AE7="",AD7=""),"",SUM(AD7,AE7)) -> 144 | AG7: =COUNTIF(Y7:AA7,"NA")*10 -> 0 | AH7: =(COUNTIF(Y7:AA7,"ML")*10)+(COUNTIF(AC7,"ML")*70)+(COUNTIF(AE7,"ML")*100) -> 0 | AI7: =IF(AND(Y7="",Z7="",AA7="",AC7="",AE7=""),"",IF(AND(Z7="",Y7="",AA7=""),170-AG7-AH7,IF(AND(AC7=""),130-AG7-AH7,IF(AE7="",100-AG7-AH7,200-AG7-AH7)))) -> 200 | AJ7: =IF(OR($B7="NSO",$B7="",AE7=""),"",IF(AND(OR(Y7="ab",Y7="ml"),OR(Z7="ab",Z7="ml"),OR(AA7="ab",AA7="ml")),"AB",IF(AND(OR(Y7="NA",Y7=""),OR(Z7="NA",Z7=""),OR(AA7="NA",AA7="")),"AB",IF(AND(OR(Y7="ab",Y7="ml"),OR(Z7="ab",Z7="ml"),OR(AC7="ab",AC7="ml")),"AB",IF(AND(OR(AC7="ab",AC7="ml"),OR(AE7="ab",AE7="ml"),OR(AC7="ab",AE7="ml")),"AB",IF(AND(OR(AE7="ab",AE7="ml"),OR(Y7="ab",Y7="ml"),OR(Z7="ab",Z7="ml")),"AB","")))))) ->  | AK7: =IF(OR($B7="NSO",$B7="",AE7=""),"",IF(OR(AJ7="AB",AE7="ab"),"AB",IF(AE7="ML","RE",IF(AE7<20%*$AE$6,"F",IF(AND(AF7>=36%*AI7,AE7>=20),"P",IF(AND(AF7>=34%*AI7,AH7=0,AE7>=20),"G2",IF(AND(AF7>=31%*AI7,AH7=0,AE7>=20),"G1",IF(AF7>=25%*AI7,"S","F")))))))) -> P | AL7: =IF(OR(AK7="",AK7=0,AK7="S",AK7="RE",AK7="F",AK7="AB"),AK7,IF(AF7>=75%*AI7,"D",IF(AF7>=60%*AI7,"I",IF(AF7>=48%*AI7,"II",IF(AF7>=36%*AI7,"III",AK7))))) -> I | AM7: =IF('Marks Entry'!V7="","",IF('Marks Entry'!V7=1,'School Profile'!$I$9,IF('Marks Entry'!V7=2,'School Profile'!$I$10,IF('Marks Entry'!V7=3,'School Profile'!$I$11,IF('Marks Entry'!V7=4,'School Profile'!$I$12,IF('Marks Entry'!V7=5,'School Profile'!$I$13,IF('Marks Entry'!V7=6,'School Profile'!$I$14,""))))))) -> संस्कृत (71) | AN7: =IF('Marks Entry'!W7="","",'Marks Entry'!W7) -> 8 | AO7: =IF('Marks Entry'!X7="","",'Marks Entry'!X7) -> 7 | AP7: =IF('Marks Entry'!Y7="","",'Marks Entry'!Y7) -> 10 | AQ7: =IF(AND(AN7="",AO7="",AP7=""),"",SUM(AN7:AP7)) -> 25 | AR7: =IF('Marks Entry'!Z7="","",'Marks Entry'!Z7) -> 46 | AS7: =IF(AND(AQ7="",AR7=""),"",SUM(AQ7,AR7)) -> 71 | AT7: =IF('Marks Entry'!AA7="","",'Marks Entry'!AA7) -> 70 | AU7: =IF(AND(AT7="",AS7=""),"",SUM(AS7,AT7)) -> 141 | AV7: =COUNTIF(AN7:AP7,"NA")*10 -> 0 | AW7: =(COUNTIF(AN7:AP7,"ML")*10)+(COUNTIF(AR7,"ML")*70)+(COUNTIF(AT7,"ML")*100) -> 0 | AX7: =IF(AND(AN7="",AO7="",AP7="",AR7="",AT7=""),"",IF(AND(AO7="",AN7="",AP7=""),170-AV7-AW7,IF(AND(AR7=""),130-AV7-AW7,IF(AT7="",100-AV7-AW7,200-AV7-AW7)))) -> 200 | AY7: =IF(OR($B7="NSO",$B7="",AT7=""),"",IF(AND(OR(AN7="ab",AN7="ml"),OR(AO7="ab",AO7="ml"),OR(AP7="ab",AP7="ml")),"AB",IF(AND(OR(AN7="NA",AN7=""),OR(AO7="NA",AO7=""),OR(AP7="NA",AP7="")),"AB",IF(AND(OR(AN7="ab",AN7="ml"),OR(AO7="ab",AO7="ml"),OR(AR7="ab",AR7="ml")),"AB",IF(AND(OR(AR7="ab",AR7="ml"),OR(AT7="ab",AT7="ml"),OR(AR7="ab",AT7="ml")),"AB",IF(AND(OR(AT7="ab",AT7="ml"),OR(AN7="ab",AN7="ml"),OR(AO7="ab",AO7="ml")),"AB","")))))) ->  | AZ7: =IF(OR($B7="NSO",$B7="",AT7=""),"",IF(OR(AY7="AB",AT7="ab"),"AB",IF(AT7="ML","RE",IF(AT7<20%*$AT$6,"F",IF(AND(AU7>=36%*AX7,AT7>=20),"P",IF(AND(AU7>=34%*AX7,AW7=0,AT7>=20),"G2",IF(AND(AU7>=31%*AX7,AW7=0,AT7>=20),"G1",IF(AU7>=25%*AX7,"S","F")))))))) -> P | BA7: =IF(OR(AZ7="",AZ7=0,AZ7="S",AZ7="RE",AZ7="F",AZ7="AB"),AZ7,IF(AU7>=75%*AX7,"D",IF(AU7>=60%*AX7,"I",IF(AU7>=48%*AX7,"II",IF(AU7>=36%*AX7,"III",AZ7))))) -> I | BB7: =IF('Marks Entry'!AB7="","",'Marks Entry'!AB7) -> 8 | BC7: =IF('Marks Entry'!AC7="","",'Marks Entry'!AC7) -> 10 | BD7: =IF('Marks Entry'!AD7="","",'Marks Entry'!AD7) -> 8 | BE7: =IF(AND(BB7="",BC7="",BD7=""),"",SUM(BB7:BD7)) -> 26 | BF7: =IF('Marks Entry'!AE7="","",'Marks Entry'!AE7) -> 46 | BG7: =IF(AND(BE7="",BF7=""),"",SUM(BE7,BF7)) -> 72 | BH7: =IF('Marks Entry'!AF7="","",'Marks Entry'!AF7) -> 70 | BI7: =IF(AND(BH7="",BG7=""),"",SUM(BG7,BH7)) -> 142 | BJ7: =COUNTIF(BB7:BD7,"NA")*10 -> 0 | BK7: =(COUNTIF(BB7:BD7,"ML")*10)+(COUNTIF(BF7,"ML")*$BF$6)+(COUNTIF(BH7,"ML")*$BH$6) -> 0 | BL7: =IF(AND(BB7="",BC7="",BD7="",BF7="",BH7=""),"",IF(AND(BC7="",BB7="",BD7=""),170-BJ7-BK7,IF(AND(BF7=""),130-BJ7-BK7,IF(BH7="",100-BJ7-BK7,200-BJ7-BK7)))) -> 200 | BM7: =IF(OR($B7="NSO",$B7="",BH7=""),"",IF(AND(OR(BB7="ab",BB7="ml"),OR(BC7="ab",BC7="ml"),OR(BD7="ab",BD7="ml")),"AB",IF(AND(OR(BB7="NA",BB7=""),OR(BC7="NA",BC7=""),OR(BD7="NA",BD7="")),"AB",IF(AND(OR(BB7="ab",BB7="ml"),OR(BC7="ab",BC7="ml"),OR(BF7="ab",BF7="ml")),"AB",IF(AND(OR(BF7="ab",BF7="ml"),OR(BH7="ab",BH7="ml"),OR(BF7="ab",BH7="ml")),"AB",IF(AND(OR(BH7="ab",BH7="ml"),OR(BB7="ab",BB7="ml"),OR(BC7="ab",BC7="ml")),"AB","")))))) ->  | BN7: =IF(OR($B7="NSO",$B7="",BH7=""),"",IF(OR(BM7="AB",BH7="ab"),"AB",IF(BH7="ML","RE",IF(BH7<20%*$BH$6,"F",IF(AND(BI7>=36%*BL7,BH7>=20),"P",IF(AND(BI7>=34%*BL7,BK7=0,BH7>=20),"G2",IF(AND(BI7>=31%*BL7,BK7=0,BH7>=20),"G1",IF(BI7>=25%*BL7,"S","F")))))))) -> P | BO7: =IF(OR(BN7="",BN7=0,BN7="S",BN7="RE",BN7="F",BN7="AB"),BN7,IF(BI7>=75%*BL7,"D",IF(BI7>=60%*BL7,"I",IF(BI7>=48%*BL7,"II",IF(BI7>=36%*BL7,"III",BN7))))) -> I | BP7: =IF('Marks Entry'!AG7="","",'Marks Entry'!AG7) -> 8 | BQ7: =IF('Marks Entry'!AH7="","",'Marks Entry'!AH7) -> 10 | BR7: =IF('Marks Entry'!AI7="","",'Marks Entry'!AI7) -> 9 | BS7: =IF(AND(BP7="",BQ7="",BR7=""),"",SUM(BP7:BR7)) -> 27 | BT7: =IF('Marks Entry'!AJ7="","",'Marks Entry'!AJ7) -> 46 | BU7: =IF(AND(BS7="",BT7=""),"",SUM(BS7,BT7)) -> 73 | BV7: =IF('Marks Entry'!AK7="","",'Marks Entry'!AK7) -> 70 | BW7: =IF(AND(BV7="",BU7=""),"",SUM(BU7,BV7)) -> 143 | BX7: =COUNTIF(BP7:BR7,"NA")*10 -> 0 | BY7: =(COUNTIF(BP7:BR7,"ML")*10)+(COUNTIF(BT7,"ML")*70)+(COUNTIF(BV7,"ML")*100) -> 0 | BZ7: =IF(AND(BP7="",BQ7="",BR7="",BT7="",BV7=""),"",IF(AND(BQ7="",BP7="",BR7=""),170-BX7-BY7,IF(AND(BT7=""),130-BX7-BY7,IF(BV7="",100-BX7-BY7,200-BX7-BY7)))) -> 200 | CA7: =IF(OR($B7="NSO",$B7="",BV7=""),"",IF(AND(OR(BP7="ab",BP7="ml"),OR(BQ7="ab",BQ7="ml"),OR(BR7="ab",BR7="ml")),"AB",IF(AND(OR(BP7="NA",BP7=""),OR(BQ7="NA",BQ7=""),OR(BR7="NA",BR7="")),"AB",IF(AND(OR(BP7="ab",BP7="ml"),OR(BQ7="ab",BQ7="ml"),OR(BT7="ab",BT7="ml")),"AB",IF(AND(OR(BT7="ab",BT7="ml"),OR(BV7="ab",BV7="ml"),OR(BT7="ab",BV7="ml")),"AB",IF(AND(OR(BV7="ab",BV7="ml"),OR(BP7="ab",BP7="ml"),OR(BQ7="ab",BQ7="ml")),"AB","")))))) ->  | CB7: =IF(OR($B7="NSO",$B7="",BV7=""),"",IF(OR(CA7="AB",BV7="ab"),"AB",IF(BV7="ML","RE",IF(BV7<20%*$BV$6,"F",IF(AND(BW7>=36%*BZ7,BV7>=20),"P",IF(AND(BW7>=34%*BZ7,BY7=0,BV7>=20),"G2",IF(AND(BW7>=31%*BZ7,BY7=0,BV7>=20),"G1",IF(BW7>=25%*BZ7,"S","F")))))))) -> P | CC7: =IF(OR(CB7="",CB7=0,CB7="S",CB7="RE",CB7="F",CB7="AB"),CB7,IF(BW7>=75%*BZ7,"D",IF(BW7>=60%*BZ7,"I",IF(BW7>=48%*BZ7,"II",IF(BW7>=36%*BZ7,"III",CB7))))) -> I | CD7: =SUM(S7,T7,AG7,AH7,AV7,AW7,BJ7,BK7,BX7,BY7,CM7,CN7) -> 0 | CE7: =IF('Marks Entry'!AL7="","",'Marks Entry'!AL7) -> 9 | CF7: =IF('Marks Entry'!AM7="","",'Marks Entry'!AM7) -> 9 | CG7: =IF('Marks Entry'!AN7="","",'Marks Entry'!AN7) -> 9 | CH7: =IF(AND(CE7="",CF7="",CG7=""),"",SUM(CE7:CG7)) -> 27 | CI7: =IF('Marks Entry'!AO7="","",'Marks Entry'!AO7) -> 46 | CJ7: =IF(AND(CH7="",CI7=""),"",SUM(CH7,CI7)) -> 73 | CK7: =IF('Marks Entry'!AP7="","",'Marks Entry'!AP7) -> 70 | CL7: =IF(AND(CK7="",CJ7=""),"",SUM(CJ7,CK7)) -> 143 | CM7: =COUNTIF(CE7:CG7,"NA")*10 -> 0 | CN7: =(COUNTIF(CE7:CG7,"ML")*10)+(COUNTIF(CI7,"ML")*70)+(COUNTIF(CK7,"ML")*100) -> 0 | CO7: =IF(AND(CE7="",CF7="",CG7="",CI7="",CK7=""),"",IF(AND(CF7="",CE7="",CG7=""),170-CM7-CN7,IF(AND(CI7=""),130-CM7-CN7,IF(CK7="",100-CM7-CN7,200-CM7-CN7)))) -> 200 | CP7: =IF(OR($B7="NSO",$B7="",CK7=""),"",IF(AND(OR(CE7="ab",CE7="ml"),OR(CF7="ab",CF7="ml"),OR(CG7="ab",CG7="ml")),"AB",IF(AND(OR(CE7="NA",CE7=""),OR(CF7="NA",CF7=""),OR(CG7="NA",CG7="")),"AB",IF(AND(OR(CE7="ab",CE7="ml"),OR(CF7="ab",CF7="ml"),OR(CI7="ab",CI7="ml")),"AB",IF(AND(OR(CI7="ab",CI7="ml"),OR(CK7="ab",CK7="ml"),OR(CI7="ab",CK7="ml")),"AB",IF(AND(OR(CK7="ab",CK7="ml"),OR(CE7="ab",CE7="ml"),OR(CF7="ab",CF7="ml")),"AB","")))))) ->  | CQ7: =IF(OR($B7="NSO",$B7="",CK7=""),"",IF(OR(CP7="AB",CK7="ab"),"AB",IF(CK7="ML","RE",IF(CK7<20%*$CK$6,"F",IF(AND(CL7>=36%*CO7,CK7>=20),"P",IF(AND(CL7>=34%*CO7,CN7=0,CK7>=20),"G2",IF(AND(CL7>=31%*CO7,CN7=0,CK7>=20),"G1",IF(CL7>=25%*CO7,"S","F")))))))) -> P | CR7: =IF(OR(CQ7="",CQ7=0,CQ7="S",CQ7="RE",CQ7="F",CQ7="AB"),CQ7,IF(CL7>=75%*CO7,"D",IF(CL7>=60%*CO7,"I",IF(CL7>=48%*CO7,"II",IF(CL7>=36%*CO7,"III",CQ7))))) -> I | CS7: =IF('School Profile'!$D$20="NO","",IF('Marks Entry'!AQ7="","",IF('Marks Entry'!AQ7=1,'School Profile'!$I$29,IF('Marks Entry'!AQ7=2,'School Profile'!$I$30,IF('Marks Entry'!AQ7=3,'School Profile'!$I$31,IF('Marks Entry'!AQ7=4,'School Profile'!$I$32,IF('Marks Entry'!AQ7=5,'School Profile'!$I$33,IF('Marks Entry'!AQ7=6,'School Profile'!$I$34,IF('Marks Entry'!AQ7=7,'School Profile'!$I$35,IF('Marks Entry'!AQ7=8,'School Profile'!$I$36,IF('Marks Entry'!AQ7=9,'School Profile'!$I$37,IF('Marks Entry'!AQ7=10,'School Profile'!$I$38,IF('Marks Entry'!AQ7=11,'School Profile'!$I$39,""))))))))))))) ->  | CT7: =IF('School Profile'!$D$20="NO","",IF('Marks Entry'!AR7="","",'Marks Entry'!AR7)) ->  | CU7: =IF('School Profile'!$D$20="NO","",IF('Marks Entry'!AS7="","",'Marks Entry'!AS7)) ->  | CV7: =IF('School Profile'!$D$20="NO","",IF('Marks Entry'!AT7="","",'Marks Entry'!AT7)) ->  | CW7: =IF('School Profile'!$D$20="NO","",IF(AND(CT7="",CU7="",CV7=""),"",SUM(CT7:CV7))) ->  | CX7: =IF('School Profile'!$D$20="NO","",IF('Marks Entry'!AU7="","",'Marks Entry'!AU7)) ->  | CY7: =IF('School Profile'!$D$20="NO","",IF('Marks Entry'!AV7="","",'Marks Entry'!AV7)) ->  | CZ7: =IF('School Profile'!$D$20="NO","",IF(AND(CX7="",CY7=""),"",SUM(CX7,CY7))) ->  | DA7: =IF('School Profile'!$D$20="NO","",IF(AND(CW7="",CZ7=""),"",SUM(CW7+CZ7))) ->  | DB7: =IF('School Profile'!$D$20="NO","",IF('Marks Entry'!AW7="","",'Marks Entry'!AW7)) ->  | DC7: =IF('School Profile'!$D$20="NO","",IF('Marks Entry'!AX7="","",'Marks Entry'!AX7)) ->  | DD7: =IF('School Profile'!$D$20="NO","",IF(AND(DB7="",DC7=""),"",SUM(DB7,DC7))) ->  | DE7: =IF('School Profile'!$D$20="NO","",IF(AND(DA7="",DD7=""),"",SUM(DA7,DD7))) ->  | DF7: =COUNTIF(CX7:CZ7,"NA")*10 -> 0 | DG7: =(COUNTIF(CX7:CZ7,"ML")*10)+(COUNTIF(DB7,"ML")*70)+(COUNTIF(DD7,"ML")*100) -> 0 | DH7: =IF(AND(CX7="",CY7="",CZ7="",DB7="",DD7=""),"",IF(AND(CY7="",CX7="",CZ7=""),170-DF7-DG7,IF(AND(DB7=""),130-DF7-DG7,IF(DD7="",100-DF7-DG7,200-DF7-DG7)))) ->  | DI7: =IF(OR($B7="NSO",$B7="",DD7=""),"",IF(AND(OR(CX7="ab",CX7="ml"),OR(CY7="ab",CY7="ml"),OR(CZ7="ab",CZ7="ml")),"AB",IF(AND(OR(CX7="NA",CX7=""),OR(CY7="NA",CY7=""),OR(CZ7="NA",CZ7="")),"AB",IF(AND(OR(CX7="ab",CX7="ml"),OR(CY7="ab",CY7="ml"),OR(DB7="ab",DB7="ml")),"AB",IF(AND(OR(DB7="ab",DB7="ml"),OR(DD7="ab",DD7="ml"),OR(DB7="ab",DD7="ml")),"AB",IF(AND(OR(DD7="ab",DD7="ml"),OR(CX7="ab",CX7="ml"),OR(CY7="ab",CY7="ml")),"AB","")))))) ->  | DJ7: =IF(OR($B7="NSO",$B7="",DD7=""),"",IF(OR(DI7="AB",DD7="ab"),"AB",IF(DD7="ML","RE",IF(DD7<20%*$DD$6,"F",IF(AND(DE7>=36%*DH7,DD7>=20),"P",IF(AND(DE7>=34%*DH7,DG7=0,DD7>=20),"G2",IF(AND(DE7>=31%*DH7,DG7=0,DD7>=20),"G1",IF(DE7>=25%*DH7,"S","F")))))))) ->  | DK7: =IF(OR(DJ7="",DJ7=0,DJ7="S",DJ7="RE",DJ7="F",DJ7="AB"),DJ7,IF(DE7>=75%*DH7,"D",IF(DE7>=60%*DH7,"I",IF(DE7>=48%*DH7,"II",IF(DE7>=36%*DH7,"III",DJ7))))) ->  | DL7: =X7 -> I | DM7: =AL7 -> I | DN7: =BA7 -> I | DO7: =BO7 -> I | DP7: =CC7 -> I | DQ7: =CR7 -> I | DR7: =DK7 ->  | DS7: =COUNTIF(DL7:DR7,"F")+COUNTIF(DL7:DR7,"AB") -> 0 | DT7: =COUNTIF(DL7:DR7,"S") -> 0 | DU7: =COUNTIF(DL7:DR7,"G1") -> 0 | DV7: =COUNTIF(DL7:DR7,"G2") -> 0 | DW7: =COUNTIF(DL7:DR7,"RE")+COUNTIF(DL7:DR7,"REP") -> 0 | DX7: =IF(OR(DK7="AB",DK7="F"),"F",IF(OR(DK7="RE"),"RE","")) ->  | DY7: =IF(B7="NSO","NSO",IF(OR(B7="",B7=0,Q7="",AE7="",AT7="",BH7="",BV7="",CK7=""),"",IF(OR(DS7>0,(DT7+DU7+DV7)>2),"FAIL",IF(DW7>0,"RE-EXAM",IF(OR(DT7>0,DU7>1),"SUPPLEMENTARY",IF(AND(DU7>0,DV7>0),"SUPPLEMENTARY",IF((DU7+DV7)>0,"BY GRACE PASS","PASS"))))))) -> PASS | DZ7: =IF('Marks Entry'!AY7="","",'Marks Entry'!AY7) -> 10 | EA7: =IF('Marks Entry'!AZ7="","",'Marks Entry'!AZ7) -> 10 | EB7: =IF('Marks Entry'!BA7="","",'Marks Entry'!BA7) -> 10 | EC7: =IF(AND(DZ7="",EA7="",EB7=""),"",SUM(DZ7:EB7)) -> 30 | ED7: =IF('Marks Entry'!BB7="","",'Marks Entry'!BB7) -> 70 | EE7: =IF(AND(EC7="",ED7=""),"",SUM(EC7,ED7)) -> 100 | EF7: =IF('Marks Entry'!BC7="","",'Marks Entry'!BC7) -> 90 | EG7: =IF(AND(EF7="",EE7=""),"",SUM(EE7,EF7)) -> 190 | EH7: =IF(OR($B7="NSO",$B7=0,EG7=""),"",IF(OR(EG7="AB",EE7="AB",EF7="AB"),"AB",IF(AND(DY7="FAIL",(OR(EG7<36%*EK7))),"D",IF(OR(EF7="ML",EF7<20%*EF$6,EG7<36%*EK7),"D",IF(EG7>80%*EK7,"A",IF(EG7>60%*EK7,"B",IF(EG7>40%*EK7,"C","D"))))))) -> A | EI7: =COUNTIF(DZ7:EB7,"NA")*10 -> 0 | EJ7: =(COUNTIF(DZ7:EB7,"ML")*10)+(COUNTIF(ED7,"ML")*70)+(COUNTIF(EF7,"ML")*100) -> 0 | EK7: =IF(OR($B7="NSO",$B7=0),"",IF(AND(DZ7="",EA7="",EC7="",EE7=""),"",IF(AND(EA7="",EC7="",ED7="",EE7="",EF7=""),($DZ$6)-EI7-EJ7,IF(AND(DZ7="",EC7="",ED7="",EE7="",EF7=""),($EA$6)-EI7-EJ7,IF(AND(EC7="",ED7="",EE7="",EF7=""),($DZ$6+$EA$6)-EI7-EJ7,IF(AND(EE7="",EF7=""),($EC$6+$ED$6)-EI7-EJ7,($EG$6)-EI7-EJ7)))))) -> 200 | EL7: =IF('Marks Entry'!BD7="","",'Marks Entry'!BD7) -> 10 | EM7: =IF('Marks Entry'!BE7="","",'Marks Entry'!BE7) -> 10 | EN7: =IF('Marks Entry'!BF7="","",'Marks Entry'!BF7) -> 10 | EO7: =IF(AND(EL7="",EM7="",EN7=""),"",SUM(EL7:EN7)) -> 30 | EP7: =IF('Marks Entry'!BG7="","",'Marks Entry'!BG7) -> 45 | EQ7: =IF('Marks Entry'!BH7="","",'Marks Entry'!BH7) -> 12 | ER7: =IF(AND(EP7="",EQ7=""),"",SUM(EP7,EQ7)) -> 57 | ES7: =IF(AND(EO7="",ER7=""),"",SUM(EO7+ER7)) -> 87 | ET7: =IF('Marks Entry'!BI7="","",'Marks Entry'!BI7) -> 63 | EU7: =IF('Marks Entry'!BJ7="","",'Marks Entry'!BJ7) -> 25 | EV7: =IF(AND(ET7="",EU7=""),"",SUM(ET7,EU7)) -> 88 | EW7: =IF(AND(ES7="",EV7=""),"",SUM(ES7,EV7)) -> 175 | EX7: =IF(OR($B7="NSO",$B7=0,EW7=""),"",IF(OR(ET7="AB",EU7="AB",EV7="AB"),"AB",IF(AND($DY7="FAIL",(OR(EW7<36%*FA7))),"D",IF(OR(EV7="ML",EV7<20%*EV$6,EW7<36%*FA7),"D",IF(EW7>80%*FA7,"A",IF(EW7>60%*FA7,"B",IF(EW7>40%*FA7,"C","D"))))))) -> A | EY7: =COUNTIF(EL7:EN7,"NA")*10 -> 0 | EZ7: =(COUNTIF(EL7:EN7,"ML")*10)+(COUNTIF(ER7,"ML")*70)+(COUNTIF(EV7,"ML")*100) -> 0 | FA7: =IF(OR($B7="NSO",$B7=0),"",IF(AND(EL7="",EM7="",EP7="",ET7=""),"",IF(AND(EM7="",EP7="",EQ7="",ET7="",EU7=""),($EL$6)-EY7-EZ7,IF(AND(EL7="",EP7="",EQ7="",ET7="",EU7=""),($EM$6)-EY7-EZ7,IF(AND(EP7="",EQ7="",ET7="",EU7=""),($EL$6+$EM$6)-EY7-EZ7,IF(AND(ET7="",EU7=""),($EP$6+$EQ$6)-EY7-EZ7,($EW$6)-EY7-EZ7)))))) -> 200 | FB7: =IF('Marks Entry'!BK7="","",'Marks Entry'!BK7) -> 10 | FC7: =IF('Marks Entry'!BL7="","",'Marks Entry'!BL7) -> 7 | FD7: =IF('Marks Entry'!BM7="","",'Marks Entry'!BM7) -> 9 | FE7: =IF('Marks Entry'!BN7="","",'Marks Entry'!BN7) -> 7 | FF7: =IF('Marks Entry'!BO7="","",'Marks Entry'!BO7) -> 10 | FG7: =IF('Marks Entry'!BP7="","",'Marks Entry'!BP7) -> 14 | FH7: =IF(AND(FB7="",FC7="",FE7="",FF7="",FG7=""),"",SUM(FB7:FG7)) -> 57 | FI7: =IF('Marks Entry'!BQ7="","",'Marks Entry'!BQ7) -> 20 | FJ7: =IF('Marks Entry'!BR7="","",'Marks Entry'!BR7) -> 14 | FK7: =IF(AND(FI7="",FJ7=""),"",SUM(FI7,FJ7)) -> 34 | FL7: =IF(AND(FH7="",FK7=""),"",SUM(FH7+FK7)) -> 91 | FM7: =IF('Marks Entry'!BS7="","",'Marks Entry'!BS7) -> 12 | FN7: =IF('Marks Entry'!BT7="","",'Marks Entry'!BT7) -> 50 | FO7: =IF(AND(FM7="",FN7=""),"",SUM(FM7,FN7)) -> 62 | FP7: =IF(AND(FL7="",FO7=""),"",SUM(FL7,FO7)) -> 153 | FQ7: =IF(OR($B7="NSO",$B7=0,FP7=""),"",IF(OR(FM7="AB",FN7="AB",FO7="AB"),"AB",IF(AND($DY7="FAIL",(OR(FP7<36%*FT7))),"D",IF(OR(FO7="ML",FO7<20%*FO$6,FP7<36%*FT7),"D",IF(FP7>80%*FT7,"A",IF(FP7>60%*FT7,"B",IF(FP7>40%*FT7,"C","D"))))))) -> B | FR7: =COUNTIF(FB7,"NA")*10+COUNTIF(FD7,"NA")*10+COUNTIF(FF7,"NA")*10 -> 0 | FS7: =(COUNTIF(FB7,"ML")*10)+(COUNTIF(FD7,"ML")*10)+(COUNTIF(FF7,"ML")*10)+(COUNTIF(FI7,"ML")*25)+(COUNTIF(FJ7,"ML")*15)+(COUNTIF(FM7,"ML")*30)+(COUNTIF(FN7,"ML")*70) -> 0 | FT7: =IF(OR($B7="NSO",$B7=0),"",IF(AND(FB7="",FD7="",FF7="",FI7="",FM7=""),"",IF(AND(FC7="",FI7="",FJ7="",FE7="",FN7=""),($FB$6)-FR7-FS7,IF(AND(FB7="",FI7="",FJ7="",FM7="",FN7=""),($FC$6)-FR7-FS7,IF(AND(FI7="",FJ7="",FM7="",FN7=""),($FB$6+$FC$6)-FR7-FS7,IF(AND(FM7="",FN7=""),($FI$6+$FJ$6)-FR7-FS7,($FP$6)-FR7-FS7)))))) -> 200 | FU7: =IF('Marks Entry'!BU7="","",'Marks Entry'!BU7) -> 21 | FV7: =IF('Marks Entry'!BV7="","",'Marks Entry'!BV7) -> 41 | FW7: =IF('Marks Entry'!BW7="","",'Marks Entry'!BW7) -> 29 | FX7: =IF(AND(FU7="",FV7="",FW7=""),"",SUM(FU7,FV7,FW7)) -> 91 | FY7: =IFERROR(IF(OR($B7="NSO",$B7=0,FX7=""),"",IF(OR(FU7="AB",FV7="AB",FW7="AB"),"AB",IF(AND($DY7="FAIL",(OR(FX7<36%*GB7))),"D",IF(OR(FW7="ML",FX7<20%*FX$6,FX7<36%*GB7),"D",IF(FX7>80%*GB7,"A",IF(FX7>60%*GB7,"B",IF(FX7>40%*GB7,"C","D"))))))),"") -> A | FZ7: =COUNTIF(FU7,"NA")*25 -> 0 | GA7: =IF(AND(FW7="",FU7="",FW7=""),(COUNTIF(FU7,"ML")*25+(COUNTIF(FW7,"ML"))*FW$6+(COUNTIF(FV7,"ML"))*FV$6),(COUNTIF(FU7,"ML")*25+(COUNTIF(FW7,"ML"))*FW$6+(COUNTIF(FX7,"ML"))*FX$6)) -> 0 | GB7: =IF(OR($B7="NSO",$B7=0),"",IF(AND(FU7="",FV7="",FW7=""),"",IF(AND(FU7="",FV7="",FW7=""),($FX$6)-FZ7-GA7,IF(AND(FW7=""),($FW$6)-FZ7-GA7,IF(AND(FV7=""),($FV$6)-FZ7-GA7,IF(AND(FU7=""),($FU$6)-FZ7-GA7,($FX$6)-FZ7-GA7)))))) -> 100 | GC7: =IF('Marks Entry'!BX7="","",'Marks Entry'!BX7) -> 14 | GD7: =IF('Marks Entry'!BY7="","",'Marks Entry'!BY7) -> 42 | GE7: =IF('Marks Entry'!BZ7="","",'Marks Entry'!BZ7) -> 10 | GF7: =IF(AND(GC7="",GD7="",GE7=""),"",SUM(GC7,GD7,GE7)) -> 66 | GG7: =IFERROR(IF(OR($B7="NSO",$B7=0,GF7=""),"",IF(OR(GC7="AB",GD7="AB",GE7="AB"),"AB",IF(AND($DY7="FAIL",(OR(GF7<36%*GJ7))),"D",IF(OR(GE7="ML",GF7<20%*GF$6,GF7<36%*GJ7),"D",IF(GF7>80%*GJ7,"A",IF(GF7>60%*GJ7,"B",IF(GF7>40%*GJ7,"C","D"))))))),"") -> B | GH7: =COUNTIF(GC7,"NA")*25 -> 0 | GI7: =IF(AND(GE7="",GC7="",GE7=""),(COUNTIF(GC7,"ML")*25+(COUNTIF(GE7,"ML"))*GE$6+(COUNTIF(GD7,"ML"))*GD$6),(COUNTIF(GC7,"ML")*25+(COUNTIF(GE7,"ML"))*GE$6+(COUNTIF(GF7,"ML"))*GF$6)) -> 0 | GJ7: =IF(OR($B7="NSO",$B7=0),"",IF(AND(GC7="",GD7="",GE7=""),"",IF(AND(GC7="",GD7="",GE7=""),($GF$6)-GH7-GI7,IF(AND(GE7=""),($GE$6)-GH7-GI7,IF(AND(GD7=""),($GD$6)-GH7-GI7,IF(AND(GC7=""),($GC$6)-GH7-GI7,($GF$6)-GH7-GI7)))))) -> 100 | GK7: =IF(AND(F7="",B7=""),"",IF('Student DATA Entry'!M4="","",'Student DATA Entry'!M4)) -> 200 | GL7: =IF(AND(B7="",F7=""),"",IF('Student DATA Entry'!N4="","",'Student DATA Entry'!N4)) -> 192 | GM7: =IF(OR(GK7=0,GL7=0,GK7="",GL7=""),"",GL7/GK7*100) -> 96.00 % | GN7: =IF(AND(DY7="FAIL",(OR(DL7="G1",DL7="G2",DL7="S",DL7="RE"))),"F",IF(AND(DY7="RE-EXAM",(OR(DL7="G1",DL7="G2",DL7="S"))),"S",IF(AND(DY7="SUPPLEMENTARY",(OR(DL7="G1",DL7="G2"))),"S",IF(AND(DY7="BY GRACE PASS",(OR(DL7="G1",DL7="G2"))),"G",DL7)))) -> I | GO7: =IF(GN7="G",",+","") ->  | GP7: =IF(GN7="G",ROUNDUP(36%*U7-R7,0),"") ->  | GQ7: =IF(AND(DY7="FAIL",(OR(DM7="G1",DM7="G2",DM7="S",DM7="RE"))),"F",IF(AND(DY7="RE-EXAM",(OR(DM7="G1",DM7="G2",DM7="S"))),"S",IF(AND(DY7="SUPPLEMENTARY",(OR(DM7="G1",DM7="G2"))),"S",IF(AND(DY7="BY GRACE PASS",(OR(DM7="G1",DM7="G2"))),"G",DM7)))) -> I | GR7: =IF(GQ7="G",",+","") ->  | GS7: =IF(GQ7="G",ROUNDUP(36%*AI7-AF7,0),"") ->  | GT7: =IF(AND(DY7="FAIL",(OR(DN7="G1",DN7="G2",DN7="S",DN7="RE"))),"F",IF(AND(DY7="RE-EXAM",(OR(DN7="G1",DN7="G2",DN7="S"))),"S",IF(AND(DY7="SUPPLEMENTARY",(OR(DN7="G1",DN7="G2"))),"S",IF(AND(DY7="BY GRACE PASS",(OR(DN7="G1",DN7="G2"))),"G",DN7)))) -> I | GU7: =IF('Marks Entry'!V7=1,GT7,"") -> I | GV7: =IF('Marks Entry'!V7=2,GT7,"") ->  | GW7: =IF('Marks Entry'!V7=3,GT7,"") ->  | GX7: =IF('Marks Entry'!V7=4,GT7,"") ->  | GY7: =IF('Marks Entry'!V7=5,GT7,"") ->  | GZ7: =IF(GT7="G",",+","") ->  | HA7: =IF(GT7="G",ROUNDUP(36%*AX7-AU7,0),"") ->  | HB7: =IF(AND(DY7="FAIL",(OR(DO7="G1",DO7="G2",DO7="S",DO7="RE",))),"F",IF(AND(DY7="RE-EXAM",(OR(DO7="G1",DO7="G2",DO7="S"))),"S",IF(AND(DY7="SUPPLEMENTARY",(OR(DO7="G1",DO7="G2"))),"S",IF(AND(DY7="BY GRACE PASS",(OR(DO7="G1",DO7="G2"))),"G",DO7)))) -> I | HC7: =IF(HB7="G",",+","") ->  | HD7: =IF(HB7="G",ROUNDUP(36%*BL7-BI7,0),"") ->  | HE7: =IF(AND(DY7="FAIL",(OR(DP7="G1",DP7="G2",DP7="S",DP7="RE"))),"F",IF(AND(DY7="RE-EXAM",(OR(DP7="G1",DP7="G2",DP7="S"))),"S",IF(AND(DY7="SUPPLEMENTARY",(OR(DP7="G1",DP7="G2"))),"S",IF(AND(DY7="BY GRACE PASS",(OR(DP7="G1",DP7="G2"))),"G",DP7)))) -> I | HF7: =IF(HE7="G",",+","") ->  | HG7: =IF(HE7="G",ROUNDUP(36%*BZ7-BW7,0),"") ->  | HH7: =IF(AND(DY7="FAIL",(OR(DQ7="G1",DQ7="G2",DQ7="S",DQ7="RE"))),"F",IF(AND(DY7="RE-EXAM",(OR(DQ7="G1",DQ7="G2",DQ7="S"))),"S",IF(AND(DY7="SUPPLEMENTARY",(OR(DQ7="G1",DQ7="G2"))),"S",IF(AND(DY7="BY GRACE PASS",(OR(DQ7="G1",DQ7="G2"))),"G",DQ7)))) -> I | HI7: =IF(HH7="G",",+","") ->  | HJ7: =IF(HH7="G",ROUNDUP(36%*CO7-CL7,0),"") ->  | HK7: =IF(AND(DY7="FAIL",(OR(DR7="G1",DR7="G2",DR7="S",DR7="RE"))),"F",IF(AND(DY7="RE-EXAM",(OR(DR7="G1",DR7="G2",DR7="S"))),"S",IF(AND(DY7="SUPPLEMENTARY",(OR(DR7="G1",DR7="G2"))),"S",IF(AND(DY7="BY GRACE PASS",(OR(DR7="G1",DR7="G2"))),"G",DR7)))) ->  | HL7: =IF(HK7="G",",+","") ->  | HM7: =IF(HK7="G",ROUNDUP(36%*DH7-DE7,0),"") ->  | HN7: =CONCATENATE(IF(GN7="F",$GN$5,IF(GN7="AB",$GN$5,""))," ",IF(GQ7="F",$GQ$5,IF(GQ7="AB",$GQ$5,""))," ",IF(GU7="F",$GU$5,IF(GV7="F",$GV$5,IF(GW7="F",$GW$5,IF(GX7="F",$GX$5,IF(GY7="F",$GY$5,IF(GU7="AB",$GU$5,IF(GV7="AB",$GV$5,IF(GW7="AB",$GW$5,IF(GX7="AB",$GX$5,IF(GY7="AB",$GY$5,""))))))))))," ",IF(HB7="F",$HB$5,IF(HB7="AB",$HB$5,""))," ",IF(HE7="F",$HE$5,IF(HE7="AB",$HE$5,""))," ",,IF(HH7="F",$HH$5,IF(HH7="AB",$HH$5,""))," ",IF(HK7="F",$HK$5,IF(HK7="AB",$HK$5,""))) ->  | HO7: =IF(COUNTIF(DL7:DR7,"F")>0,"",CONCATENATE(IF(GN7="S",$GN$5,"")," ",IF(GQ7="S",$GQ$5,"")," ",IF(GU7="S",$GU$5,IF(GV7="S",$GV$5,IF(GW7="S",$GW$5,IF(GX7="S",$GX$5,IF(GY7="S",$GY$5,"")))))," ",IF(HB7="S",$HB$5,"")," ",IF(HE7="S",$HE$5,"")," ",IF(HH7="S",$HH$5,"")," ",IF(HK7="S",$HK$5,""))) ->  | HP7: =CONCATENATE(IF(GN7="G",$GN$5,"")," ",IF(GQ7="G",$GQ$5,"")," ",IF(GU7="G",$GU$5,IF(GV7="G",$GV$5,IF(GW7="G",$GW$5,IF(GX7="G",$GX$5,IF(GY7="G",$GY$5,"")))))," ",IF(HB7="G",$HB$5,"")," ",IF(HE7="G",$HE$5,"")," ",IF(HH7="G",$HH$5,"")," ",IF(HK7="G",$HK$5,"")) ->  | HQ7: =CONCATENATE(IF(GN7="RE",$GN$5,"")," ",IF(GQ7="RE",$GQ$5,"")," ",IF(OR(GU7="RE",GU7="REP"),$GU$5,IF(OR(GV7="RE",GV7="REP"),$GV$5,IF(OR(GW7="RE",GW7="REP"),$GW$5,IF(OR(GX7="RE",GX7="REP"),$GX$5,IF(OR(GY7="RE",GY7="REP"),$GY$5,"")))))," ",IF(OR(HB7="RE",HB7="REP"),$HB$5,"")," ",IF(OR(HE7="RE",HE7="REP"),$HE$5,"")," ",IF(OR(HH7="RE",HH7="REP"),$HH$5,"")," ",IF(OR(HK7="RE",HK7="REP"),$HK$5,"")) ->  | HR7: =CONCATENATE(IF(GN7="D",$GN$5,"")," ",IF($GQ7="D",$GQ$5,"")," ",IF(GU7="D",$GU$5,IF(GV7="D",$GV$5,IF(GW7="D",$GW$5,IF(GX7="D",$GX$5,IF(GY7="D",$GY$5,"")))))," ",IF(HB7="D",$HB$5,"")," ",IF(HE7="D",$HE$5,"")," ",IF(HH7="D",$HH$5,"")," ",IF(HK7="D",$HK$5,"")) ->  | HS7: =IF(B7="NSO","NSO",IF(AND(OR(DY7="PASS",DY7="BY GRACE PASS",DY7="RE-EXAM"),DX7="F"),"FAIL",IF(AND(OR(DY7="PASS",DY7="BY GRACE PASS"),DX7="RE"),"RE-EXAM",DY7))) -> PASS | HT7: =IF(AND(R7="",AF7="",AU7="",BI7="",BW7=""),"",IF(OR(CS7="",DE7=""),SUM(R7,AF7,AU7,BI7,BW7,CL7),IF((CL7/CO7*100)>=(DE7/DH7*100),SUM(R7,AF7,AU7,BI7,BW7,CL7),SUM(R7,AF7,AU7,BI7,BW7,DE7)))) -> 855 | HU7: =IF(HT7="","",HT7*100/($HT$6-CD7)) -> 71.25 | HV7: =IFERROR(IF(HU7="","",IF(AND(HU7>=60,(HS7="PASS")),"1st",IF(AND(HU7>=60,(HS7="BY GRACE PASS")),"1st",IF(AND(HU7>=48,(HS7="PASS")),"2nd",IF(AND(HU7>=48,(HS7="BY GRACE PASS")),"2nd",IF(AND(HU7>=36,(HS7="PASS")),"3rd",IF(AND(HU7>=36,(HS7="BY GRACE PASS")),"3rd",""))))))),"") -> 1st | HW7: =IFERROR(IF(OR(HS7="PASS",HS7="BY GRACE PASS"),HU7,""),"") -> 71.25 % | HX7: =IFERROR(IF(HW7="","",SUMPRODUCT((HW7<HW$7:HW$206)/COUNTIF(HW$7:HW$206,HW$7:HW$206))),"") -> 2 | HY7: =IFERROR(IF(OR(HS7="SUPPLEMENTARY",HS7="RE-EXAM"),'Supp. Result Entry'!AQ5,""),"") ->  | HZ7: =IF(OR(KA7="",JP7=0),"",IF(JY7="","",JY7)) ->  | IA7: =IF(AND(KA7=""),"",IF(HZ7="","",IF(AND(KA7="FAIL"),"Failed",KA7))) ->  | IB7: =IF(AND(HZ7="",IA7=""),"",IF(OR(HS7="SUPPLEMENTARY",HS7="RE-EXAM"),'Supp. Result Entry'!AQ5,HS7)) ->  | IS7: =IF('Supp. Result Entry'!T5="","",'Supp. Result Entry'!$T$4) ->  | IT7: =IF('Supp. Result Entry'!W5="","",'Supp. Result Entry'!$W$4) ->  | IU7: =IF('Supp. Result Entry'!Z5="","",'Supp. Result Entry'!$Z$4) ->  | IV7: =IF('Supp. Result Entry'!AC5="","",'Supp. Result Entry'!$AC$4) ->  | IW7: =IF('Supp. Result Entry'!AF5="","",'Supp. Result Entry'!$AF$4) ->  | IX7: =IF('Supp. Result Entry'!AI5="","",'Supp. Result Entry'!$AI$4) ->  | IY7: =IF('Supp. Result Entry'!AI5="","",'Supp. Result Entry'!$AL$4) ->  | IZ7: =IF('Supp. Result Entry'!U5="","",'Supp. Result Entry'!U5) ->  | JA7: =IF('Supp. Result Entry'!X5="","",'Supp. Result Entry'!X5) ->  | JB7: =IF('Supp. Result Entry'!AA5="","",'Supp. Result Entry'!AA5) ->  | JC7: =IF('Supp. Result Entry'!AD5="","",'Supp. Result Entry'!AD5) ->  | JD7: =IF('Supp. Result Entry'!AG5="","",'Supp. Result Entry'!AG5) ->  | JE7: =IF('Supp. Result Entry'!AJ5="","",'Supp. Result Entry'!AJ5) ->  | JF7: =IF('Supp. Result Entry'!AM5="","",'Supp. Result Entry'!AM5) ->  | JG7: =IF('Supp. Result Entry'!V5="","",'Supp. Result Entry'!V5) ->  | JH7: =IF('Supp. Result Entry'!Y5="","",'Supp. Result Entry'!Y5) ->  | JI7: =IF('Supp. Result Entry'!AB5="","",'Supp. Result Entry'!AB5) ->  | JJ7: =IF('Supp. Result Entry'!AE5="","",'Supp. Result Entry'!AE5) ->  | JK7: =IF('Supp. Result Entry'!AH5="","",'Supp. Result Entry'!AH5) ->  | JL7: =IF('Supp. Result Entry'!AK5="","",'Supp. Result Entry'!AK5) ->  | JM7: =IF('Supp. Result Entry'!AN5="","",'Supp. Result Entry'!AN5) ->  | JN7: =COUNTIF('Supp. Result Entry'!K5:Q5,"S") -> 0 | JO7: =COUNTIF(GN7:HM7,"RE")+COUNTIF(GN7:HM7,"REP") -> 0 | JP7: =COUNTIF(JG7:JM7,"P") -> 0 | JQ7: =IF(OR(JN7=0,JN7<JP7),"",IF(OR(GN7="RE",GN7="REP"),SUM(R7,IZ7),IF(GN7="S",IZ7,R7))) ->  | JR7: =IF(OR(JN7=0,JN7<JP7),"",IF(OR(GQ7="RE",GQ7="REP"),SUM(AF7,JA7),IF(GQ7="S",JA7,AF7))) ->  | JS7: =IF(OR(JN7=0,JN7<JP7),"",IF(OR(GT7="RE",GT7="REP"),SUM(AU7,JB7),IF(GT7="S",JB7,AU7))) ->  | JT7: =IF(OR(JN7=0,JN7<JP7),"",IF(OR(HB7="RE",HB7="REP"),SUM(BI7,JC7),IF(HB7="S",JC7,BI7))) ->  | JU7: =IF(OR(JN7=0,JN7<JP7),"",IF(OR(HE7="RE",HE7="REP"),SUM(BW7,JD7),IF(HE7="S",JD7,BW7))) ->  | JV7: =IF(OR(JN7=0,JN7<JP7),"",IF(OR(HH7="RE",HH7="REP"),SUM(CL7,JE7),IF(HH7="S",JE7,CL7))) ->  | JW7: =IF(OR(JN7=0,JN7<JP7),"",IF(OR(HK7="RE",HK7="REP"),SUM(DE7,JF7),IF(HK7="S",JF7,DE7))) ->  | JX7: =IF(OR(JN7=0,JN7<JP7),"",SUM(JQ7:JW7)) ->  | JY7: =IF(OR(JN7=0,JN7<JP7),"",JX7/JZ7*100) ->  | JZ7: =IF(OR(JN7=0,JN7<JP7),"",SUM(($R$6+$AF$6+$AU$6+$BI$6+$BW$6+$CL$6))-(JP7*100)) ->  | KA7: =IF(JY7="","",IF(JY7>=60,"I",IF(JY7>=48,"II",IF(JY7>=36,"III","")))) -> 
A8: 2 | B8: =IF('Marks Entry'!B8="","",'Marks Entry'!B8) -> 902 | C8: =IF('Marks Entry'!D8="","",'Marks Entry'!D8) -> A | D8: =IF('Marks Entry'!E8="","",'Marks Entry'!E8) -> 501 | E8: =IF('Marks Entry'!F8="","",'Marks Entry'!F8) -> 2009-09-09 | F8: =IF('Marks Entry'!G8="","",'Marks Entry'!G8) -> RAM | G8: =IF('Marks Entry'!H8="","",'Marks Entry'!H8) -> SHYAM | H8: =IF('Marks Entry'!I8="","",'Marks Entry'!I8) -> SITA | I8: =IF('Marks Entry'!J8="","",'Marks Entry'!J8) -> OBC | J8: =IF('Marks Entry'!K8="","",'Marks Entry'!K8) -> M | K8: =IF('Marks Entry'!L8="","",'Marks Entry'!L8) -> 8 | L8: =IF('Marks Entry'!M8="","",'Marks Entry'!M8) -> 9 | M8: =IF('Marks Entry'!N8="","",'Marks Entry'!N8) -> 9 | N8: =IF(AND(K8="",L8="",M8=""),"",IF(AND(K8="AB",L8="AB",M8="AB"),"AB",IF(AND(K8="ML",L8="ML",M8="ML"),"ML",SUM(K8:M8)))) -> 26 | O8: =IF('Marks Entry'!O8="","",'Marks Entry'!O8) -> 46 | P8: =IF(AND(N8="",O8=""),"",SUM(N8,O8)) -> 72 | Q8: =IF('Marks Entry'!P8="","",'Marks Entry'!P8) -> 65 | R8: =IF(AND(P8="",Q8=""),"",SUM(Q8,P8)) -> 137 | S8: =COUNTIF(K8:M8,"NA")*$K$6 -> 0 | T8: =(COUNTIF(K8:M8,"ML")*$K$6)+(COUNTIF(O8,"ML")*$O$6)+(COUNTIF(Q8,"ML")*$Q$6) -> 0 | U8: =IF(AND(K8="",L8="",M8="",O8="",Q8=""),"",IF(AND(L8="",K8="",M8=""),170-S8-T8,IF(AND(O8=""),130-S8-T8,IF(Q8="",100-S8-T8,200-S8-T8)))) -> 200 | V8: =IF(OR($B8="NSO",$B8="",Q8=""),"",IF(AND(OR(K8="ab",K8="ml"),OR(L8="ab",L8="ml"),OR(M8="ab",M8="ml")),"AB",IF(AND(OR(K8="NA",K8=""),OR(L8="NA",L8=""),OR(M8="NA",M8="")),"AB",IF(AND(OR(K8="ab",K8="ml"),OR(L8="ab",L8="ml"),OR(O8="ab",O8="ml")),"AB",IF(AND(OR(O8="ab",O8="ml"),OR(Q8="ab",Q8="ml"),OR(O8="ab",Q8="ml")),"AB",IF(AND(OR(Q8="ab",Q8="ml"),OR(K8="ab",K8="ml"),OR(L8="ab",L8="ml")),"AB","")))))) ->  | W8: =IF(OR($B8="NSO",$B8="",Q8=""),"",IF(OR(V8="AB",Q8="ab"),"AB",IF(Q8="ML","RE",IF(Q8<20%*$Q$6,"F",IF(AND(R8>=36%*U8,Q8>=20%*$Q$6),"P",IF(AND(R8>=34%*U8,T8=0,Q8>=20%*$Q$6),"G2",IF(AND(R8>=31%*U8,T8=0,Q8>=20%*$Q$6),"G1",IF(R8>=25%*U8,"S","F")))))))) -> P | X8: =IF(OR(W8="",W8=0,W8="S",W8="RE",W8="F",W8="AB"),W8,IF(R8>=75%*U8,"D",IF(R8>=60%*U8,"I",IF(R8>=48%*U8,"II",IF(R8>=36%*U8,"III",W8))))) -> I | Y8: =IF('Marks Entry'!Q8="","",'Marks Entry'!Q8) -> 8 | Z8: =IF('Marks Entry'!R8="","",'Marks Entry'!R8) -> 9 | AA8: =IF('Marks Entry'!S8="","",'Marks Entry'!S8) -> 10 | AB8: 27 | AC8: =IF('Marks Entry'!T8="","",'Marks Entry'!T8) -> 66 | AD8: 93 | AE8: =IF('Marks Entry'!U8="","",'Marks Entry'!U8) -> 95 | AF8: 188 | AG8: 0 | AH8: 0 | AI8: 200 | AK8: P | AL8: D | AM8: =IF('Marks Entry'!V8="","",IF('Marks Entry'!V8=1,'School Profile'!$I$9,IF('Marks Entry'!V8=2,'School Profile'!$I$10,IF('Marks Entry'!V8=3,'School Profile'!$I$11,IF('Marks Entry'!V8=4,'School Profile'!$I$12,IF('Marks Entry'!V8=5,'School Profile'!$I$13,IF('Marks Entry'!V8=6,'School Profile'!$I$14,""))))))) -> संस्कृत (71) | AN8: =IF('Marks Entry'!W8="","",'Marks Entry'!W8) -> 8 | AO8: =IF('Marks Entry'!X8="","",'Marks Entry'!X8) -> 9 | AP8: =IF('Marks Entry'!Y8="","",'Marks Entry'!Y8) -> 9 | AQ8: 26 | AR8: =IF('Marks Entry'!Z8="","",'Marks Entry'!Z8) -> 62 | AS8: 88 | AT8: =IF('Marks Entry'!AA8="","",'Marks Entry'!AA8) -> 92 | AU8: 180 | AV8: 0 | AW8: 0 | AX8: 200 | AZ8: P | BA8: D | BB8: =IF('Marks Entry'!AB8="","",'Marks Entry'!AB8) -> 8 | BC8: =IF('Marks Entry'!AC8="","",'Marks Entry'!AC8) -> 9 | BD8: =IF('Marks Entry'!AD8="","",'Marks Entry'!AD8) -> 8 | BE8: 25 | BF8: =IF('Marks Entry'!AE8="","",'Marks Entry'!AE8) -> 46 | BG8: 71 | BH8: =IF('Marks Entry'!AF8="","",'Marks Entry'!AF8) -> 45 | BI8: 116 | BJ8: 0 | BK8: =(COUNTIF(BB8:BD8,"ML")*10)+(COUNTIF(BF8,"ML")*$BF$6)+(COUNTIF(BH8,"ML")*$BH$6) -> 0 | BL8: 200 | BN8: P | BO8: II | BP8: =IF('Marks Entry'!AG8="","",'Marks Entry'!AG8) -> 8 | BQ8: =IF('Marks Entry'!AH8="","",'Marks Entry'!AH8) -> 9 | BR8: =IF('Marks Entry'!AI8="","",'Marks Entry'!AI8) -> 9 | BS8: 26 | BT8: =IF('Marks Entry'!AJ8="","",'Marks Entry'!AJ8) -> 46 | BU8: 72 | BV8: =IF('Marks Entry'!AK8="","",'Marks Entry'!AK8) -> 45 | BW8: 117 | BX8: 0 | BY8: 0 | BZ8: 200 | CB8: P | CC8: II | CD8: =SUM(S8,T8,AG8,AH8,AV8,AW8,BJ8,BK8,BX8,BY8,CM8,CN8) -> 0 | CE8: =IF('Marks Entry'!AL8="","",'Marks Entry'!AL8) -> 10 | CF8: =IF('Marks Entry'!AM8="","",'Marks Entry'!AM8) -> 10 | CG8: =IF('Marks Entry'!AN8="","",'Marks Entry'!AN8) -> 10 | CH8: 30 | CI8: =IF('Marks Entry'!AO8="","",'Marks Entry'!AO8) -> 46 | CJ8: 76 | CK8: =IF('Marks Entry'!AP8="","",'Marks Entry'!AP8) -> 45 | CL8: 121 | CM8: 0 | CN8: 0 | CO8: 200 | CQ8: P | CR8: I | CS8: =IF('School Profile'!$D$20="NO","",IF('Marks Entry'!AQ8="","",IF('Marks Entry'!AQ8=1,'School Profile'!$I$29,IF('Marks Entry'!AQ8=2,'School Profile'!$I$30,IF('Marks Entry'!AQ8=3,'School Profile'!$I$31,IF('Marks Entry'!AQ8=4,'School Profile'!$I$32,IF('Marks Entry'!AQ8=5,'School Profile'!$I$33,IF('Marks Entry'!AQ8=6,'School Profile'!$I$34,IF('Marks Entry'!AQ8=7,'School Profile'!$I$35,IF('Marks Entry'!AQ8=8,'School Profile'!$I$36,IF('Marks Entry'!AQ8=9,'School Profile'!$I$37,IF('Marks Entry'!AQ8=10,'School Profile'!$I$38,IF('Marks Entry'!AQ8=11,'School Profile'!$I$39,""))))))))))))) ->  | CT8: =IF('School Profile'!$D$20="NO","",IF('Marks Entry'!AR8="","",'Marks Entry'!AR8)) ->  | CU8: =IF('School Profile'!$D$20="NO","",IF('Marks Entry'!AS8="","",'Marks Entry'!AS8)) ->  | CV8: =IF('School Profile'!$D$20="NO","",IF('Marks Entry'!AT8="","",'Marks Entry'!AT8)) ->  | CW8: =IF('School Profile'!$D$20="NO","",IF(AND(CT8="",CU8="",CV8=""),"",SUM(CT8:CV8))) ->  | CX8: =IF('School Profile'!$D$20="NO","",IF('Marks Entry'!AU8="","",'Marks Entry'!AU8)) ->  | CY8: =IF('School Profile'!$D$20="NO","",IF('Marks Entry'!AV8="","",'Marks Entry'!AV8)) ->  | CZ8: =IF('School Profile'!$D$20="NO","",IF(AND(CX8="",CY8=""),"",SUM(CX8,CY8))) ->  | DA8: =IF('School Profile'!$D$20="NO","",IF(AND(CW8="",CZ8=""),"",SUM(CW8+CZ8))) ->  | DB8: =IF('School Profile'!$D$20="NO","",IF('Marks Entry'!AW8="","",'Marks Entry'!AW8)) ->  | DC8: =IF('School Profile'!$D$20="NO","",IF('Marks Entry'!AX8="","",'Marks Entry'!AX8)) ->  | DD8: =IF('School Profile'!$D$20="NO","",IF(AND(DB8="",DC8=""),"",SUM(DB8,DC8))) ->  | DE8: =IF('School Profile'!$D$20="NO","",IF(AND(DA8="",DD8=""),"",SUM(DA8,DD8))) ->  | DF8: 0 | DG8: 0 | DJ8: =IF(OR($B8="NSO",$B8="",DD8=""),"",IF(OR(DI8="AB",DD8="ab"),"AB",IF(DD8="ML","RE",IF(DD8<20%*$DD$6,"F",IF(AND(DE8>=36%*DH8,DD8>=20),"P",IF(AND(DE8>=34%*DH8,DG8=0,DD8>=20),"G2",IF(AND(DE8>=31%*DH8,DG8=0,DD8>=20),"G1",IF(DE8>=25%*DH8,"S","F")))))))) ->  | DL8: =X8 -> I | DM8: =AL8 -> D | DN8: =BA8 -> D | DO8: =BO8 -> II | DP8: =CC8 -> II | DQ8: =CR8 -> I | DR8: =DK8 ->  | DS8: =COUNTIF(DL8:DR8,"F")+COUNTIF(DL8:DR8,"AB") -> 0 | DT8: =COUNTIF(DL8:DR8,"S") -> 0 | DU8: =COUNTIF(DL8:DR8,"G1") -> 0 | DV8: =COUNTIF(DL8:DR8,"G2") -> 0 | DW8: =COUNTIF(DL8:DR8,"RE")+COUNTIF(DL8:DR8,"REP") -> 0 | DX8: =IF(OR(DK8="AB",DK8="F"),"F",IF(OR(DK8="RE"),"RE","")) ->  | DY8: =IF(B8="NSO","NSO",IF(OR(B8="",B8=0,Q8="",AE8="",AT8="",BH8="",BV8="",CK8=""),"",IF(OR(DS8>0,(DT8+DU8+DV8)>2),"FAIL",IF(DW8>0,"RE-EXAM",IF(OR(DT8>0,DU8>1),"SUPPLEMENTARY",IF(AND(DU8>0,DV8>0),"SUPPLEMENTARY",IF((DU8+DV8)>0,"BY GRACE PASS","PASS"))))))) -> PASS | DZ8: =IF('Marks Entry'!AY8="","",'Marks Entry'!AY8) -> 9 | EA8: =IF('Marks Entry'!AZ8="","",'Marks Entry'!AZ8) -> 9 | EB8: =IF('Marks Entry'!BA8="","",'Marks Entry'!BA8) -> 9 | EC8: 27 | ED8: =IF('Marks Entry'!BB8="","",'Marks Entry'!BB8) -> 65 | EE8: 92 | EF8: =IF('Marks Entry'!BC8="","",'Marks Entry'!BC8) -> 85 | EG8: 177 | EH8: =IF(OR($B8="NSO",$B8=0,EG8=""),"",IF(OR(EG8="AB",EE8="AB",EF8="AB"),"AB",IF(AND(DY8="FAIL",(OR(EG8<36%*EK8))),"D",IF(OR(EF8="ML",EF8<20%*EF$6,EG8<36%*EK8),"D",IF(EG8>80%*EK8,"A",IF(EG8>60%*EK8,"B",IF(EG8>40%*EK8,"C","D"))))))) -> A | EI8: =COUNTIF(DZ8:EB8,"NA")*10 -> 0 | EJ8: =(COUNTIF(DZ8:EB8,"ML")*10)+(COUNTIF(ED8,"ML")*70)+(COUNTIF(EF8,"ML")*100) -> 0 | EK8: =IF(OR($B8="NSO",$B8=0),"",IF(AND(DZ8="",EA8="",EC8="",EE8=""),"",IF(AND(EA8="",EC8="",ED8="",EE8="",EF8=""),($DZ$6)-EI8-EJ8,IF(AND(DZ8="",EC8="",ED8="",EE8="",EF8=""),($EA$6)-EI8-EJ8,IF(AND(EC8="",ED8="",EE8="",EF8=""),($DZ$6+$EA$6)-EI8-EJ8,IF(AND(EE8="",EF8=""),($EC$6+$ED$6)-EI8-EJ8,($EG$6)-EI8-EJ8)))))) -> 200 | EL8: =IF('Marks Entry'!BD8="","",'Marks Entry'!BD8) -> 9 | EM8: =IF('Marks Entry'!BE8="","",'Marks Entry'!BE8) -> 9 | EN8: =IF('Marks Entry'!BF8="","",'Marks Entry'!BF8) -> 9 | EO8: 27 | EP8: =IF('Marks Entry'!BG8="","",'Marks Entry'!BG8) -> 46 | EQ8: =IF('Marks Entry'!BH8="","",'Marks Entry'!BH8) -> 13 | ER8: 59 | ES8: 86 | ET8: =IF('Marks Entry'!BI8="","",'Marks Entry'!BI8) -> 65 | EU8: =IF('Marks Entry'!BJ8="","",'Marks Entry'!BJ8) -> 26 | EV8: 91 | EW8: 177 | EX8: =IF(OR($B8="NSO",$B8=0,EW8=""),"",IF(OR(ET8="AB",EU8="AB",EV8="AB"),"AB",IF(AND($DY8="FAIL",(OR(EW8<36%*FA8))),"D",IF(OR(EV8="ML",EV8<20%*EV$6,EW8<36%*FA8),"D",IF(EW8>80%*FA8,"A",IF(EW8>60%*FA8,"B",IF(EW8>40%*FA8,"C","D"))))))) -> A | EY8: =COUNTIF(EL8:EN8,"NA")*10 -> 0 | EZ8: =(COUNTIF(EL8:EN8,"ML")*10)+(COUNTIF(ER8,"ML")*70)+(COUNTIF(EV8,"ML")*100) -> 0 | FA8: =IF(OR($B8="NSO",$B8=0),"",IF(AND(EL8="",EM8="",EP8="",ET8=""),"",IF(AND(EM8="",EP8="",EQ8="",ET8="",EU8=""),($EL$6)-EY8-EZ8,IF(AND(EL8="",EP8="",EQ8="",ET8="",EU8=""),($EM$6)-EY8-EZ8,IF(AND(EP8="",EQ8="",ET8="",EU8=""),($EL$6+$EM$6)-EY8-EZ8,IF(AND(ET8="",EU8=""),($EP$6+$EQ$6)-EY8-EZ8,($EW$6)-EY8-EZ8)))))) -> 200 | FB8: =IF('Marks Entry'!BK8="","",'Marks Entry'!BK8) -> 9 | FC8: =IF('Marks Entry'!BL8="","",'Marks Entry'!BL8) -> 7 | FD8: =IF('Marks Entry'!BM8="","",'Marks Entry'!BM8) -> 9 | FE8: =IF('Marks Entry'!BN8="","",'Marks Entry'!BN8) -> 6 | FF8: =IF('Marks Entry'!BO8="","",'Marks Entry'!BO8) -> 9 | FG8: =IF('Marks Entry'!BP8="","",'Marks Entry'!BP8) -> 14 | FH8: 54 | FI8: =IF('Marks Entry'!BQ8="","",'Marks Entry'!BQ8) -> 21 | FJ8: =IF('Marks Entry'!BR8="","",'Marks Entry'!BR8) -> 10 | FK8: 31 | FL8: 85 | FM8: =IF('Marks Entry'!BS8="","",'Marks Entry'!BS8) -> 11 | FN8: =IF('Marks Entry'!BT8="","",'Marks Entry'!BT8) -> 52 | FO8: 63 | FP8: 148 | FQ8: =IF(OR($B8="NSO",$B8=0,FP8=""),"",IF(OR(FM8="AB",FN8="AB",FO8="AB"),"AB",IF(AND($DY8="FAIL",(OR(FP8<36%*FT8))),"D",IF(OR(FO8="ML",FO8<20%*FO$6,FP8<36%*FT8),"D",IF(FP8>80%*FT8,"A",IF(FP8>60%*FT8,"B",IF(FP8>40%*FT8,"C","D"))))))) -> B | FR8: =COUNTIF(FB8,"NA")*10+COUNTIF(FD8,"NA")*10+COUNTIF(FF8,"NA")*10 -> 0 | FS8: =(COUNTIF(FB8,"ML")*10)+(COUNTIF(FD8,"ML")*10)+(COUNTIF(FF8,"ML")*10)+(COUNTIF(FI8,"ML")*25)+(COUNTIF(FJ8,"ML")*15)+(COUNTIF(FM8,"ML")*30)+(COUNTIF(FN8,"ML")*70) -> 0 | FT8: =IF(OR($B8="NSO",$B8=0),"",IF(AND(FB8="",FD8="",FF8="",FI8="",FM8=""),"",IF(AND(FC8="",FI8="",FJ8="",FE8="",FN8=""),($FB$6)-FR8-FS8,IF(AND(FB8="",FI8="",FJ8="",FM8="",FN8=""),($FC$6)-FR8-FS8,IF(AND(FI8="",FJ8="",FM8="",FN8=""),($FB$6+$FC$6)-FR8-FS8,IF(AND(FM8="",FN8=""),($FI$6+$FJ$6)-FR8-FS8,($FP$6)-FR8-FS8)))))) -> 200 | FU8: =IF('Marks Entry'!BU8="","",'Marks Entry'!BU8) -> 24 | FV8: =IF('Marks Entry'!BV8="","",'Marks Entry'!BV8) -> 42 | FW8: =IF('Marks Entry'!BW8="","",'Marks Entry'!BW8) -> 28 | FX8: 94 | FY8: =IFERROR(IF(OR($B8="NSO",$B8=0,FX8=""),"",IF(OR(FU8="AB",FV8="AB",FW8="AB"),"AB",IF(AND($DY8="FAIL",(OR(FX8<36%*GB8))),"D",IF(OR(FW8="ML",FX8<20%*FX$6,FX8<36%*GB8),"D",IF(FX8>80%*GB8,"A",IF(FX8>60%*GB8,"B",IF(FX8>40%*GB8,"C","D"))))))),"") -> A | FZ8: =COUNTIF(FU8,"NA")*25 -> 0 | GA8: =IF(AND(FW8="",FU8="",FW8=""),(COUNTIF(FU8,"ML")*25+(COUNTIF(FW8,"ML"))*FW$6+(COUNTIF(FV8,"ML"))*FV$6),(COUNTIF(FU8,"ML")*25+(COUNTIF(FW8,"ML"))*FW$6+(COUNTIF(FX8,"ML"))*FX$6)) -> 0 | GB8: =IF(OR($B8="NSO",$B8=0),"",IF(AND(FU8="",FV8="",FW8=""),"",IF(AND(FU8="",FV8="",FW8=""),($FX$6)-FZ8-GA8,IF(AND(FW8=""),($FW$6)-FZ8-GA8,IF(AND(FV8=""),($FV$6)-FZ8-GA8,IF(AND(FU8=""),($FU$6)-FZ8-GA8,($FX$6)-FZ8-GA8)))))) -> 100 | GC8: =IF('Marks Entry'!BX8="","",'Marks Entry'!BX8) -> 20 | GD8: =IF('Marks Entry'!BY8="","",'Marks Entry'!BY8) -> 45 | GE8: =IF('Marks Entry'!BZ8="","",'Marks Entry'!BZ8) -> 10 | GF8: =IF(AND(GC8="",GD8="",GE8=""),"",SUM(GC8,GD8,GE8)) -> 75 | GG8: =IFERROR(IF(OR($B8="NSO",$B8=0,GF8=""),"",IF(OR(GC8="AB",GD8="AB",GE8="AB"),"AB",IF(AND($DY8="FAIL",(OR(GF8<36%*GJ8))),"D",IF(OR(GE8="ML",GF8<20%*GF$6,GF8<36%*GJ8),"D",IF(GF8>80%*GJ8,"A",IF(GF8>60%*GJ8,"B",IF(GF8>40%*GJ8,"C","D"))))))),"") -> B | GH8: =COUNTIF(GC8,"NA")*25 -> 0 | GI8: =IF(AND(GE8="",GC8="",GE8=""),(COUNTIF(GC8,"ML")*25+(COUNTIF(GE8,"ML"))*GE$6+(COUNTIF(GD8,"ML"))*GD$6),(COUNTIF(GC8,"ML")*25+(COUNTIF(GE8,"ML"))*GE$6+(COUNTIF(GF8,"ML"))*GF$6)) -> 0 | GJ8: =IF(OR($B8="NSO",$B8=0),"",IF(AND(GC8="",GD8="",GE8=""),"",IF(AND(GC8="",GD8="",GE8=""),($GF$6)-GH8-GI8,IF(AND(GE8=""),($GE$6)-GH8-GI8,IF(AND(GD8=""),($GD$6)-GH8-GI8,IF(AND(GC8=""),($GC$6)-GH8-GI8,($GF$6)-GH8-GI8)))))) -> 100 | GK8: =IF(AND(F8="",B8=""),"",IF('Student DATA Entry'!M5="","",'Student DATA Entry'!M5)) -> 210 | GL8: =IF(AND(B8="",F8=""),"",IF('Student DATA Entry'!N5="","",'Student DATA Entry'!N5)) -> 202 | GM8: =IF(OR(GK8=0,GL8=0,GK8="",GL8=""),"",GL8/GK8*100) -> 96.19 % | GN8: =IF(AND(DY8="FAIL",(OR(DL8="G1",DL8="G2",DL8="S",DL8="RE"))),"F",IF(AND(DY8="RE-EXAM",(OR(DL8="G1",DL8="G2",DL8="S"))),"S",IF(AND(DY8="SUPPLEMENTARY",(OR(DL8="G1",DL8="G2"))),"S",IF(AND(DY8="BY GRACE PASS",(OR(DL8="G1",DL8="G2"))),"G",DL8)))) -> I | GO8: =IF(GN8="G",",+","") ->  | GQ8: =IF(AND(DY8="vuqRrh.kZ",(OR(DM8="G1",DM8="G2",DM8="S",DM8="RE"))),"F",IF(AND(DY8="iqu% ijh{kk",(OR(DM8="G1",DM8="G2",DM8="S"))),"S",IF(AND(DY8="iwjd",(OR(DM8="G1",DM8="G2"))),"S",IF(AND(DY8="lk- mRrh.kZ",(OR(DM8="G1",DM8="G2"))),"G",DM8)))) -> D | GR8: =IF(GQ8="G",",+","") ->  | GT8: =IF(AND(DY8="FAIL",(OR(DN8="G1",DN8="G2",DN8="S",DN8="RE"))),"F",IF(AND(DY8="RE-EXAM",(OR(DN8="G1",DN8="G2",DN8="S"))),"S",IF(AND(DY8="SUPPLEMENTARY",(OR(DN8="G1",DN8="G2"))),"S",IF(AND(DY8="BY GRACE PASS",(OR(DN8="G1",DN8="G2"))),"G",DN8)))) -> D | GU8: =IF('Marks Entry'!V8=1,GT8,"") -> D | GV8: =IF('Marks Entry'!V8=2,GT8,"") ->  | GW8: =IF('Marks Entry'!V8=3,GT8,"") ->  | GX8: =IF('Marks Entry'!V8=4,GT8,"") ->  | GY8: =IF('Marks Entry'!V8=5,GT8,"") ->  | GZ8: =IF(GT8="G",",+","") ->  | HB8: =IF(AND(DY8="FAIL",(OR(DO8="G1",DO8="G2",DO8="S",DO8="RE",))),"F",IF(AND(DY8="RE-EXAM",(OR(DO8="G1",DO8="G2",DO8="S"))),"S",IF(AND(DY8="SUPPLEMENTARY",(OR(DO8="G1",DO8="G2"))),"S",IF(AND(DY8="BY GRACE PASS",(OR(DO8="G1",DO8="G2"))),"G",DO8)))) -> II | HC8: =IF(HB8="G",",+","") ->  | HE8: =IF(AND(DY8="FAIL",(OR(DP8="G1",DP8="G2",DP8="S",DP8="RE"))),"F",IF(AND(DY8="RE-EXAM",(OR(DP8="G1",DP8="G2",DP8="S"))),"S",IF(AND(DY8="SUPPLEMENTARY",(OR(DP8="G1",DP8="G2"))),"S",IF(AND(DY8="BY GRACE PASS",(OR(DP8="G1",DP8="G2"))),"G",DP8)))) -> II | HF8: =IF(HE8="G",",+","") ->  | HH8: =IF(AND(DY8="FAIL",(OR(DQ8="G1",DQ8="G2",DQ8="S",DQ8="RE"))),"F",IF(AND(DY8="RE-EXAM",(OR(DQ8="G1",DQ8="G2",DQ8="S"))),"S",IF(AND(DY8="SUPPLEMENTARY",(OR(DQ8="G1",DQ8="G2"))),"S",IF(AND(DY8="BY GRACE PASS",(OR(DQ8="G1",DQ8="G2"))),"G",DQ8)))) -> I | HI8: =IF(HH8="G",",+","") ->  | HK8: =IF(AND(DY8="FAIL",(OR(DR8="G1",DR8="G2",DR8="S",DR8="RE"))),"F",IF(AND(DY8="RE-EXAM",(OR(DR8="G1",DR8="G2",DR8="S"))),"S",IF(AND(DY8="SUPPLEMENTARY",(OR(DR8="G1",DR8="G2"))),"S",IF(AND(DY8="BY GRACE PASS",(OR(DR8="G1",DR8="G2"))),"G",DR8)))) ->  | HL8: =IF(HK8="G",",+","") ->  | HN8: =CONCATENATE(IF(GN8="F",$GN$5,IF(GN8="AB",$GN$5,""))," ",IF(GQ8="F",$GQ$5,IF(GQ8="AB",$GQ$5,""))," ",IF(GU8="F",$GU$5,IF(GV8="F",$GV$5,IF(GW8="F",$GW$5,IF(GX8="F",$GX$5,IF(GY8="F",$GY$5,IF(GU8="AB",$GU$5,IF(GV8="AB",$GV$5,IF(GW8="AB",$GW$5,IF(GX8="AB",$GX$5,IF(GY8="AB",$GY$5,""))))))))))," ",IF(HB8="F",$HB$5,IF(HB8="AB",$HB$5,""))," ",IF(HE8="F",$HE$5,IF(HE8="AB",$HE$5,""))," ",,IF(HH8="F",$HH$5,IF(HH8="AB",$HH$5,""))," ",IF(HK8="F",$HK$5,IF(HK8="AB",$HK$5,""))) ->  | HO8: =IF(COUNTIF(DL8:DR8,"F")>0,"",CONCATENATE(IF(GN8="S",$GN$5,"")," ",IF(GQ8="S",$GQ$5,"")," ",IF(GU8="S",$GU$5,IF(GV8="S",$GV$5,IF(GW8="S",$GW$5,IF(GX8="S",$GX$5,IF(GY8="S",$GY$5,"")))))," ",IF(HB8="S",$HB$5,"")," ",IF(HE8="S",$HE$5,"")," ",IF(HH8="S",$HH$5,"")," ",IF(HK8="S",$HK$5,""))) ->  | HP8: =CONCATENATE(IF(GN8="G",$GN$5,"")," ",IF(GQ8="G",$GQ$5,"")," ",IF(GU8="G",$GU$5,IF(GV8="G",$GV$5,IF(GW8="G",$GW$5,IF(GX8="G",$GX$5,IF(GY8="G",$GY$5,"")))))," ",IF(HB8="G",$HB$5,"")," ",IF(HE8="G",$HE$5,"")," ",IF(HH8="G",$HH$5,"")," ",IF(HK8="G",$HK$5,"")) ->  | HQ8: =CONCATENATE(IF(GN8="RE",$GN$5,"")," ",IF(GQ8="RE",$GQ$5,"")," ",IF(OR(GU8="RE",GU8="REP"),$GU$5,IF(OR(GV8="RE",GV8="REP"),$GV$5,IF(OR(GW8="RE",GW8="REP"),$GW$5,IF(OR(GX8="RE",GX8="REP"),$GX$5,IF(OR(GY8="RE",GY8="REP"),$GY$5,"")))))," ",IF(OR(HB8="RE",HB8="REP"),$HB$5,"")," ",IF(OR(HE8="RE",HE8="REP"),$HE$5,"")," ",IF(OR(HH8="RE",HH8="REP"),$HH$5,"")," ",IF(OR(HK8="RE",HK8="REP"),$HK$5,"")) ->  | HR8: =CONCATENATE(IF(GN8="D",$GN$5,"")," ",IF($GQ8="D",$GQ$5,"")," ",IF(GU8="D",$GU$5,IF(GV8="D",$GV$5,IF(GW8="D",$GW$5,IF(GX8="D",$GX$5,IF(GY8="D",$GY$5,"")))))," ",IF(HB8="D",$HB$5,"")," ",IF(HE8="D",$HE$5,"")," ",IF(HH8="D",$HH$5,"")," ",IF(HK8="D",$HK$5,"")) -> अंग्रेजी संस्कृत (71) | HS8: PASS | HT8: =IF(AND(R8="",AF8="",AU8="",BI8="",BW8=""),"",IF(OR(CS8="",DE8=""),SUM(R8,AF8,AU8,BI8,BW8,CL8),IF((CL8/CO8*100)>=(DE8/DH8*100),SUM(R8,AF8,AU8,BI8,BW8,CL8),SUM(R8,AF8,AU8,BI8,BW8,DE8)))) -> 859 | HU8: =IF(HT8="","",HT8*100/($HT$6-CD8)) -> 71.58 | HV8: =IFERROR(IF(HU8="","",IF(AND(HU8>=60,(HS8="PASS")),"1st",IF(AND(HU8>=60,(HS8="BY GRACE PASS")),"1st",IF(AND(HU8>=48,(HS8="PASS")),"2nd",IF(AND(HU8>=48,(HS8="BY GRACE PASS")),"2nd",IF(AND(HU8>=36,(HS8="PASS")),"3rd",IF(AND(HU8>=36,(HS8="BY GRACE PASS")),"3rd",""))))))),"") -> 1st | HW8: =IFERROR(IF(OR(HS8="PASS",HS8="BY GRACE PASS"),HU8,""),"") -> 71.58 % | HX8: =IFERROR(IF(HW8="","",SUMPRODUCT((HW8<HW$7:HW$206)/COUNTIF(HW$7:HW$206,HW$7:HW$206))),"") -> 1 | HY8: =IFERROR(IF(OR(HS8="SUPPLEMENTARY",HS8="RE-EXAM"),'Supp. Result Entry'!AQ6,""),"") ->  | HZ8: =IF(OR(KA8="",JP8=0),"",IF(JY8="","",JY8)) ->  | IA8: =IF(AND(KA8=""),"",IF(HZ8="","",IF(AND(KA8="FAIL"),"Failed",KA8))) ->  | IB8: =IF(AND(HZ8="",IA8=""),"",IF(OR(HS8="SUPPLEMENTARY",HS8="RE-EXAM"),'Supp. Result Entry'!AQ6,HS8)) ->  | IS8: =IF('Supp. Result Entry'!T6="","",'Supp. Result Entry'!$T$4) ->  | IT8: =IF('Supp. Result Entry'!W6="","",'Supp. Result Entry'!$W$4) ->  | IU8: =IF('Supp. Result Entry'!Z6="","",'Supp. Result Entry'!$Z$4) ->  | IV8: =IF('Supp. Result Entry'!AC6="","",'Supp. Result Entry'!$AC$4) ->  | IW8: =IF('Supp. Result Entry'!AF6="","",'Supp. Result Entry'!$AF$4) ->  | IX8: =IF('Supp. Result Entry'!AI6="","",'Supp. Result Entry'!$AI$4) ->  | IY8: =IF('Supp. Result Entry'!AI6="","",'Supp. Result Entry'!$AL$4) ->  | IZ8: =IF('Supp. Result Entry'!U6="","",'Supp. Result Entry'!U6) ->  | JA8: =IF('Supp. Result Entry'!X6="","",'Supp. Result Entry'!X6) ->  | JB8: =IF('Supp. Result Entry'!AA6="","",'Supp. Result Entry'!AA6) ->  | JC8: =IF('Supp. Result Entry'!AD6="","",'Supp. Result Entry'!AD6) ->  | JD8: =IF('Supp. Result Entry'!AG6="","",'Supp. Result Entry'!AG6) ->  | JE8: =IF('Supp. Result Entry'!AJ6="","",'Supp. Result Entry'!AJ6) ->  | JF8: =IF('Supp. Result Entry'!AM6="","",'Supp. Result Entry'!AM6) ->  | JG8: =IF('Supp. Result Entry'!V6="","",'Supp. Result Entry'!V6) ->  | JH8: =IF('Supp. Result Entry'!Y6="","",'Supp. Result Entry'!Y6) ->  | JI8: =IF('Supp. Result Entry'!AB6="","",'Supp. Result Entry'!AB6) ->  | JJ8: =IF('Supp. Result Entry'!AE6="","",'Supp. Result Entry'!AE6) ->  | JK8: =IF('Supp. Result Entry'!AH6="","",'Supp. Result Entry'!AH6) ->  | JL8: =IF('Supp. Result Entry'!AK6="","",'Supp. Result Entry'!AK6) ->  | JM8: =IF('Supp. Result Entry'!AN6="","",'Supp. Result Entry'!AN6) ->  | JN8: =COUNTIF('Supp. Result Entry'!K6:Q6,"S") -> 0 | JO8: =COUNTIF(GN8:HM8,"RE")+COUNTIF(GN8:HM8,"REP") -> 0 | JP8: =COUNTIF(JG8:JM8,"P") -> 0 | JX8: =IF(OR(JN8=0,JN8<JP8),"",SUM(JQ8:JW8)) ->  | JY8: =IF(OR(JN8=0,JN8<JP8),"",JX8/JZ8*100) ->  | KA8: =IF(JY8="","",IF(JY8>=60,"I",IF(JY8>=48,"II",IF(JY8>=36,"III","")))) -> 
A9: 3 | B9: =IF('Marks Entry'!B9="","",'Marks Entry'!B9) -> 903 | C9: =IF('Marks Entry'!D9="","",'Marks Entry'!D9) -> A | D9: =IF('Marks Entry'!E9="","",'Marks Entry'!E9) ->  | E9: =IF('Marks Entry'!F9="","",'Marks Entry'!F9) -> 2012-10-10 | F9: =IF('Marks Entry'!G9="","",'Marks Entry'!G9) -> DINESH | G9: =IF('Marks Entry'!H9="","",'Marks Entry'!H9) ->  | H9: =IF('Marks Entry'!I9="","",'Marks Entry'!I9) ->  | I9: =IF('Marks Entry'!J9="","",'Marks Entry'!J9) -> GEN | J9: =IF('Marks Entry'!K9="","",'Marks Entry'!K9) -> M | K9: =IF('Marks Entry'!L9="","",'Marks Entry'!L9) -> 8 | L9: =IF('Marks Entry'!M9="","",'Marks Entry'!M9) -> 9 | M9: =IF('Marks Entry'!N9="","",'Marks Entry'!N9) -> 7 | N9: 24 | O9: =IF('Marks Entry'!O9="","",'Marks Entry'!O9) -> 46 | P9: 70 | Q9: =IF('Marks Entry'!P9="","",'Marks Entry'!P9) -> 13 | R9: 83 | S9: 0 | T9: 0 | U9: 200 | W9: F | X9: F | Y9: =IF('Marks Entry'!Q9="","",'Marks Entry'!Q9) -> 8 | Z9: =IF('Marks Entry'!R9="","",'Marks Entry'!R9) -> 9 | AA9: =IF('Marks Entry'!S9="","",'Marks Entry'!S9) -> 10 | AB9: 27 | AC9: =IF('Marks Entry'!T9="","",'Marks Entry'!T9) -> 65 | AD9: 92 | AE9: =IF('Marks Entry'!U9="","",'Marks Entry'!U9) -> 95 | AF9: 187 | AG9: 0 | AH9: 0 | AI9: 200 | AK9: P | AL9: D | AM9: =IF('Marks Entry'!V9="","",IF('Marks Entry'!V9=1,'School Profile'!$I$9,IF('Marks Entry'!V9=2,'School Profile'!$I$10,IF('Marks Entry'!V9=3,'School Profile'!$I$11,IF('Marks Entry'!V9=4,'School Profile'!$I$12,IF('Marks Entry'!V9=5,'School Profile'!$I$13,IF('Marks Entry'!V9=6,'School Profile'!$I$14,""))))))) -> संस्कृत (71) | AN9: =IF('Marks Entry'!W9="","",'Marks Entry'!W9) -> 8 | AO9: =IF('Marks Entry'!X9="","",'Marks Entry'!X9) -> 9 | AP9: =IF('Marks Entry'!Y9="","",'Marks Entry'!Y9) -> 9 | AQ9: 26 | AR9: =IF('Marks Entry'!Z9="","",'Marks Entry'!Z9) -> 46 | AS9: 72 | AT9: =IF('Marks Entry'!AA9="","",'Marks Entry'!AA9) -> 45 | AU9: 117 | AV9: 0 | AW9: 0 | AX9: 200 | AZ9: P | BA9: II | BB9: =IF('Marks Entry'!AB9="","",'Marks Entry'!AB9) -> 8 | BC9: =IF('Marks Entry'!AC9="","",'Marks Entry'!AC9) -> 9 | BD9: =IF('Marks Entry'!AD9="","",'Marks Entry'!AD9) -> 8 | BE9: 25 | BF9: =IF('Marks Entry'!AE9="","",'Marks Entry'!AE9) -> 68 | BG9: 93 | BH9: =IF('Marks Entry'!AF9="","",'Marks Entry'!AF9) -> 95 | BI9: 188 | BJ9: 0 | BK9: 0 | BL9: 200 | BN9: P | BO9: D | BP9: =IF('Marks Entry'!AG9="","",'Marks Entry'!AG9) -> 8 | BQ9: =IF('Marks Entry'!AH9="","",'Marks Entry'!AH9) -> 9 | BR9: =IF('Marks Entry'!AI9="","",'Marks Entry'!AI9) -> 8 | BS9: 25 | BT9: =IF('Marks Entry'!AJ9="","",'Marks Entry'!AJ9) -> 46 | BU9: 71 | BV9: =IF('Marks Entry'!AK9="","",'Marks Entry'!AK9) -> 45 | BW9: 116 | BX9: 0 | BY9: 0 | BZ9: 200 | CB9: P | CC9: II | CD9: 0 | CE9: =IF('Marks Entry'!AL9="","",'Marks Entry'!AL9) -> 8 | CF9: =IF('Marks Entry'!AM9="","",'Marks Entry'!AM9) -> 8 | CG9: =IF('Marks Entry'!AN9="","",'Marks Entry'!AN9) -> 8 | CH9: 24 | CI9: =IF('Marks Entry'!AO9="","",'Marks Entry'!AO9) -> 46 | CJ9: 70 | CK9: =IF('Marks Entry'!AP9="","",'Marks Entry'!AP9) -> 45 | CL9: 115 | CM9: 0 | CN9: 0 | CO9: 200 | CQ9: P | CR9: II | CS9: =IF('School Profile'!$D$20="NO","",IF('Marks Entry'!AQ9="","",IF('Marks Entry'!AQ9=1,'School Profile'!$I$29,IF('Marks Entry'!AQ9=2,'School Profile'!$I$30,IF('Marks Entry'!AQ9=3,'School Profile'!$I$31,IF('Marks Entry'!AQ9=4,'School Profile'!$I$32,IF('Marks Entry'!AQ9=5,'School Profile'!$I$33,IF('Marks Entry'!AQ9=6,'School Profile'!$I$34,IF('Marks Entry'!AQ9=7,'School Profile'!$I$35,IF('Marks Entry'!AQ9=8,'School Profile'!$I$36,IF('Marks Entry'!AQ9=9,'School Profile'!$I$37,IF('Marks Entry'!AQ9=10,'School Profile'!$I$38,IF('Marks Entry'!AQ9=11,'School Profile'!$I$39,""))))))))))))) ->  | CT9: =IF('School Profile'!$D$20="NO","",IF('Marks Entry'!AR9="","",'Marks Entry'!AR9)) ->  | CU9: =IF('School Profile'!$D$20="NO","",IF('Marks Entry'!AS9="","",'Marks Entry'!AS9)) ->  | CV9: =IF('School Profile'!$D$20="NO","",IF('Marks Entry'!AT9="","",'Marks Entry'!AT9)) ->  | CW9: =IF('School Profile'!$D$20="NO","",IF(AND(CT9="",CU9="",CV9=""),"",SUM(CT9:CV9))) ->  | CX9: =IF('School Profile'!$D$20="NO","",IF('Marks Entry'!AU9="","",'Marks Entry'!AU9)) ->  | CY9: =IF('School Profile'!$D$20="NO","",IF('Marks Entry'!AV9="","",'Marks Entry'!AV9)) ->  | CZ9: =IF('School Profile'!$D$20="NO","",IF(AND(CX9="",CY9=""),"",SUM(CX9,CY9))) ->  | DA9: =IF('School Profile'!$D$20="NO","",IF(AND(CW9="",CZ9=""),"",SUM(CW9+CZ9))) ->  | DB9: =IF('School Profile'!$D$20="NO","",IF('Marks Entry'!AW9="","",'Marks Entry'!AW9)) ->  | DC9: =IF('School Profile'!$D$20="NO","",IF('Marks Entry'!AX9="","",'Marks Entry'!AX9)) ->  | DD9: =IF('School Profile'!$D$20="NO","",IF(AND(DB9="",DC9=""),"",SUM(DB9,DC9))) ->  | DE9: =IF('School Profile'!$D$20="NO","",IF(AND(DA9="",DD9=""),"",SUM(DA9,DD9))) ->  | DF9: 0 | DG9: 0 | DL9: F | DM9: D | DN9: II | DO9: D | DP9: II | DQ9: II | DR9: =DK9 ->  | DS9: 1 | DT9: 0 | DU9: 0 | DV9: 0 | DW9: 0 | DY9: FAIL | DZ9: =IF('Marks Entry'!AY9="","",'Marks Entry'!AY9) -> 9 | EA9: =IF('Marks Entry'!AZ9="","",'Marks Entry'!AZ9) -> 9 | EB9: =IF('Marks Entry'!BA9="","",'Marks Entry'!BA9) -> 9 | EC9: 27 | ED9: =IF('Marks Entry'!BB9="","",'Marks Entry'!BB9) -> 66 | EE9: 93 | EF9: =IF('Marks Entry'!BC9="","",'Marks Entry'!BC9) -> 91 | EG9: 184 | EH9: A | EI9: 0 | EJ9: 0 | EK9: 200 | EL9: =IF('Marks Entry'!BD9="","",'Marks Entry'!BD9) -> 8 | EM9: =IF('Marks Entry'!BE9="","",'Marks Entry'!BE9) -> 8 | EN9: =IF('Marks Entry'!BF9="","",'Marks Entry'!BF9) -> 8 | EO9: 24 | EP9: =IF('Marks Entry'!BG9="","",'Marks Entry'!BG9) -> 47 | EQ9: =IF('Marks Entry'!BH9="","",'Marks Entry'!BH9) -> 16 | ER9: 63 | ES9: 87 | ET9: =IF('Marks Entry'!BI9="","",'Marks Entry'!BI9) -> 64 | EU9: =IF('Marks Entry'!BJ9="","",'Marks Entry'!BJ9) -> 24 | EV9: 88 | EW9: 175 | EX9: A | EY9: 0 | EZ9: 0 | FA9: 200 | FB9: =IF('Marks Entry'!BK9="","",'Marks Entry'!BK9) -> 9 | FC9: =IF('Marks Entry'!BL9="","",'Marks Entry'!BL9) -> 7 | FD9: =IF('Marks Entry'!BM9="","",'Marks Entry'!BM9) -> 9 | FE9: =IF('Marks Entry'!BN9="","",'Marks Entry'!BN9) -> 6 | FF9: =IF('Marks Entry'!BO9="","",'Marks Entry'!BO9) -> 9 | FG9: =IF('Marks Entry'!BP9="","",'Marks Entry'!BP9) -> 14 | FH9: 54 | FI9: =IF('Marks Entry'!BQ9="","",'Marks Entry'!BQ9) -> 21 | FJ9: =IF('Marks Entry'!BR9="","",'Marks Entry'!BR9) -> 12 | FK9: 33 | FL9: 87 | FM9: =IF('Marks Entry'!BS9="","",'Marks Entry'!BS9) -> 20 | FN9: =IF('Marks Entry'!BT9="","",'Marks Entry'!BT9) -> 54 | FO9: 74 | FP9: 161 | FQ9: A | FR9: 0 | FS9: 0 | FT9: 200 | FU9: =IF('Marks Entry'!BU9="","",'Marks Entry'!BU9) -> 23 | FV9: =IF('Marks Entry'!BV9="","",'Marks Entry'!BV9) -> 40 | FW9: =IF('Marks Entry'!BW9="","",'Marks Entry'!BW9) -> 29 | FX9: 92 | FY9: A | FZ9: 0 | GA9: 0 | GB9: 100 | GC9: =IF('Marks Entry'!BX9="","",'Marks Entry'!BX9) -> 21 | GD9: =IF('Marks Entry'!BY9="","",'Marks Entry'!BY9) -> 48 | GE9: =IF('Marks Entry'!BZ9="","",'Marks Entry'!BZ9) -> 10 | GF9: 79 | GG9: B | GH9: 0 | GI9: 0 | GJ9: 100 | GK9: =IF(AND(F9="",B9=""),"",IF('Student DATA Entry'!M6="","",'Student DATA Entry'!M6)) ->  | GL9: =IF(AND(B9="",F9=""),"",IF('Student DATA Entry'!N6="","",'Student DATA Entry'!N6)) ->  | GN9: F | GQ9: D | GT9: =IF(AND(DY9="FAIL",(OR(DN9="G1",DN9="G2",DN9="S",DN9="RE"))),"F",IF(AND(DY9="RE-EXAM",(OR(DN9="G1",DN9="G2",DN9="S"))),"S",IF(AND(DY9="SUPPLEMENTARY",(OR(DN9="G1",DN9="G2"))),"S",IF(AND(DY9="BY GRACE PASS",(OR(DN9="G1",DN9="G2"))),"G",DN9)))) -> II | GU9: =IF('Marks Entry'!V9=1,GT9,"") -> II | GV9: =IF('Marks Entry'!V9=2,GT9,"") ->  | GW9: =IF('Marks Entry'!V9=3,GT9,"") ->  | GX9: =IF('Marks Entry'!V9=4,GT9,"") ->  | GY9: =IF('Marks Entry'!V9=5,GT9,"") ->  | HB9: D | HE9: II | HH9: II | HN9: हिंदी | HR9: अंग्रेजी गणित | HS9: FAIL | HT9: 806 | HU9: =IF(HT9="","",HT9*100/($HT$6-CD9)) -> 67.17 | HY9: =IFERROR(IF(OR(HS9="SUPPLEMENTARY",HS9="RE-EXAM"),'Supp. Result Entry'!AQ7,""),"") ->  | IB9: =IF(AND(HZ9="",IA9=""),"",IF(OR(HS9="SUPPLEMENTARY",HS9="RE-EXAM"),'Supp. Result Entry'!AQ7,HS9)) ->  | IS9: =IF('Supp. Result Entry'!T7="","",'Supp. Result Entry'!$T$4) ->  | IT9: =IF('Supp. Result Entry'!W7="","",'Supp. Result Entry'!$W$4) ->  | IU9: =IF('Supp. Result Entry'!Z7="","",'Supp. Result Entry'!$Z$4) ->  | IV9: =IF('Supp. Result Entry'!AC7="","",'Supp. Result Entry'!$AC$4) ->  | IW9: =IF('Supp. Result Entry'!AF7="","",'Supp. Result Entry'!$AF$4) ->  | IX9: =IF('Supp. Result Entry'!AI7="","",'Supp. Result Entry'!$AI$4) ->  | IY9: =IF('Supp. Result Entry'!AI7="","",'Supp. Result Entry'!$AL$4) ->  | IZ9: =IF('Supp. Result Entry'!U7="","",'Supp. Result Entry'!U7) ->  | JA9: =IF('Supp. Result Entry'!X7="","",'Supp. Result Entry'!X7) ->  | JB9: =IF('Supp. Result Entry'!AA7="","",'Supp. Result Entry'!AA7) ->  | JC9: =IF('Supp. Result Entry'!AD7="","",'Supp. Result Entry'!AD7) ->  | JD9: =IF('Supp. Result Entry'!AG7="","",'Supp. Result Entry'!AG7) ->  | JE9: =IF('Supp. Result Entry'!AJ7="","",'Supp. Result Entry'!AJ7) ->  | JF9: =IF('Supp. Result Entry'!AM7="","",'Supp. Result Entry'!AM7) ->  | JG9: =IF('Supp. Result Entry'!V7="","",'Supp. Result Entry'!V7) ->  | JH9: =IF('Supp. Result Entry'!Y7="","",'Supp. Result Entry'!Y7) ->  | JI9: =IF('Supp. Result Entry'!AB7="","",'Supp. Result Entry'!AB7) ->  | JJ9: =IF('Supp. Result Entry'!AE7="","",'Supp. Result Entry'!AE7) ->  | JK9: =IF('Supp. Result Entry'!AH7="","",'Supp. Result Entry'!AH7) ->  | JL9: =IF('Supp. Result Entry'!AK7="","",'Supp. Result Entry'!AK7) ->  | JM9: =IF('Supp. Result Entry'!AN7="","",'Supp. Result Entry'!AN7) ->  | JN9: =COUNTIF('Supp. Result Entry'!K7:Q7,"S") -> 0 | JO9: 0 | JP9: 0
